Workbook

Sheet Zinsen
D7: Zins | E7: Zins für
C8: Jahr | D8: Aktuell | E8: Simulation | F8: Jahr | G8: Max-AHV Rente
C9: 2015 | D9: 0.0175 | E9: =D9 -> 0.0175
C10: =C9+1 -> 2016 | D10: 0.0125 | E10: =D10 -> 0.0125 | F10: 2016 | G10: 28200
C11: 2017 | D11: 0.025 | E11: =D11 -> 0.025 | F11: =F10+1 -> 2017 | G11: =G10 -> 28200
C12: 2018 | D12: 0.01 | E12: =IF(ISBLANK(Ausweis!$B$72),D12,IF(C12<Ausweis!$N$72,Zinsen!D12,Ausweis!$B$72)) -> 0.01 | F12: =F11+1 -> 2018 | G12: =G11 -> 28200
C13: 2019 | D13: 0.025 | E13: =IF(ISBLANK(Ausweis!$B$72),D13,IF(C13<Ausweis!$N$72,Zinsen!D13,Ausweis!$B$72)) -> 0.025 | F13: 2019 | G13: 28440
C14: 2020 | D14: 0.01 | E14: =IF(ISBLANK(Ausweis!$B$72),D14,IF(C14<Ausweis!$N$72,Zinsen!D14,Ausweis!$B$72)) -> 0.01 | F14: 2020 | G14: =G13 -> 28440
C15: 2021 | D15: =D14 -> 0.01 | E15: =IF(ISBLANK(Ausweis!$B$72),D15,IF(C15<Ausweis!$N$72,Zinsen!D15,Ausweis!$B$72)) -> 0.01 | F15: 2021 | G15: 28680
C16: 2022 | D16: 0.01 | E16: =IF(ISBLANK(Ausweis!$B$72),D16,IF(C16<Ausweis!$N$72,Zinsen!D16,Ausweis!$B$72)) -> 0.01 | F16: 2022 | G16: 28680
C17: 2023 | D17: 0.01 | E17: =IF(ISBLANK(Ausweis!$B$72),D17,IF(C17<Ausweis!$N$72,Zinsen!D17,Ausweis!$B$72)) -> 0.01 | F17: 2023 | G17: 28680
C18: 2024 | D18: 0.01 | E18: =IF(ISBLANK(Ausweis!$B$72),D18,IF(C18<Ausweis!$N$72,Zinsen!D18,Ausweis!$B$72)) -> 0.01 | F18: 2024 | G18: 28680
C19: 2025 | D19: 0.01 | E19: =IF(ISBLANK(Ausweis!$B$72),D19,IF(C19<Ausweis!$N$72,Zinsen!D19,Ausweis!$B$72)) -> 0.01 | F19: 2025 | G19: 28680
C20: 2026 | D20: 0.01 | E20: =IF(ISBLANK(Ausweis!$B$72),D20,IF(C20<Ausweis!$N$72,Zinsen!D20,Ausweis!$B$72)) -> 0.01 | F20: 2026 | G20: 28680
C21: 2027 | D21: 0.01 | E21: =IF(ISBLANK(Ausweis!$B$72),D21,IF(C21<Ausweis!$N$72,Zinsen!D21,Ausweis!$B$72)) -> 0.01 | F21: 2027 | G21: 28680
C22: 2028 | D22: 0.01 | E22: =IF(ISBLANK(Ausweis!$B$72),D22,IF(C22<Ausweis!$N$72,Zinsen!D22,Ausweis!$B$72)) -> 0.01 | F22: 2028 | G22: 28680
C23: 2029 | D23: 0.01 | E23: =IF(ISBLANK(Ausweis!$B$72),D23,IF(C23<Ausweis!$N$72,Zinsen!D23,Ausweis!$B$72)) -> 0.01 | F23: 2029 | G23: 28680
C24: 2030 | D24: 0.01 | E24: =IF(ISBLANK(Ausweis!$B$72),D24,IF(C24<Ausweis!$N$72,Zinsen!D24,Ausweis!$B$72)) -> 0.01 | F24: 2030 | G24: 28680
C25: 2031 | D25: 0.01 | E25: =IF(ISBLANK(Ausweis!$B$72),D25,IF(C25<Ausweis!$N$72,Zinsen!D25,Ausweis!$B$72)) -> 0.01 | F25: 2031 | G25: 28680
C26: 2032 | D26: 0.01 | E26: =IF(ISBLANK(Ausweis!$B$72),D26,IF(C26<Ausweis!$N$72,Zinsen!D26,Ausweis!$B$72)) -> 0.01 | F26: 2032 | G26: 28680
C27: 2033 | D27: 0.01 | E27: =IF(ISBLANK(Ausweis!$B$72),D27,IF(C27<Ausweis!$N$72,Zinsen!D27,Ausweis!$B$72)) -> 0.01 | F27: 2033 | G27: 28680
C28: 2034 | D28: 0.01 | E28: =IF(ISBLANK(Ausweis!$B$72),D28,IF(C28<Ausweis!$N$72,Zinsen!D28,Ausweis!$B$72)) -> 0.01 | F28: 2034 | G28: 28680
C29: 2035 | D29: 0.01 | E29: =IF(ISBLANK(Ausweis!$B$72),D29,IF(C29<Ausweis!$N$72,Zinsen!D29,Ausweis!$B$72)) -> 0.01 | F29: 2035 | G29: 28680
C30: 2036 | D30: 0.01 | E30: =IF(ISBLANK(Ausweis!$B$72),D30,IF(C30<Ausweis!$N$72,Zinsen!D30,Ausweis!$B$72)) -> 0.01 | F30: 2036 | G30: 28680
C31: 2037 | D31: 0.01 | E31: =IF(ISBLANK(Ausweis!$B$72),D31,IF(C31<Ausweis!$N$72,Zinsen!D31,Ausweis!$B$72)) -> 0.01 | F31: 2037 | G31: 28680
C32: 2038 | D32: 0.01 | E32: =IF(ISBLANK(Ausweis!$B$72),D32,IF(C32<Ausweis!$N$72,Zinsen!D32,Ausweis!$B$72)) -> 0.01 | F32: 2038 | G32: 28680
C33: 2039 | D33: 0.01 | E33: =IF(ISBLANK(Ausweis!$B$72),D33,IF(C33<Ausweis!$N$72,Zinsen!D33,Ausweis!$B$72)) -> 0.01 | F33: 2039 | G33: 28680
C34: 2040 | D34: 0.01 | E34: =IF(ISBLANK(Ausweis!$B$72),D34,IF(C34<Ausweis!$N$72,Zinsen!D34,Ausweis!$B$72)) -> 0.01 | F34: 2040 | G34: 28680
C35: 2041 | D35: 0.01 | E35: =IF(ISBLANK(Ausweis!$B$72),D35,IF(C35<Ausweis!$N$72,Zinsen!D35,Ausweis!$B$72)) -> 0.01 | F35: 2041 | G35: 28680
C36: 2042 | D36: 0.01 | E36: =IF(ISBLANK(Ausweis!$B$72),D36,IF(C36<Ausweis!$N$72,Zinsen!D36,Ausweis!$B$72)) -> 0.01 | F36: 2042 | G36: 28680
C37: 2043 | D37: 0.01 | E37: =IF(ISBLANK(Ausweis!$B$72),D37,IF(C37<Ausweis!$N$72,Zinsen!D37,Ausweis!$B$72)) -> 0.01 | F37: 2043 | G37: 28680
C38: 2044 | D38: 0.01 | E38: =IF(ISBLANK(Ausweis!$B$72),D38,IF(C38<Ausweis!$N$72,Zinsen!D38,Ausweis!$B$72)) -> 0.01 | F38: 2044 | G38: 28680
C39: 2045 | D39: 0.01 | E39: =IF(ISBLANK(Ausweis!$B$72),D39,IF(C39<Ausweis!$N$72,Zinsen!D39,Ausweis!$B$72)) -> 0.01 | F39: 2045 | G39: 28680
C40: 2046 | D40: 0.01 | E40: =IF(ISBLANK(Ausweis!$B$72),D40,IF(C40<Ausweis!$N$72,Zinsen!D40,Ausweis!$B$72)) -> 0.01 | F40: 2046 | G40: 28680
C41: 2047 | D41: 0.01 | E41: =IF(ISBLANK(Ausweis!$B$72),D41,IF(C41<Ausweis!$N$72,Zinsen!D41,Ausweis!$B$72)) -> 0.01 | F41: 2047 | G41: 28680
C42: =C41+1 -> 2048 | D42: 0.01 | E42: =IF(ISBLANK(Ausweis!$B$72),D42,IF(C42<Ausweis!$N$72,Zinsen!D42,Ausweis!$B$72)) -> 0.01 | F42: 2048 | G42: 28680
C43: 2049 | D43: 0.01 | E43: =IF(ISBLANK(Ausweis!$B$72),D43,IF(C43<Ausweis!$N$72,Zinsen!D43,Ausweis!$B$72)) -> 0.01 | F43: 2049 | G43: 28680
C44: 2050 | D44: 0.01 | E44: =IF(ISBLANK(Ausweis!$B$72),D44,IF(C44<Ausweis!$N$72,Zinsen!D44,Ausweis!$B$72)) -> 0.01 | F44: 2050 | G44: 28680
C45: 2051 | D45: =D44 -> 0.01 | E45: =IF(ISBLANK(Ausweis!$B$72),D45,IF(C45<Ausweis!$N$72,Zinsen!D45,Ausweis!$B$72)) -> 0.01 | F45: 2051 | G45: 28680
C46: 2052 | D46: 0.01 | E46: =IF(ISBLANK(Ausweis!$B$72),D46,IF(C46<Ausweis!$N$72,Zinsen!D46,Ausweis!$B$72)) -> 0.01 | F46: 2052 | G46: 28680
C47: 2053 | D47: 0.01 | E47: =IF(ISBLANK(Ausweis!$B$72),D47,IF(C47<Ausweis!$N$72,Zinsen!D47,Ausweis!$B$72)) -> 0.01 | F47: 2053 | G47: 28680
C48: 2054 | D48: 0.01 | E48: =IF(ISBLANK(Ausweis!$B$72),D48,IF(C48<Ausweis!$N$72,Zinsen!D48,Ausweis!$B$72)) -> 0.01 | F48: 2054 | G48: 28680
C49: 2055 | D49: 0.01 | E49: =IF(ISBLANK(Ausweis!$B$72),D49,IF(C49<Ausweis!$N$72,Zinsen!D49,Ausweis!$B$72)) -> 0.01 | F49: 2055 | G49: 28680
C50: 2056 | D50: 0.01 | E50: =IF(ISBLANK(Ausweis!$B$72),D50,IF(C50<Ausweis!$N$72,Zinsen!D50,Ausweis!$B$72)) -> 0.01 | F50: 2056 | G50: 28680
C51: 2057 | D51: 0.01 | E51: =IF(ISBLANK(Ausweis!$B$72),D51,IF(C51<Ausweis!$N$72,Zinsen!D51,Ausweis!$B$72)) -> 0.01 | F51: 2057 | G51: 28680
C52: 2058 | D52: 0.01 | E52: =IF(ISBLANK(Ausweis!$B$72),D52,IF(C52<Ausweis!$N$72,Zinsen!D52,Ausweis!$B$72)) -> 0.01 | F52: 2058 | G52: 28680
C53: 2059 | D53: 0.01 | E53: =IF(ISBLANK(Ausweis!$B$72),D53,IF(C53<Ausweis!$N$72,Zinsen!D53,Ausweis!$B$72)) -> 0.01 | F53: 2059 | G53: 28680
C54: 2060 | D54: 0.01 | E54: =IF(ISBLANK(Ausweis!$B$72),D54,IF(C54<Ausweis!$N$72,Zinsen!D54,Ausweis!$B$72)) -> 0.01 | F54: 2060 | G54: 28680
C55: 2061 | D55: 0.01 | E55: =IF(ISBLANK(Ausweis!$B$72),D55,IF(C55<Ausweis!$N$72,Zinsen!D55,Ausweis!$B$72)) -> 0.01 | F55: 2061 | G55: 28680
C56: 2062 | D56: 0.01 | E56: =IF(ISBLANK(Ausweis!$B$72),D56,IF(C56<Ausweis!$N$72,Zinsen!D56,Ausweis!$B$72)) -> 0.01 | F56: 2062 | G56: 28680
C57: 2063 | D57: 0.01 | E57: =IF(ISBLANK(Ausweis!$B$72),D57,IF(C57<Ausweis!$N$72,Zinsen!D57,Ausweis!$B$72)) -> 0.01 | F57: =F56+1 -> 2063 | G57: =G56 -> 28680
C58: 2064 | D58: 0.01 | E58: =IF(ISBLANK(Ausweis!$B$72),D58,IF(C58<Ausweis!$N$72,Zinsen!D58,Ausweis!$B$72)) -> 0.01 | F58: 2064 | G58: 28680
C59: 2065 | D59: 0.01 | E59: =IF(ISBLANK(Ausweis!$B$72),D59,IF(C59<Ausweis!$N$72,Zinsen!D59,Ausweis!$B$72)) -> 0.01 | F59: 2065 | G59: 28680
C60: 2066 | D60: 0.01 | E60: =IF(ISBLANK(Ausweis!$B$72),D60,IF(C60<Ausweis!$N$72,Zinsen!D60,Ausweis!$B$72)) -> 0.01 | F60: 2066 | G60: 28680
C61: 2067 | D61: 0.01 | E61: =IF(ISBLANK(Ausweis!$B$72),D61,IF(C61<Ausweis!$N$72,Zinsen!D61,Ausweis!$B$72)) -> 0.01 | F61: 2067 | G61: 28680
C62: 2068 | D62: 0.01 | E62: =IF(ISBLANK(Ausweis!$B$72),D62,IF(C62<Ausweis!$N$72,Zinsen!D62,Ausweis!$B$72)) -> 0.01 | F62: 2068 | G62: 28680
C63: 2069 | D63: 0.01 | E63: =IF(ISBLANK(Ausweis!$B$72),D63,IF(C63<Ausweis!$N$72,Zinsen!D63,Ausweis!$B$72)) -> 0.01 | F63: 2069 | G63: 28680
C64: 2070 | D64: 0.01 | E64: =IF(ISBLANK(Ausweis!$B$72),D64,IF(C64<Ausweis!$N$72,Zinsen!D64,Ausweis!$B$72)) -> 0.01 | F64: 2070 | G64: 28680
C65: 2071 | D65: 0.01 | E65: =IF(ISBLANK(Ausweis!$B$72),D65,IF(C65<Ausweis!$N$72,Zinsen!D65,Ausweis!$B$72)) -> 0.01 | F65: 2071 | G65: 28680
C66: 2072 | D66: 0.01 | E66: =IF(ISBLANK(Ausweis!$B$72),D66,IF(C66<Ausweis!$N$72,Zinsen!D66,Ausweis!$B$72)) -> 0.01 | F66: 2072 | G66: 28680
C67: 2073 | D67: 0.01 | E67: =IF(ISBLANK(Ausweis!$B$72),D67,IF(C67<Ausweis!$N$72,Zinsen!D67,Ausweis!$B$72)) -> 0.01 | F67: 2073 | G67: 28680
C68: 2074 | D68: 0.01 | E68: =IF(ISBLANK(Ausweis!$B$72),D68,IF(C68<Ausweis!$N$72,Zinsen!D68,Ausweis!$B$72)) -> 0.01 | F68: 2074 | G68: 28680
C69: 2075 | D69: 0.01 | E69: =IF(ISBLANK(Ausweis!$B$72),D69,IF(C69<Ausweis!$N$72,Zinsen!D69,Ausweis!$B$72)) -> 0.01 | F69: 2075 | G69: 28680
C70: 2076 | D70: 0.01 | E70: =IF(ISBLANK(Ausweis!$B$72),D70,IF(C70<Ausweis!$N$72,Zinsen!D70,Ausweis!$B$72)) -> 0.01 | F70: 2076 | G70: 28680
C71: 2077 | D71: 0.01 | E71: =IF(ISBLANK(Ausweis!$B$72),D71,IF(C71<Ausweis!$N$72,Zinsen!D71,Ausweis!$B$72)) -> 0.01 | F71: 2077 | G71: 28680
C72: 2078 | D72: 0.01 | E72: =IF(ISBLANK(Ausweis!$B$72),D72,IF(C72<Ausweis!$N$72,Zinsen!D72,Ausweis!$B$72)) -> 0.01 | F72: 2078 | G72: 28680
C73: 2079 | D73: 0.01 | E73: =IF(ISBLANK(Ausweis!$B$72),D73,IF(C73<Ausweis!$N$72,Zinsen!D73,Ausweis!$B$72)) -> 0.01 | F73: 2079 | G73: 28680
C74: =C73+1 -> 2080 | D74: =D73 -> 0.01 | E74: =IF(ISBLANK(Ausweis!$B$72),D74,IF(C74<Ausweis!$N$72,Zinsen!D74,Ausweis!$B$72)) -> 0.01 | F74: 2080 | G74: 28680
C75: 2081 | D75: 0.01 | E75: =IF(ISBLANK(Ausweis!$B$72),D75,IF(C75<Ausweis!$N$72,Zinsen!D75,Ausweis!$B$72)) -> 0.01 | F75: 2081 | G75: 28680
C76: 2082 | D76: 0.01 | E76: =IF(ISBLANK(Ausweis!$B$72),D76,IF(C76<Ausweis!$N$72,Zinsen!D76,Ausweis!$B$72)) -> 0.01 | F76: 2082 | G76: 28680
C77: 2083 | D77: 0.01 | E77: =IF(ISBLANK(Ausweis!$B$72),D77,IF(C77<Ausweis!$N$72,Zinsen!D77,Ausweis!$B$72)) -> 0.01 | F77: 2083 | G77: 28680
C78: 2084 | D78: 0.01 | E78: =IF(ISBLANK(Ausweis!$B$72),D78,IF(C78<Ausweis!$N$72,Zinsen!D78,Ausweis!$B$72)) -> 0.01 | F78: 2084 | G78: 28680
C79: 2085 | D79: 0.01 | E79: =IF(ISBLANK(Ausweis!$B$72),D79,IF(C79<Ausweis!$N$72,Zinsen!D79,Ausweis!$B$72)) -> 0.01 | F79: 2085 | G79: 28680
C80: 2086 | D80: 0.01 | E80: =IF(ISBLANK(Ausweis!$B$72),D80,IF(C80<Ausweis!$N$72,Zinsen!D80,Ausweis!$B$72)) -> 0.01 | F80: 2086 | G80: 28680
C81: 2087 | D81: 0.01 | E81: =IF(ISBLANK(Ausweis!$B$72),D81,IF(C81<Ausweis!$N$72,Zinsen!D81,Ausweis!$B$72)) -> 0.01 | F81: 2087 | G81: 28680
C82: 2088 | D82: 0.01 | E82: =IF(ISBLANK(Ausweis!$B$72),D82,IF(C82<Ausweis!$N$72,Zinsen!D82,Ausweis!$B$72)) -> 0.01 | F82: 2088 | G82: 28680
C83: 2089 | D83: 0.01 | E83: =IF(ISBLANK(Ausweis!$B$72),D83,IF(C83<Ausweis!$N$72,Zinsen!D83,Ausweis!$B$72)) -> 0.01 | F83: 2089 | G83: 28680
C84: 2090 | D84: 0.01 | E84: =IF(ISBLANK(Ausweis!$B$72),D84,IF(C84<Ausweis!$N$72,Zinsen!D84,Ausweis!$B$72)) -> 0.01 | F84: 2090 | G84: 28680
C85: 2091 | D85: 0.01 | E85: =IF(ISBLANK(Ausweis!$B$72),D85,IF(C85<Ausweis!$N$72,Zinsen!D85,Ausweis!$B$72)) -> 0.01 | F85: 2091 | G85: 28680
C86: 2092 | D86: 0.01 | E86: =IF(ISBLANK(Ausweis!$B$72),D86,IF(C86<Ausweis!$N$72,Zinsen!D86,Ausweis!$B$72)) -> 0.01 | F86: 2092 | G86: 28680
C87: 2093 | D87: 0.01 | E87: =IF(ISBLANK(Ausweis!$B$72),D87,IF(C87<Ausweis!$N$72,Zinsen!D87,Ausweis!$B$72)) -> 0.01 | F87: 2093 | G87: 28680
C88: 2094 | D88: 0.01 | E88: =IF(ISBLANK(Ausweis!$B$72),D88,IF(C88<Ausweis!$N$72,Zinsen!D88,Ausweis!$B$72)) -> 0.01 | F88: 2094 | G88: 28680
C89: 2095 | D89: 0.01 | E89: =IF(ISBLANK(Ausweis!$B$72),D89,IF(C89<Ausweis!$N$72,Zinsen!D89,Ausweis!$B$72)) -> 0.01 | F89: 2095 | G89: 28680
C90: 2096 | D90: 0.01 | E90: =IF(ISBLANK(Ausweis!$B$72),D90,IF(C90<Ausweis!$N$72,Zinsen!D90,Ausweis!$B$72)) -> 0.01 | F90: 2096 | G90: 28680
C91: 2097 | D91: 0.01 | E91: =IF(ISBLANK(Ausweis!$B$72),D91,IF(C91<Ausweis!$N$72,Zinsen!D91,Ausweis!$B$72)) -> 0.01 | F91: 2097 | G91: 28680
C92: 2098 | D92: 0.01 | E92: =IF(ISBLANK(Ausweis!$B$72),D92,IF(C92<Ausweis!$N$72,Zinsen!D92,Ausweis!$B$72)) -> 0.01 | F92: 2098 | G92: 28680
C93: 2099 | D93: 0.01 | E93: =IF(ISBLANK(Ausweis!$B$72),D93,IF(C93<Ausweis!$N$72,Zinsen!D93,Ausweis!$B$72)) -> 0.01 | F93: 2099 | G93: 28680
C94: 2100 | D94: 0.01 | E94: =IF(ISBLANK(Ausweis!$B$72),D94,IF(C94<Ausweis!$N$72,Zinsen!D94,Ausweis!$B$72)) -> 0.01 | F94: 2100 | G94: 28680
C95: 2101 | D95: 0.01 | E95: =IF(ISBLANK(Ausweis!$B$72),D95,IF(C95<Ausweis!$N$72,Zinsen!D95,Ausweis!$B$72)) -> 0.01 | F95: 2101 | G95: 28680
C96: 2102 | D96: 0.01 | E96: =IF(ISBLANK(Ausweis!$B$72),D96,IF(C96<Ausweis!$N$72,Zinsen!D96,Ausweis!$B$72)) -> 0.01 | F96: 2102 | G96: 28680
C97: 2103 | D97: 0.01 | E97: =IF(ISBLANK(Ausweis!$B$72),D97,IF(C97<Ausweis!$N$72,Zinsen!D97,Ausweis!$B$72)) -> 0.01 | F97: 2103 | G97: 28680
C98: 2104 | D98: 0.01 | E98: =IF(ISBLANK(Ausweis!$B$72),D98,IF(C98<Ausweis!$N$72,Zinsen!D98,Ausweis!$B$72)) -> 0.01 | F98: 2104 | G98: 28680
C99: 2105 | D99: 0.01 | E99: =IF(ISBLANK(Ausweis!$B$72),D99,IF(C99<Ausweis!$N$72,Zinsen!D99,Ausweis!$B$72)) -> 0.01 | F99: 2105 | G99: 28680
C100: 2106 | D100: 0.01 | E100: =IF(ISBLANK(Ausweis!$B$72),D100,IF(C100<Ausweis!$N$72,Zinsen!D100,Ausweis!$B$72)) -> 0.01 | F100: 2106 | G100: 28680
C101: 2107 | D101: 0.01 | E101: =IF(ISBLANK(Ausweis!$B$72),D101,IF(C101<Ausweis!$N$72,Zinsen!D101,Ausweis!$B$72)) -> 0.01 | F101: 2107 | G101: 28680
C102: 2108 | D102: 0.01 | E102: =IF(ISBLANK(Ausweis!$B$72),D102,IF(C102<Ausweis!$N$72,Zinsen!D102,Ausweis!$B$72)) -> 0.01 | F102: 2108 | G102: 28680
C103: 2109 | D103: 0.01 | E103: =IF(ISBLANK(Ausweis!$B$72),D103,IF(C103<Ausweis!$N$72,Zinsen!D103,Ausweis!$B$72)) -> 0.01 | F103: 2109 | G103: 28680
C104: 2110 | D104: 0.01 | E104: =IF(ISBLANK(Ausweis!$B$72),D104,IF(C104<Ausweis!$N$72,Zinsen!D104,Ausweis!$B$72)) -> 0.01 | F104: 2110 | G104: 28680
C105: 2111 | D105: 0.01 | E105: =IF(ISBLANK(Ausweis!$B$72),D105,IF(C105<Ausweis!$N$72,Zinsen!D105,Ausweis!$B$72)) -> 0.01 | F105: 2111 | G105: 28680
C106: 2112 | D106: 0.01 | E106: =IF(ISBLANK(Ausweis!$B$72),D106,IF(C106<Ausweis!$N$72,Zinsen!D106,Ausweis!$B$72)) -> 0.01 | F106: 2112 | G106: 28680
C107: 2113 | D107: 0.01 | E107: =IF(ISBLANK(Ausweis!$B$72),D107,IF(C107<Ausweis!$N$72,Zinsen!D107,Ausweis!$B$72)) -> 0.01 | F107: 2113 | G107: 28680
C108: 2114 | D108: 0.01 | E108: =IF(ISBLANK(Ausweis!$B$72),D108,IF(C108<Ausweis!$N$72,Zinsen!D108,Ausweis!$B$72)) -> 0.01 | F108: 2114 | G108: 28680
C109: 2115 | D109: 0.01 | E109: =IF(ISBLANK(Ausweis!$B$72),D109,IF(C109<Ausweis!$N$72,Zinsen!D109,Ausweis!$B$72)) -> 0.01 | F109: 2115 | G109: 28680
C110: 2116 | D110: 0.01 | E110: =IF(ISBLANK(Ausweis!$B$72),D110,IF(C110<Ausweis!$N$72,Zinsen!D110,Ausweis!$B$72)) -> 0.01 | F110: 2116 | G110: 28680
C111: 2117 | D111: 0.01 | E111: =IF(ISBLANK(Ausweis!$B$72),D111,IF(C111<Ausweis!$N$72,Zinsen!D111,Ausweis!$B$72)) -> 0.01 | F111: 2117 | G111: 28680
C112: 2118 | D112: 0.01 | E112: =IF(ISBLANK(Ausweis!$B$72),D112,IF(C112<Ausweis!$N$72,Zinsen!D112,Ausweis!$B$72)) -> 0.01 | F112: 2118 | G112: 28680

Sheet Ausweis
A1: =HLOOKUP(H1,Sprachen!C3:F50,2,0) -> Schindler Pensionskasse | G1: Sprache / Langue / Lingua / Language | H1: D
G2: =HLOOKUP(H1,Sprachen!C3:F50,40,0) -> Bitte orange markierte Zellen ausfüllen
A3: Ebikon | B3: =TODAY() -> 2020-11-06 | G3: =HLOOKUP(H1,Sprachen!C3:F100,62,0) -> Rote Zellen für Simulationen
H5: =YEAR(F22) -> 2021 | I5: =H5 -> 2021
K6: Plan Aktuell | L6: Plan Projekt
F7: =HLOOKUP(H1,Sprachen!C3:F50,38,0) -> Sparplan | H7: Standardplan | I7: Standardplan | K7: =VLOOKUP(H7,Zins_u_Sparpläne!Q2:R4,2,0) -> 2 | L7: =VLOOKUP(I7,Zins_u_Sparpläne!Q2:R4,2,0) -> 2
A9: =HLOOKUP(H1,Sprachen!C3:F50,43,0) -> Name | B9: =HLOOKUP(H1,Sprachen!C3:F50,44,0) -> Vorname | F9: =HLOOKUP(H1,Sprachen!C3:F50,3,0) -> Personaldaten
A10: Muster | B10: Hans | F10: =HLOOKUP(H1,Sprachen!C3:F50,4,0) -> Geburtsdatum | H10: 1972-09-21 | I10: =H10 -> 1972-09-21
F11: =HLOOKUP(H1,Sprachen!C3:F50,5,0) -> Altersrücktritt Alter 65 | H11: =EOMONTH(H10,12*65) -> 2037-09-30 | I11: =H11 -> 2037-09-30
F13: =HLOOKUP(H1,Sprachen!C3:F50,6,0) -> Lohndaten
F14: =HLOOKUP(H1,Sprachen!C3:F50,7,0) -> Beschäftigungsgrad | H14: 1 | I14: =H14 -> 1
F15: =HLOOKUP(H1,Sprachen!C3:F50,8,0) -> Massgebender Jahreslohn | H15: 95000 | I15: =H15 -> 95000
F16: =HLOOKUP(H1,Sprachen!C3:F50,9,0) -> Koordinationsabzug | H16: =VLOOKUP(H5,Zinsen!F10:G56,2,)*1/2*H14 -> 14340 | I16: =VLOOKUP(H5,Zinsen!F10:G56,2,)*1/2*I14 -> 14340 | N16: 1500
F17: =HLOOKUP(H1,Sprachen!C3:F50,10,0) -> Versicherter Lohn | H17: =MIN(H15-H16,11*VLOOKUP(Ausweis!H5,Zinsen!F10:G56,2,1)/2) -> 80660 | I17: =MIN(I15-I16,11*VLOOKUP(Ausweis!I5,Zinsen!F10:G56,2,1)/2) -> 80660 | N17: =15%*H17 -> 12099
F18: =HLOOKUP(H1,Sprachen!C3:F50,45,0) -> Versicherter Lohn (VL2) | H18: =IF(H15="",0,MAX(MIN(H15,12*VLOOKUP(Ausweis!H5,Zinsen!F10:G56,2,1))-4*VLOOKUP(Ausweis!H5,Zinsen!F10:G56,2,1),0))*0 -> 0 | I18: =MAX(MIN(I15,12*Zinsen!G10)-4*Zinsen!G10,0)*0 -> 0 | N18: =H22*1.0125 -> 31636.575
A19: =HLOOKUP(H1,Sprachen!C3:F50,11,0) -> Vorsorgeausweis - Simulation | F19: =HLOOKUP(H1,Sprachen!C3:F100,68,0) -> Lohnerhöhung pro Jahr | N19: =N16+N17+N18 -> 45235.575
A21: =HLOOKUP(H1,Sprachen!C3:F50,12,0) -> Altersguthaben | H21: =F22 -> 2021-01-01 | I21: =H21 -> 2021-01-01 | N21: =Berechnung!B20 -> 31195.50515 | O21: =H22 -> 31246
A22: =HLOOKUP(H1,Sprachen!C3:F50,13,0) -> Vorhandenes Altersguthaben per | F22: 2021-01-01 | H22: 31246 | N22: =(1.25%/360*60)*N21 -> 64.99063573 | O22: =1.25%/360*59*O21 -> 64.01090278
A23: =HLOOKUP(H1,Sprachen!C3:F50,14,0) -> Voraussichtliches Altersguthaben per 01.01.2017 | H23: =MROUND(IF(YEAR(F22)=2016,Berechnung!B22+'Berechnung VL2'!B22,Berechnung!B22+'Berechnung VL2'!B22),0.05) -> 49373.65 | N23: =H17*18%/360*60 -> 2419.8 | O23: =H17*18%/360*59 -> 2379.47
A24: =HLOOKUP(H1,Sprachen!C3:F50,15,0) -> Erhöhung Altersguthaben / Einmalgutschrift per 01.01.2018 | F24: =Berechnung!D9 -> 0 | H24: =Berechnung!B10 -> 0 | I24: =Berechnung!D10 -> 0 | N24: =H18*10%/360*60 -> 0 | O24: =H18*10%/359*59 -> 0
A25: =HLOOKUP(H1,Sprachen!C3:F50,16,0) -> Total Altersguthaben per 01.01.2018 | H25: =H23+H24 -> 49373.65 | I25: =I23+I24 -> 0 | N25: =SUM(N21:N24) -> 33680.29579 | O25: =SUM(O21:O24) -> 33689.4809
N26: =DAYS360(F22,C38)-1 -> 4229
A27: =HLOOKUP(H1,Sprachen!C3:F50,17,0) -> Altersleistungen | D27: =HLOOKUP(H1,Sprachen!C3:F50,19,0) -> Proijziertes Altersguthaben | E27: =HLOOKUP(H1,Sprachen!C3:F50,18,0) -> Umwand- lungssatz | F27: =HLOOKUP(H1,Sprachen!C3:F50,20,0) -> Altersrente | G27: =HLOOKUP(H1,Sprachen!C3:F50,19,0) -> Proijziertes Altersguthaben | H27: =HLOOKUP(H1,Sprachen!C3:F50,18,0) -> Umwand- lungssatz | I27: =HLOOKUP(H1,Sprachen!C3:F50,20,0) -> Altersrente | K27: Endwert Einkauf
A28: =HLOOKUP(H1,Sprachen!C3:F50,42,0) -> Alter | B28: 70 | C28: =IF(YEAR($H$10)+B28<2016,"",EOMONTH($H$10,12*B28)+1) -> 2042-10-01 | D28: =IF($F$22>C28,"",IF(YEAR($H$10)+B28<$H$5,"",VLOOKUP(Ausweis!B28,'Entwicklung AGH_Aktuell'!$D$12:$T$66,9,1))) -> 552622.1 | E28: =IF(D28="","",VLOOKUP(Ausweis!B28,'Entwicklung AGH_Aktuell'!$D$12:$T$66,17,1)) -> 0.0576 | F28: =IF(D28="","",VLOOKUP(Ausweis!B28,'Entwicklung AGH_Aktuell'!$D$12:$T$66,16,1)*B90) -> 31836 | G28: =IF($F$22>C28,"",IF(YEAR($H$10)+B28<$I$5,"",VLOOKUP(Ausweis!B28,'Entwicklung AGH_Simulation'!$D$12:$T$66,13,1))) -> 552622.1 | H28: =E28 -> 0.0576 | I28: =IF(G28="","",VLOOKUP(Ausweis!B28,'Entwicklung AGH_Simulation'!$D$12:$T$66,16,1)*B90) -> 31836 | J28: =IF($B$77>C28,0,1) -> 1 | K28: =IF(L28=1,MROUND((1+$B$70)^(YEAR(C28)-YEAR($B$77)+(MONTH(C28)-MONTH($B$77))/12+(DAY(C28)-DAY($B$77))/360)*$B$76,1),0)*J28 -> 0 | L28: =IF(C28="",0,1) -> 1 | M28: =-IF(L28=1,ROUND((1+$B$70)^(YEAR(C28)-YEAR($F$77)+(MONTH(C28)-MONTH($F$77))/12+(DAY(C28)-DAY($F$77))/360)*$F$76,0),0)*N28 -> 0 | N28: =IF($F$77>C28,0,1) -> 1 | O28: =Berechnung!$B$20*(1+Berechnung!$B$29/12*(MONTH(Ausweis!C28)-1))+$H$17/12*(MONTH(Ausweis!C28)-1)*VLOOKUP(Ausweis!B28,'AGS Finanzierung'!$B$8:$E$64,Berechnung!$B$34+1,1)+'Berechnung VL2'!$B$20*(1+Berechnung!$B$29/12*(MONTH(Ausweis!C28)-1))+$H$18/12*(MONTH(Ausweis!C28)-1)*VLOOKUP(Ausweis!B28,'AGS FinanzierungVL2'!$B$8:$E$64,'Berechnung VL2'!$B$34+1,1) -> 48458.81394
A29: =HLOOKUP(H1,Sprachen!C3:F50,42,0) -> Alter | B29: 69 | C29: 2041-10-01 | D29: =IF($F$22>C29,"",IF(YEAR($H$10)+B29<$H$5,"",VLOOKUP(Ausweis!B29,'Entwicklung AGH_Aktuell'!$D$12:$T$66,9,1))) -> 524669.6 | E29: =IF(D29="","",VLOOKUP(Ausweis!B29,'Entwicklung AGH_Aktuell'!$D$12:$T$66,17,1)) -> 0.0561 | F29: =IF(D29="","",VLOOKUP(Ausweis!B29,'Entwicklung AGH_Aktuell'!$D$12:$T$66,16,1)*B90) -> 29436 | G29: =IF($F$22>C29,"",IF(YEAR($H$10)+B29<$I$5,"",VLOOKUP(Ausweis!B29,'Entwicklung AGH_Simulation'!$D$12:$T$66,13,1))) -> 524669.6 | H29: =E29 -> 0.0561 | I29: =IF(G29="","",VLOOKUP(Ausweis!B29,'Entwicklung AGH_Simulation'!$D$12:$T$66,16,1)*B90) -> 29436 | J29: 1 | K29: 0 | L29: 1 | M29: 0 | N29: 1 | O29: =Berechnung!$B$20*(1+Berechnung!$B$29/12*(MONTH(Ausweis!C29)-1))+$H$17/12*(MONTH(Ausweis!C29)-1)*VLOOKUP(Ausweis!B29,'AGS Finanzierung'!$B$8:$E$64,Berechnung!$B$34+1,1)+'Berechnung VL2'!$B$20*(1+Berechnung!$B$29/12*(MONTH(Ausweis!C29)-1))+$H$18/12*(MONTH(Ausweis!C29)-1)*VLOOKUP(Ausweis!B29,'AGS FinanzierungVL2'!$B$8:$E$64,'Berechnung VL2'!$B$34+1,1) -> 48458.81394
A30: =HLOOKUP(H1,Sprachen!C3:F50,42,0) -> Alter | B30: 68 | C30: 2040-10-01 | D30: =IF($F$22>C30,"",IF(YEAR($H$10)+B30<$H$5,"",VLOOKUP(Ausweis!B30,'Entwicklung AGH_Aktuell'!$D$12:$T$66,9,1))) -> 496993.9 | E30: =IF(D30="","",VLOOKUP(Ausweis!B30,'Entwicklung AGH_Aktuell'!$D$12:$T$66,17,1)) -> 0.0546 | F30: =IF(D30="","",VLOOKUP(Ausweis!B30,'Entwicklung AGH_Aktuell'!$D$12:$T$66,16,1)*B90) -> 27132 | G30: =IF($F$22>C30,"",IF(YEAR($H$10)+B30<$I$5,"",VLOOKUP(Ausweis!B30,'Entwicklung AGH_Simulation'!$D$12:$T$66,13,1))) -> 496993.9 | H30: 0.0546 | I30: =IF(G30="","",VLOOKUP(Ausweis!B30,'Entwicklung AGH_Simulation'!$D$12:$T$66,16,1)*B90) -> 27132 | J30: 1 | K30: 0 | L30: 1 | M30: 0 | N30: 1 | O30: =Berechnung!$B$20*(1+Berechnung!$B$29/12*(MONTH(Ausweis!C30)-1))+$H$17/12*(MONTH(Ausweis!C30)-1)*VLOOKUP(Ausweis!B30,'AGS Finanzierung'!$B$8:$E$64,Berechnung!$B$34+1,1)+'Berechnung VL2'!$B$20*(1+Berechnung!$B$29/12*(MONTH(Ausweis!C30)-1))+$H$18/12*(MONTH(Ausweis!C30)-1)*VLOOKUP(Ausweis!B30,'AGS FinanzierungVL2'!$B$8:$E$64,'Berechnung VL2'!$B$34+1,1) -> 48458.81394
A31: =HLOOKUP(H1,Sprachen!C3:F50,42,0) -> Alter | B31: 67 | C31: 2039-10-01 | D31: =IF($F$22>C31,"",IF(YEAR($H$10)+B31<$H$5,"",VLOOKUP(Ausweis!B31,'Entwicklung AGH_Aktuell'!$D$12:$T$66,9,1))) -> 469592.15 | E31: =IF(D31="","",VLOOKUP(Ausweis!B31,'Entwicklung AGH_Aktuell'!$D$12:$T$66,17,1)) -> 0.0531 | F31: =IF(D31="","",VLOOKUP(Ausweis!B31,'Entwicklung AGH_Aktuell'!$D$12:$T$66,16,1)*B90) -> 24936 | G31: =IF($F$22>C31,"",IF(YEAR($H$10)+B31<$I$5,"",VLOOKUP(Ausweis!B31,'Entwicklung AGH_Simulation'!$D$12:$T$66,13,1))) -> 469592.15 | H31: 0.0531 | I31: =IF(G31="","",VLOOKUP(Ausweis!B31,'Entwicklung AGH_Simulation'!$D$12:$T$66,16,1)*B90) -> 24936 | J31: 1 | K31: 0 | L31: 1 | M31: 0 | N31: 1 | O31: =Berechnung!$B$20*(1+Berechnung!$B$29/12*(MONTH(Ausweis!C31)-1))+$H$17/12*(MONTH(Ausweis!C31)-1)*VLOOKUP(Ausweis!B31,'AGS Finanzierung'!$B$8:$E$64,Berechnung!$B$34+1,1)+'Berechnung VL2'!$B$20*(1+Berechnung!$B$29/12*(MONTH(Ausweis!C31)-1))+$H$18/12*(MONTH(Ausweis!C31)-1)*VLOOKUP(Ausweis!B31,'AGS FinanzierungVL2'!$B$8:$E$64,'Berechnung VL2'!$B$34+1,1) -> 48458.81394
A32: =HLOOKUP(H1,Sprachen!C3:F50,42,0) -> Alter | B32: 66 | C32: 2038-10-01 | D32: =IF($F$22>C32,"",IF(YEAR($H$10)+B32<$H$5,"",VLOOKUP(Ausweis!B32,'Entwicklung AGH_Aktuell'!$D$12:$T$66,9,1))) -> 442461.75 | E32: =IF(D32="","",VLOOKUP(Ausweis!B32,'Entwicklung AGH_Aktuell'!$D$12:$T$66,17,1)) -> 0.0516 | F32: =IF(D32="","",VLOOKUP(Ausweis!B32,'Entwicklung AGH_Aktuell'!$D$12:$T$66,16,1)*B90) -> 22836 | G32: =IF($F$22>C32,"",IF(YEAR($H$10)+B32<$I$5,"",VLOOKUP(Ausweis!B32,'Entwicklung AGH_Simulation'!$D$12:$T$66,13,1))) -> 442461.75 | H32: 0.0516 | I32: =IF(G32="","",VLOOKUP(Ausweis!B32,'Entwicklung AGH_Simulation'!$D$12:$T$66,16,1)*B90) -> 22836 | J32: 1 | K32: 0 | L32: 1 | M32: 0 | N32: 1 | O32: =Berechnung!$B$20*(1+Berechnung!$B$29/12*(MONTH(Ausweis!C32)-1))+$H$17/12*(MONTH(Ausweis!C32)-1)*VLOOKUP(Ausweis!B32,'AGS Finanzierung'!$B$8:$E$64,Berechnung!$B$34+1,1)+'Berechnung VL2'!$B$20*(1+Berechnung!$B$29/12*(MONTH(Ausweis!C32)-1))+$H$18/12*(MONTH(Ausweis!C32)-1)*VLOOKUP(Ausweis!B32,'AGS FinanzierungVL2'!$B$8:$E$64,'Berechnung VL2'!$B$34+1,1) -> 48458.81394
A33: =HLOOKUP(H1,Sprachen!C3:F50,42,0) -> Alter | B33: 65 | C33: 2037-10-01 | D33: =IF($F$22>C33,"",IF(YEAR($H$10)+B33<$H$5,"",VLOOKUP(Ausweis!B33,'Entwicklung AGH_Aktuell'!$D$12:$T$66,9,1))) -> 415599.95 | E33: =IF(D33="","",VLOOKUP(Ausweis!B33,'Entwicklung AGH_Aktuell'!$D$12:$T$66,17,1)) -> 0.0501 | F33: =IF(D33="","",VLOOKUP(Ausweis!B33,'Entwicklung AGH_Aktuell'!$D$12:$T$66,16,1)*B90) -> 20820 | G33: =IF($F$22>C33,"",IF(YEAR($H$10)+B33<$I$5,"",VLOOKUP(Ausweis!B33,'Entwicklung AGH_Simulation'!$D$12:$T$66,13,1))) -> 415599.95 | H33: 0.0501 | I33: =IF(G33="","",VLOOKUP(Ausweis!B33,'Entwicklung AGH_Simulation'!$D$12:$T$66,16,1)*B90) -> 20820 | J33: =IF($B$77>C33,0,1) -> 1 | K33: =IF(L33=1,MROUND((1+$B$70)^(YEAR(C33)-YEAR($B$77)+(MONTH(C33)-MONTH($B$77))/12+(DAY(C33)-DAY($B$77))/360)*$B$76,1),0)*J33 -> 0 | L33: 1 | M33: 0 | N33: 1 | O33: =Berechnung!$B$20*(1+Berechnung!$B$29/12*(MONTH(Ausweis!C33)-1))+$H$17/12*(MONTH(Ausweis!C33)-1)*VLOOKUP(Ausweis!B33,'AGS Finanzierung'!$B$8:$E$64,Berechnung!$B$34+1,1)+'Berechnung VL2'!$B$20*(1+Berechnung!$B$29/12*(MONTH(Ausweis!C33)-1))+$H$18/12*(MONTH(Ausweis!C33)-1)*VLOOKUP(Ausweis!B33,'AGS FinanzierungVL2'!$B$8:$E$64,'Berechnung VL2'!$B$34+1,1) -> 48458.81394 | P33: =MROUND(MROUND(D33*E33,0.05)/12,1)-F33 -> -19085
A34: =HLOOKUP(H1,Sprachen!C3:F50,42,0) -> Alter | B34: 64 | C34: 2036-10-01 | D34: =IF($F$22>C34,"",IF(YEAR($H$10)+B34<$H$5,"",VLOOKUP(Ausweis!B34,'Entwicklung AGH_Aktuell'!$D$12:$T$66,9,1))) -> 389004.15 | E34: =IF(D34="","",VLOOKUP(Ausweis!B34,'Entwicklung AGH_Aktuell'!$D$12:$T$66,17,1)) -> 0.0486 | F34: =IF(D34="","",VLOOKUP(Ausweis!B34,'Entwicklung AGH_Aktuell'!$D$12:$T$66,16,1)*B90) -> 18900 | G34: =IF($F$22>C34,"",IF(YEAR($H$10)+B34<$I$5,"",VLOOKUP(Ausweis!B34,'Entwicklung AGH_Simulation'!$D$12:$T$66,13,1))) -> 389004.15 | H34: 0.0486 | I34: =IF(G34="","",VLOOKUP(Ausweis!B34,'Entwicklung AGH_Simulation'!$D$12:$T$66,16,1)*B90) -> 18900 | J34: 1 | K34: 0 | L34: 1 | M34: 0 | N34: 1 | O34: =Berechnung!$B$20*(1+Berechnung!$B$29/12*(MONTH(Ausweis!C34)-1))+$H$17/12*(MONTH(Ausweis!C34)-1)*VLOOKUP(Ausweis!B34,'AGS Finanzierung'!$B$8:$E$64,Berechnung!$B$34+1,1)+'Berechnung VL2'!$B$20*(1+Berechnung!$B$29/12*(MONTH(Ausweis!C34)-1))+$H$18/12*(MONTH(Ausweis!C34)-1)*VLOOKUP(Ausweis!B34,'AGS FinanzierungVL2'!$B$8:$E$64,'Berechnung VL2'!$B$34+1,1) -> 48458.81394 | P34: -17325
A35: =HLOOKUP(H1,Sprachen!C3:F50,42,0) -> Alter | B35: 63 | C35: 2035-10-01 | D35: =IF($F$22>C35,"",IF(YEAR($H$10)+B35<$H$5,"",VLOOKUP(Ausweis!B35,'Entwicklung AGH_Aktuell'!$D$12:$T$66,9,1))) -> 362671.65 | E35: =IF(D35="","",VLOOKUP(Ausweis!B35,'Entwicklung AGH_Aktuell'!$D$12:$T$66,17,1)) -> 0.0471 | F35: =IF(D35="","",VLOOKUP(Ausweis!B35,'Entwicklung AGH_Aktuell'!$D$12:$T$66,16,1)*B90) -> 17076 | G35: =IF($F$22>C35,"",IF(YEAR($H$10)+B35<$I$5,"",VLOOKUP(Ausweis!B35,'Entwicklung AGH_Simulation'!$D$12:$T$66,13,1))) -> 362671.65 | H35: 0.0471 | I35: =IF(G35="","",VLOOKUP(Ausweis!B35,'Entwicklung AGH_Simulation'!$D$12:$T$66,16,1)*B90) -> 17076 | J35: 1 | K35: 0 | L35: 1 | M35: 0 | N35: 1 | O35: =Berechnung!$B$20*(1+Berechnung!$B$29/12*(MONTH(Ausweis!C35)-1))+$H$17/12*(MONTH(Ausweis!C35)-1)*VLOOKUP(Ausweis!B35,'AGS Finanzierung'!$B$8:$E$64,Berechnung!$B$34+1,1)+'Berechnung VL2'!$B$20*(1+Berechnung!$B$29/12*(MONTH(Ausweis!C35)-1))+$H$18/12*(MONTH(Ausweis!C35)-1)*VLOOKUP(Ausweis!B35,'AGS FinanzierungVL2'!$B$8:$E$64,'Berechnung VL2'!$B$34+1,1) -> 48458.81394 | P35: -15653
A36: =HLOOKUP(H1,Sprachen!C3:F50,42,0) -> Alter | B36: 62 | C36: 2034-10-01 | D36: =IF($F$22>C36,"",IF(YEAR($H$10)+B36<$H$5,"",VLOOKUP(Ausweis!B36,'Entwicklung AGH_Aktuell'!$D$12:$T$66,9,1))) -> 336599.85 | E36: =IF(D36="","",VLOOKUP(Ausweis!B36,'Entwicklung AGH_Aktuell'!$D$12:$T$66,17,1)) -> 0.0456 | F36: =IF(D36="","",VLOOKUP(Ausweis!B36,'Entwicklung AGH_Aktuell'!$D$12:$T$66,16,1)*B90) -> 15348 | G36: =IF($F$22>C36,"",IF(YEAR($H$10)+B36<$I$5,"",VLOOKUP(Ausweis!B36,'Entwicklung AGH_Simulation'!$D$12:$T$66,13,1))) -> 336599.85 | H36: 0.0456 | I36: =IF(G36="","",VLOOKUP(Ausweis!B36,'Entwicklung AGH_Simulation'!$D$12:$T$66,16,1)*B90) -> 15348 | J36: 1 | K36: 0 | L36: =IF(C36="",0,1) -> 1 | M36: 0 | N36: 1 | O36: =Berechnung!$B$20*(1+Berechnung!$B$29/12*(MONTH(Ausweis!C36)-1))+$H$17/12*(MONTH(Ausweis!C36)-1)*VLOOKUP(Ausweis!B36,'AGS Finanzierung'!$B$8:$E$64,Berechnung!$B$34+1,1)+'Berechnung VL2'!$B$20*(1+Berechnung!$B$29/12*(MONTH(Ausweis!C36)-1))+$H$18/12*(MONTH(Ausweis!C36)-1)*VLOOKUP(Ausweis!B36,'AGS FinanzierungVL2'!$B$8:$E$64,'Berechnung VL2'!$B$34+1,1) -> 48458.81394 | P36: -14069
A37: =HLOOKUP(H1,Sprachen!C3:F50,42,0) -> Alter | B37: 61 | C37: 2033-10-01 | D37: =IF($F$22>C37,"",IF(YEAR($H$10)+B37<$H$5,"",VLOOKUP(Ausweis!B37,'Entwicklung AGH_Aktuell'!$D$12:$T$66,9,1))) -> 310786.2 | E37: =IF(D37="","",VLOOKUP(Ausweis!B37,'Entwicklung AGH_Aktuell'!$D$12:$T$66,17,1)) -> 0.0441 | F37: =IF(D37="","",VLOOKUP(Ausweis!B37,'Entwicklung AGH_Aktuell'!$D$12:$T$66,16,1)*B90) -> 13704 | G37: =IF($F$22>C37,"",IF(YEAR($H$10)+B37<$I$5,"",VLOOKUP(Ausweis!B37,'Entwicklung AGH_Simulation'!$D$12:$T$66,13,1))) -> 310786.2 | H37: 0.0441 | I37: =IF(G37="","",VLOOKUP(Ausweis!B37,'Entwicklung AGH_Simulation'!$D$12:$T$66,16,1)*B90) -> 13704 | J37: 1 | K37: =IF(L37=1,MROUND((1+$B$70)^(YEAR(C37)-YEAR($B$77)+(MONTH(C37)-MONTH($B$77))/12+(DAY(C37)-DAY($B$77))/360)*$B$76,1),0)*J37 -> 0 | L37: 1 | M37: 0 | N37: 1 | O37: =Berechnung!$B$20*(1+Berechnung!$B$29/12*(MONTH(Ausweis!C37)-1))+$H$17/12*(MONTH(Ausweis!C37)-1)*VLOOKUP(Ausweis!B37,'AGS Finanzierung'!$B$8:$E$64,Berechnung!$B$34+1,1)+'Berechnung VL2'!$B$20*(1+Berechnung!$B$29/12*(MONTH(Ausweis!C37)-1))+$H$18/12*(MONTH(Ausweis!C37)-1)*VLOOKUP(Ausweis!B37,'AGS FinanzierungVL2'!$B$8:$E$64,'Berechnung VL2'!$B$34+1,1) -> 48458.81394 | P37: -12562
A38: =HLOOKUP(H1,Sprachen!C3:F50,42,0) -> Alter | B38: 60 | C38: =IF(YEAR($H$10)+B38<2016,"",EOMONTH($H$10,12*B38)+1) -> 2032-10-01 | D38: =IF($F$22>C38,"",IF(YEAR($H$10)+B38<$H$5,"",VLOOKUP(Ausweis!B38,'Entwicklung AGH_Aktuell'!$D$12:$T$66,9,1))) -> 285228.1 | E38: =IF(D38="","",VLOOKUP(Ausweis!B38,'Entwicklung AGH_Aktuell'!$D$12:$T$66,17,1)) -> 0.0426 | F38: =IF(D38="","",VLOOKUP(Ausweis!B38,'Entwicklung AGH_Aktuell'!$D$12:$T$66,16,1)*B90) -> 12156 | G38: =IF($F$22>C38,"",IF(YEAR($H$10)+B38<$I$5,"",VLOOKUP(Ausweis!B38,'Entwicklung AGH_Simulation'!$D$12:$T$66,13,1))) -> 285228.1 | H38: 0.0426 | I38: =IF(G38="","",VLOOKUP(Ausweis!B38,'Entwicklung AGH_Simulation'!$D$12:$T$66,16,1)*B90) -> 12156 | J38: =IF($B$77>C38,0,1) -> 1 | K38: =IF(L38=1,MROUND((1+$B$70)^(YEAR(C38)-YEAR($B$77)+(MONTH(C38)-MONTH($B$77))/12+(DAY(C38)-DAY($B$77))/360)*$B$76,1),0)*J38 -> 0 | L38: 1 | M38: =-IF(L38=1,ROUND((1+$B$70)^(YEAR(C38)-YEAR($F$77)+(MONTH(C38)-MONTH($F$77))/12+(DAY(C38)-DAY($F$77))/360)*$F$76,0),0)*N38 -> 0 | N38: 1 | O38: =Berechnung!$B$20*(1+Berechnung!$B$29/12*(MONTH(Ausweis!C38)-1))+$H$17/12*(MONTH(Ausweis!C38)-1)*VLOOKUP(Ausweis!B38,'AGS Finanzierung'!$B$8:$E$64,Berechnung!$B$34+1,1)+'Berechnung VL2'!$B$20*(1+Berechnung!$B$29/12*(MONTH(Ausweis!C38)-1))+$H$18/12*(MONTH(Ausweis!C38)-1)*VLOOKUP(Ausweis!B38,'AGS FinanzierungVL2'!$B$8:$E$64,'Berechnung VL2'!$B$34+1,1) -> 48458.81394 | P38: -11143
A39: =HLOOKUP(H1,Sprachen!C3:F70,63,0) -> Vorzeitige oder aufgeschobene Pensionierung | D39: =IF(F76>0,HLOOKUP(H1,Sprachen!C3:F70,64,0)&TEXT(F76,"#'###.00"),"") ->  | E39: =IF(I76>0,HLOOKUP(H1,Sprachen!C3:F70,65,0)&TEXT(I76,"#'###.00"),"") ->  | F39: =IF(B76>0,HLOOKUP(H1,Sprachen!C3:F70,66,0)&TEXT(B76,"#'###.00"),"") ->  | P39: =B40-INT(B40) -> 0 | R39: =MONTH(H10)+1 -> 10 | S39: =R39+T39 -> 10 | T39: =(B40-INT(B40))*12 -> 0
A40: =HLOOKUP(H1,Sprachen!C3:F50,42,0) -> Alter | B40: =YEAR(C40)-YEAR(H10)+(MONTH(C40)-(MONTH(H10)+1))/12 -> 65 | C40: =C33 -> 2037-10-01 | D40: =IF(S39<13,IF($F$22>C40,"",IF(YEAR($H$10)+B40<$H$5,"",VLOOKUP(Ausweis!B40,'Entwicklung AGH_Aktuell'!BB12:BC66,2,1))),IF($F$22>C40,"",IF(YEAR($H$10)+B40<$H$5,"",VLOOKUP(Ausweis!B40+1,'Entwicklung AGH_Aktuell'!BB12:BC66,2,1)))) -> 415599.95 | E40: =IF(D40="","",VLOOKUP(Ausweis!B40,'Entwicklung AGH_Aktuell'!$D$12:$T$66,17,1))*(1-P39)+IF(D40="","",VLOOKUP(Ausweis!B40+1,'Entwicklung AGH_Aktuell'!$D$12:$T$66,17,1))*P39 -> 0.0501 | F40: =MROUND(IF(D40="","",D40*E40)/12,0.05)*B90 -> 20821.8 | G40: =IF(S39<13,IF($F$22>C40,"",IF(YEAR($H$10)+B40<$H$5,"",VLOOKUP(Ausweis!B40,'Entwicklung AGH_Simulation'!BB12:BC66,2,1))),IF($F$22>C40,"",IF(YEAR($H$10)+B40<$H$5,"",VLOOKUP(Ausweis!B40+1,'Entwicklung AGH_Simulation'!BB12:BC66,2,1)))) -> 415599.95 | H40: =E40 -> 0.0501 | I40: =MROUND(IF(G40="","",G40*H40)/12,0.05)*B90 -> 20821.8
A41: =HLOOKUP(H1,Sprachen!C3:F50,21,0) -> Invaliditätsleistungen | H41: =HLOOKUP(H1,Sprachen!C3:F50,39,0) -> Monatsrente | I41: =HLOOKUP(H1,Sprachen!C3:F50,39,0) -> Monatsrente
A42: =HLOOKUP(H1,Sprachen!C3:F50,22,0) -> Monatliche volle Invalidenrente | F42: =HLOOKUP(H1,Sprachen!C3:F50,24,0) -> 50% des versicherten Lohnes | H42: =MROUND(60%*(H17+H18)/12,0.05)*B90 -> 48396 | I42: =MROUND(60%*(I17+I18)/12,0.05)*B90 -> 48396
A43: =HLOOKUP(H1,Sprachen!C3:F50,23,0) -> Monatliche Invaliden-Kinderrente pro Kind bis Alter 18/25 | F43: =HLOOKUP(H1,Sprachen!C3:F50,25,0) -> 20% der Invalidenrente | H43: =MROUND(12%*(H17+H18)/12,0.05)*B90 -> 9679.2 | I43: =MROUND(12%*(I17+I18)/12,0.05)*B90 -> 9679.2 | J43: IV-Kinderrente ausgeblendet, das BVG-Minimum und damit Berechnung nicht möglich ohne BVG-Altersguthaben
A46: =HLOOKUP(H1,Sprachen!C3:F50,26,0) -> Todesfallleistungen | H46: =HLOOKUP(H1,Sprachen!C3:F50,39,0) -> Monatsrente | I46: =HLOOKUP(H1,Sprachen!C3:F50,39,0) -> Monatsrente
A47: =HLOOKUP(H1,Sprachen!C3:F50,27,0) -> Monatliche Ehegattenrente | F47: =HLOOKUP(H1,Sprachen!C3:F50,28,0) -> 36% des versicherten Lohnes | H47: =MROUND(36%*(H17+H18)/12,0.05)*B90 -> 29037.6 | I47: =MROUND(36%*(I17+I18)/12,0.05)*B90 -> 29037.6
A48: =HLOOKUP(H1,Sprachen!C3:F50,29,0) -> Monatliche Waisenrente pro Kind bis Alter 18/25 | F48: =HLOOKUP(H1,Sprachen!C3:F50,30,0) -> 20% der Invalidenrente | H48: =MROUND(12%*(H17+H18)/12,0.05)*B90 -> 9679.2 | I48: =MROUND(12%*(I17+I18)/12,0.05)*B90 -> 9679.2
A50: =HLOOKUP(H1,Sprachen!C3:F70,51,0) -> Finanzierung | Beiträge | C50: =HLOOKUP(H1,Sprachen!C3:F70,56,0) -> Vers. (VL1) | D50: =HLOOKUP(H1,Sprachen!C3:F70,57,0) -> Vers. (VL2) | E50: =HLOOKUP(H1,Sprachen!C3:F70,58,0) -> Versicherter | F50: =HLOOKUP(H1,Sprachen!C3:F70,59,0) -> Firma | G50: =HLOOKUP(H1,Sprachen!C3:F70,60,0) -> Total | H50: =HLOOKUP(H1,Sprachen!C3:F70,58,0) -> Versicherter | I50: =HLOOKUP(H1,Sprachen!C3:F70,59,0) -> Firma
A51: =HLOOKUP(H1,Sprachen!C3:F70,52,0) -> Sparen | C51: =MROUND(VLOOKUP(YEAR(F22)-YEAR(H10),'AGS Finanzierung'!M8:U64,5+K7,0)*H17,0.05) -> 7340.05 | D51: =MROUND(VLOOKUP(YEAR(F22)-YEAR(H10),'AGS FinanzierungVL2'!M8:U64,5+K7,0)*H18,0.05) -> 0 | E51: =C51+D51 -> 7340.05 | F51: =MROUND(VLOOKUP(YEAR(F22)-YEAR(H10),'AGS Finanzierung'!M8:U64,9,0)*H17,0.05)+MROUND(VLOOKUP(YEAR(F22)-YEAR(H10),'AGS FinanzierungVL2'!M8:U64,9,0)*H18,0.05) -> 10526.15 | G51: =E51+F51 -> 17866.2 | H51: =MROUND(VLOOKUP(YEAR(F22)-YEAR(H10),'AGS Finanzierung'!M8:U64,5+L7,0)*I17,0.05)+MROUND(VLOOKUP(YEAR(F22)-YEAR(H10),'AGS FinanzierungVL2'!M8:U64,5+L7,0)*I18,0.05) -> 7340.05 | I51: =MROUND(VLOOKUP(YEAR(F22)-YEAR(H10),'AGS Finanzierung'!M8:U64,9,0)*I17,0.05)+MROUND(VLOOKUP(YEAR(F22)-YEAR(H10),'AGS FinanzierungVL2'!M8:U64,9,0)*I18,0.05) -> 10526.15
A52: =HLOOKUP(H1,Sprachen!C3:F70,53,0) -> Risiko | C52: =MROUND(VLOOKUP(YEAR(F22)-YEAR(H10),'AGS Finanzierung'!M8:Z64,11,0)*H17,0.05) -> 403.3 | D52: =MROUND(VLOOKUP(YEAR(F22)-YEAR(H10),'AGS FinanzierungVL2'!M8:Z64,11,0)*H18,0.05) -> 0 | E52: =C52+D52 -> 403.3 | F52: =MROUND(VLOOKUP(YEAR(F22)-YEAR(H10),'AGS Finanzierung'!M8:Z64,12,0)*H17,0.05)+MROUND(VLOOKUP(YEAR(F22)-YEAR(H10),'AGS FinanzierungVL2'!M8:Z64,12,0)*H18,0.05) -> 685.6 | G52: =E52+F52 -> 1088.9 | H52: =MROUND(VLOOKUP(YEAR(F22)-YEAR(H10),'AGS Finanzierung'!M8:Z64,11,0)*I17,0.05)+MROUND(VLOOKUP(YEAR(F22)-YEAR(H10),'AGS FinanzierungVL2'!M8:Z64,11,0)*I18,0.05) -> 403.3 | I52: =MROUND(VLOOKUP(YEAR(F22)-YEAR(H10),'AGS Finanzierung'!M8:Z64,12,0)*I17,0.05)+MROUND(VLOOKUP(YEAR(F22)-YEAR(H10),'AGS FinanzierungVL2'!M8:Z64,12,0)*I18,0.05) -> 685.6
A53: =HLOOKUP(H1,Sprachen!C3:F70,54,0) -> Verwaltungskosten | C53: =MROUND(VLOOKUP(YEAR(F22)-YEAR(H10),'AGS Finanzierung'!M8:Z64,13,0)*H17,0.05) -> 161.3 | D53: =MROUND(VLOOKUP(YEAR(F22)-YEAR(H10),'AGS FinanzierungVL2'!M8:Z64,13,0)*H18,0.05) -> 0 | E53: =C53+D53 -> 161.3 | F53: =MROUND(VLOOKUP(YEAR(F22)-YEAR(H10),'AGS Finanzierung'!M8:Z64,14,0)*H17,0.05)+MROUND(VLOOKUP(YEAR(F22)-YEAR(H10),'AGS FinanzierungVL2'!M8:Z64,14,0)*H18,0.05) -> 161.3 | G53: =E53+F53 -> 322.6 | H53: =MROUND(VLOOKUP(YEAR(F22)-YEAR(H10),'AGS Finanzierung'!M8:Z64,13,0)*I17,0.05)+MROUND(VLOOKUP(YEAR(F22)-YEAR(H10),'AGS FinanzierungVL2'!M8:Z64,13,0)*I18,0.05) -> 161.3 | I53: =MROUND(VLOOKUP(YEAR(F22)-YEAR(H10),'AGS Finanzierung'!M8:Z64,14,0)*I17,0.05)+MROUND(VLOOKUP(YEAR(F22)-YEAR(H10),'AGS FinanzierungVL2'!M8:Z64,14,0)*I18,0.05) -> 161.3
A54: =HLOOKUP(H1,Sprachen!C3:F100,69,0) -> Total Jahresbeitrag | C54: =MROUND(SUM(C51:C53)/12,0.05) -> 658.7 | D54: =MROUND(SUM(D51:D53)/12,0.05) -> 0 | E54: =SUM(E51:E53) -> 7904.65 | F54: =SUM(F51:F53) -> 11373.05 | G54: =SUM(G51:G53) -> 19277.7 | H54: =SUM(H51:H53) -> 7904.65 | I54: =SUM(I51:I53) -> 11373.05
A55: =HLOOKUP(H1,Sprachen!C3:F70,55,0) -> Total Monatsbeitrag | E55: =MROUND(SUM(E51:E53)/12,0.05) -> 658.7 | F55: =MROUND(SUM(F51:F53)/12,0.05) -> 947.75 | G55: =E55+F55 -> 1606.45 | H55: =MROUND(SUM(H51:H53)/12,0.05) -> 658.7 | I55: =MROUND(SUM(I51:I53)/12,0.05) -> 947.75
A59: Finanzierung | D59: Versicherter | E59: Versicherter | F59: Firma | G59: Firma | H59: Total | I59: Total
A60: Jährliche Altersgutschrift | H60: =D60+F60 -> 0 | I60: =F60+H60 -> 0
A61: Jährliche Risikoprämie | H61: =D61+F61 -> 0 | I61: =F61+H61 -> 0
A62: Jahrliche Verwaltungskosten | H62: =D62+F62 -> 0 | I62: =F62+H62 -> 0
A63: Monatlicher PK-Beitrag | H63: =D63+F63 -> 0 | I63: =F63+H63 -> 0
A65: =HLOOKUP(H1,Sprachen!C3:F50,31,0) -> Zusätzliche Informationen
A66: Maximal mögliche persönliche Einlage | H66: =D66+F66 -> 0 | I66: =F66+H66 -> 0
A68: =HLOOKUP(H1,Sprachen!C3:F50,34,0) -> Zinssatz für die Hochrechnung des Altersguthabens:
A69: =YEAR(F22) -> 2021 | B69: =VLOOKUP(A69,Zinsen!C9:D33,2,1) -> 0.01
A70: =A69+1 -> 2022 | B70: =VLOOKUP(A70,Zinsen!C9:D33,2,1) -> 0.01
A71: =A70+1&" - "&YEAR(H10)+65 -> 2023 - 2037 | B71: =VLOOKUP(A70+1,Zinsen!C9:D33,2,1) -> 0.01
A72: =HLOOKUP(H1,Sprachen!C3:F70,67,0) -> Wahl Zinssatz | C72: =A71 -> 2023 - 2037 | K72: Einkauf | L72: Vorbezug | N72: =A70+1 -> 2023
A73: =HLOOKUP(H1,Sprachen!C3:F50,46,0) -> Freiwilliger Einkauf | E73: =HLOOKUP(H1,Sprachen!C3:F60,49,0) -> Vorbezug für Wohneigenum | H73: =HLOOKUP(H1,Sprachen!C3:F60,50,0) -> Teilung infolge Scheidung | K73: Wert 31.12. | L73: Wert 31.12.
A74: Maximal mögliche persönliche Einlage
A76: =HLOOKUP(H1,Sprachen!C3:F50,47,0) -> Betrag | E76: =HLOOKUP(H1,Sprachen!C3:F50,47,0) -> Betrag | H76: =HLOOKUP(H1,Sprachen!C3:F50,47,0) -> Betrag | K76: =IF(YEAR(B77)=YEAR(H21),MROUND((1+B69/360*DAYS360(B77,K79))*B76,0.05),0) -> 0 | L76: =-IF(YEAR(F77)=YEAR(H21),MROUND((1+B69/360*DAYS360(F77,L79))*F76,0.05),0) -> 0 | P76: =DAYS360(B77,K79) -> 415
A77: =HLOOKUP(H1,Sprachen!C3:F50,48,0) -> Datum | B77: =TODAY() -> 2020-11-06 | E77: =HLOOKUP(H1,Sprachen!C3:F50,48,0) -> Datum | F77: =TODAY() -> 2020-11-06 | H77: =HLOOKUP(H1,Sprachen!C3:F50,48,0) -> Datum | I77: =TODAY() -> 2020-11-06
Q78: =IF(OR(B76<>0,F76<>0,I76<>0),0,1) -> 1
K79: =DATE(YEAR(H21),12,31) -> 2021-12-31 | L79: =K79 -> 2021-12-31
A80: =HLOOKUP(H1,Sprachen!C3:F50,32,0) -> Diese Berechnung dient ausschliesslich zu Informationszwecken.
A81: =HLOOKUP(H1,Sprachen!C3:F50,33,0) -> Massgebend für die Höhe der Leistungen und der Beiträge sind die Bestimmungen des Pensionskassenreglements.
A90: Werte pro Jahr | B90: =VLOOKUP(A90,Zins_u_Sparpläne!G7:H8,2,0) -> 12

Sheet Entwicklung AGH_Aktuell (hidden)
A1: Datum Ausweis | B1: =Ausweis!F22 -> 2021-01-01 | I1: Zins 1 | J1: 0.0125 | AP1: =J1 -> 0.0125
A2: Geburtsdatum | B2: =Ausweis!H10 -> 1972-09-21 | E2: WENN(D7<65;12;MONAT(Ausweis!$H$10)) | I2: Zins 2 | J2: 0.015 | AK2: Basisplan | AP2: =J2 -> 0.015 | AT2: Zusatzplan
E3: =(((MONTH(B1)-1)*30)+DAY(B1)) -> 1 | I3: AGH | J3: =Ausweis!H23 -> 49373.65 | AP3: 0
Y4: =VLOOKUP(B10,UWS!$A$3:$P$84,11,1)+($Y$9-$AB$9)*0.15% -> 0.0456 | Z4: =VLOOKUP(B10,UWS!$A$3:$P$84,11,1)+($Z$9-$AB$9)*0.15% -> 0.0471 | AA4: =VLOOKUP(B10,UWS!$A$3:$P$84,11,1)+($AA$9-$AB$9)*0.15% -> 0.0486
L5: =DAY(B1)/(1+Q10/360*(((MONTH(B1)-1)*30)+DAY(B1))) -> 0.999972223
L6: =(J10-(VLOOKUP(D10,AK13:AL66,2)*(I10)/360)*(((MONTH(B1)-1)*30)+DAY(B1)))/(1+Q10/360*(((MONTH(B1)-1)*30)+DAY(B1)))-AY8 -> 31195.50515 | BE6: Lohnerhöhung p.a. | BF6: 0
AL7: =VLOOKUP(Ausweis!H7,Zins_u_Sparpläne!J14:K25,2,0) -> Standard | AU7: =VLOOKUP(Ausweis!H7,Zins_u_Sparpläne!J14:K25,2,0) -> Standard
U8: UWS | AB8: UWS | AL8: =VLOOKUP(AL7,Zins_u_Sparpläne!$G$2:$H$4,2,0) -> 2 | AO8: Lohn | AU8: =VLOOKUP(AL7,Zins_u_Sparpläne!$G$2:$H$4,2,0) -> 2 | AY8: =VLOOKUP(D10,AT13:AU66,2)*(AX10)/360*(((MONTH(B1)-1)*30)+DAY(B1)) -> 0
B9: Geburtsjahr | C9: Jahr | D9: Alter | E9: Monate | F9: Monate bis s | G9: Monate bis Wunschpens. | H9: AGS | I9: Lohn | J9: AGH 31.12. | K9: AGH eofM of Birth | L9: KsZ VL1+VL2 | M9: Einkauf KsZ | N9: WEF KsZ | O9: Scheidung KsZ | P9: Total AGH KsZ | Q9: Zins | R9: Altersrente p.a. VL1 + VL2 | S9: Altersrente p.M. | T9: UWS | U9: 58 | V9: 59 | W9: 60 | X9: 61 | Y9: 62 | Z9: 63 | AA9: 64 | AB9: 65 | AC9: 66 | AD9: 67 | AE9: 68 | AF9: 69 | AG9: 70 | AK9: BVG-Alter | AL9: Altersgutschriften | AN9: AGS | AO9: Lohn | AP9: AGH 31.12. | AR9: Total AGH | AT9: BVG-Alter | AU9: Altersgutschriften | AW9: AGS VL2 | AX9: Lohn VL2 | AY9: AGH 31.12. VL2 | AZ9: Total AGH KsZ VL2 | BC9: Alterkapital Wunschpens. | BE9: AHV-Lohn | BF9: KA | BG9: LV1 | BH9: LV2
A10: AGH Ausweis | B10: =B12 -> 1972 | C10: =C12 -> 2021 | D10: =D12 -> 49 | E10: =MONTH(Ausweis!F22) -> 1 | H10: =VLOOKUP(D10,$AK$13:$AL$66,2,1) -> 0.2215 | I10: =Ausweis!H17 -> 80660 | J10: =Ausweis!H22 -> 31246 | Q10: =VLOOKUP(C10,Zinsen!$C$9:$E$73,2,1) -> 0.01 | R10: =MROUND(P10*T10,0.05) -> 0 | S10: =MROUND(R10/12,1) -> 0 | T10: =IF(D10>=58,HLOOKUP(D10,$U$9:$AG$10,2,1),0) -> 0 | U10: =VLOOKUP(B10,UWS!$A$3:$P$84,11,1)+($U$9-$AB$9)*0.15% -> 0.0396 | V10: =VLOOKUP(B10,UWS!$A$3:$P$84,11,1)+($V$9-$AB$9)*0.15% -> 0.0411 | W10: =VLOOKUP(B10,UWS!$A$3:$P$84,11,1)+($W$9-$AB$9)*0.15% -> 0.0426 | X10: =VLOOKUP(B10,UWS!$A$3:$P$84,11,1)+($X$9-$AB$9)*0.15% -> 0.0441 | Y10: =VLOOKUP(B10,UWS!$A$3:$P$84,11,1)+($Y$9-$AB$9)*0.15% -> 0.0456 | Z10: =VLOOKUP(B10,UWS!$A$3:$P$84,11,1)+($Z$9-$AB$9)*0.15% -> 0.0471 | AA10: =VLOOKUP(B10,UWS!$A$3:$P$84,11,1)+($AA$9-$AB$9)*0.15% -> 0.0486 | AB10: =VLOOKUP(B10,UWS!$A$3:$P$84,11,1) -> 0.0501 | AC10: =VLOOKUP(B10,UWS!$A$3:$P$84,11,1)+($AC$9-$AB$9)*0.15% -> 0.0516 | AD10: =VLOOKUP(B10,UWS!$A$3:$P$84,11,1)+($AD$9-$AB$9)*0.15% -> 0.0531 | AE10: =VLOOKUP(B10,UWS!$A$3:$P$84,11,1)+($AE$9-$AB$9)*0.15% -> 0.0546 | AF10: =VLOOKUP(B10,UWS!$A$3:$P$84,11,1)+($AF$9-$AB$9)*0.15% -> 0.0561 | AG10: =VLOOKUP(B10,UWS!$A$3:$P$84,11,1)+($AG$9-$AB$9)*0.15% -> 0.0576 | AW10: =VLOOKUP(D10,$AT$13:$AU$66,2,1) -> 0.11 | AX10: =Ausweis!H18 -> 0 | BB10: =D10 -> 49 | BK10: =MROUND(AY11*(1+Q12/12*G12)+AX12*AW12/12*G12,0.05) -> 0
A11: AGH 31.12.Vorjahr | B11: =B12 -> 1972 | C11: =C12-1 -> 2020 | D11: =C11-B11 -> 48 | E11: 12 | F11: =MONTH(Ausweis!$H$10) -> 9 | G11: =MONTH(Ausweis!$C$40)-1 -> 9 | H11: 0.2215 | I11: =Ausweis!H17 -> 80660 | J11: =(J10-(VLOOKUP(D10,AK13:AL66,2)*(I10)/360)*(((MONTH(B1)-1)*30)))/(1+Q10/360*(((MONTH(B1)-1)*30)))-AY8 -> 31246 | Q11: =VLOOKUP(C11,Zinsen!$C$9:$E$73,2,1) -> 0.01 | R11: =MROUND(P11*T11,0.05) -> 0 | S11: =MROUND(R11/12,1) -> 0 | T11: =IF(D11>=58,HLOOKUP(D11,$U$9:$AG$10,2,1),0) -> 0 | U11: =VLOOKUP(B11,UWS!$A$3:$P$84,11,1)+($U$9-$AB$9)*0.15% -> 0.0396 | V11: =VLOOKUP(B11,UWS!$A$3:$P$84,11,1)+($V$9-$AB$9)*0.15% -> 0.0411 | W11: =VLOOKUP(B11,UWS!$A$3:$P$84,11,1)+($W$9-$AB$9)*0.15% -> 0.0426 | X11: =VLOOKUP(B11,UWS!$A$3:$P$84,11,1)+($X$9-$AB$9)*0.15% -> 0.0441 | Y11: =VLOOKUP(B11,UWS!$A$3:$P$84,11,1)+($Y$9-$AB$9)*0.15% -> 0.0456 | Z11: =VLOOKUP(B11,UWS!$A$3:$P$84,11,1)+($Z$9-$AB$9)*0.15% -> 0.0471 | AA11: =VLOOKUP(B11,UWS!$A$3:$P$84,11,1)+($AA$9-$AB$9)*0.15% -> 0.0486 | AB11: =VLOOKUP(B11,UWS!$A$3:$P$84,11,1) -> 0.0501 | AC11: =VLOOKUP(B11,UWS!$A$3:$P$84,11,1)+($AC$9-$AB$9)*0.15% -> 0.0516 | AD11: =VLOOKUP(B11,UWS!$A$3:$P$84,11,1)+($AD$9-$AB$9)*0.15% -> 0.0531 | AE11: =VLOOKUP(B11,UWS!$A$3:$P$84,11,1)+($AE$9-$AB$9)*0.15% -> 0.0546 | AF11: =VLOOKUP(B11,UWS!$A$3:$P$84,11,1)+($AF$9-$AB$9)*0.15% -> 0.0561 | AG11: =VLOOKUP(B11,UWS!$A$3:$P$84,11,1)+($AG$9-$AB$9)*0.15% -> 0.0576 | AW11: 0.11 | AX11: =Ausweis!H18 -> 0 | BB11: =D11 -> 48
B12: =YEAR(Ausweis!H10) -> 1972 | C12: =YEAR(Ausweis!H21) -> 2021 | D12: =C12-B12 -> 49 | E12: =E11 -> 12 | F12: =MONTH(Ausweis!$H$10) -> 9 | G12: =G11 -> 9 | H12: 0.2215 | I12: =Ausweis!H17 -> 80660 | J12: =J11*(1+Q12/12*E12)+I12*H12/12*IF(D12=65,E12,E12) -> 49424.65 | K12: =MROUND(J11*(1+Q12/12*F12)+I12*H12/12*F12,0.05) -> 44880 | L12: =K12+AZ12 -> 44880 | M12: =VLOOKUP(D12,$D$73:$J$153,7,1) -> 0 | N12: =VLOOKUP(D12,$O$73:$U$153,7,1) -> 0 | O12: =VLOOKUP(D12,$Z$73:$AF$153,7,1) -> 0 | P12: =L12+(M12-N12-O12)*0 -> 44880 | Q12: =VLOOKUP(C12,Zinsen!$C$9:$E$73,2,1) -> 0.01 | R12: 0 | S12: 0 | T12: 0 | U12: =VLOOKUP(B12,UWS!$A$3:$P$84,11,1)+($U$9-$AB$9)*0.15% -> 0.0396 | V12: =VLOOKUP(B12,UWS!$A$3:$P$84,11,1)+($V$9-$AB$9)*0.15% -> 0.0411 | W12: =VLOOKUP(B12,UWS!$A$3:$P$84,11,1)+($W$9-$AB$9)*0.15% -> 0.0426 | X12: =VLOOKUP(B12,UWS!$A$3:$P$84,11,1)+($X$9-$AB$9)*0.15% -> 0.0441 | Y12: =VLOOKUP(B12,UWS!$A$3:$P$84,11,1)+($Y$9-$AB$9)*0.15% -> 0.0456 | Z12: =VLOOKUP(B12,UWS!$A$3:$P$84,11,1)+($Z$9-$AB$9)*0.15% -> 0.0471 | AA12: =VLOOKUP(B12,UWS!$A$3:$P$84,11,1)+($AA$9-$AB$9)*0.15% -> 0.0486 | AB12: =VLOOKUP(B12,UWS!$A$3:$P$84,11,1) -> 0.0501 | AC12: =VLOOKUP(B12,UWS!$A$3:$P$84,11,1)+($AC$9-$AB$9)*0.15% -> 0.0516 | AD12: =VLOOKUP(B12,UWS!$A$3:$P$84,11,1)+($AD$9-$AB$9)*0.15% -> 0.0531 | AE12: =VLOOKUP(B12,UWS!$A$3:$P$84,11,1)+($AE$9-$AB$9)*0.15% -> 0.0546 | AF12: =VLOOKUP(B12,UWS!$A$3:$P$84,11,1)+($AF$9-$AB$9)*0.15% -> 0.0561 | AG12: =VLOOKUP(B12,UWS!$A$3:$P$84,11,1)+($AG$9-$AB$9)*0.15% -> 0.0576 | AP12: ='Entwicklung AGH pro Jahr'!N7 -> 0 | AR12: =J12+AP12 -> 49424.65 | AW12: 0.11 | AX12: =Ausweis!H18 -> 0 | AY12: =AY11*(1+Q12/12*E12)+AX12*AW12/12*IF(D12=65,F12,E12) -> 0 | AZ12: =MROUND(AY11*(1+Q12/12*F12)+AX12*AW12/12*F12,0.05) -> 0 | BB12: 49 | BC12: =MROUND(J11*(1+Q12/12*G12)+I12*H12/12*G12,0.05)+(K73-V73-AG73)*0+MROUND(AY11*(1+Q12/12*G12)+AX12*AW12/12*G12,0.05) -> 44880 | BE12: =Ausweis!H15 -> 95000 | BF12: =VLOOKUP(Ausweis!$H$5,Zinsen!$F$10:$G$56,2,)*1/2*Ausweis!$H$14 -> 14340 | BG12: =MIN(BE12-BF12,11/2*VLOOKUP(Ausweis!$H$5,Zinsen!$F$10:$G$56,2,1)) -> 80660 | BH12: =MAX(MIN(BE12,12*VLOOKUP(Ausweis!$H$5,Zinsen!$F$10:$G$56,2,1))-4*VLOOKUP(Ausweis!$H$5,Zinsen!$F$10:$G$56,2,1),0)*0 -> 0
B13: =B12 -> 1972 | C13: =C12+1 -> 2022 | D13: =C13-B13 -> 50 | E13: =E12 -> 12 | F13: =MONTH(Ausweis!$H$10) -> 9 | G13: =G12 -> 9 | H13: 0.2215 | I13: =Ausweis!H17 -> 80660 | J13: =J12*(1+Q13/12*E13)+I13*H13/12*IF(D13=65,E13,E13) -> 67785.0865 | K13: =MROUND(J12*(1+Q13/12*F13)+I13*H13/12*F13,0.05) -> 63195 | L13: =K13+AZ13 -> 63195 | M13: =VLOOKUP(D13,$D$73:$J$153,7,1) -> 0 | N13: 0 | O13: 0 | P13: =L13+(M13-N13-O13)*0 -> 63195 | Q13: =VLOOKUP(C13,Zinsen!$C$9:$E$73,2,1) -> 0.01 | R13: 0 | S13: 0 | T13: 0 | U13: =VLOOKUP(B13,UWS!$A$3:$P$84,11,1)+($U$9-$AB$9)*0.15% -> 0.0396 | V13: =VLOOKUP(B13,UWS!$A$3:$P$84,11,1)+($V$9-$AB$9)*0.15% -> 0.0411 | W13: =VLOOKUP(B13,UWS!$A$3:$P$84,11,1)+($W$9-$AB$9)*0.15% -> 0.0426 | X13: =VLOOKUP(B13,UWS!$A$3:$P$84,11,1)+($X$9-$AB$9)*0.15% -> 0.0441 | Y13: =VLOOKUP(B13,UWS!$A$3:$P$84,11,1)+($Y$9-$AB$9)*0.15% -> 0.0456 | Z13: =VLOOKUP(B13,UWS!$A$3:$P$84,11,1)+($Z$9-$AB$9)*0.15% -> 0.0471 | AA13: =VLOOKUP(B13,UWS!$A$3:$P$84,11,1)+($AA$9-$AB$9)*0.15% -> 0.0486 | AB13: =VLOOKUP(B13,UWS!$A$3:$P$84,11,1) -> 0.0501 | AC13: =VLOOKUP(B13,UWS!$A$3:$P$84,11,1)+($AC$9-$AB$9)*0.15% -> 0.0516 | AD13: =VLOOKUP(B13,UWS!$A$3:$P$84,11,1)+($AD$9-$AB$9)*0.15% -> 0.0531 | AE13: =VLOOKUP(B13,UWS!$A$3:$P$84,11,1)+($AE$9-$AB$9)*0.15% -> 0.0546 | AF13: =VLOOKUP(B13,UWS!$A$3:$P$84,11,1)+($AF$9-$AB$9)*0.15% -> 0.0561 | AG13: =VLOOKUP(B13,UWS!$A$3:$P$84,11,1)+($AG$9-$AB$9)*0.15% -> 0.0576 | AK13: 17 | AL13: =VLOOKUP(AK13,'AGS Finanzierung'!$M$8:$P$64,$AL$8+1,0) -> 0 | AN13: =VLOOKUP(D13,$AT$13:$AU$65,2,1) -> 0.11 | AO13: =Ausweis!$H$18 -> 0 | AP13: =MROUND(AP12*(1+$AP$2/12*E13)+AN13/12*E13*AO13,0.05) -> 0 | AR13: =J13+AP13 -> 67785.0865 | AT13: 17 | AU13: =VLOOKUP(AT13,'AGS FinanzierungVL2'!$M$8:$P$64,$AU$8+1,0) -> 0 | AW13: 0.11 | AX13: =Ausweis!H18 -> 0 | AY13: =AY12*(1+Q13/12*E13)+AX13*AW13/12*IF(D13=65,F13,E13) -> 0 | AZ13: =MROUND(AY12*(1+Q13/12*F13)+AX13*AW13/12*F13,0.05) -> 0 | BB13: 50 | BC13: =MROUND(J12*(1+Q13/12*G13)+I13*H13/12*G13,0.05)+(K74-V74-AG74)*0+MROUND(AY12*(1+Q13/12*G13)+AX13*AW13/12*G13,0.05) -> 63195 | BE13: =BE12*(1+$BF$6) -> 95000 | BF13: =VLOOKUP(Ausweis!$H$5,Zinsen!$F$10:$G$56,2,)*1/2*Ausweis!$H$14 -> 14340 | BG13: =MIN(BE13-BF13,11/2*VLOOKUP(Ausweis!$H$5,Zinsen!$F$10:$G$56,2,1)) -> 80660 | BH13: =MAX(MIN(BE13,12*VLOOKUP(Ausweis!$H$5,Zinsen!$F$10:$G$56,2,1))-4*VLOOKUP(Ausweis!$H$5,Zinsen!$F$10:$G$56,2,1),0)*0 -> 0
B14: =B13 -> 1972 | C14: =C13+1 -> 2023 | D14: =C14-B14 -> 51 | E14: 12 | F14: =MONTH(Ausweis!$H$10) -> 9 | G14: =G13 -> 9 | H14: 0.2215 | I14: =I13 -> 80660 | J14: 86329.12736 | K14: =MROUND(J13*(1+Q14/12*F14)+I14*H14/12*F14,0.05) -> 81693.1 | L14: =K14+AZ14 -> 81693.1 | M14: 0 | N14: 0 | O14: 0 | P14: 81693.1 | Q14: =VLOOKUP(C14,Zinsen!$C$9:$E$73,2,1) -> 0.01 | R14: 0 | S14: 0 | T14: 0 | U14: =VLOOKUP(B14,UWS!$A$3:$P$84,11,1)+($U$9-$AB$9)*0.15% -> 0.0396 | V14: =VLOOKUP(B14,UWS!$A$3:$P$84,11,1)+($V$9-$AB$9)*0.15% -> 0.0411 | W14: =VLOOKUP(B14,UWS!$A$3:$P$84,11,1)+($W$9-$AB$9)*0.15% -> 0.0426 | X14: =VLOOKUP(B14,UWS!$A$3:$P$84,11,1)+($X$9-$AB$9)*0.15% -> 0.0441 | Y14: =VLOOKUP(B14,UWS!$A$3:$P$84,11,1)+($Y$9-$AB$9)*0.15% -> 0.0456 | Z14: =VLOOKUP(B14,UWS!$A$3:$P$84,11,1)+($Z$9-$AB$9)*0.15% -> 0.0471 | AA14: =VLOOKUP(B14,UWS!$A$3:$P$84,11,1)+($AA$9-$AB$9)*0.15% -> 0.0486 | AB14: =VLOOKUP(B14,UWS!$A$3:$P$84,11,1) -> 0.0501 | AC14: =VLOOKUP(B14,UWS!$A$3:$P$84,11,1)+($AC$9-$AB$9)*0.15% -> 0.0516 | AD14: =VLOOKUP(B14,UWS!$A$3:$P$84,11,1)+($AD$9-$AB$9)*0.15% -> 0.0531 | AE14: =VLOOKUP(B14,UWS!$A$3:$P$84,11,1)+($AE$9-$AB$9)*0.15% -> 0.0546 | AF14: =VLOOKUP(B14,UWS!$A$3:$P$84,11,1)+($AF$9-$AB$9)*0.15% -> 0.0561 | AG14: =VLOOKUP(B14,UWS!$A$3:$P$84,11,1)+($AG$9-$AB$9)*0.15% -> 0.0576 | AK14: 18 | AL14: =VLOOKUP(AK14,'AGS Finanzierung'!$M$8:$P$64,$AL$8+1,0) -> 0 | AN14: =VLOOKUP(D14,$AT$13:$AU$65,2,1) -> 0.11 | AO14: =Ausweis!$H$18 -> 0 | AP14: 0 | AR14: =J14+AP14 -> 86329.12736 | AT14: 18 | AU14: =VLOOKUP(AT14,'AGS FinanzierungVL2'!$M$8:$P$64,$AU$8+1,0) -> 0 | AW14: 0.11 | AX14: =Ausweis!H18 -> 0 | AY14: =AY13*(1+Q14/12*E14)+AX14*AW14/12*IF(D14=65,F14,E14) -> 0 | AZ14: =MROUND(AY13*(1+Q14/12*F14)+AX14*AW14/12*F14,0.05) -> 0 | BB14: 51 | BC14: 81693.1 | BE14: 95000 | BF14: =VLOOKUP(Ausweis!$H$5,Zinsen!$F$10:$G$56,2,)*1/2*Ausweis!$H$14 -> 14340 | BG14: =MIN(BE14-BF14,11/2*VLOOKUP(Ausweis!$H$5,Zinsen!$F$10:$G$56,2,1)) -> 80660 | BH14: =MAX(MIN(BE14,12*VLOOKUP(Ausweis!$H$5,Zinsen!$F$10:$G$56,2,1))-4*VLOOKUP(Ausweis!$H$5,Zinsen!$F$10:$G$56,2,1),0)*0 -> 0
B15: =B14 -> 1972 | C15: =C14+1 -> 2024 | D15: =C15-B15 -> 52 | E15: 12 | F15: =MONTH(Ausweis!$H$10) -> 9 | G15: 9 | H15: 0.2215 | I15: =I14 -> 80660 | J15: 105058.6086 | K15: 100376.25 | L15: 100376.25 | M15: 0 | N15: 0 | O15: 0 | P15: 100376.25 | Q15: =VLOOKUP(C15,Zinsen!$C$9:$E$73,2,1) -> 0.01 | R15: 0 | S15: 0 | T15: 0 | U15: =VLOOKUP(B15,UWS!$A$3:$P$84,11,1)+($U$9-$AB$9)*0.15% -> 0.0396 | V15: =VLOOKUP(B15,UWS!$A$3:$P$84,11,1)+($V$9-$AB$9)*0.15% -> 0.0411 | W15: =VLOOKUP(B15,UWS!$A$3:$P$84,11,1)+($W$9-$AB$9)*0.15% -> 0.0426 | X15: =VLOOKUP(B15,UWS!$A$3:$P$84,11,1)+($X$9-$AB$9)*0.15% -> 0.0441 | Y15: =VLOOKUP(B15,UWS!$A$3:$P$84,11,1)+($Y$9-$AB$9)*0.15% -> 0.0456 | Z15: =VLOOKUP(B15,UWS!$A$3:$P$84,11,1)+($Z$9-$AB$9)*0.15% -> 0.0471 | AA15: =VLOOKUP(B15,UWS!$A$3:$P$84,11,1)+($AA$9-$AB$9)*0.15% -> 0.0486 | AB15: =VLOOKUP(B15,UWS!$A$3:$P$84,11,1) -> 0.0501 | AC15: =VLOOKUP(B15,UWS!$A$3:$P$84,11,1)+($AC$9-$AB$9)*0.15% -> 0.0516 | AD15: =VLOOKUP(B15,UWS!$A$3:$P$84,11,1)+($AD$9-$AB$9)*0.15% -> 0.0531 | AE15: =VLOOKUP(B15,UWS!$A$3:$P$84,11,1)+($AE$9-$AB$9)*0.15% -> 0.0546 | AF15: =VLOOKUP(B15,UWS!$A$3:$P$84,11,1)+($AF$9-$AB$9)*0.15% -> 0.0561 | AG15: =VLOOKUP(B15,UWS!$A$3:$P$84,11,1)+($AG$9-$AB$9)*0.15% -> 0.0576 | AK15: 19 | AL15: =VLOOKUP(AK15,'AGS Finanzierung'!$M$8:$P$64,$AL$8+1,0) -> 0 | AN15: 0.11 | AO15: =Ausweis!$H$18 -> 0 | AP15: 0 | AR15: =J15+AP15 -> 105058.6086 | AT15: 19 | AU15: =VLOOKUP(AT15,'AGS FinanzierungVL2'!$M$8:$P$64,$AU$8+1,0) -> 0 | AW15: 0.11 | AX15: =Ausweis!H18 -> 0 | AY15: 0 | AZ15: 0 | BB15: 52 | BC15: 100376.25 | BE15: 95000 | BF15: =VLOOKUP(Ausweis!$H$5,Zinsen!$F$10:$G$56,2,)*1/2*Ausweis!$H$14 -> 14340 | BG15: =MIN(BE15-BF15,11/2*VLOOKUP(Ausweis!$H$5,Zinsen!$F$10:$G$56,2,1)) -> 80660 | BH15: =MAX(MIN(BE15,12*VLOOKUP(Ausweis!$H$5,Zinsen!$F$10:$G$56,2,1))-4*VLOOKUP(Ausweis!$H$5,Zinsen!$F$10:$G$56,2,1),0)*0 -> 0
B16: 1972 | C16: 2025 | D16: 53 | E16: 12 | F16: =MONTH(Ausweis!$H$10) -> 9 | G16: 9 | H16: 0.2215 | I16: 80660 | J16: 123975.3847 | K16: 119246.2 | L16: 119246.2 | M16: 0 | N16: 0 | O16: 0 | P16: 119246.2 | Q16: =VLOOKUP(C16,Zinsen!$C$9:$E$73,2,1) -> 0.01 | R16: 0 | S16: 0 | T16: 0 | U16: =VLOOKUP(B16,UWS!$A$3:$P$84,11,1)+($U$9-$AB$9)*0.15% -> 0.0396 | V16: =VLOOKUP(B16,UWS!$A$3:$P$84,11,1)+($V$9-$AB$9)*0.15% -> 0.0411 | W16: =VLOOKUP(B16,UWS!$A$3:$P$84,11,1)+($W$9-$AB$9)*0.15% -> 0.0426 | X16: =VLOOKUP(B16,UWS!$A$3:$P$84,11,1)+($X$9-$AB$9)*0.15% -> 0.0441 | Y16: =VLOOKUP(B16,UWS!$A$3:$P$84,11,1)+($Y$9-$AB$9)*0.15% -> 0.0456 | Z16: =VLOOKUP(B16,UWS!$A$3:$P$84,11,1)+($Z$9-$AB$9)*0.15% -> 0.0471 | AA16: =VLOOKUP(B16,UWS!$A$3:$P$84,11,1)+($AA$9-$AB$9)*0.15% -> 0.0486 | AB16: =VLOOKUP(B16,UWS!$A$3:$P$84,11,1) -> 0.0501 | AC16: =VLOOKUP(B16,UWS!$A$3:$P$84,11,1)+($AC$9-$AB$9)*0.15% -> 0.0516 | AD16: =VLOOKUP(B16,UWS!$A$3:$P$84,11,1)+($AD$9-$AB$9)*0.15% -> 0.0531 | AE16: =VLOOKUP(B16,UWS!$A$3:$P$84,11,1)+($AE$9-$AB$9)*0.15% -> 0.0546 | AF16: =VLOOKUP(B16,UWS!$A$3:$P$84,11,1)+($AF$9-$AB$9)*0.15% -> 0.0561 | AG16: =VLOOKUP(B16,UWS!$A$3:$P$84,11,1)+($AG$9-$AB$9)*0.15% -> 0.0576 | AK16: 20 | AL16: =VLOOKUP(AK16,'AGS Finanzierung'!$M$8:$P$64,$AL$8+1,0) -> 0 | AN16: 0.11 | AO16: =Ausweis!$H$18 -> 0 | AP16: 0 | AR16: 123975.3847 | AT16: 20 | AU16: =VLOOKUP(AT16,'AGS FinanzierungVL2'!$M$8:$P$64,$AU$8+1,0) -> 0 | AW16: 0.11 | AX16: =Ausweis!H18 -> 0 | AY16: 0 | AZ16: 0 | BB16: 53 | BC16: 119246.2 | BE16: 95000 | BF16: =VLOOKUP(Ausweis!$H$5,Zinsen!$F$10:$G$56,2,)*1/2*Ausweis!$H$14 -> 14340 | BG16: =MIN(BE16-BF16,11/2*VLOOKUP(Ausweis!$H$5,Zinsen!$F$10:$G$56,2,1)) -> 80660 | BH16: =MAX(MIN(BE16,12*VLOOKUP(Ausweis!$H$5,Zinsen!$F$10:$G$56,2,1))-4*VLOOKUP(Ausweis!$H$5,Zinsen!$F$10:$G$56,2,1),0)*0 -> 0
B17: 1972 | C17: 2026 | D17: 54 | E17: 12 | F17: =MONTH(Ausweis!$H$10) -> 9 | G17: 9 | H17: 0.2215 | I17: 80660 | J17: 143081.3286 | K17: =MROUND(J16*(1+Q17/12*F17)+I17*H17/12*F17,0.05) -> 138304.85 | L17: =K17+AZ17 -> 138304.85 | M17: 0 | N17: 0 | O17: 0 | P17: 138304.85 | Q17: =VLOOKUP(C17,Zinsen!$C$9:$E$73,2,1) -> 0.01 | R17: 0 | S17: 0 | T17: 0 | U17: =VLOOKUP(B17,UWS!$A$3:$P$84,11,1)+($U$9-$AB$9)*0.15% -> 0.0396 | V17: =VLOOKUP(B17,UWS!$A$3:$P$84,11,1)+($V$9-$AB$9)*0.15% -> 0.0411 | W17: =VLOOKUP(B17,UWS!$A$3:$P$84,11,1)+($W$9-$AB$9)*0.15% -> 0.0426 | X17: =VLOOKUP(B17,UWS!$A$3:$P$84,11,1)+($X$9-$AB$9)*0.15% -> 0.0441 | Y17: =VLOOKUP(B17,UWS!$A$3:$P$84,11,1)+($Y$9-$AB$9)*0.15% -> 0.0456 | Z17: =VLOOKUP(B17,UWS!$A$3:$P$84,11,1)+($Z$9-$AB$9)*0.15% -> 0.0471 | AA17: =VLOOKUP(B17,UWS!$A$3:$P$84,11,1)+($AA$9-$AB$9)*0.15% -> 0.0486 | AB17: =VLOOKUP(B17,UWS!$A$3:$P$84,11,1) -> 0.0501 | AC17: =VLOOKUP(B17,UWS!$A$3:$P$84,11,1)+($AC$9-$AB$9)*0.15% -> 0.0516 | AD17: =VLOOKUP(B17,UWS!$A$3:$P$84,11,1)+($AD$9-$AB$9)*0.15% -> 0.0531 | AE17: =VLOOKUP(B17,UWS!$A$3:$P$84,11,1)+($AE$9-$AB$9)*0.15% -> 0.0546 | AF17: =VLOOKUP(B17,UWS!$A$3:$P$84,11,1)+($AF$9-$AB$9)*0.15% -> 0.0561 | AG17: =VLOOKUP(B17,UWS!$A$3:$P$84,11,1)+($AG$9-$AB$9)*0.15% -> 0.0576 | AK17: 21 | AL17: =VLOOKUP(AK17,'AGS Finanzierung'!$M$8:$P$64,$AL$8+1,0) -> 0 | AN17: 0.11 | AO17: =Ausweis!$H$18 -> 0 | AP17: 0 | AR17: 143081.3286 | AT17: 21 | AU17: =VLOOKUP(AT17,'AGS FinanzierungVL2'!$M$8:$P$64,$AU$8+1,0) -> 0 | AW17: 0.11 | AX17: =Ausweis!H18 -> 0 | AY17: 0 | AZ17: 0 | BB17: 54 | BC17: 138304.85 | BE17: 95000 | BF17: =VLOOKUP(Ausweis!$H$5,Zinsen!$F$10:$G$56,2,)*1/2*Ausweis!$H$14 -> 14340 | BG17: =MIN(BE17-BF17,11/2*VLOOKUP(Ausweis!$H$5,Zinsen!$F$10:$G$56,2,1)) -> 80660 | BH17: =MAX(MIN(BE17,12*VLOOKUP(Ausweis!$H$5,Zinsen!$F$10:$G$56,2,1))-4*VLOOKUP(Ausweis!$H$5,Zinsen!$F$10:$G$56,2,1),0)*0 -> 0
B18: 1972 | C18: 2027 | D18: 55 | E18: 12 | F18: =MONTH(Ausweis!$H$10) -> 9 | G18: 9 | H18: 0.2815 | I18: 80660 | J18: 167217.9319 | K18: =MROUND(J17*(1+Q18/12*F18)+I18*H18/12*F18,0.05) -> 161183.8 | L18: =K18+AZ18 -> 161183.8 | M18: 0 | N18: 0 | O18: 0 | P18: 161183.8 | Q18: =VLOOKUP(C18,Zinsen!$C$9:$E$73,2,1) -> 0.01 | R18: 0 | S18: 0 | T18: 0 | U18: =VLOOKUP(B18,UWS!$A$3:$P$84,11,1)+($U$9-$AB$9)*0.15% -> 0.0396 | V18: =VLOOKUP(B18,UWS!$A$3:$P$84,11,1)+($V$9-$AB$9)*0.15% -> 0.0411 | W18: =VLOOKUP(B18,UWS!$A$3:$P$84,11,1)+($W$9-$AB$9)*0.15% -> 0.0426 | X18: =VLOOKUP(B18,UWS!$A$3:$P$84,11,1)+($X$9-$AB$9)*0.15% -> 0.0441 | Y18: =VLOOKUP(B18,UWS!$A$3:$P$84,11,1)+($Y$9-$AB$9)*0.15% -> 0.0456 | Z18: =VLOOKUP(B18,UWS!$A$3:$P$84,11,1)+($Z$9-$AB$9)*0.15% -> 0.0471 | AA18: =VLOOKUP(B18,UWS!$A$3:$P$84,11,1)+($AA$9-$AB$9)*0.15% -> 0.0486 | AB18: =VLOOKUP(B18,UWS!$A$3:$P$84,11,1) -> 0.0501 | AC18: =VLOOKUP(B18,UWS!$A$3:$P$84,11,1)+($AC$9-$AB$9)*0.15% -> 0.0516 | AD18: =VLOOKUP(B18,UWS!$A$3:$P$84,11,1)+($AD$9-$AB$9)*0.15% -> 0.0531 | AE18: =VLOOKUP(B18,UWS!$A$3:$P$84,11,1)+($AE$9-$AB$9)*0.15% -> 0.0546 | AF18: =VLOOKUP(B18,UWS!$A$3:$P$84,11,1)+($AF$9-$AB$9)*0.15% -> 0.0561 | AG18: =VLOOKUP(B18,UWS!$A$3:$P$84,11,1)+($AG$9-$AB$9)*0.15% -> 0.0576 | AK18: 22 | AL18: =VLOOKUP(AK18,'AGS Finanzierung'!$M$8:$P$64,$AL$8+1,0) -> 0 | AN18: 0.11 | AO18: =Ausweis!$H$18 -> 0 | AP18: 0 | AR18: 167217.9319 | AT18: 22 | AU18: =VLOOKUP(AT18,'AGS FinanzierungVL2'!$M$8:$P$64,$AU$8+1,0) -> 0 | AW18: 0.11 | AX18: =Ausweis!H18 -> 0 | AY18: 0 | AZ18: 0 | BB18: 55 | BC18: 161183.8 | BE18: 95000 | BF18: =VLOOKUP(Ausweis!$H$5,Zinsen!$F$10:$G$56,2,)*1/2*Ausweis!$H$14 -> 14340 | BG18: =MIN(BE18-BF18,11/2*VLOOKUP(Ausweis!$H$5,Zinsen!$F$10:$G$56,2,1)) -> 80660 | BH18: =MAX(MIN(BE18,12*VLOOKUP(Ausweis!$H$5,Zinsen!$F$10:$G$56,2,1))-4*VLOOKUP(Ausweis!$H$5,Zinsen!$F$10:$G$56,2,1),0)*0 -> 0
B19: 1972 | C19: 2028 | D19: 56 | E19: 12 | F19: =MONTH(Ausweis!$H$10) -> 9 | G19: 9 | H19: 0.2815 | I19: 80660 | J19: 191595.9012 | K19: 185501.4 | L19: 185501.4 | M19: 0 | N19: 0 | O19: 0 | P19: 185501.4 | Q19: =VLOOKUP(C19,Zinsen!$C$9:$E$73,2,1) -> 0.01 | R19: 0 | S19: 0 | T19: 0 | U19: =VLOOKUP(B19,UWS!$A$3:$P$84,11,1)+($U$9-$AB$9)*0.15% -> 0.0396 | V19: =VLOOKUP(B19,UWS!$A$3:$P$84,11,1)+($V$9-$AB$9)*0.15% -> 0.0411 | W19: =VLOOKUP(B19,UWS!$A$3:$P$84,11,1)+($W$9-$AB$9)*0.15% -> 0.0426 | X19: =VLOOKUP(B19,UWS!$A$3:$P$84,11,1)+($X$9-$AB$9)*0.15% -> 0.0441 | Y19: =VLOOKUP(B19,UWS!$A$3:$P$84,11,1)+($Y$9-$AB$9)*0.15% -> 0.0456 | Z19: =VLOOKUP(B19,UWS!$A$3:$P$84,11,1)+($Z$9-$AB$9)*0.15% -> 0.0471 | AA19: =VLOOKUP(B19,UWS!$A$3:$P$84,11,1)+($AA$9-$AB$9)*0.15% -> 0.0486 | AB19: =VLOOKUP(B19,UWS!$A$3:$P$84,11,1) -> 0.0501 | AC19: =VLOOKUP(B19,UWS!$A$3:$P$84,11,1)+($AC$9-$AB$9)*0.15% -> 0.0516 | AD19: =VLOOKUP(B19,UWS!$A$3:$P$84,11,1)+($AD$9-$AB$9)*0.15% -> 0.0531 | AE19: =VLOOKUP(B19,UWS!$A$3:$P$84,11,1)+($AE$9-$AB$9)*0.15% -> 0.0546 | AF19: =VLOOKUP(B19,UWS!$A$3:$P$84,11,1)+($AF$9-$AB$9)*0.15% -> 0.0561 | AG19: =VLOOKUP(B19,UWS!$A$3:$P$84,11,1)+($AG$9-$AB$9)*0.15% -> 0.0576 | AK19: 23 | AL19: =VLOOKUP(AK19,'AGS Finanzierung'!$M$8:$P$64,$AL$8+1,0) -> 0 | AN19: 0.11 | AO19: =Ausweis!$H$18 -> 0 | AP19: 0 | AR19: 191595.9012 | AT19: 23 | AU19: =VLOOKUP(AT19,'AGS FinanzierungVL2'!$M$8:$P$64,$AU$8+1,0) -> 0 | AW19: 0.11 | AX19: =Ausweis!H18 -> 0 | AY19: 0 | AZ19: 0 | BB19: 56 | BC19: 185501.4 | BE19: 95000 | BF19: =VLOOKUP(Ausweis!$H$5,Zinsen!$F$10:$G$56,2,)*1/2*Ausweis!$H$14 -> 14340 | BG19: =MIN(BE19-BF19,11/2*VLOOKUP(Ausweis!$H$5,Zinsen!$F$10:$G$56,2,1)) -> 80660 | BH19: =MAX(MIN(BE19,12*VLOOKUP(Ausweis!$H$5,Zinsen!$F$10:$G$56,2,1))-4*VLOOKUP(Ausweis!$H$5,Zinsen!$F$10:$G$56,2,1),0)*0 -> 0
B20: 1972 | C20: 2029 | D20: 57 | E20: 12 | F20: =MONTH(Ausweis!$H$10) -> 9 | G20: 9 | H20: 0.2815 | I20: 80660 | J20: 216217.6502 | K20: 210062.2 | L20: 210062.2 | M20: 0 | N20: 0 | O20: 0 | P20: 210062.2 | Q20: =VLOOKUP(C20,Zinsen!$C$9:$E$73,2,1) -> 0.01 | R20: 0 | S20: 0 | T20: 0 | U20: =VLOOKUP(B20,UWS!$A$3:$P$84,11,1)+($U$9-$AB$9)*0.15% -> 0.0396 | V20: =VLOOKUP(B20,UWS!$A$3:$P$84,11,1)+($V$9-$AB$9)*0.15% -> 0.0411 | W20: =VLOOKUP(B20,UWS!$A$3:$P$84,11,1)+($W$9-$AB$9)*0.15% -> 0.0426 | X20: =VLOOKUP(B20,UWS!$A$3:$P$84,11,1)+($X$9-$AB$9)*0.15% -> 0.0441 | Y20: =VLOOKUP(B20,UWS!$A$3:$P$84,11,1)+($Y$9-$AB$9)*0.15% -> 0.0456 | Z20: =VLOOKUP(B20,UWS!$A$3:$P$84,11,1)+($Z$9-$AB$9)*0.15% -> 0.0471 | AA20: =VLOOKUP(B20,UWS!$A$3:$P$84,11,1)+($AA$9-$AB$9)*0.15% -> 0.0486 | AB20: =VLOOKUP(B20,UWS!$A$3:$P$84,11,1) -> 0.0501 | AC20: =VLOOKUP(B20,UWS!$A$3:$P$84,11,1)+($AC$9-$AB$9)*0.15% -> 0.0516 | AD20: =VLOOKUP(B20,UWS!$A$3:$P$84,11,1)+($AD$9-$AB$9)*0.15% -> 0.0531 | AE20: =VLOOKUP(B20,UWS!$A$3:$P$84,11,1)+($AE$9-$AB$9)*0.15% -> 0.0546 | AF20: =VLOOKUP(B20,UWS!$A$3:$P$84,11,1)+($AF$9-$AB$9)*0.15% -> 0.0561 | AG20: =VLOOKUP(B20,UWS!$A$3:$P$84,11,1)+($AG$9-$AB$9)*0.15% -> 0.0576 | AK20: 24 | AL20: =VLOOKUP(AK20,'AGS Finanzierung'!$M$8:$P$64,$AL$8+1,0) -> 0 | AN20: 0.11 | AO20: =Ausweis!$H$18 -> 0 | AP20: 0 | AR20: 216217.6502 | AT20: 24 | AU20: =VLOOKUP(AT20,'AGS FinanzierungVL2'!$M$8:$P$64,$AU$8+1,0) -> 0 | AW20: 0.11 | AX20: =Ausweis!H18 -> 0 | AY20: 0 | AZ20: 0 | BB20: 57 | BC20: 210062.2 | BE20: 95000 | BF20: =VLOOKUP(Ausweis!$H$5,Zinsen!$F$10:$G$56,2,)*1/2*Ausweis!$H$14 -> 14340 | BG20: =MIN(BE20-BF20,11/2*VLOOKUP(Ausweis!$H$5,Zinsen!$F$10:$G$56,2,1)) -> 80660 | BH20: =MAX(MIN(BE20,12*VLOOKUP(Ausweis!$H$5,Zinsen!$F$10:$G$56,2,1))-4*VLOOKUP(Ausweis!$H$5,Zinsen!$F$10:$G$56,2,1),0)*0 -> 0
B21: 1972 | C21: 2030 | D21: 58 | E21: 12 | F21: =MONTH(Ausweis!$H$10) -> 9 | G21: 9 | H21: 0.2815 | I21: 80660 | J21: 241085.6167 | K21: 234868.65 | L21: 234868.65 | M21: 0 | N21: 0 | O21: 0 | P21: 234868.65 | Q21: =VLOOKUP(C21,Zinsen!$C$9:$E$73,2,1) -> 0.01 | R21: 9300.8 | S21: 775 | T21: 0.0396 | U21: =VLOOKUP(B21,UWS!$A$3:$P$84,11,1)+($U$9-$AB$9)*0.15% -> 0.0396 | V21: =VLOOKUP(B21,UWS!$A$3:$P$84,11,1)+($V$9-$AB$9)*0.15% -> 0.0411 | W21: =VLOOKUP(B21,UWS!$A$3:$P$84,11,1)+($W$9-$AB$9)*0.15% -> 0.0426 | X21: =VLOOKUP(B21,UWS!$A$3:$P$84,11,1)+($X$9-$AB$9)*0.15% -> 0.0441 | Y21: =VLOOKUP(B21,UWS!$A$3:$P$84,11,1)+($Y$9-$AB$9)*0.15% -> 0.0456 | Z21: =VLOOKUP(B21,UWS!$A$3:$P$84,11,1)+($Z$9-$AB$9)*0.15% -> 0.0471 | AA21: =VLOOKUP(B21,UWS!$A$3:$P$84,11,1)+($AA$9-$AB$9)*0.15% -> 0.0486 | AB21: =VLOOKUP(B21,UWS!$A$3:$P$84,11,1) -> 0.0501 | AC21: =VLOOKUP(B21,UWS!$A$3:$P$84,11,1)+($AC$9-$AB$9)*0.15% -> 0.0516 | AD21: =VLOOKUP(B21,UWS!$A$3:$P$84,11,1)+($AD$9-$AB$9)*0.15% -> 0.0531 | AE21: =VLOOKUP(B21,UWS!$A$3:$P$84,11,1)+($AE$9-$AB$9)*0.15% -> 0.0546 | AF21: =VLOOKUP(B21,UWS!$A$3:$P$84,11,1)+($AF$9-$AB$9)*0.15% -> 0.0561 | AG21: =VLOOKUP(B21,UWS!$A$3:$P$84,11,1)+($AG$9-$AB$9)*0.15% -> 0.0576 | AK21: 25 | AL21: =VLOOKUP(AK21,'AGS Finanzierung'!$M$8:$P$64,$AL$8+1,0) -> 0.1025 | AN21: 0.11 | AO21: =Ausweis!$H$18 -> 0 | AP21: 0 | AR21: 241085.6167 | AT21: 25 | AU21: =VLOOKUP(AT21,'AGS FinanzierungVL2'!$M$8:$P$64,$AU$8+1,0) -> 0.11 | AW21: 0.11 | AX21: =Ausweis!H18 -> 0 | AY21: 0 | AZ21: 0 | BB21: 58 | BC21: 234868.65 | BE21: 95000 | BF21: =VLOOKUP(Ausweis!$H$5,Zinsen!$F$10:$G$56,2,)*1/2*Ausweis!$H$14 -> 14340 | BG21: =MIN(BE21-BF21,11/2*VLOOKUP(Ausweis!$H$5,Zinsen!$F$10:$G$56,2,1)) -> 80660 | BH21: =MAX(MIN(BE21,12*VLOOKUP(Ausweis!$H$5,Zinsen!$F$10:$G$56,2,1))-4*VLOOKUP(Ausweis!$H$5,Zinsen!$F$10:$G$56,2,1),0)*0 -> 0
B22: 1972 | C22: 2031 | D22: 59 | E22: 12 | F22: =MONTH(Ausweis!$H$10) -> 9 | G22: 9 | H22: 0.2815 | I22: 80660 | J22: 266202.2629 | K22: 259923.1 | L22: 259923.1 | M22: 0 | N22: 0 | O22: 0 | P22: 259923.1 | Q22: =VLOOKUP(C22,Zinsen!$C$9:$E$73,2,1) -> 0.01 | R22: 10682.85 | S22: =MROUND(R22/12,1) -> 890 | T22: 0.0411 | U22: =VLOOKUP(B22,UWS!$A$3:$P$84,11,1)+($U$9-$AB$9)*0.15% -> 0.0396 | V22: =VLOOKUP(B22,UWS!$A$3:$P$84,11,1)+($V$9-$AB$9)*0.15% -> 0.0411 | W22: =VLOOKUP(B22,UWS!$A$3:$P$84,11,1)+($W$9-$AB$9)*0.15% -> 0.0426 | X22: =VLOOKUP(B22,UWS!$A$3:$P$84,11,1)+($X$9-$AB$9)*0.15% -> 0.0441 | Y22: =VLOOKUP(B22,UWS!$A$3:$P$84,11,1)+($Y$9-$AB$9)*0.15% -> 0.0456 | Z22: =VLOOKUP(B22,UWS!$A$3:$P$84,11,1)+($Z$9-$AB$9)*0.15% -> 0.0471 | AA22: =VLOOKUP(B22,UWS!$A$3:$P$84,11,1)+($AA$9-$AB$9)*0.15% -> 0.0486 | AB22: =VLOOKUP(B22,UWS!$A$3:$P$84,11,1) -> 0.0501 | AC22: =VLOOKUP(B22,UWS!$A$3:$P$84,11,1)+($AC$9-$AB$9)*0.15% -> 0.0516 | AD22: =VLOOKUP(B22,UWS!$A$3:$P$84,11,1)+($AD$9-$AB$9)*0.15% -> 0.0531 | AE22: =VLOOKUP(B22,UWS!$A$3:$P$84,11,1)+($AE$9-$AB$9)*0.15% -> 0.0546 | AF22: =VLOOKUP(B22,UWS!$A$3:$P$84,11,1)+($AF$9-$AB$9)*0.15% -> 0.0561 | AG22: =VLOOKUP(B22,UWS!$A$3:$P$84,11,1)+($AG$9-$AB$9)*0.15% -> 0.0576 | AK22: 26 | AL22: =VLOOKUP(AK22,'AGS Finanzierung'!$M$8:$P$64,$AL$8+1,0) -> 0.1025 | AN22: 0.11 | AO22: =Ausweis!$H$18 -> 0 | AP22: 0 | AR22: 266202.2629 | AT22: 26 | AU22: =VLOOKUP(AT22,'AGS FinanzierungVL2'!$M$8:$P$64,$AU$8+1,0) -> 0.11 | AW22: 0.11 | AX22: =Ausweis!H18 -> 0 | AY22: 0 | AZ22: 0 | BB22: 59 | BC22: 259923.1 | BE22: 95000 | BF22: =VLOOKUP(Ausweis!$H$5,Zinsen!$F$10:$G$56,2,)*1/2*Ausweis!$H$14 -> 14340 | BG22: =MIN(BE22-BF22,11/2*VLOOKUP(Ausweis!$H$5,Zinsen!$F$10:$G$56,2,1)) -> 80660 | BH22: =MAX(MIN(BE22,12*VLOOKUP(Ausweis!$H$5,Zinsen!$F$10:$G$56,2,1))-4*VLOOKUP(Ausweis!$H$5,Zinsen!$F$10:$G$56,2,1),0)*0 -> 0
B23: 1972 | C23: 2032 | D23: 60 | E23: 12 | F23: =MONTH(Ausweis!$H$10) -> 9 | G23: 9 | H23: 0.2815 | I23: 80660 | J23: 291570.0755 | K23: 285228.1 | L23: 285228.1 | M23: 0 | N23: 0 | O23: 0 | P23: 285228.1 | Q23: =VLOOKUP(C23,Zinsen!$C$9:$E$73,2,1) -> 0.01 | R23: 12150.7 | S23: 1013 | T23: 0.0426 | U23: =VLOOKUP(B23,UWS!$A$3:$P$84,11,1)+($U$9-$AB$9)*0.15% -> 0.0396 | V23: =VLOOKUP(B23,UWS!$A$3:$P$84,11,1)+($V$9-$AB$9)*0.15% -> 0.0411 | W23: =VLOOKUP(B23,UWS!$A$3:$P$84,11,1)+($W$9-$AB$9)*0.15% -> 0.0426 | X23: =VLOOKUP(B23,UWS!$A$3:$P$84,11,1)+($X$9-$AB$9)*0.15% -> 0.0441 | Y23: =VLOOKUP(B23,UWS!$A$3:$P$84,11,1)+($Y$9-$AB$9)*0.15% -> 0.0456 | Z23: =VLOOKUP(B23,UWS!$A$3:$P$84,11,1)+($Z$9-$AB$9)*0.15% -> 0.0471 | AA23: =VLOOKUP(B23,UWS!$A$3:$P$84,11,1)+($AA$9-$AB$9)*0.15% -> 0.0486 | AB23: =VLOOKUP(B23,UWS!$A$3:$P$84,11,1) -> 0.0501 | AC23: =VLOOKUP(B23,UWS!$A$3:$P$84,11,1)+($AC$9-$AB$9)*0.15% -> 0.0516 | AD23: =VLOOKUP(B23,UWS!$A$3:$P$84,11,1)+($AD$9-$AB$9)*0.15% -> 0.0531 | AE23: =VLOOKUP(B23,UWS!$A$3:$P$84,11,1)+($AE$9-$AB$9)*0.15% -> 0.0546 | AF23: =VLOOKUP(B23,UWS!$A$3:$P$84,11,1)+($AF$9-$AB$9)*0.15% -> 0.0561 | AG23: =VLOOKUP(B23,UWS!$A$3:$P$84,11,1)+($AG$9-$AB$9)*0.15% -> 0.0576 | AK23: 27 | AL23: =VLOOKUP(AK23,'AGS Finanzierung'!$M$8:$P$64,$AL$8+1,0) -> 0.1025 | AN23: 0.11 | AO23: =Ausweis!$H$18 -> 0 | AP23: 0 | AR23: 291570.0755 | AT23: 27 | AU23: =VLOOKUP(AT23,'AGS FinanzierungVL2'!$M$8:$P$64,$AU$8+1,0) -> 0.11 | AW23: 0.11 | AX23: =Ausweis!H18 -> 0 | AY23: 0 | AZ23: 0 | BB23: 60 | BC23: 285228.1 | BE23: 95000 | BF23: =VLOOKUP(Ausweis!$H$5,Zinsen!$F$10:$G$56,2,)*1/2*Ausweis!$H$14 -> 14340 | BG23: =MIN(BE23-BF23,11/2*VLOOKUP(Ausweis!$H$5,Zinsen!$F$10:$G$56,2,1)) -> 80660 | BH23: =MAX(MIN(BE23,12*VLOOKUP(Ausweis!$H$5,Zinsen!$F$10:$G$56,2,1))-4*VLOOKUP(Ausweis!$H$5,Zinsen!$F$10:$G$56,2,1),0)*0 -> 0
B24: 1972 | C24: 2033 | D24: 61 | E24: 12 | F24: =MONTH(Ausweis!$H$10) -> 9 | G24: 9 | H24: 0.2815 | I24: 80660 | J24: 317191.5662 | K24: 310786.2 | L24: 310786.2 | M24: 0 | N24: 0 | O24: 0 | P24: 310786.2 | Q24: =VLOOKUP(C24,Zinsen!$C$9:$E$73,2,1) -> 0.01 | R24: 13705.65 | S24: =MROUND(R24/12,1) -> 1142 | T24: 0.0441 | U24: =VLOOKUP(B24,UWS!$A$3:$P$84,11,1)+($U$9-$AB$9)*0.15% -> 0.0396 | V24: =VLOOKUP(B24,UWS!$A$3:$P$84,11,1)+($V$9-$AB$9)*0.15% -> 0.0411 | W24: =VLOOKUP(B24,UWS!$A$3:$P$84,11,1)+($W$9-$AB$9)*0.15% -> 0.0426 | X24: =VLOOKUP(B24,UWS!$A$3:$P$84,11,1)+($X$9-$AB$9)*0.15% -> 0.0441 | Y24: =VLOOKUP(B24,UWS!$A$3:$P$84,11,1)+($Y$9-$AB$9)*0.15% -> 0.0456 | Z24: =VLOOKUP(B24,UWS!$A$3:$P$84,11,1)+($Z$9-$AB$9)*0.15% -> 0.0471 | AA24: =VLOOKUP(B24,UWS!$A$3:$P$84,11,1)+($AA$9-$AB$9)*0.15% -> 0.0486 | AB24: =VLOOKUP(B24,UWS!$A$3:$P$84,11,1) -> 0.0501 | AC24: =VLOOKUP(B24,UWS!$A$3:$P$84,11,1)+($AC$9-$AB$9)*0.15% -> 0.0516 | AD24: =VLOOKUP(B24,UWS!$A$3:$P$84,11,1)+($AD$9-$AB$9)*0.15% -> 0.0531 | AE24: =VLOOKUP(B24,UWS!$A$3:$P$84,11,1)+($AE$9-$AB$9)*0.15% -> 0.0546 | AF24: =VLOOKUP(B24,UWS!$A$3:$P$84,11,1)+($AF$9-$AB$9)*0.15% -> 0.0561 | AG24: =VLOOKUP(B24,UWS!$A$3:$P$84,11,1)+($AG$9-$AB$9)*0.15% -> 0.0576 | AK24: 28 | AL24: =VLOOKUP(AK24,'AGS Finanzierung'!$M$8:$P$64,$AL$8+1,0) -> 0.1025 | AN24: 0.11 | AO24: =Ausweis!$H$18 -> 0 | AP24: 0 | AR24: 317191.5662 | AT24: 28 | AU24: =VLOOKUP(AT24,'AGS FinanzierungVL2'!$M$8:$P$64,$AU$8+1,0) -> 0.11 | AW24: 0.11 | AX24: =Ausweis!H18 -> 0 | AY24: 0 | AZ24: 0 | BB24: 61 | BC24: 310786.2 | BE24: 95000 | BF24: =VLOOKUP(Ausweis!$H$5,Zinsen!$F$10:$G$56,2,)*1/2*Ausweis!$H$14 -> 14340 | BG24: =MIN(BE24-BF24,11/2*VLOOKUP(Ausweis!$H$5,Zinsen!$F$10:$G$56,2,1)) -> 80660 | BH24: =MAX(MIN(BE24,12*VLOOKUP(Ausweis!$H$5,Zinsen!$F$10:$G$56,2,1))-4*VLOOKUP(Ausweis!$H$5,Zinsen!$F$10:$G$56,2,1),0)*0 -> 0
B25: 1972 | C25: 2034 | D25: 62 | E25: 12 | F25: =MONTH(Ausweis!$H$10) -> 9 | G25: 9 | H25: 0.2815 | I25: 80660 | J25: 343069.2719 | K25: 336599.85 | L25: 336599.85 | M25: 0 | N25: 0 | O25: 0 | P25: 336599.85 | Q25: =VLOOKUP(C25,Zinsen!$C$9:$E$73,2,1) -> 0.01 | R25: 15348.95 | S25: 1279 | T25: 0.0456 | U25: =VLOOKUP(B25,UWS!$A$3:$P$84,11,1)+($U$9-$AB$9)*0.15% -> 0.0396 | V25: =VLOOKUP(B25,UWS!$A$3:$P$84,11,1)+($V$9-$AB$9)*0.15% -> 0.0411 | W25: =VLOOKUP(B25,UWS!$A$3:$P$84,11,1)+($W$9-$AB$9)*0.15% -> 0.0426 | X25: =VLOOKUP(B25,UWS!$A$3:$P$84,11,1)+($X$9-$AB$9)*0.15% -> 0.0441 | Y25: =VLOOKUP(B25,UWS!$A$3:$P$84,11,1)+($Y$9-$AB$9)*0.15% -> 0.0456 | Z25: =VLOOKUP(B25,UWS!$A$3:$P$84,11,1)+($Z$9-$AB$9)*0.15% -> 0.0471 | AA25: =VLOOKUP(B25,UWS!$A$3:$P$84,11,1)+($AA$9-$AB$9)*0.15% -> 0.0486 | AB25: =VLOOKUP(B25,UWS!$A$3:$P$84,11,1) -> 0.0501 | AC25: =VLOOKUP(B25,UWS!$A$3:$P$84,11,1)+($AC$9-$AB$9)*0.15% -> 0.0516 | AD25: =VLOOKUP(B25,UWS!$A$3:$P$84,11,1)+($AD$9-$AB$9)*0.15% -> 0.0531 | AE25: =VLOOKUP(B25,UWS!$A$3:$P$84,11,1)+($AE$9-$AB$9)*0.15% -> 0.0546 | AF25: =VLOOKUP(B25,UWS!$A$3:$P$84,11,1)+($AF$9-$AB$9)*0.15% -> 0.0561 | AG25: =VLOOKUP(B25,UWS!$A$3:$P$84,11,1)+($AG$9-$AB$9)*0.15% -> 0.0576 | AK25: 29 | AL25: =VLOOKUP(AK25,'AGS Finanzierung'!$M$8:$P$64,$AL$8+1,0) -> 0.1025 | AN25: 0.11 | AO25: =Ausweis!$H$18 -> 0 | AP25: 0 | AR25: 343069.2719 | AT25: 29 | AU25: =VLOOKUP(AT25,'AGS FinanzierungVL2'!$M$8:$P$64,$AU$8+1,0) -> 0.11 | AW25: 0.11 | AX25: =Ausweis!H18 -> 0 | AY25: 0 | AZ25: 0 | BB25: 62 | BC25: 336599.85 | BE25: 95000 | BF25: =VLOOKUP(Ausweis!$H$5,Zinsen!$F$10:$G$56,2,)*1/2*Ausweis!$H$14 -> 14340 | BG25: =MIN(BE25-BF25,11/2*VLOOKUP(Ausweis!$H$5,Zinsen!$F$10:$G$56,2,1)) -> 80660 | BH25: =MAX(MIN(BE25,12*VLOOKUP(Ausweis!$H$5,Zinsen!$F$10:$G$56,2,1))-4*VLOOKUP(Ausweis!$H$5,Zinsen!$F$10:$G$56,2,1),0)*0 -> 0
B26: 1972 | C26: 2035 | D26: 63 | E26: 12 | F26: =MONTH(Ausweis!$H$10) -> 9 | G26: 9 | H26: 0.2815 | I26: 80660 | J26: 369205.7546 | K26: 362671.65 | L26: 362671.65 | M26: 0 | N26: 0 | O26: 0 | P26: 362671.65 | Q26: =VLOOKUP(C26,Zinsen!$C$9:$E$73,2,1) -> 0.01 | R26: 17081.85 | S26: 1423 | T26: 0.0471 | U26: =VLOOKUP(B26,UWS!$A$3:$P$84,11,1)+($U$9-$AB$9)*0.15% -> 0.0396 | V26: =VLOOKUP(B26,UWS!$A$3:$P$84,11,1)+($V$9-$AB$9)*0.15% -> 0.0411 | W26: =VLOOKUP(B26,UWS!$A$3:$P$84,11,1)+($W$9-$AB$9)*0.15% -> 0.0426 | X26: =VLOOKUP(B26,UWS!$A$3:$P$84,11,1)+($X$9-$AB$9)*0.15% -> 0.0441 | Y26: =VLOOKUP(B26,UWS!$A$3:$P$84,11,1)+($Y$9-$AB$9)*0.15% -> 0.0456 | Z26: =VLOOKUP(B26,UWS!$A$3:$P$84,11,1)+($Z$9-$AB$9)*0.15% -> 0.0471 | AA26: =VLOOKUP(B26,UWS!$A$3:$P$84,11,1)+($AA$9-$AB$9)*0.15% -> 0.0486 | AB26: =VLOOKUP(B26,UWS!$A$3:$P$84,11,1) -> 0.0501 | AC26: =VLOOKUP(B26,UWS!$A$3:$P$84,11,1)+($AC$9-$AB$9)*0.15% -> 0.0516 | AD26: =VLOOKUP(B26,UWS!$A$3:$P$84,11,1)+($AD$9-$AB$9)*0.15% -> 0.0531 | AE26: =VLOOKUP(B26,UWS!$A$3:$P$84,11,1)+($AE$9-$AB$9)*0.15% -> 0.0546 | AF26: =VLOOKUP(B26,UWS!$A$3:$P$84,11,1)+($AF$9-$AB$9)*0.15% -> 0.0561 | AG26: =VLOOKUP(B26,UWS!$A$3:$P$84,11,1)+($AG$9-$AB$9)*0.15% -> 0.0576 | AK26: 30 | AL26: =VLOOKUP(AK26,'AGS Finanzierung'!$M$8:$P$64,$AL$8+1,0) -> 0.1025 | AN26: 0.11 | AO26: =Ausweis!$H$18 -> 0 | AP26: 0 | AR26: 369205.7546 | AT26: 30 | AU26: =VLOOKUP(AT26,'AGS FinanzierungVL2'!$M$8:$P$64,$AU$8+1,0) -> 0.11 | AW26: 0.11 | AX26: =Ausweis!H18 -> 0 | AY26: 0 | AZ26: 0 | BB26: 63 | BC26: 362671.65 | BE26: 95000 | BF26: =VLOOKUP(Ausweis!$H$5,Zinsen!$F$10:$G$56,2,)*1/2*Ausweis!$H$14 -> 14340 | BG26: =MIN(BE26-BF26,11/2*VLOOKUP(Ausweis!$H$5,Zinsen!$F$10:$G$56,2,1)) -> 80660 | BH26: =MAX(MIN(BE26,12*VLOOKUP(Ausweis!$H$5,Zinsen!$F$10:$G$56,2,1))-4*VLOOKUP(Ausweis!$H$5,Zinsen!$F$10:$G$56,2,1),0)*0 -> 0
B27: 1972 | C27: 2036 | D27: 64 | E27: 12 | F27: =MONTH(Ausweis!$H$10) -> 9 | G27: 9 | H27: 0.2815 | I27: 80660 | J27: 395603.6022 | K27: 389004.15 | L27: 389004.15 | M27: 0 | N27: 0 | O27: 0 | P27: 389004.15 | Q27: =VLOOKUP(C27,Zinsen!$C$9:$E$73,2,1) -> 0.01 | R27: 18905.6 | S27: 1575 | T27: 0.0486 | U27: =VLOOKUP(B27,UWS!$A$3:$P$84,11,1)+($U$9-$AB$9)*0.15% -> 0.0396 | V27: =VLOOKUP(B27,UWS!$A$3:$P$84,11,1)+($V$9-$AB$9)*0.15% -> 0.0411 | W27: =VLOOKUP(B27,UWS!$A$3:$P$84,11,1)+($W$9-$AB$9)*0.15% -> 0.0426 | X27: =VLOOKUP(B27,UWS!$A$3:$P$84,11,1)+($X$9-$AB$9)*0.15% -> 0.0441 | Y27: =VLOOKUP(B27,UWS!$A$3:$P$84,11,1)+($Y$9-$AB$9)*0.15% -> 0.0456 | Z27: =VLOOKUP(B27,UWS!$A$3:$P$84,11,1)+($Z$9-$AB$9)*0.15% -> 0.0471 | AA27: =VLOOKUP(B27,UWS!$A$3:$P$84,11,1)+($AA$9-$AB$9)*0.15% -> 0.0486 | AB27: =VLOOKUP(B27,UWS!$A$3:$P$84,11,1) -> 0.0501 | AC27: =VLOOKUP(B27,UWS!$A$3:$P$84,11,1)+($AC$9-$AB$9)*0.15% -> 0.0516 | AD27: =VLOOKUP(B27,UWS!$A$3:$P$84,11,1)+($AD$9-$AB$9)*0.15% -> 0.0531 | AE27: =VLOOKUP(B27,UWS!$A$3:$P$84,11,1)+($AE$9-$AB$9)*0.15% -> 0.0546 | AF27: =VLOOKUP(B27,UWS!$A$3:$P$84,11,1)+($AF$9-$AB$9)*0.15% -> 0.0561 | AG27: =VLOOKUP(B27,UWS!$A$3:$P$84,11,1)+($AG$9-$AB$9)*0.15% -> 0.0576 | AK27: 31 | AL27: =VLOOKUP(AK27,'AGS Finanzierung'!$M$8:$P$64,$AL$8+1,0) -> 0.1025 | AN27: 0.11 | AO27: =Ausweis!$H$18 -> 0 | AP27: 0 | AR27: 395603.6022 | AT27: 31 | AU27: =VLOOKUP(AT27,'AGS FinanzierungVL2'!$M$8:$P$64,$AU$8+1,0) -> 0.11 | AW27: 0.11 | AX27: =Ausweis!H18 -> 0 | AY27: 0 | AZ27: 0 | BB27: 64 | BC27: 389004.15 | BE27: 95000 | BF27: =VLOOKUP(Ausweis!$H$5,Zinsen!$F$10:$G$56,2,)*1/2*Ausweis!$H$14 -> 14340 | BG27: =MIN(BE27-BF27,11/2*VLOOKUP(Ausweis!$H$5,Zinsen!$F$10:$G$56,2,1)) -> 80660 | BH27: =MAX(MIN(BE27,12*VLOOKUP(Ausweis!$H$5,Zinsen!$F$10:$G$56,2,1))-4*VLOOKUP(Ausweis!$H$5,Zinsen!$F$10:$G$56,2,1),0)*0 -> 0
B28: 1972 | C28: 2037 | D28: 65 | E28: 12 | F28: =MONTH(Ausweis!$H$10) -> 9 | G28: 9 | H28: 0.2815 | I28: 80660 | J28: 422265.4282 | K28: 415599.95 | L28: 415599.95 | M28: 0 | N28: 0 | O28: 0 | P28: 415599.95 | Q28: =VLOOKUP(C28,Zinsen!$C$9:$E$73,2,1) -> 0.01 | R28: 20821.55 | S28: 1735 | T28: 0.0501 | U28: =VLOOKUP(B28,UWS!$A$3:$P$84,11,1)+($U$9-$AB$9)*0.15% -> 0.0396 | V28: =VLOOKUP(B28,UWS!$A$3:$P$84,11,1)+($V$9-$AB$9)*0.15% -> 0.0411 | W28: =VLOOKUP(B28,UWS!$A$3:$P$84,11,1)+($W$9-$AB$9)*0.15% -> 0.0426 | X28: =VLOOKUP(B28,UWS!$A$3:$P$84,11,1)+($X$9-$AB$9)*0.15% -> 0.0441 | Y28: =VLOOKUP(B28,UWS!$A$3:$P$84,11,1)+($Y$9-$AB$9)*0.15% -> 0.0456 | Z28: =VLOOKUP(B28,UWS!$A$3:$P$84,11,1)+($Z$9-$AB$9)*0.15% -> 0.0471 | AA28: =VLOOKUP(B28,UWS!$A$3:$P$84,11,1)+($AA$9-$AB$9)*0.15% -> 0.0486 | AB28: =VLOOKUP(B28,UWS!$A$3:$P$84,11,1) -> 0.0501 | AC28: =VLOOKUP(B28,UWS!$A$3:$P$84,11,1)+($AC$9-$AB$9)*0.15% -> 0.0516 | AD28: =VLOOKUP(B28,UWS!$A$3:$P$84,11,1)+($AD$9-$AB$9)*0.15% -> 0.0531 | AE28: =VLOOKUP(B28,UWS!$A$3:$P$84,11,1)+($AE$9-$AB$9)*0.15% -> 0.0546 | AF28: =VLOOKUP(B28,UWS!$A$3:$P$84,11,1)+($AF$9-$AB$9)*0.15% -> 0.0561 | AG28: =VLOOKUP(B28,UWS!$A$3:$P$84,11,1)+($AG$9-$AB$9)*0.15% -> 0.0576 | AK28: 32 | AL28: =VLOOKUP(AK28,'AGS Finanzierung'!$M$8:$P$64,$AL$8+1,0) -> 0.1025 | AN28: 0.11 | AO28: =Ausweis!$H$18 -> 0 | AP28: 0 | AR28: 422265.4282 | AT28: 32 | AU28: =VLOOKUP(AT28,'AGS FinanzierungVL2'!$M$8:$P$64,$AU$8+1,0) -> 0.11 | AW28: 0.11 | AX28: =Ausweis!H18 -> 0 | AY28: 0 | AZ28: 0 | BB28: 65 | BC28: 415599.95 | BE28: 95000 | BF28: =VLOOKUP(Ausweis!$H$5,Zinsen!$F$10:$G$56,2,)*1/2*Ausweis!$H$14 -> 14340 | BG28: =MIN(BE28-BF28,11/2*VLOOKUP(Ausweis!$H$5,Zinsen!$F$10:$G$56,2,1)) -> 80660 | BH28: =MAX(MIN(BE28,12*VLOOKUP(Ausweis!$H$5,Zinsen!$F$10:$G$56,2,1))-4*VLOOKUP(Ausweis!$H$5,Zinsen!$F$10:$G$56,2,1),0)*0 -> 0
B29: 1972 | C29: 2038 | D29: 66 | E29: 12 | F29: =MONTH(Ausweis!$H$10) -> 9 | G29: 9 | H29: 0.2815 | I29: 80660 | J29: 449193.8725 | K29: 442461.75 | L29: 442461.75 | M29: 0 | N29: 0 | O29: 0 | P29: 442461.75 | Q29: =VLOOKUP(C29,Zinsen!$C$9:$E$73,2,1) -> 0.01 | R29: 22831.05 | S29: 1903 | T29: 0.0516 | U29: =VLOOKUP(B29,UWS!$A$3:$P$84,11,1)+($U$9-$AB$9)*0.15% -> 0.0396 | V29: =VLOOKUP(B29,UWS!$A$3:$P$84,11,1)+($V$9-$AB$9)*0.15% -> 0.0411 | W29: =VLOOKUP(B29,UWS!$A$3:$P$84,11,1)+($W$9-$AB$9)*0.15% -> 0.0426 | X29: =VLOOKUP(B29,UWS!$A$3:$P$84,11,1)+($X$9-$AB$9)*0.15% -> 0.0441 | Y29: =VLOOKUP(B29,UWS!$A$3:$P$84,11,1)+($Y$9-$AB$9)*0.15% -> 0.0456 | Z29: =VLOOKUP(B29,UWS!$A$3:$P$84,11,1)+($Z$9-$AB$9)*0.15% -> 0.0471 | AA29: =VLOOKUP(B29,UWS!$A$3:$P$84,11,1)+($AA$9-$AB$9)*0.15% -> 0.0486 | AB29: =VLOOKUP(B29,UWS!$A$3:$P$84,11,1) -> 0.0501 | AC29: =VLOOKUP(B29,UWS!$A$3:$P$84,11,1)+($AC$9-$AB$9)*0.15% -> 0.0516 | AD29: =VLOOKUP(B29,UWS!$A$3:$P$84,11,1)+($AD$9-$AB$9)*0.15% -> 0.0531 | AE29: =VLOOKUP(B29,UWS!$A$3:$P$84,11,1)+($AE$9-$AB$9)*0.15% -> 0.0546 | AF29: =VLOOKUP(B29,UWS!$A$3:$P$84,11,1)+($AF$9-$AB$9)*0.15% -> 0.0561 | AG29: =VLOOKUP(B29,UWS!$A$3:$P$84,11,1)+($AG$9-$AB$9)*0.15% -> 0.0576 | AK29: 33 | AL29: =VLOOKUP(AK29,'AGS Finanzierung'!$M$8:$P$64,$AL$8+1,0) -> 0.1025 | AN29: 0 | AO29: =Ausweis!$H$18 -> 0 | AP29: 0 | AR29: 449193.8725 | AT29: 33 | AU29: =VLOOKUP(AT29,'AGS FinanzierungVL2'!$M$8:$P$64,$AU$8+1,0) -> 0.11 | AW29: 0 | AX29: =Ausweis!H18 -> 0 | AY29: 0 | AZ29: 0 | BB29: 66 | BC29: 442461.75 | BE29: 95000 | BF29: =VLOOKUP(Ausweis!$H$5,Zinsen!$F$10:$G$56,2,)*1/2*Ausweis!$H$14 -> 14340 | BG29: =MIN(BE29-BF29,11/2*VLOOKUP(Ausweis!$H$5,Zinsen!$F$10:$G$56,2,1)) -> 80660 | BH29: =MAX(MIN(BE29,12*VLOOKUP(Ausweis!$H$5,Zinsen!$F$10:$G$56,2,1))-4*VLOOKUP(Ausweis!$H$5,Zinsen!$F$10:$G$56,2,1),0)*0 -> 0
B30: 1972 | C30: 2039 | D30: 67 | E30: 12 | F30: =MONTH(Ausweis!$H$10) -> 9 | G30: 9 | H30: 0.2815 | I30: 80660 | J30: 476391.6012 | K30: 469592.15 | L30: 469592.15 | M30: 0 | N30: 0 | O30: 0 | P30: 469592.15 | Q30: =VLOOKUP(C30,Zinsen!$C$9:$E$73,2,1) -> 0.01 | R30: 24935.35 | S30: 2078 | T30: 0.0531 | U30: =VLOOKUP(B30,UWS!$A$3:$P$84,11,1)+($U$9-$AB$9)*0.15% -> 0.0396 | V30: =VLOOKUP(B30,UWS!$A$3:$P$84,11,1)+($V$9-$AB$9)*0.15% -> 0.0411 | W30: =VLOOKUP(B30,UWS!$A$3:$P$84,11,1)+($W$9-$AB$9)*0.15% -> 0.0426 | X30: =VLOOKUP(B30,UWS!$A$3:$P$84,11,1)+($X$9-$AB$9)*0.15% -> 0.0441 | Y30: =VLOOKUP(B30,UWS!$A$3:$P$84,11,1)+($Y$9-$AB$9)*0.15% -> 0.0456 | Z30: =VLOOKUP(B30,UWS!$A$3:$P$84,11,1)+($Z$9-$AB$9)*0.15% -> 0.0471 | AA30: =VLOOKUP(B30,UWS!$A$3:$P$84,11,1)+($AA$9-$AB$9)*0.15% -> 0.0486 | AB30: =VLOOKUP(B30,UWS!$A$3:$P$84,11,1) -> 0.0501 | AC30: =VLOOKUP(B30,UWS!$A$3:$P$84,11,1)+($AC$9-$AB$9)*0.15% -> 0.0516 | AD30: =VLOOKUP(B30,UWS!$A$3:$P$84,11,1)+($AD$9-$AB$9)*0.15% -> 0.0531 | AE30: =VLOOKUP(B30,UWS!$A$3:$P$84,11,1)+($AE$9-$AB$9)*0.15% -> 0.0546 | AF30: =VLOOKUP(B30,UWS!$A$3:$P$84,11,1)+($AF$9-$AB$9)*0.15% -> 0.0561 | AG30: =VLOOKUP(B30,UWS!$A$3:$P$84,11,1)+($AG$9-$AB$9)*0.15% -> 0.0576 | AK30: 34 | AL30: =VLOOKUP(AK30,'AGS Finanzierung'!$M$8:$P$64,$AL$8+1,0) -> 0.1025 | AN30: 0 | AO30: =Ausweis!$H$18 -> 0 | AP30: 0 | AR30: 476391.6012 | AT30: 34 | AU30: =VLOOKUP(AT30,'AGS FinanzierungVL2'!$M$8:$P$64,$AU$8+1,0) -> 0.11 | AW30: 0 | AX30: =Ausweis!H18 -> 0 | AY30: 0 | AZ30: 0 | BB30: 67 | BC30: 469592.15 | BE30: 95000 | BF30: =VLOOKUP(Ausweis!$H$5,Zinsen!$F$10:$G$56,2,)*1/2*Ausweis!$H$14 -> 14340 | BG30: =MIN(BE30-BF30,11/2*VLOOKUP(Ausweis!$H$5,Zinsen!$F$10:$G$56,2,1)) -> 80660 | BH30: =MAX(MIN(BE30,12*VLOOKUP(Ausweis!$H$5,Zinsen!$F$10:$G$56,2,1))-4*VLOOKUP(Ausweis!$H$5,Zinsen!$F$10:$G$56,2,1),0)*0 -> 0
B31: 1972 | C31: 2040 | D31: 68 | E31: 12 | F31: =MONTH(Ausweis!$H$10) -> 9 | G31: 9 | H31: 0.2815 | I31: 80660 | J31: 503861.3072 | K31: 496993.9 | L31: 496993.9 | M31: 0 | N31: 0 | O31: 0 | P31: 496993.9 | Q31: =VLOOKUP(C31,Zinsen!$C$9:$E$73,2,1) -> 0.01 | R31: 27135.85 | S31: 2261 | T31: 0.0546 | U31: =VLOOKUP(B31,UWS!$A$3:$P$84,11,1)+($U$9-$AB$9)*0.15% -> 0.0396 | V31: =VLOOKUP(B31,UWS!$A$3:$P$84,11,1)+($V$9-$AB$9)*0.15% -> 0.0411 | W31: =VLOOKUP(B31,UWS!$A$3:$P$84,11,1)+($W$9-$AB$9)*0.15% -> 0.0426 | X31: =VLOOKUP(B31,UWS!$A$3:$P$84,11,1)+($X$9-$AB$9)*0.15% -> 0.0441 | Y31: =VLOOKUP(B31,UWS!$A$3:$P$84,11,1)+($Y$9-$AB$9)*0.15% -> 0.0456 | Z31: =VLOOKUP(B31,UWS!$A$3:$P$84,11,1)+($Z$9-$AB$9)*0.15% -> 0.0471 | AA31: =VLOOKUP(B31,UWS!$A$3:$P$84,11,1)+($AA$9-$AB$9)*0.15% -> 0.0486 | AB31: =VLOOKUP(B31,UWS!$A$3:$P$84,11,1) -> 0.0501 | AC31: =VLOOKUP(B31,UWS!$A$3:$P$84,11,1)+($AC$9-$AB$9)*0.15% -> 0.0516 | AD31: =VLOOKUP(B31,UWS!$A$3:$P$84,11,1)+($AD$9-$AB$9)*0.15% -> 0.0531 | AE31: =VLOOKUP(B31,UWS!$A$3:$P$84,11,1)+($AE$9-$AB$9)*0.15% -> 0.0546 | AF31: =VLOOKUP(B31,UWS!$A$3:$P$84,11,1)+($AF$9-$AB$9)*0.15% -> 0.0561 | AG31: =VLOOKUP(B31,UWS!$A$3:$P$84,11,1)+($AG$9-$AB$9)*0.15% -> 0.0576 | AK31: 35 | AL31: =VLOOKUP(AK31,'AGS Finanzierung'!$M$8:$P$64,$AL$8+1,0) -> 0.1325 | AN31: 0 | AO31: =Ausweis!$H$18 -> 0 | AP31: 0 | AR31: 503861.3072 | AT31: 35 | AU31: =VLOOKUP(AT31,'AGS FinanzierungVL2'!$M$8:$P$64,$AU$8+1,0) -> 0.11 | AW31: 0 | AX31: =Ausweis!H18 -> 0 | AY31: 0 | AZ31: 0 | BB31: 68 | BC31: 496993.9 | BE31: 95000 | BF31: =VLOOKUP(Ausweis!$H$5,Zinsen!$F$10:$G$56,2,)*1/2*Ausweis!$H$14 -> 14340 | BG31: =MIN(BE31-BF31,11/2*VLOOKUP(Ausweis!$H$5,Zinsen!$F$10:$G$56,2,1)) -> 80660 | BH31: =MAX(MIN(BE31,12*VLOOKUP(Ausweis!$H$5,Zinsen!$F$10:$G$56,2,1))-4*VLOOKUP(Ausweis!$H$5,Zinsen!$F$10:$G$56,2,1),0)*0 -> 0
B32: 1972 | C32: 2041 | D32: 69 | E32: 12 | F32: =MONTH(Ausweis!$H$10) -> 9 | G32: 9 | H32: 0.2815 | I32: 80660 | J32: 531605.7103 | K32: 524669.6 | L32: 524669.6 | M32: 0 | N32: 0 | O32: 0 | P32: 524669.6 | Q32: =VLOOKUP(C32,Zinsen!$C$9:$E$73,2,1) -> 0.01 | R32: 29433.95 | S32: 2453 | T32: 0.0561 | U32: =VLOOKUP(B32,UWS!$A$3:$P$84,11,1)+($U$9-$AB$9)*0.15% -> 0.0396 | V32: =VLOOKUP(B32,UWS!$A$3:$P$84,11,1)+($V$9-$AB$9)*0.15% -> 0.0411 | W32: =VLOOKUP(B32,UWS!$A$3:$P$84,11,1)+($W$9-$AB$9)*0.15% -> 0.0426 | X32: =VLOOKUP(B32,UWS!$A$3:$P$84,11,1)+($X$9-$AB$9)*0.15% -> 0.0441 | Y32: =VLOOKUP(B32,UWS!$A$3:$P$84,11,1)+($Y$9-$AB$9)*0.15% -> 0.0456 | Z32: =VLOOKUP(B32,UWS!$A$3:$P$84,11,1)+($Z$9-$AB$9)*0.15% -> 0.0471 | AA32: =VLOOKUP(B32,UWS!$A$3:$P$84,11,1)+($AA$9-$AB$9)*0.15% -> 0.0486 | AB32: =VLOOKUP(B32,UWS!$A$3:$P$84,11,1) -> 0.0501 | AC32: =VLOOKUP(B32,UWS!$A$3:$P$84,11,1)+($AC$9-$AB$9)*0.15% -> 0.0516 | AD32: =VLOOKUP(B32,UWS!$A$3:$P$84,11,1)+($AD$9-$AB$9)*0.15% -> 0.0531 | AE32: =VLOOKUP(B32,UWS!$A$3:$P$84,11,1)+($AE$9-$AB$9)*0.15% -> 0.0546 | AF32: =VLOOKUP(B32,UWS!$A$3:$P$84,11,1)+($AF$9-$AB$9)*0.15% -> 0.0561 | AG32: =VLOOKUP(B32,UWS!$A$3:$P$84,11,1)+($AG$9-$AB$9)*0.15% -> 0.0576 | AK32: 36 | AL32: =VLOOKUP(AK32,'AGS Finanzierung'!$M$8:$P$64,$AL$8+1,0) -> 0.1325 | AN32: 0 | AO32: =Ausweis!$H$18 -> 0 | AP32: 0 | AR32: 531605.7103 | AT32: 36 | AU32: =VLOOKUP(AT32,'AGS FinanzierungVL2'!$M$8:$P$64,$AU$8+1,0) -> 0.11 | AW32: 0 | AX32: =Ausweis!H18 -> 0 | AY32: 0 | AZ32: 0 | BB32: 69 | BC32: 524669.6 | BE32: 95000 | BF32: =VLOOKUP(Ausweis!$H$5,Zinsen!$F$10:$G$56,2,)*1/2*Ausweis!$H$14 -> 14340 | BG32: =MIN(BE32-BF32,11/2*VLOOKUP(Ausweis!$H$5,Zinsen!$F$10:$G$56,2,1)) -> 80660 | BH32: =MAX(MIN(BE32,12*VLOOKUP(Ausweis!$H$5,Zinsen!$F$10:$G$56,2,1))-4*VLOOKUP(Ausweis!$H$5,Zinsen!$F$10:$G$56,2,1),0)*0 -> 0
B33: 1972 | C33: 2042 | D33: 70 | E33: 12 | F33: =MONTH(Ausweis!$H$10) -> 9 | G33: 9 | H33: 0.2815 | I33: 80660 | J33: 559627.5574 | K33: 552622.1 | L33: 552622.1 | M33: 0 | N33: 0 | O33: 0 | P33: 552622.1 | Q33: =VLOOKUP(C33,Zinsen!$C$9:$E$73,2,1) -> 0.01 | R33: 31831.05 | S33: 2653 | T33: 0.0576 | U33: =VLOOKUP(B33,UWS!$A$3:$P$84,11,1)+($U$9-$AB$9)*0.15% -> 0.0396 | V33: =VLOOKUP(B33,UWS!$A$3:$P$84,11,1)+($V$9-$AB$9)*0.15% -> 0.0411 | W33: =VLOOKUP(B33,UWS!$A$3:$P$84,11,1)+($W$9-$AB$9)*0.15% -> 0.0426 | X33: =VLOOKUP(B33,UWS!$A$3:$P$84,11,1)+($X$9-$AB$9)*0.15% -> 0.0441 | Y33: =VLOOKUP(B33,UWS!$A$3:$P$84,11,1)+($Y$9-$AB$9)*0.15% -> 0.0456 | Z33: =VLOOKUP(B33,UWS!$A$3:$P$84,11,1)+($Z$9-$AB$9)*0.15% -> 0.0471 | AA33: =VLOOKUP(B33,UWS!$A$3:$P$84,11,1)+($AA$9-$AB$9)*0.15% -> 0.0486 | AB33: =VLOOKUP(B33,UWS!$A$3:$P$84,11,1) -> 0.0501 | AC33: =VLOOKUP(B33,UWS!$A$3:$P$84,11,1)+($AC$9-$AB$9)*0.15% -> 0.0516 | AD33: =VLOOKUP(B33,UWS!$A$3:$P$84,11,1)+($AD$9-$AB$9)*0.15% -> 0.0531 | AE33: =VLOOKUP(B33,UWS!$A$3:$P$84,11,1)+($AE$9-$AB$9)*0.15% -> 0.0546 | AF33: =VLOOKUP(B33,UWS!$A$3:$P$84,11,1)+($AF$9-$AB$9)*0.15% -> 0.0561 | AG33: =VLOOKUP(B33,UWS!$A$3:$P$84,11,1)+($AG$9-$AB$9)*0.15% -> 0.0576 | AK33: 37 | AL33: =VLOOKUP(AK33,'AGS Finanzierung'!$M$8:$P$64,$AL$8+1,0) -> 0.1325 | AN33: 0 | AO33: =Ausweis!$H$18 -> 0 | AP33: 0 | AR33: 559627.5574 | AT33: 37 | AU33: =VLOOKUP(AT33,'AGS FinanzierungVL2'!$M$8:$P$64,$AU$8+1,0) -> 0.11 | AW33: 0.2815 | AX33: =Ausweis!H18 -> 0 | AY33: 0 | AZ33: 0 | BB33: 70 | BC33: 552622.1 | BE33: 95000 | BF33: =VLOOKUP(Ausweis!$H$5,Zinsen!$F$10:$G$56,2,)*1/2*Ausweis!$H$14 -> 14340 | BG33: =MIN(BE33-BF33,11/2*VLOOKUP(Ausweis!$H$5,Zinsen!$F$10:$G$56,2,1)) -> 80660 | BH33: =MAX(MIN(BE33,12*VLOOKUP(Ausweis!$H$5,Zinsen!$F$10:$G$56,2,1))-4*VLOOKUP(Ausweis!$H$5,Zinsen!$F$10:$G$56,2,1),0)*0 -> 0
B34: 1972 | C34: 2043 | D34: 71 | E34: 12 | F34: =MONTH(Ausweis!$H$10) -> 9 | G34: 9 | H34: 0.2815 | I34: 80660 | J34: 587929.623 | K34: 580854.1 | L34: 580854.1 | M34: 0 | N34: 0 | O34: 0 | P34: 580854.1 | Q34: =VLOOKUP(C34,Zinsen!$C$9:$E$73,2,1) -> 0.01 | R34: 33457.2 | S34: 2788 | T34: 0.0576 | U34: =VLOOKUP(B34,UWS!$A$3:$P$84,11,1)+($U$9-$AB$9)*0.15% -> 0.0396 | V34: =VLOOKUP(B34,UWS!$A$3:$P$84,11,1)+($V$9-$AB$9)*0.15% -> 0.0411 | W34: =VLOOKUP(B34,UWS!$A$3:$P$84,11,1)+($W$9-$AB$9)*0.15% -> 0.0426 | X34: =VLOOKUP(B34,UWS!$A$3:$P$84,11,1)+($X$9-$AB$9)*0.15% -> 0.0441 | Y34: =VLOOKUP(B34,UWS!$A$3:$P$84,11,1)+($Y$9-$AB$9)*0.15% -> 0.0456 | Z34: =VLOOKUP(B34,UWS!$A$3:$P$84,11,1)+($Z$9-$AB$9)*0.15% -> 0.0471 | AA34: =VLOOKUP(B34,UWS!$A$3:$P$84,11,1)+($AA$9-$AB$9)*0.15% -> 0.0486 | AB34: =VLOOKUP(B34,UWS!$A$3:$P$84,11,1) -> 0.0501 | AC34: =VLOOKUP(B34,UWS!$A$3:$P$84,11,1)+($AC$9-$AB$9)*0.15% -> 0.0516 | AD34: =VLOOKUP(B34,UWS!$A$3:$P$84,11,1)+($AD$9-$AB$9)*0.15% -> 0.0531 | AE34: =VLOOKUP(B34,UWS!$A$3:$P$84,11,1)+($AE$9-$AB$9)*0.15% -> 0.0546 | AF34: =VLOOKUP(B34,UWS!$A$3:$P$84,11,1)+($AF$9-$AB$9)*0.15% -> 0.0561 | AG34: =VLOOKUP(B34,UWS!$A$3:$P$84,11,1)+($AG$9-$AB$9)*0.15% -> 0.0576 | AK34: 38 | AL34: =VLOOKUP(AK34,'AGS Finanzierung'!$M$8:$P$64,$AL$8+1,0) -> 0.1325 | AN34: 0 | AO34: =Ausweis!$H$18 -> 0 | AP34: 0 | AR34: 587929.623 | AT34: 38 | AU34: =VLOOKUP(AT34,'AGS FinanzierungVL2'!$M$8:$P$64,$AU$8+1,0) -> 0.11 | AW34: 0.2815 | AX34: =Ausweis!H18 -> 0 | AY34: 0 | AZ34: 0 | BB34: 71 | BC34: 580854.1 | BE34: 95000 | BF34: =VLOOKUP(Ausweis!$H$5,Zinsen!$F$10:$G$56,2,)*1/2*Ausweis!$H$14 -> 14340 | BG34: =MIN(BE34-BF34,11/2*VLOOKUP(Ausweis!$H$5,Zinsen!$F$10:$G$56,2,1)) -> 80660 | BH34: =MAX(MIN(BE34,12*VLOOKUP(Ausweis!$H$5,Zinsen!$F$10:$G$56,2,1))-4*VLOOKUP(Ausweis!$H$5,Zinsen!$F$10:$G$56,2,1),0)*0 -> 0
B35: 1972 | C35: 2044 | D35: 72 | E35: 12 | F35: =MONTH(Ausweis!$H$10) -> 9 | G35: 9 | H35: 0.2815 | I35: 80660 | J35: 616514.7092 | K35: 609368.45 | L35: 609368.45 | M35: 0 | N35: 0 | O35: 0 | P35: 609368.45 | Q35: =VLOOKUP(C35,Zinsen!$C$9:$E$73,2,1) -> 0.01 | R35: 35099.6 | S35: 2925 | T35: 0.0576 | U35: =VLOOKUP(B35,UWS!$A$3:$P$84,11,1)+($U$9-$AB$9)*0.15% -> 0.0396 | V35: =VLOOKUP(B35,UWS!$A$3:$P$84,11,1)+($V$9-$AB$9)*0.15% -> 0.0411 | W35: =VLOOKUP(B35,UWS!$A$3:$P$84,11,1)+($W$9-$AB$9)*0.15% -> 0.0426 | X35: =VLOOKUP(B35,UWS!$A$3:$P$84,11,1)+($X$9-$AB$9)*0.15% -> 0.0441 | Y35: =VLOOKUP(B35,UWS!$A$3:$P$84,11,1)+($Y$9-$AB$9)*0.15% -> 0.0456 | Z35: =VLOOKUP(B35,UWS!$A$3:$P$84,11,1)+($Z$9-$AB$9)*0.15% -> 0.0471 | AA35: =VLOOKUP(B35,UWS!$A$3:$P$84,11,1)+($AA$9-$AB$9)*0.15% -> 0.0486 | AB35: =VLOOKUP(B35,UWS!$A$3:$P$84,11,1) -> 0.0501 | AC35: =VLOOKUP(B35,UWS!$A$3:$P$84,11,1)+($AC$9-$AB$9)*0.15% -> 0.0516 | AD35: =VLOOKUP(B35,UWS!$A$3:$P$84,11,1)+($AD$9-$AB$9)*0.15% -> 0.0531 | AE35: =VLOOKUP(B35,UWS!$A$3:$P$84,11,1)+($AE$9-$AB$9)*0.15% -> 0.0546 | AF35: =VLOOKUP(B35,UWS!$A$3:$P$84,11,1)+($AF$9-$AB$9)*0.15% -> 0.0561 | AG35: =VLOOKUP(B35,UWS!$A$3:$P$84,11,1)+($AG$9-$AB$9)*0.15% -> 0.0576 | AK35: 39 | AL35: =VLOOKUP(AK35,'AGS Finanzierung'!$M$8:$P$64,$AL$8+1,0) -> 0.1325 | AN35: 0 | AO35: =Ausweis!$H$18 -> 0 | AP35: 0 | AR35: 616514.7092 | AT35: 39 | AU35: =VLOOKUP(AT35,'AGS FinanzierungVL2'!$M$8:$P$64,$AU$8+1,0) -> 0.11 | AW35: 0.2815 | AX35: =Ausweis!H18 -> 0 | AY35: 0 | AZ35: 0 | BB35: 72 | BC35: 609368.45 | BE35: 95000 | BF35: =VLOOKUP(Ausweis!$H$5,Zinsen!$F$10:$G$56,2,)*1/2*Ausweis!$H$14 -> 14340 | BG35: =MIN(BE35-BF35,11/2*VLOOKUP(Ausweis!$H$5,Zinsen!$F$10:$G$56,2,1)) -> 80660 | BH35: =MAX(MIN(BE35,12*VLOOKUP(Ausweis!$H$5,Zinsen!$F$10:$G$56,2,1))-4*VLOOKUP(Ausweis!$H$5,Zinsen!$F$10:$G$56,2,1),0)*0 -> 0
B36: 1972 | C36: 2045 | D36: 73 | E36: 12 | F36: =MONTH(Ausweis!$H$10) -> 9 | G36: 9 | H36: 0.2815 | I36: 80660 | J36: 645385.6463 | K36: 638167.9 | L36: 638167.9 | M36: 0 | N36: 0 | O36: 0 | P36: 638167.9 | Q36: =VLOOKUP(C36,Zinsen!$C$9:$E$73,2,1) -> 0.01 | R36: 36758.45 | S36: 3063 | T36: 0.0576 | U36: =VLOOKUP(B36,UWS!$A$3:$P$84,11,1)+($U$9-$AB$9)*0.15% -> 0.0396 | V36: =VLOOKUP(B36,UWS!$A$3:$P$84,11,1)+($V$9-$AB$9)*0.15% -> 0.0411 | W36: =VLOOKUP(B36,UWS!$A$3:$P$84,11,1)+($W$9-$AB$9)*0.15% -> 0.0426 | X36: =VLOOKUP(B36,UWS!$A$3:$P$84,11,1)+($X$9-$AB$9)*0.15% -> 0.0441 | Y36: =VLOOKUP(B36,UWS!$A$3:$P$84,11,1)+($Y$9-$AB$9)*0.15% -> 0.0456 | Z36: =VLOOKUP(B36,UWS!$A$3:$P$84,11,1)+($Z$9-$AB$9)*0.15% -> 0.0471 | AA36: =VLOOKUP(B36,UWS!$A$3:$P$84,11,1)+($AA$9-$AB$9)*0.15% -> 0.0486 | AB36: =VLOOKUP(B36,UWS!$A$3:$P$84,11,1) -> 0.0501 | AC36: =VLOOKUP(B36,UWS!$A$3:$P$84,11,1)+($AC$9-$AB$9)*0.15% -> 0.0516 | AD36: =VLOOKUP(B36,UWS!$A$3:$P$84,11,1)+($AD$9-$AB$9)*0.15% -> 0.0531 | AE36: =VLOOKUP(B36,UWS!$A$3:$P$84,11,1)+($AE$9-$AB$9)*0.15% -> 0.0546 | AF36: =VLOOKUP(B36,UWS!$A$3:$P$84,11,1)+($AF$9-$AB$9)*0.15% -> 0.0561 | AG36: =VLOOKUP(B36,UWS!$A$3:$P$84,11,1)+($AG$9-$AB$9)*0.15% -> 0.0576 | AK36: 40 | AL36: =VLOOKUP(AK36,'AGS Finanzierung'!$M$8:$P$64,$AL$8+1,0) -> 0.1325 | AN36: 0 | AO36: =Ausweis!$H$18 -> 0 | AP36: 0 | AR36: 645385.6463 | AT36: 40 | AU36: =VLOOKUP(AT36,'AGS FinanzierungVL2'!$M$8:$P$64,$AU$8+1,0) -> 0.11 | AW36: 0.2815 | AX36: =Ausweis!H18 -> 0 | AY36: 0 | AZ36: 0 | BB36: 73 | BC36: 638167.9 | BE36: 95000 | BF36: =VLOOKUP(Ausweis!$H$5,Zinsen!$F$10:$G$56,2,)*1/2*Ausweis!$H$14 -> 14340 | BG36: =MIN(BE36-BF36,11/2*VLOOKUP(Ausweis!$H$5,Zinsen!$F$10:$G$56,2,1)) -> 80660 | BH36: =MAX(MIN(BE36,12*VLOOKUP(Ausweis!$H$5,Zinsen!$F$10:$G$56,2,1))-4*VLOOKUP(Ausweis!$H$5,Zinsen!$F$10:$G$56,2,1),0)*0 -> 0
B37: 1972 | C37: 2046 | D37: 74 | E37: 12 | F37: =MONTH(Ausweis!$H$10) -> 9 | G37: 9 | H37: 0.2815 | I37: 80660 | J37: 674545.2927 | K37: 667255.4 | L37: 667255.4 | M37: 0 | N37: 0 | O37: 0 | P37: 667255.4 | Q37: =VLOOKUP(C37,Zinsen!$C$9:$E$73,2,1) -> 0.01 | R37: 38433.9 | S37: 3203 | T37: 0.0576 | U37: =VLOOKUP(B37,UWS!$A$3:$P$84,11,1)+($U$9-$AB$9)*0.15% -> 0.0396 | V37: =VLOOKUP(B37,UWS!$A$3:$P$84,11,1)+($V$9-$AB$9)*0.15% -> 0.0411 | W37: =VLOOKUP(B37,UWS!$A$3:$P$84,11,1)+($W$9-$AB$9)*0.15% -> 0.0426 | X37: =VLOOKUP(B37,UWS!$A$3:$P$84,11,1)+($X$9-$AB$9)*0.15% -> 0.0441 | Y37: =VLOOKUP(B37,UWS!$A$3:$P$84,11,1)+($Y$9-$AB$9)*0.15% -> 0.0456 | Z37: =VLOOKUP(B37,UWS!$A$3:$P$84,11,1)+($Z$9-$AB$9)*0.15% -> 0.0471 | AA37: =VLOOKUP(B37,UWS!$A$3:$P$84,11,1)+($AA$9-$AB$9)*0.15% -> 0.0486 | AB37: =VLOOKUP(B37,UWS!$A$3:$P$84,11,1) -> 0.0501 | AC37: =VLOOKUP(B37,UWS!$A$3:$P$84,11,1)+($AC$9-$AB$9)*0.15% -> 0.0516 | AD37: =VLOOKUP(B37,UWS!$A$3:$P$84,11,1)+($AD$9-$AB$9)*0.15% -> 0.0531 | AE37: =VLOOKUP(B37,UWS!$A$3:$P$84,11,1)+($AE$9-$AB$9)*0.15% -> 0.0546 | AF37: =VLOOKUP(B37,UWS!$A$3:$P$84,11,1)+($AF$9-$AB$9)*0.15% -> 0.0561 | AG37: =VLOOKUP(B37,UWS!$A$3:$P$84,11,1)+($AG$9-$AB$9)*0.15% -> 0.0576 | AK37: 41 | AL37: =VLOOKUP(AK37,'AGS Finanzierung'!$M$8:$P$64,$AL$8+1,0) -> 0.1325 | AN37: 0 | AO37: =Ausweis!$H$18 -> 0 | AP37: 0 | AR37: 674545.2927 | AT37: 41 | AU37: =VLOOKUP(AT37,'AGS FinanzierungVL2'!$M$8:$P$64,$AU$8+1,0) -> 0.11 | AW37: 0.2815 | AX37: =Ausweis!H18 -> 0 | AY37: 0 | AZ37: 0 | BB37: 74 | BC37: 667255.4 | BE37: 95000 | BF37: =VLOOKUP(Ausweis!$H$5,Zinsen!$F$10:$G$56,2,)*1/2*Ausweis!$H$14 -> 14340 | BG37: =MIN(BE37-BF37,11/2*VLOOKUP(Ausweis!$H$5,Zinsen!$F$10:$G$56,2,1)) -> 80660 | BH37: =MAX(MIN(BE37,12*VLOOKUP(Ausweis!$H$5,Zinsen!$F$10:$G$56,2,1))-4*VLOOKUP(Ausweis!$H$5,Zinsen!$F$10:$G$56,2,1),0)*0 -> 0
B38: 1972 | C38: 2047 | D38: 75 | E38: 12 | F38: =MONTH(Ausweis!$H$10) -> 9 | G38: 9 | H38: 0.2815 | I38: 80660 | J38: 703996.5357 | K38: 696633.7 | L38: 696633.7 | M38: 0 | N38: 0 | O38: 0 | P38: 696633.7 | Q38: =VLOOKUP(C38,Zinsen!$C$9:$E$73,2,1) -> 0.01 | R38: 40126.1 | S38: 3344 | T38: 0.0576 | U38: =VLOOKUP(B38,UWS!$A$3:$P$84,11,1)+($U$9-$AB$9)*0.15% -> 0.0396 | V38: =VLOOKUP(B38,UWS!$A$3:$P$84,11,1)+($V$9-$AB$9)*0.15% -> 0.0411 | W38: =VLOOKUP(B38,UWS!$A$3:$P$84,11,1)+($W$9-$AB$9)*0.15% -> 0.0426 | X38: =VLOOKUP(B38,UWS!$A$3:$P$84,11,1)+($X$9-$AB$9)*0.15% -> 0.0441 | Y38: =VLOOKUP(B38,UWS!$A$3:$P$84,11,1)+($Y$9-$AB$9)*0.15% -> 0.0456 | Z38: =VLOOKUP(B38,UWS!$A$3:$P$84,11,1)+($Z$9-$AB$9)*0.15% -> 0.0471 | AA38: =VLOOKUP(B38,UWS!$A$3:$P$84,11,1)+($AA$9-$AB$9)*0.15% -> 0.0486 | AB38: =VLOOKUP(B38,UWS!$A$3:$P$84,11,1) -> 0.0501 | AC38: =VLOOKUP(B38,UWS!$A$3:$P$84,11,1)+($AC$9-$AB$9)*0.15% -> 0.0516 | AD38: =VLOOKUP(B38,UWS!$A$3:$P$84,11,1)+($AD$9-$AB$9)*0.15% -> 0.0531 | AE38: =VLOOKUP(B38,UWS!$A$3:$P$84,11,1)+($AE$9-$AB$9)*0.15% -> 0.0546 | AF38: =VLOOKUP(B38,UWS!$A$3:$P$84,11,1)+($AF$9-$AB$9)*0.15% -> 0.0561 | AG38: =VLOOKUP(B38,UWS!$A$3:$P$84,11,1)+($AG$9-$AB$9)*0.15% -> 0.0576 | AK38: 42 | AL38: =VLOOKUP(AK38,'AGS Finanzierung'!$M$8:$P$64,$AL$8+1,0) -> 0.1325 | AN38: 0 | AO38: =Ausweis!$H$18 -> 0 | AP38: 0 | AR38: 703996.5357 | AT38: 42 | AU38: =VLOOKUP(AT38,'AGS FinanzierungVL2'!$M$8:$P$64,$AU$8+1,0) -> 0.11 | AW38: 0.2815 | AX38: =Ausweis!H18 -> 0 | AY38: 0 | AZ38: 0 | BB38: 75 | BC38: 696633.7 | BE38: 95000 | BF38: =VLOOKUP(Ausweis!$H$5,Zinsen!$F$10:$G$56,2,)*1/2*Ausweis!$H$14 -> 14340 | BG38: =MIN(BE38-BF38,11/2*VLOOKUP(Ausweis!$H$5,Zinsen!$F$10:$G$56,2,1)) -> 80660 | BH38: =MAX(MIN(BE38,12*VLOOKUP(Ausweis!$H$5,Zinsen!$F$10:$G$56,2,1))-4*VLOOKUP(Ausweis!$H$5,Zinsen!$F$10:$G$56,2,1),0)*0 -> 0
B39: 1972 | C39: 2048 | D39: 76 | E39: 12 | F39: =MONTH(Ausweis!$H$10) -> 9 | G39: 9 | H39: 0.2815 | I39: 80660 | J39: 733742.291 | K39: 726305.85 | L39: 726305.85 | M39: 0 | N39: 0 | O39: 0 | P39: 726305.85 | Q39: =VLOOKUP(C39,Zinsen!$C$9:$E$73,2,1) -> 0.01 | R39: 41835.2 | S39: 3486 | T39: 0.0576 | U39: =VLOOKUP(B39,UWS!$A$3:$P$84,11,1)+($U$9-$AB$9)*0.15% -> 0.0396 | V39: =VLOOKUP(B39,UWS!$A$3:$P$84,11,1)+($V$9-$AB$9)*0.15% -> 0.0411 | W39: =VLOOKUP(B39,UWS!$A$3:$P$84,11,1)+($W$9-$AB$9)*0.15% -> 0.0426 | X39: =VLOOKUP(B39,UWS!$A$3:$P$84,11,1)+($X$9-$AB$9)*0.15% -> 0.0441 | Y39: =VLOOKUP(B39,UWS!$A$3:$P$84,11,1)+($Y$9-$AB$9)*0.15% -> 0.0456 | Z39: =VLOOKUP(B39,UWS!$A$3:$P$84,11,1)+($Z$9-$AB$9)*0.15% -> 0.0471 | AA39: =VLOOKUP(B39,UWS!$A$3:$P$84,11,1)+($AA$9-$AB$9)*0.15% -> 0.0486 | AB39: =VLOOKUP(B39,UWS!$A$3:$P$84,11,1) -> 0.0501 | AC39: =VLOOKUP(B39,UWS!$A$3:$P$84,11,1)+($AC$9-$AB$9)*0.15% -> 0.0516 | AD39: =VLOOKUP(B39,UWS!$A$3:$P$84,11,1)+($AD$9-$AB$9)*0.15% -> 0.0531 | AE39: =VLOOKUP(B39,UWS!$A$3:$P$84,11,1)+($AE$9-$AB$9)*0.15% -> 0.0546 | AF39: =VLOOKUP(B39,UWS!$A$3:$P$84,11,1)+($AF$9-$AB$9)*0.15% -> 0.0561 | AG39: =VLOOKUP(B39,UWS!$A$3:$P$84,11,1)+($AG$9-$AB$9)*0.15% -> 0.0576 | AK39: 43 | AL39: =VLOOKUP(AK39,'AGS Finanzierung'!$M$8:$P$64,$AL$8+1,0) -> 0.1325 | AN39: 0 | AO39: =Ausweis!$H$18 -> 0 | AP39: 0 | AR39: 733742.291 | AT39: 43 | AU39: =VLOOKUP(AT39,'AGS FinanzierungVL2'!$M$8:$P$64,$AU$8+1,0) -> 0.11 | AW39: 0.2815 | AX39: =Ausweis!H18 -> 0 | AY39: 0 | AZ39: 0 | BB39: 76 | BC39: 726305.85 | BE39: 95000 | BF39: =VLOOKUP(Ausweis!$H$5,Zinsen!$F$10:$G$56,2,)*1/2*Ausweis!$H$14 -> 14340 | BG39: =MIN(BE39-BF39,11/2*VLOOKUP(Ausweis!$H$5,Zinsen!$F$10:$G$56,2,1)) -> 80660 | BH39: =MAX(MIN(BE39,12*VLOOKUP(Ausweis!$H$5,Zinsen!$F$10:$G$56,2,1))-4*VLOOKUP(Ausweis!$H$5,Zinsen!$F$10:$G$56,2,1),0)*0 -> 0
B40: 1972 | C40: 2049 | D40: 77 | E40: 12 | F40: =MONTH(Ausweis!$H$10) -> 9 | G40: 9 | H40: 0.2815 | I40: 80660 | J40: 763785.5039 | K40: 756274.7 | L40: 756274.7 | M40: 0 | N40: 0 | O40: 0 | P40: 756274.7 | Q40: =VLOOKUP(C40,Zinsen!$C$9:$E$73,2,1) -> 0.01 | R40: 43561.4 | S40: 3630 | T40: 0.0576 | U40: =VLOOKUP(B40,UWS!$A$3:$P$84,11,1)+($U$9-$AB$9)*0.15% -> 0.0396 | V40: =VLOOKUP(B40,UWS!$A$3:$P$84,11,1)+($V$9-$AB$9)*0.15% -> 0.0411 | W40: =VLOOKUP(B40,UWS!$A$3:$P$84,11,1)+($W$9-$AB$9)*0.15% -> 0.0426 | X40: =VLOOKUP(B40,UWS!$A$3:$P$84,11,1)+($X$9-$AB$9)*0.15% -> 0.0441 | Y40: =VLOOKUP(B40,UWS!$A$3:$P$84,11,1)+($Y$9-$AB$9)*0.15% -> 0.0456 | Z40: =VLOOKUP(B40,UWS!$A$3:$P$84,11,1)+($Z$9-$AB$9)*0.15% -> 0.0471 | AA40: =VLOOKUP(B40,UWS!$A$3:$P$84,11,1)+($AA$9-$AB$9)*0.15% -> 0.0486 | AB40: =VLOOKUP(B40,UWS!$A$3:$P$84,11,1) -> 0.0501 | AC40: =VLOOKUP(B40,UWS!$A$3:$P$84,11,1)+($AC$9-$AB$9)*0.15% -> 0.0516 | AD40: =VLOOKUP(B40,UWS!$A$3:$P$84,11,1)+($AD$9-$AB$9)*0.15% -> 0.0531 | AE40: =VLOOKUP(B40,UWS!$A$3:$P$84,11,1)+($AE$9-$AB$9)*0.15% -> 0.0546 | AF40: =VLOOKUP(B40,UWS!$A$3:$P$84,11,1)+($AF$9-$AB$9)*0.15% -> 0.0561 | AG40: =VLOOKUP(B40,UWS!$A$3:$P$84,11,1)+($AG$9-$AB$9)*0.15% -> 0.0576 | AK40: 44 | AL40: =VLOOKUP(AK40,'AGS Finanzierung'!$M$8:$P$64,$AL$8+1,0) -> 0.1325 | AN40: 0 | AO40: =Ausweis!$H$18 -> 0 | AP40: 0 | AR40: 763785.5039 | AT40: 44 | AU40: =VLOOKUP(AT40,'AGS FinanzierungVL2'!$M$8:$P$64,$AU$8+1,0) -> 0.11 | AW40: 0.2815 | AX40: =Ausweis!H18 -> 0 | AY40: 0 | AZ40: 0 | BB40: 77 | BC40: 756274.7 | BE40: 95000 | BF40: =VLOOKUP(Ausweis!$H$5,Zinsen!$F$10:$G$56,2,)*1/2*Ausweis!$H$14 -> 14340 | BG40: =MIN(BE40-BF40,11/2*VLOOKUP(Ausweis!$H$5,Zinsen!$F$10:$G$56,2,1)) -> 80660 | BH40: =MAX(MIN(BE40,12*VLOOKUP(Ausweis!$H$5,Zinsen!$F$10:$G$56,2,1))-4*VLOOKUP(Ausweis!$H$5,Zinsen!$F$10:$G$56,2,1),0)*0 -> 0
B41: 1972 | C41: 2050 | D41: 78 | E41: 12 | F41: =MONTH(Ausweis!$H$10) -> 9 | G41: 9 | H41: 0.2815 | I41: 80660 | J41: 794129.149 | K41: 786543.25 | L41: 786543.25 | M41: 0 | N41: 0 | O41: 0 | P41: 786543.25 | Q41: =VLOOKUP(C41,Zinsen!$C$9:$E$73,2,1) -> 0.01 | R41: 45304.9 | S41: 3775 | T41: 0.0576 | U41: =VLOOKUP(B41,UWS!$A$3:$P$84,11,1)+($U$9-$AB$9)*0.15% -> 0.0396 | V41: =VLOOKUP(B41,UWS!$A$3:$P$84,11,1)+($V$9-$AB$9)*0.15% -> 0.0411 | W41: =VLOOKUP(B41,UWS!$A$3:$P$84,11,1)+($W$9-$AB$9)*0.15% -> 0.0426 | X41: =VLOOKUP(B41,UWS!$A$3:$P$84,11,1)+($X$9-$AB$9)*0.15% -> 0.0441 | Y41: =VLOOKUP(B41,UWS!$A$3:$P$84,11,1)+($Y$9-$AB$9)*0.15% -> 0.0456 | Z41: =VLOOKUP(B41,UWS!$A$3:$P$84,11,1)+($Z$9-$AB$9)*0.15% -> 0.0471 | AA41: =VLOOKUP(B41,UWS!$A$3:$P$84,11,1)+($AA$9-$AB$9)*0.15% -> 0.0486 | AB41: =VLOOKUP(B41,UWS!$A$3:$P$84,11,1) -> 0.0501 | AC41: =VLOOKUP(B41,UWS!$A$3:$P$84,11,1)+($AC$9-$AB$9)*0.15% -> 0.0516 | AD41: =VLOOKUP(B41,UWS!$A$3:$P$84,11,1)+($AD$9-$AB$9)*0.15% -> 0.0531 | AE41: =VLOOKUP(B41,UWS!$A$3:$P$84,11,1)+($AE$9-$AB$9)*0.15% -> 0.0546 | AF41: =VLOOKUP(B41,UWS!$A$3:$P$84,11,1)+($AF$9-$AB$9)*0.15% -> 0.0561 | AG41: =VLOOKUP(B41,UWS!$A$3:$P$84,11,1)+($AG$9-$AB$9)*0.15% -> 0.0576 | AK41: 45 | AL41: =VLOOKUP(AK41,'AGS Finanzierung'!$M$8:$P$64,$AL$8+1,0) -> 0.2215 | AN41: 0 | AO41: =Ausweis!$H$18 -> 0 | AP41: 0 | AR41: 794129.149 | AT41: 45 | AU41: =VLOOKUP(AT41,'AGS FinanzierungVL2'!$M$8:$P$64,$AU$8+1,0) -> 0.11 | AW41: 0.2815 | AX41: =Ausweis!H18 -> 0 | AY41: 0 | AZ41: 0 | BB41: 78 | BC41: 786543.25 | BE41: 95000 | BF41: =VLOOKUP(Ausweis!$H$5,Zinsen!$F$10:$G$56,2,)*1/2*Ausweis!$H$14 -> 14340 | BG41: =MIN(BE41-BF41,11/2*VLOOKUP(Ausweis!$H$5,Zinsen!$F$10:$G$56,2,1)) -> 80660 | BH41: =MAX(MIN(BE41,12*VLOOKUP(Ausweis!$H$5,Zinsen!$F$10:$G$56,2,1))-4*VLOOKUP(Ausweis!$H$5,Zinsen!$F$10:$G$56,2,1),0)*0 -> 0
B42: 1972 | C42: 2051 | D42: 79 | E42: 12 | F42: =MONTH(Ausweis!$H$10) -> 9 | G42: 9 | H42: =VLOOKUP(D42,$AK$13:$AL$66,2,1) -> 0.2815 | I42: 80660 | J42: 824776.2305 | K42: 817114.45 | L42: 817114.45 | M42: 0 | N42: 0 | O42: 0 | P42: 817114.45 | Q42: =VLOOKUP(C42,Zinsen!$C$9:$E$73,2,1) -> 0.01 | R42: 47065.8 | S42: 3922 | T42: 0.0576 | U42: =VLOOKUP(B42,UWS!$A$3:$P$84,11,1)+($U$9-$AB$9)*0.15% -> 0.0396 | V42: =VLOOKUP(B42,UWS!$A$3:$P$84,11,1)+($V$9-$AB$9)*0.15% -> 0.0411 | W42: =VLOOKUP(B42,UWS!$A$3:$P$84,11,1)+($W$9-$AB$9)*0.15% -> 0.0426 | X42: =VLOOKUP(B42,UWS!$A$3:$P$84,11,1)+($X$9-$AB$9)*0.15% -> 0.0441 | Y42: =VLOOKUP(B42,UWS!$A$3:$P$84,11,1)+($Y$9-$AB$9)*0.15% -> 0.0456 | Z42: =VLOOKUP(B42,UWS!$A$3:$P$84,11,1)+($Z$9-$AB$9)*0.15% -> 0.0471 | AA42: =VLOOKUP(B42,UWS!$A$3:$P$84,11,1)+($AA$9-$AB$9)*0.15% -> 0.0486 | AB42: =VLOOKUP(B42,UWS!$A$3:$P$84,11,1) -> 0.0501 | AC42: =VLOOKUP(B42,UWS!$A$3:$P$84,11,1)+($AC$9-$AB$9)*0.15% -> 0.0516 | AD42: =VLOOKUP(B42,UWS!$A$3:$P$84,11,1)+($AD$9-$AB$9)*0.15% -> 0.0531 | AE42: =VLOOKUP(B42,UWS!$A$3:$P$84,11,1)+($AE$9-$AB$9)*0.15% -> 0.0546 | AF42: =VLOOKUP(B42,UWS!$A$3:$P$84,11,1)+($AF$9-$AB$9)*0.15% -> 0.0561 | AG42: =VLOOKUP(B42,UWS!$A$3:$P$84,11,1)+($AG$9-$AB$9)*0.15% -> 0.0576 | AK42: 46 | AL42: =VLOOKUP(AK42,'AGS Finanzierung'!$M$8:$P$64,$AL$8+1,0) -> 0.2215 | AN42: 0 | AO42: =Ausweis!$H$18 -> 0 | AP42: 0 | AR42: 824776.2305 | AT42: 46 | AU42: =VLOOKUP(AT42,'AGS FinanzierungVL2'!$M$8:$P$64,$AU$8+1,0) -> 0.11 | AW42: =VLOOKUP(D42,$AT$13:$AU$66,2,1) -> 0.2815 | AX42: =Ausweis!H18 -> 0 | AY42: 0 | AZ42: 0 | BB42: 79 | BC42: 817114.45 | BE42: 95000 | BF42: =VLOOKUP(Ausweis!$H$5,Zinsen!$F$10:$G$56,2,)*1/2*Ausweis!$H$14 -> 14340 | BG42: =MIN(BE42-BF42,11/2*VLOOKUP(Ausweis!$H$5,Zinsen!$F$10:$G$56,2,1)) -> 80660 | BH42: =MAX(MIN(BE42,12*VLOOKUP(Ausweis!$H$5,Zinsen!$F$10:$G$56,2,1))-4*VLOOKUP(Ausweis!$H$5,Zinsen!$F$10:$G$56,2,1),0)*0 -> 0
B43: 1972 | C43: 2052 | D43: 80 | E43: 12 | F43: =MONTH(Ausweis!$H$10) -> 9 | G43: 9 | H43: 0.2815 | I43: 80660 | J43: 855729.7828 | K43: 847991.4 | L43: 847991.4 | M43: 0 | N43: 0 | O43: 0 | P43: 847991.4 | Q43: =VLOOKUP(C43,Zinsen!$C$9:$E$73,2,1) -> 0.01 | R43: 48844.3 | S43: 4070 | T43: 0.0576 | U43: =VLOOKUP(B43,UWS!$A$3:$P$84,11,1)+($U$9-$AB$9)*0.15% -> 0.0396 | V43: =VLOOKUP(B43,UWS!$A$3:$P$84,11,1)+($V$9-$AB$9)*0.15% -> 0.0411 | W43: =VLOOKUP(B43,UWS!$A$3:$P$84,11,1)+($W$9-$AB$9)*0.15% -> 0.0426 | X43: =VLOOKUP(B43,UWS!$A$3:$P$84,11,1)+($X$9-$AB$9)*0.15% -> 0.0441 | Y43: =VLOOKUP(B43,UWS!$A$3:$P$84,11,1)+($Y$9-$AB$9)*0.15% -> 0.0456 | Z43: =VLOOKUP(B43,UWS!$A$3:$P$84,11,1)+($Z$9-$AB$9)*0.15% -> 0.0471 | AA43: =VLOOKUP(B43,UWS!$A$3:$P$84,11,1)+($AA$9-$AB$9)*0.15% -> 0.0486 | AB43: =VLOOKUP(B43,UWS!$A$3:$P$84,11,1) -> 0.0501 | AC43: =VLOOKUP(B43,UWS!$A$3:$P$84,11,1)+($AC$9-$AB$9)*0.15% -> 0.0516 | AD43: =VLOOKUP(B43,UWS!$A$3:$P$84,11,1)+($AD$9-$AB$9)*0.15% -> 0.0531 | AE43: =VLOOKUP(B43,UWS!$A$3:$P$84,11,1)+($AE$9-$AB$9)*0.15% -> 0.0546 | AF43: =VLOOKUP(B43,UWS!$A$3:$P$84,11,1)+($AF$9-$AB$9)*0.15% -> 0.0561 | AG43: =VLOOKUP(B43,UWS!$A$3:$P$84,11,1)+($AG$9-$AB$9)*0.15% -> 0.0576 | AK43: 47 | AL43: =VLOOKUP(AK43,'AGS Finanzierung'!$M$8:$P$64,$AL$8+1,0) -> 0.2215 | AN43: 0 | AO43: =Ausweis!$H$18 -> 0 | AP43: 0 | AR43: 855729.7828 | AT43: 47 | AU43: =VLOOKUP(AT43,'AGS FinanzierungVL2'!$M$8:$P$64,$AU$8+1,0) -> 0.11 | AW43: 0.2815 | AX43: =Ausweis!H18 -> 0 | AY43: 0 | AZ43: 0 | BB43: 80 | BC43: 847991.4 | BE43: 95000 | BF43: =VLOOKUP(Ausweis!$H$5,Zinsen!$F$10:$G$56,2,)*1/2*Ausweis!$H$14 -> 14340 | BG43: =MIN(BE43-BF43,11/2*VLOOKUP(Ausweis!$H$5,Zinsen!$F$10:$G$56,2,1)) -> 80660 | BH43: =MAX(MIN(BE43,12*VLOOKUP(Ausweis!$H$5,Zinsen!$F$10:$G$56,2,1))-4*VLOOKUP(Ausweis!$H$5,Zinsen!$F$10:$G$56,2,1),0)*0 -> 0
B44: 1972 | C44: 2053 | D44: 81 | E44: 12 | F44: =MONTH(Ausweis!$H$10) -> 9 | G44: 9 | H44: 0.2815 | I44: 80660 | J44: 886992.8706 | K44: =MROUND(J43*(1+Q44/12*F44)+I44*H44/12*F44,0.05) -> 879177.1 | L44: 879177.1 | M44: 0 | N44: =VLOOKUP(D44,$O$73:$U$153,7,1) -> 0 | O44: =VLOOKUP(D44,$Z$73:$AF$153,7,1) -> 0 | P44: 879177.1 | Q44: =VLOOKUP(C44,Zinsen!$C$9:$E$73,2,1) -> 0.01 | R44: 50640.6 | S44: 4220 | T44: 0.0576 | U44: =VLOOKUP(B44,UWS!$A$3:$P$84,11,1)+($U$9-$AB$9)*0.15% -> 0.0396 | V44: =VLOOKUP(B44,UWS!$A$3:$P$84,11,1)+($V$9-$AB$9)*0.15% -> 0.0411 | W44: =VLOOKUP(B44,UWS!$A$3:$P$84,11,1)+($W$9-$AB$9)*0.15% -> 0.0426 | X44: =VLOOKUP(B44,UWS!$A$3:$P$84,11,1)+($X$9-$AB$9)*0.15% -> 0.0441 | Y44: =VLOOKUP(B44,UWS!$A$3:$P$84,11,1)+($Y$9-$AB$9)*0.15% -> 0.0456 | Z44: =VLOOKUP(B44,UWS!$A$3:$P$84,11,1)+($Z$9-$AB$9)*0.15% -> 0.0471 | AA44: =VLOOKUP(B44,UWS!$A$3:$P$84,11,1)+($AA$9-$AB$9)*0.15% -> 0.0486 | AB44: =VLOOKUP(B44,UWS!$A$3:$P$84,11,1) -> 0.0501 | AC44: =VLOOKUP(B44,UWS!$A$3:$P$84,11,1)+($AC$9-$AB$9)*0.15% -> 0.0516 | AD44: =VLOOKUP(B44,UWS!$A$3:$P$84,11,1)+($AD$9-$AB$9)*0.15% -> 0.0531 | AE44: =VLOOKUP(B44,UWS!$A$3:$P$84,11,1)+($AE$9-$AB$9)*0.15% -> 0.0546 | AF44: =VLOOKUP(B44,UWS!$A$3:$P$84,11,1)+($AF$9-$AB$9)*0.15% -> 0.0561 | AG44: =VLOOKUP(B44,UWS!$A$3:$P$84,11,1)+($AG$9-$AB$9)*0.15% -> 0.0576 | AK44: 48 | AL44: =VLOOKUP(AK44,'AGS Finanzierung'!$M$8:$P$64,$AL$8+1,0) -> 0.2215 | AN44: 0 | AO44: =Ausweis!$H$18 -> 0 | AP44: 0 | AR44: 886992.8706 | AT44: 48 | AU44: =VLOOKUP(AT44,'AGS FinanzierungVL2'!$M$8:$P$64,$AU$8+1,0) -> 0.11 | AW44: 0.2815 | AX44: =Ausweis!H18 -> 0 | AY44: 0 | AZ44: 0 | BB44: 81 | BC44: 879177.1 | BE44: 95000 | BF44: =VLOOKUP(Ausweis!$H$5,Zinsen!$F$10:$G$56,2,)*1/2*Ausweis!$H$14 -> 14340 | BG44: =MIN(BE44-BF44,11/2*VLOOKUP(Ausweis!$H$5,Zinsen!$F$10:$G$56,2,1)) -> 80660 | BH44: =MAX(MIN(BE44,12*VLOOKUP(Ausweis!$H$5,Zinsen!$F$10:$G$56,2,1))-4*VLOOKUP(Ausweis!$H$5,Zinsen!$F$10:$G$56,2,1),0)*0 -> 0
B45: 1972 | C45: 2054 | D45: 82 | E45: 12 | F45: =MONTH(Ausweis!$H$10) -> 9 | G45: 9 | H45: 0.2815 | I45: 80660 | J45: 918568.5893 | K45: 910674.65 | L45: 910674.65 | M45: 0 | N45: 0 | O45: 0 | P45: 910674.65 | Q45: =VLOOKUP(C45,Zinsen!$C$9:$E$73,2,1) -> 0.01 | R45: 52454.85 | S45: 4371 | T45: 0.0576 | U45: =VLOOKUP(B45,UWS!$A$3:$P$84,11,1)+($U$9-$AB$9)*0.15% -> 0.0396 | V45: =VLOOKUP(B45,UWS!$A$3:$P$84,11,1)+($V$9-$AB$9)*0.15% -> 0.0411 | W45: =VLOOKUP(B45,UWS!$A$3:$P$84,11,1)+($W$9-$AB$9)*0.15% -> 0.0426 | X45: =VLOOKUP(B45,UWS!$A$3:$P$84,11,1)+($X$9-$AB$9)*0.15% -> 0.0441 | Y45: =VLOOKUP(B45,UWS!$A$3:$P$84,11,1)+($Y$9-$AB$9)*0.15% -> 0.0456 | Z45: =VLOOKUP(B45,UWS!$A$3:$P$84,11,1)+($Z$9-$AB$9)*0.15% -> 0.0471 | AA45: =VLOOKUP(B45,UWS!$A$3:$P$84,11,1)+($AA$9-$AB$9)*0.15% -> 0.0486 | AB45: =VLOOKUP(B45,UWS!$A$3:$P$84,11,1) -> 0.0501 | AC45: =VLOOKUP(B45,UWS!$A$3:$P$84,11,1)+($AC$9-$AB$9)*0.15% -> 0.0516 | AD45: =VLOOKUP(B45,UWS!$A$3:$P$84,11,1)+($AD$9-$AB$9)*0.15% -> 0.0531 | AE45: =VLOOKUP(B45,UWS!$A$3:$P$84,11,1)+($AE$9-$AB$9)*0.15% -> 0.0546 | AF45: =VLOOKUP(B45,UWS!$A$3:$P$84,11,1)+($AF$9-$AB$9)*0.15% -> 0.0561 | AG45: =VLOOKUP(B45,UWS!$A$3:$P$84,11,1)+($AG$9-$AB$9)*0.15% -> 0.0576 | AK45: 49 | AL45: =VLOOKUP(AK45,'AGS Finanzierung'!$M$8:$P$64,$AL$8+1,0) -> 0.2215 | AN45: =VLOOKUP(D45,$AT$13:$AU$65,2,1) -> 0 | AO45: =Ausweis!$H$18 -> 0 | AP45: =MROUND(AP44*(1+$AP$2/12*E45)+AN45/12*E45*AO45,0.05) -> 0 | AR45: 918568.5893 | AT45: 49 | AU45: =VLOOKUP(AT45,'AGS FinanzierungVL2'!$M$8:$P$64,$AU$8+1,0) -> 0.11 | AW45: 0.2815 | AX45: =Ausweis!H18 -> 0 | AY45: 0 | AZ45: 0 | BB45: 82 | BC45: 910674.65 | BE45: =BE44*(1+$BF$6) -> 95000 | BF45: =VLOOKUP(Ausweis!$H$5,Zinsen!$F$10:$G$56,2,)*1/2*Ausweis!$H$14 -> 14340 | BG45: =MIN(BE45-BF45,11/2*VLOOKUP(Ausweis!$H$5,Zinsen!$F$10:$G$56,2,1)) -> 80660 | BH45: =MAX(MIN(BE45,12*VLOOKUP(Ausweis!$H$5,Zinsen!$F$10:$G$56,2,1))-4*VLOOKUP(Ausweis!$H$5,Zinsen!$F$10:$G$56,2,1),0)*0 -> 0
B46: 1972 | C46: 2055 | D46: =C46-B46 -> 83 | E46: 12 | F46: =MONTH(Ausweis!$H$10) -> 9 | G46: 9 | H46: 0.2815 | I46: 80660 | J46: 950460.0652 | K46: 942487.2 | L46: 942487.2 | M46: 0 | N46: 0 | O46: 0 | P46: 942487.2 | Q46: =VLOOKUP(C46,Zinsen!$C$9:$E$73,2,1) -> 0.01 | R46: 54287.25 | S46: 4524 | T46: 0.0576 | U46: =VLOOKUP(B46,UWS!$A$3:$P$84,11,1)+($U$9-$AB$9)*0.15% -> 0.0396 | V46: =VLOOKUP(B46,UWS!$A$3:$P$84,11,1)+($V$9-$AB$9)*0.15% -> 0.0411 | W46: =VLOOKUP(B46,UWS!$A$3:$P$84,11,1)+($W$9-$AB$9)*0.15% -> 0.0426 | X46: =VLOOKUP(B46,UWS!$A$3:$P$84,11,1)+($X$9-$AB$9)*0.15% -> 0.0441 | Y46: =VLOOKUP(B46,UWS!$A$3:$P$84,11,1)+($Y$9-$AB$9)*0.15% -> 0.0456 | Z46: =VLOOKUP(B46,UWS!$A$3:$P$84,11,1)+($Z$9-$AB$9)*0.15% -> 0.0471 | AA46: =VLOOKUP(B46,UWS!$A$3:$P$84,11,1)+($AA$9-$AB$9)*0.15% -> 0.0486 | AB46: =VLOOKUP(B46,UWS!$A$3:$P$84,11,1) -> 0.0501 | AC46: =VLOOKUP(B46,UWS!$A$3:$P$84,11,1)+($AC$9-$AB$9)*0.15% -> 0.0516 | AD46: =VLOOKUP(B46,UWS!$A$3:$P$84,11,1)+($AD$9-$AB$9)*0.15% -> 0.0531 | AE46: =VLOOKUP(B46,UWS!$A$3:$P$84,11,1)+($AE$9-$AB$9)*0.15% -> 0.0546 | AF46: =VLOOKUP(B46,UWS!$A$3:$P$84,11,1)+($AF$9-$AB$9)*0.15% -> 0.0561 | AG46: =VLOOKUP(B46,UWS!$A$3:$P$84,11,1)+($AG$9-$AB$9)*0.15% -> 0.0576 | AK46: 50 | AL46: =VLOOKUP(AK46,'AGS Finanzierung'!$M$8:$P$64,$AL$8+1,0) -> 0.2215 | AN46: 0 | AO46: =Ausweis!$H$18 -> 0 | AP46: 0 | AR46: =J46+AP46 -> 950460.0652 | AT46: 50 | AU46: =VLOOKUP(AT46,'AGS FinanzierungVL2'!$M$8:$P$64,$AU$8+1,0) -> 0.11 | AW46: 0.2815 | AX46: =Ausweis!H18 -> 0 | AY46: 0 | AZ46: 0 | BB46: 83 | BC46: 942487.2 | BE46: 95000 | BF46: =VLOOKUP(Ausweis!$H$5,Zinsen!$F$10:$G$56,2,)*1/2*Ausweis!$H$14 -> 14340 | BG46: =MIN(BE46-BF46,11/2*VLOOKUP(Ausweis!$H$5,Zinsen!$F$10:$G$56,2,1)) -> 80660 | BH46: =MAX(MIN(BE46,12*VLOOKUP(Ausweis!$H$5,Zinsen!$F$10:$G$56,2,1))-4*VLOOKUP(Ausweis!$H$5,Zinsen!$F$10:$G$56,2,1),0)*0 -> 0
B47: 1972 | C47: 2056 | D47: 84 | E47: 12 | F47: =MONTH(Ausweis!$H$10) -> 9 | G47: 9 | H47: 0.2815 | I47: 80660 | J47: 982670.4558 | K47: 974617.85 | L47: 974617.85 | M47: 0 | N47: 0 | O47: 0 | P47: 974617.85 | Q47: =VLOOKUP(C47,Zinsen!$C$9:$E$73,2,1) -> 0.01 | R47: 56138 | S47: 4678 | T47: 0.0576 | U47: =VLOOKUP(B47,UWS!$A$3:$P$84,11,1)+($U$9-$AB$9)*0.15% -> 0.0396 | V47: =VLOOKUP(B47,UWS!$A$3:$P$84,11,1)+($V$9-$AB$9)*0.15% -> 0.0411 | W47: =VLOOKUP(B47,UWS!$A$3:$P$84,11,1)+($W$9-$AB$9)*0.15% -> 0.0426 | X47: =VLOOKUP(B47,UWS!$A$3:$P$84,11,1)+($X$9-$AB$9)*0.15% -> 0.0441 | Y47: =VLOOKUP(B47,UWS!$A$3:$P$84,11,1)+($Y$9-$AB$9)*0.15% -> 0.0456 | Z47: =VLOOKUP(B47,UWS!$A$3:$P$84,11,1)+($Z$9-$AB$9)*0.15% -> 0.0471 | AA47: =VLOOKUP(B47,UWS!$A$3:$P$84,11,1)+($AA$9-$AB$9)*0.15% -> 0.0486 | AB47: =VLOOKUP(B47,UWS!$A$3:$P$84,11,1) -> 0.0501 | AC47: =VLOOKUP(B47,UWS!$A$3:$P$84,11,1)+($AC$9-$AB$9)*0.15% -> 0.0516 | AD47: =VLOOKUP(B47,UWS!$A$3:$P$84,11,1)+($AD$9-$AB$9)*0.15% -> 0.0531 | AE47: =VLOOKUP(B47,UWS!$A$3:$P$84,11,1)+($AE$9-$AB$9)*0.15% -> 0.0546 | AF47: =VLOOKUP(B47,UWS!$A$3:$P$84,11,1)+($AF$9-$AB$9)*0.15% -> 0.0561 | AG47: =VLOOKUP(B47,UWS!$A$3:$P$84,11,1)+($AG$9-$AB$9)*0.15% -> 0.0576 | AK47: 51 | AL47: =VLOOKUP(AK47,'AGS Finanzierung'!$M$8:$P$64,$AL$8+1,0) -> 0.2215 | AN47: 0 | AO47: =Ausweis!$H$18 -> 0 | AP47: 0 | AR47: 982670.4558 | AT47: 51 | AU47: =VLOOKUP(AT47,'AGS FinanzierungVL2'!$M$8:$P$64,$AU$8+1,0) -> 0.11 | AW47: 0.2815 | AX47: =Ausweis!H18 -> 0 | AY47: 0 | AZ47: 0 | BB47: 84 | BC47: 974617.85 | BE47: 95000 | BF47: =VLOOKUP(Ausweis!$H$5,Zinsen!$F$10:$G$56,2,)*1/2*Ausweis!$H$14 -> 14340 | BG47: =MIN(BE47-BF47,11/2*VLOOKUP(Ausweis!$H$5,Zinsen!$F$10:$G$56,2,1)) -> 80660 | BH47: =MAX(MIN(BE47,12*VLOOKUP(Ausweis!$H$5,Zinsen!$F$10:$G$56,2,1))-4*VLOOKUP(Ausweis!$H$5,Zinsen!$F$10:$G$56,2,1),0)*0 -> 0
B48: 1972 | C48: 2057 | D48: 85 | E48: 12 | F48: =MONTH(Ausweis!$H$10) -> 9 | G48: 9 | H48: 0.2815 | I48: 80660 | J48: 1015202.95 | K48: 1007069.85 | L48: 1007069.85 | M48: 0 | N48: 0 | O48: 0 | P48: 1007069.85 | Q48: =VLOOKUP(C48,Zinsen!$C$9:$E$73,2,1) -> 0.01 | R48: 58007.2 | S48: 4834 | T48: 0.0576 | U48: =VLOOKUP(B48,UWS!$A$3:$P$84,11,1)+($U$9-$AB$9)*0.15% -> 0.0396 | V48: =VLOOKUP(B48,UWS!$A$3:$P$84,11,1)+($V$9-$AB$9)*0.15% -> 0.0411 | W48: =VLOOKUP(B48,UWS!$A$3:$P$84,11,1)+($W$9-$AB$9)*0.15% -> 0.0426 | X48: =VLOOKUP(B48,UWS!$A$3:$P$84,11,1)+($X$9-$AB$9)*0.15% -> 0.0441 | Y48: =VLOOKUP(B48,UWS!$A$3:$P$84,11,1)+($Y$9-$AB$9)*0.15% -> 0.0456 | Z48: =VLOOKUP(B48,UWS!$A$3:$P$84,11,1)+($Z$9-$AB$9)*0.15% -> 0.0471 | AA48: =VLOOKUP(B48,UWS!$A$3:$P$84,11,1)+($AA$9-$AB$9)*0.15% -> 0.0486 | AB48: =VLOOKUP(B48,UWS!$A$3:$P$84,11,1) -> 0.0501 | AC48: =VLOOKUP(B48,UWS!$A$3:$P$84,11,1)+($AC$9-$AB$9)*0.15% -> 0.0516 | AD48: =VLOOKUP(B48,UWS!$A$3:$P$84,11,1)+($AD$9-$AB$9)*0.15% -> 0.0531 | AE48: =VLOOKUP(B48,UWS!$A$3:$P$84,11,1)+($AE$9-$AB$9)*0.15% -> 0.0546 | AF48: =VLOOKUP(B48,UWS!$A$3:$P$84,11,1)+($AF$9-$AB$9)*0.15% -> 0.0561 | AG48: =VLOOKUP(B48,UWS!$A$3:$P$84,11,1)+($AG$9-$AB$9)*0.15% -> 0.0576 | AK48: 52 | AL48: =VLOOKUP(AK48,'AGS Finanzierung'!$M$8:$P$64,$AL$8+1,0) -> 0.2215 | AN48: 0 | AO48: =Ausweis!$H$18 -> 0 | AP48: 0 | AR48: 1015202.95 | AT48: 52 | AU48: =VLOOKUP(AT48,'AGS FinanzierungVL2'!$M$8:$P$64,$AU$8+1,0) -> 0.11 | AW48: 0.2815 | AX48: =Ausweis!H18 -> 0 | AY48: 0 | AZ48: 0 | BB48: 85 | BC48: 1007069.85 | BE48: 95000 | BF48: =VLOOKUP(Ausweis!$H$5,Zinsen!$F$10:$G$56,2,)*1/2*Ausweis!$H$14 -> 14340 | BG48: =MIN(BE48-BF48,11/2*VLOOKUP(Ausweis!$H$5,Zinsen!$F$10:$G$56,2,1)) -> 80660 | BH48: =MAX(MIN(BE48,12*VLOOKUP(Ausweis!$H$5,Zinsen!$F$10:$G$56,2,1))-4*VLOOKUP(Ausweis!$H$5,Zinsen!$F$10:$G$56,2,1),0)*0 -> 0
B49: 1972 | C49: 2058 | D49: 86 | E49: 12 | F49: =MONTH(Ausweis!$H$10) -> 9 | G49: 9 | H49: 0.2815 | I49: 80660 | J49: 1048060.77 | K49: 1039846.3 | L49: 1039846.3 | M49: 0 | N49: 0 | O49: 0 | P49: 1039846.3 | Q49: =VLOOKUP(C49,Zinsen!$C$9:$E$73,2,1) -> 0.01 | R49: 59895.15 | S49: 4991 | T49: 0.0576 | U49: =VLOOKUP(B49,UWS!$A$3:$P$84,11,1)+($U$9-$AB$9)*0.15% -> 0.0396 | V49: =VLOOKUP(B49,UWS!$A$3:$P$84,11,1)+($V$9-$AB$9)*0.15% -> 0.0411 | W49: =VLOOKUP(B49,UWS!$A$3:$P$84,11,1)+($W$9-$AB$9)*0.15% -> 0.0426 | X49: =VLOOKUP(B49,UWS!$A$3:$P$84,11,1)+($X$9-$AB$9)*0.15% -> 0.0441 | Y49: =VLOOKUP(B49,UWS!$A$3:$P$84,11,1)+($Y$9-$AB$9)*0.15% -> 0.0456 | Z49: =VLOOKUP(B49,UWS!$A$3:$P$84,11,1)+($Z$9-$AB$9)*0.15% -> 0.0471 | AA49: =VLOOKUP(B49,UWS!$A$3:$P$84,11,1)+($AA$9-$AB$9)*0.15% -> 0.0486 | AB49: =VLOOKUP(B49,UWS!$A$3:$P$84,11,1) -> 0.0501 | AC49: =VLOOKUP(B49,UWS!$A$3:$P$84,11,1)+($AC$9-$AB$9)*0.15% -> 0.0516 | AD49: =VLOOKUP(B49,UWS!$A$3:$P$84,11,1)+($AD$9-$AB$9)*0.15% -> 0.0531 | AE49: =VLOOKUP(B49,UWS!$A$3:$P$84,11,1)+($AE$9-$AB$9)*0.15% -> 0.0546 | AF49: =VLOOKUP(B49,UWS!$A$3:$P$84,11,1)+($AF$9-$AB$9)*0.15% -> 0.0561 | AG49: =VLOOKUP(B49,UWS!$A$3:$P$84,11,1)+($AG$9-$AB$9)*0.15% -> 0.0576 | AK49: 53 | AL49: =VLOOKUP(AK49,'AGS Finanzierung'!$M$8:$P$64,$AL$8+1,0) -> 0.2215 | AN49: 0 | AO49: =Ausweis!$H$18 -> 0 | AP49: 0 | AR49: 1048060.77 | AT49: 53 | AU49: =VLOOKUP(AT49,'AGS FinanzierungVL2'!$M$8:$P$64,$AU$8+1,0) -> 0.11 | AW49: 0.2815 | AX49: =Ausweis!H18 -> 0 | AY49: 0 | AZ49: 0 | BB49: 86 | BC49: 1039846.3 | BE49: 95000 | BF49: =VLOOKUP(Ausweis!$H$5,Zinsen!$F$10:$G$56,2,)*1/2*Ausweis!$H$14 -> 14340 | BG49: =MIN(BE49-BF49,11/2*VLOOKUP(Ausweis!$H$5,Zinsen!$F$10:$G$56,2,1)) -> 80660 | BH49: =MAX(MIN(BE49,12*VLOOKUP(Ausweis!$H$5,Zinsen!$F$10:$G$56,2,1))-4*VLOOKUP(Ausweis!$H$5,Zinsen!$F$10:$G$56,2,1),0)*0 -> 0
B50: 1972 | C50: 2059 | D50: 87 | E50: 12 | F50: =MONTH(Ausweis!$H$10) -> 9 | G50: 9 | H50: 0.2815 | I50: 80660 | J50: 1081247.168 | K50: 1072950.55 | L50: 1072950.55 | M50: 0 | N50: 0 | O50: 0 | P50: 1072950.55 | Q50: =VLOOKUP(C50,Zinsen!$C$9:$E$73,2,1) -> 0.01 | R50: 61801.95 | S50: 5150 | T50: 0.0576 | U50: =VLOOKUP(B50,UWS!$A$3:$P$84,11,1)+($U$9-$AB$9)*0.15% -> 0.0396 | V50: =VLOOKUP(B50,UWS!$A$3:$P$84,11,1)+($V$9-$AB$9)*0.15% -> 0.0411 | W50: =VLOOKUP(B50,UWS!$A$3:$P$84,11,1)+($W$9-$AB$9)*0.15% -> 0.0426 | X50: =VLOOKUP(B50,UWS!$A$3:$P$84,11,1)+($X$9-$AB$9)*0.15% -> 0.0441 | Y50: =VLOOKUP(B50,UWS!$A$3:$P$84,11,1)+($Y$9-$AB$9)*0.15% -> 0.0456 | Z50: =VLOOKUP(B50,UWS!$A$3:$P$84,11,1)+($Z$9-$AB$9)*0.15% -> 0.0471 | AA50: =VLOOKUP(B50,UWS!$A$3:$P$84,11,1)+($AA$9-$AB$9)*0.15% -> 0.0486 | AB50: =VLOOKUP(B50,UWS!$A$3:$P$84,11,1) -> 0.0501 | AC50: =VLOOKUP(B50,UWS!$A$3:$P$84,11,1)+($AC$9-$AB$9)*0.15% -> 0.0516 | AD50: =VLOOKUP(B50,UWS!$A$3:$P$84,11,1)+($AD$9-$AB$9)*0.15% -> 0.0531 | AE50: =VLOOKUP(B50,UWS!$A$3:$P$84,11,1)+($AE$9-$AB$9)*0.15% -> 0.0546 | AF50: =VLOOKUP(B50,UWS!$A$3:$P$84,11,1)+($AF$9-$AB$9)*0.15% -> 0.0561 | AG50: =VLOOKUP(B50,UWS!$A$3:$P$84,11,1)+($AG$9-$AB$9)*0.15% -> 0.0576 | AK50: 54 | AL50: =VLOOKUP(AK50,'AGS Finanzierung'!$M$8:$P$64,$AL$8+1,0) -> 0.2215 | AN50: 0 | AO50: =Ausweis!$H$18 -> 0 | AP50: 0 | AR50: 1081247.168 | AT50: 54 | AU50: =VLOOKUP(AT50,'AGS FinanzierungVL2'!$M$8:$P$64,$AU$8+1,0) -> 0.11 | AW50: 0.2815 | AX50: =Ausweis!H18 -> 0 | AY50: 0 | AZ50: 0 | BB50: 87 | BC50: 1072950.55 | BE50: 95000 | BF50: =VLOOKUP(Ausweis!$H$5,Zinsen!$F$10:$G$56,2,)*1/2*Ausweis!$H$14 -> 14340 | BG50: =MIN(BE50-BF50,11/2*VLOOKUP(Ausweis!$H$5,Zinsen!$F$10:$G$56,2,1)) -> 80660 | BH50: =MAX(MIN(BE50,12*VLOOKUP(Ausweis!$H$5,Zinsen!$F$10:$G$56,2,1))-4*VLOOKUP(Ausweis!$H$5,Zinsen!$F$10:$G$56,2,1),0)*0 -> 0
B51: 1972 | C51: 2060 | D51: 88 | E51: 12 | F51: =MONTH(Ausweis!$H$10) -> 9 | G51: 9 | H51: 0.2815 | I51: 80660 | J51: 1114765.429 | K51: 1106385.85 | L51: 1106385.85 | M51: 0 | N51: 0 | O51: 0 | P51: 1106385.85 | Q51: =VLOOKUP(C51,Zinsen!$C$9:$E$73,2,1) -> 0.01 | R51: 63727.8 | S51: 5311 | T51: 0.0576 | U51: =VLOOKUP(B51,UWS!$A$3:$P$84,11,1)+($U$9-$AB$9)*0.15% -> 0.0396 | V51: =VLOOKUP(B51,UWS!$A$3:$P$84,11,1)+($V$9-$AB$9)*0.15% -> 0.0411 | W51: =VLOOKUP(B51,UWS!$A$3:$P$84,11,1)+($W$9-$AB$9)*0.15% -> 0.0426 | X51: =VLOOKUP(B51,UWS!$A$3:$P$84,11,1)+($X$9-$AB$9)*0.15% -> 0.0441 | Y51: =VLOOKUP(B51,UWS!$A$3:$P$84,11,1)+($Y$9-$AB$9)*0.15% -> 0.0456 | Z51: =VLOOKUP(B51,UWS!$A$3:$P$84,11,1)+($Z$9-$AB$9)*0.15% -> 0.0471 | AA51: =VLOOKUP(B51,UWS!$A$3:$P$84,11,1)+($AA$9-$AB$9)*0.15% -> 0.0486 | AB51: =VLOOKUP(B51,UWS!$A$3:$P$84,11,1) -> 0.0501 | AC51: =VLOOKUP(B51,UWS!$A$3:$P$84,11,1)+($AC$9-$AB$9)*0.15% -> 0.0516 | AD51: =VLOOKUP(B51,UWS!$A$3:$P$84,11,1)+($AD$9-$AB$9)*0.15% -> 0.0531 | AE51: =VLOOKUP(B51,UWS!$A$3:$P$84,11,1)+($AE$9-$AB$9)*0.15% -> 0.0546 | AF51: =VLOOKUP(B51,UWS!$A$3:$P$84,11,1)+($AF$9-$AB$9)*0.15% -> 0.0561 | AG51: =VLOOKUP(B51,UWS!$A$3:$P$84,11,1)+($AG$9-$AB$9)*0.15% -> 0.0576 | AK51: 55 | AL51: =VLOOKUP(AK51,'AGS Finanzierung'!$M$8:$P$64,$AL$8+1,0) -> 0.2815 | AN51: 0 | AO51: =Ausweis!$H$18 -> 0 | AP51: 0 | AR51: 1114765.429 | AT51: 55 | AU51: =VLOOKUP(AT51,'AGS FinanzierungVL2'!$M$8:$P$64,$AU$8+1,0) -> 0.11 | AW51: 0.2815 | AX51: =Ausweis!H18 -> 0 | AY51: 0 | AZ51: 0 | BB51: 88 | BC51: 1106385.85 | BE51: 95000 | BF51: =VLOOKUP(Ausweis!$H$5,Zinsen!$F$10:$G$56,2,)*1/2*Ausweis!$H$14 -> 14340 | BG51: =MIN(BE51-BF51,11/2*VLOOKUP(Ausweis!$H$5,Zinsen!$F$10:$G$56,2,1)) -> 80660 | BH51: =MAX(MIN(BE51,12*VLOOKUP(Ausweis!$H$5,Zinsen!$F$10:$G$56,2,1))-4*VLOOKUP(Ausweis!$H$5,Zinsen!$F$10:$G$56,2,1),0)*0 -> 0
B52: 1972 | C52: 2061 | D52: 89 | E52: 12 | F52: =MONTH(Ausweis!$H$10) -> 9 | G52: 9 | H52: 0.2815 | I52: 80660 | J52: 1148618.874 | K52: 1140155.5 | L52: 1140155.5 | M52: 0 | N52: 0 | O52: 0 | P52: 1140155.5 | Q52: =VLOOKUP(C52,Zinsen!$C$9:$E$73,2,1) -> 0.01 | R52: 65672.95 | S52: 5473 | T52: 0.0576 | U52: =VLOOKUP(B52,UWS!$A$3:$P$84,11,1)+($U$9-$AB$9)*0.15% -> 0.0396 | V52: =VLOOKUP(B52,UWS!$A$3:$P$84,11,1)+($V$9-$AB$9)*0.15% -> 0.0411 | W52: =VLOOKUP(B52,UWS!$A$3:$P$84,11,1)+($W$9-$AB$9)*0.15% -> 0.0426 | X52: =VLOOKUP(B52,UWS!$A$3:$P$84,11,1)+($X$9-$AB$9)*0.15% -> 0.0441 | Y52: =VLOOKUP(B52,UWS!$A$3:$P$84,11,1)+($Y$9-$AB$9)*0.15% -> 0.0456 | Z52: =VLOOKUP(B52,UWS!$A$3:$P$84,11,1)+($Z$9-$AB$9)*0.15% -> 0.0471 | AA52: =VLOOKUP(B52,UWS!$A$3:$P$84,11,1)+($AA$9-$AB$9)*0.15% -> 0.0486 | AB52: =VLOOKUP(B52,UWS!$A$3:$P$84,11,1) -> 0.0501 | AC52: =VLOOKUP(B52,UWS!$A$3:$P$84,11,1)+($AC$9-$AB$9)*0.15% -> 0.0516 | AD52: =VLOOKUP(B52,UWS!$A$3:$P$84,11,1)+($AD$9-$AB$9)*0.15% -> 0.0531 | AE52: =VLOOKUP(B52,UWS!$A$3:$P$84,11,1)+($AE$9-$AB$9)*0.15% -> 0.0546 | AF52: =VLOOKUP(B52,UWS!$A$3:$P$84,11,1)+($AF$9-$AB$9)*0.15% -> 0.0561 | AG52: =VLOOKUP(B52,UWS!$A$3:$P$84,11,1)+($AG$9-$AB$9)*0.15% -> 0.0576 | AK52: 56 | AL52: =VLOOKUP(AK52,'AGS Finanzierung'!$M$8:$P$64,$AL$8+1,0) -> 0.2815 | AN52: 0 | AO52: =Ausweis!$H$18 -> 0 | AP52: 0 | AR52: 1148618.874 | AT52: 56 | AU52: =VLOOKUP(AT52,'AGS FinanzierungVL2'!$M$8:$P$64,$AU$8+1,0) -> 0.11 | AW52: 0.2815 | AX52: =Ausweis!H18 -> 0 | AY52: 0 | AZ52: 0 | BB52: 89 | BC52: 1140155.5 | BE52: 95000 | BF52: =VLOOKUP(Ausweis!$H$5,Zinsen!$F$10:$G$56,2,)*1/2*Ausweis!$H$14 -> 14340 | BG52: =MIN(BE52-BF52,11/2*VLOOKUP(Ausweis!$H$5,Zinsen!$F$10:$G$56,2,1)) -> 80660 | BH52: =MAX(MIN(BE52,12*VLOOKUP(Ausweis!$H$5,Zinsen!$F$10:$G$56,2,1))-4*VLOOKUP(Ausweis!$H$5,Zinsen!$F$10:$G$56,2,1),0)*0 -> 0
B53: 1972 | C53: 2062 | D53: 90 | E53: 12 | F53: =MONTH(Ausweis!$H$10) -> 9 | G53: 9 | H53: 0.2815 | I53: 80660 | J53: 1182810.852 | K53: 1174262.85 | L53: 1174262.85 | M53: 0 | N53: 0 | O53: 0 | P53: 1174262.85 | Q53: =VLOOKUP(C53,Zinsen!$C$9:$E$73,2,1) -> 0.01 | R53: 67637.55 | S53: 5636 | T53: 0.0576 | U53: =VLOOKUP(B53,UWS!$A$3:$P$84,11,1)+($U$9-$AB$9)*0.15% -> 0.0396 | V53: =VLOOKUP(B53,UWS!$A$3:$P$84,11,1)+($V$9-$AB$9)*0.15% -> 0.0411 | W53: =VLOOKUP(B53,UWS!$A$3:$P$84,11,1)+($W$9-$AB$9)*0.15% -> 0.0426 | X53: =VLOOKUP(B53,UWS!$A$3:$P$84,11,1)+($X$9-$AB$9)*0.15% -> 0.0441 | Y53: =VLOOKUP(B53,UWS!$A$3:$P$84,11,1)+($Y$9-$AB$9)*0.15% -> 0.0456 | Z53: =VLOOKUP(B53,UWS!$A$3:$P$84,11,1)+($Z$9-$AB$9)*0.15% -> 0.0471 | AA53: =VLOOKUP(B53,UWS!$A$3:$P$84,11,1)+($AA$9-$AB$9)*0.15% -> 0.0486 | AB53: =VLOOKUP(B53,UWS!$A$3:$P$84,11,1) -> 0.0501 | AC53: =VLOOKUP(B53,UWS!$A$3:$P$84,11,1)+($AC$9-$AB$9)*0.15% -> 0.0516 | AD53: =VLOOKUP(B53,UWS!$A$3:$P$84,11,1)+($AD$9-$AB$9)*0.15% -> 0.0531 | AE53: =VLOOKUP(B53,UWS!$A$3:$P$84,11,1)+($AE$9-$AB$9)*0.15% -> 0.0546 | AF53: =VLOOKUP(B53,UWS!$A$3:$P$84,11,1)+($AF$9-$AB$9)*0.15% -> 0.0561 | AG53: =VLOOKUP(B53,UWS!$A$3:$P$84,11,1)+($AG$9-$AB$9)*0.15% -> 0.0576 | AK53: 57 | AL53: =VLOOKUP(AK53,'AGS Finanzierung'!$M$8:$P$64,$AL$8+1,0) -> 0.2815 | AN53: 0 | AO53: =Ausweis!$H$18 -> 0 | AP53: 0 | AR53: 1182810.852 | AT53: 57 | AU53: =VLOOKUP(AT53,'AGS FinanzierungVL2'!$M$8:$P$64,$AU$8+1,0) -> 0.11 | AW53: 0.2815 | AX53: =Ausweis!H18 -> 0 | AY53: 0 | AZ53: 0 | BB53: 90 | BC53: 1174262.85 | BE53: 95000 | BF53: =VLOOKUP(Ausweis!$H$5,Zinsen!$F$10:$G$56,2,)*1/2*Ausweis!$H$14 -> 14340 | BG53: =MIN(BE53-BF53,11/2*VLOOKUP(Ausweis!$H$5,Zinsen!$F$10:$G$56,2,1)) -> 80660 | BH53: =MAX(MIN(BE53,12*VLOOKUP(Ausweis!$H$5,Zinsen!$F$10:$G$56,2,1))-4*VLOOKUP(Ausweis!$H$5,Zinsen!$F$10:$G$56,2,1),0)*0 -> 0
B54: 1972 | C54: 2063 | D54: 91 | E54: 12 | F54: =MONTH(Ausweis!$H$10) -> 9 | G54: 9 | H54: 0.2815 | I54: 80660 | J54: 1217344.751 | K54: 1208711.3 | L54: 1208711.3 | M54: 0 | N54: 0 | O54: 0 | P54: 1208711.3 | Q54: =VLOOKUP(C54,Zinsen!$C$9:$E$73,2,1) -> 0.01 | R54: 69621.75 | S54: 5802 | T54: 0.0576 | U54: =VLOOKUP(B54,UWS!$A$3:$P$84,11,1)+($U$9-$AB$9)*0.15% -> 0.0396 | V54: =VLOOKUP(B54,UWS!$A$3:$P$84,11,1)+($V$9-$AB$9)*0.15% -> 0.0411 | W54: =VLOOKUP(B54,UWS!$A$3:$P$84,11,1)+($W$9-$AB$9)*0.15% -> 0.0426 | X54: =VLOOKUP(B54,UWS!$A$3:$P$84,11,1)+($X$9-$AB$9)*0.15% -> 0.0441 | Y54: =VLOOKUP(B54,UWS!$A$3:$P$84,11,1)+($Y$9-$AB$9)*0.15% -> 0.0456 | Z54: =VLOOKUP(B54,UWS!$A$3:$P$84,11,1)+($Z$9-$AB$9)*0.15% -> 0.0471 | AA54: =VLOOKUP(B54,UWS!$A$3:$P$84,11,1)+($AA$9-$AB$9)*0.15% -> 0.0486 | AB54: =VLOOKUP(B54,UWS!$A$3:$P$84,11,1) -> 0.0501 | AC54: =VLOOKUP(B54,UWS!$A$3:$P$84,11,1)+($AC$9-$AB$9)*0.15% -> 0.0516 | AD54: =VLOOKUP(B54,UWS!$A$3:$P$84,11,1)+($AD$9-$AB$9)*0.15% -> 0.0531 | AE54: =VLOOKUP(B54,UWS!$A$3:$P$84,11,1)+($AE$9-$AB$9)*0.15% -> 0.0546 | AF54: =VLOOKUP(B54,UWS!$A$3:$P$84,11,1)+($AF$9-$AB$9)*0.15% -> 0.0561 | AG54: =VLOOKUP(B54,UWS!$A$3:$P$84,11,1)+($AG$9-$AB$9)*0.15% -> 0.0576 | AK54: 58 | AL54: =VLOOKUP(AK54,'AGS Finanzierung'!$M$8:$P$64,$AL$8+1,0) -> 0.2815 | AN54: 0 | AO54: =Ausweis!$H$18 -> 0 | AP54: 0 | AR54: 1217344.751 | AT54: 58 | AU54: =VLOOKUP(AT54,'AGS FinanzierungVL2'!$M$8:$P$64,$AU$8+1,0) -> 0.11 | AW54: 0.2815 | AX54: =Ausweis!H18 -> 0 | AY54: 0 | AZ54: 0 | BB54: 91 | BC54: 1208711.3 | BE54: 95000 | BF54: =VLOOKUP(Ausweis!$H$5,Zinsen!$F$10:$G$56,2,)*1/2*Ausweis!$H$14 -> 14340 | BG54: =MIN(BE54-BF54,11/2*VLOOKUP(Ausweis!$H$5,Zinsen!$F$10:$G$56,2,1)) -> 80660 | BH54: =MAX(MIN(BE54,12*VLOOKUP(Ausweis!$H$5,Zinsen!$F$10:$G$56,2,1))-4*VLOOKUP(Ausweis!$H$5,Zinsen!$F$10:$G$56,2,1),0)*0 -> 0
B55: 1972 | C55: 2064 | D55: 92 | E55: 12 | F55: =MONTH(Ausweis!$H$10) -> 9 | G55: 9 | H55: 0.2815 | I55: 80660 | J55: 1252223.988 | K55: 1243504.2 | L55: 1243504.2 | M55: 0 | N55: 0 | O55: 0 | P55: 1243504.2 | Q55: =VLOOKUP(C55,Zinsen!$C$9:$E$73,2,1) -> 0.01 | R55: 71625.85 | S55: 5969 | T55: 0.0576 | U55: =VLOOKUP(B55,UWS!$A$3:$P$84,11,1)+($U$9-$AB$9)*0.15% -> 0.0396 | V55: =VLOOKUP(B55,UWS!$A$3:$P$84,11,1)+($V$9-$AB$9)*0.15% -> 0.0411 | W55: =VLOOKUP(B55,UWS!$A$3:$P$84,11,1)+($W$9-$AB$9)*0.15% -> 0.0426 | X55: =VLOOKUP(B55,UWS!$A$3:$P$84,11,1)+($X$9-$AB$9)*0.15% -> 0.0441 | Y55: =VLOOKUP(B55,UWS!$A$3:$P$84,11,1)+($Y$9-$AB$9)*0.15% -> 0.0456 | Z55: =VLOOKUP(B55,UWS!$A$3:$P$84,11,1)+($Z$9-$AB$9)*0.15% -> 0.0471 | AA55: =VLOOKUP(B55,UWS!$A$3:$P$84,11,1)+($AA$9-$AB$9)*0.15% -> 0.0486 | AB55: =VLOOKUP(B55,UWS!$A$3:$P$84,11,1) -> 0.0501 | AC55: =VLOOKUP(B55,UWS!$A$3:$P$84,11,1)+($AC$9-$AB$9)*0.15% -> 0.0516 | AD55: =VLOOKUP(B55,UWS!$A$3:$P$84,11,1)+($AD$9-$AB$9)*0.15% -> 0.0531 | AE55: =VLOOKUP(B55,UWS!$A$3:$P$84,11,1)+($AE$9-$AB$9)*0.15% -> 0.0546 | AF55: =VLOOKUP(B55,UWS!$A$3:$P$84,11,1)+($AF$9-$AB$9)*0.15% -> 0.0561 | AG55: =VLOOKUP(B55,UWS!$A$3:$P$84,11,1)+($AG$9-$AB$9)*0.15% -> 0.0576 | AK55: 59 | AL55: =VLOOKUP(AK55,'AGS Finanzierung'!$M$8:$P$64,$AL$8+1,0) -> 0.2815 | AN55: 0 | AO55: =Ausweis!$H$18 -> 0 | AP55: 0 | AR55: 1252223.988 | AT55: 59 | AU55: =VLOOKUP(AT55,'AGS FinanzierungVL2'!$M$8:$P$64,$AU$8+1,0) -> 0.11 | AW55: 0.2815 | AX55: =Ausweis!H18 -> 0 | AY55: 0 | AZ55: 0 | BB55: 92 | BC55: 1243504.2 | BE55: 95000 | BF55: =VLOOKUP(Ausweis!$H$5,Zinsen!$F$10:$G$56,2,)*1/2*Ausweis!$H$14 -> 14340 | BG55: =MIN(BE55-BF55,11/2*VLOOKUP(Ausweis!$H$5,Zinsen!$F$10:$G$56,2,1)) -> 80660 | BH55: =MAX(MIN(BE55,12*VLOOKUP(Ausweis!$H$5,Zinsen!$F$10:$G$56,2,1))-4*VLOOKUP(Ausweis!$H$5,Zinsen!$F$10:$G$56,2,1),0)*0 -> 0
B56: 1972 | C56: 2065 | D56: 93 | E56: 12 | F56: =MONTH(Ausweis!$H$10) -> 9 | G56: 9 | H56: 0.2815 | I56: 80660 | J56: 1287452.018 | K56: 1278645 | L56: 1278645 | M56: 0 | N56: 0 | O56: 0 | P56: 1278645 | Q56: =VLOOKUP(C56,Zinsen!$C$9:$E$73,2,1) -> 0.01 | R56: 73649.95 | S56: 6137 | T56: 0.0576 | U56: =VLOOKUP(B56,UWS!$A$3:$P$84,11,1)+($U$9-$AB$9)*0.15% -> 0.0396 | V56: =VLOOKUP(B56,UWS!$A$3:$P$84,11,1)+($V$9-$AB$9)*0.15% -> 0.0411 | W56: =VLOOKUP(B56,UWS!$A$3:$P$84,11,1)+($W$9-$AB$9)*0.15% -> 0.0426 | X56: =VLOOKUP(B56,UWS!$A$3:$P$84,11,1)+($X$9-$AB$9)*0.15% -> 0.0441 | Y56: =VLOOKUP(B56,UWS!$A$3:$P$84,11,1)+($Y$9-$AB$9)*0.15% -> 0.0456 | Z56: =VLOOKUP(B56,UWS!$A$3:$P$84,11,1)+($Z$9-$AB$9)*0.15% -> 0.0471 | AA56: =VLOOKUP(B56,UWS!$A$3:$P$84,11,1)+($AA$9-$AB$9)*0.15% -> 0.0486 | AB56: =VLOOKUP(B56,UWS!$A$3:$P$84,11,1) -> 0.0501 | AC56: =VLOOKUP(B56,UWS!$A$3:$P$84,11,1)+($AC$9-$AB$9)*0.15% -> 0.0516 | AD56: =VLOOKUP(B56,UWS!$A$3:$P$84,11,1)+($AD$9-$AB$9)*0.15% -> 0.0531 | AE56: =VLOOKUP(B56,UWS!$A$3:$P$84,11,1)+($AE$9-$AB$9)*0.15% -> 0.0546 | AF56: =VLOOKUP(B56,UWS!$A$3:$P$84,11,1)+($AF$9-$AB$9)*0.15% -> 0.0561 | AG56: =VLOOKUP(B56,UWS!$A$3:$P$84,11,1)+($AG$9-$AB$9)*0.15% -> 0.0576 | AK56: 60 | AL56: =VLOOKUP(AK56,'AGS Finanzierung'!$M$8:$P$64,$AL$8+1,0) -> 0.2815 | AN56: 0 | AO56: =Ausweis!$H$18 -> 0 | AP56: 0 | AR56: 1287452.018 | AT56: 60 | AU56: =VLOOKUP(AT56,'AGS FinanzierungVL2'!$M$8:$P$64,$AU$8+1,0) -> 0.11 | AW56: 0.2815 | AX56: =Ausweis!H18 -> 0 | AY56: 0 | AZ56: 0 | BB56: 93 | BC56: 1278645 | BE56: 95000 | BF56: =VLOOKUP(Ausweis!$H$5,Zinsen!$F$10:$G$56,2,)*1/2*Ausweis!$H$14 -> 14340 | BG56: =MIN(BE56-BF56,11/2*VLOOKUP(Ausweis!$H$5,Zinsen!$F$10:$G$56,2,1)) -> 80660 | BH56: =MAX(MIN(BE56,12*VLOOKUP(Ausweis!$H$5,Zinsen!$F$10:$G$56,2,1))-4*VLOOKUP(Ausweis!$H$5,Zinsen!$F$10:$G$56,2,1),0)*0 -> 0
B57: 1972 | C57: 2066 | D57: 94 | E57: 12 | F57: =MONTH(Ausweis!$H$10) -> 9 | G57: 9 | H57: 0.2815 | I57: 80660 | J57: 1323032.328 | K57: 1314137.25 | L57: 1314137.25 | M57: 0 | N57: 0 | O57: 0 | P57: 1314137.25 | Q57: =VLOOKUP(C57,Zinsen!$C$9:$E$73,2,1) -> 0.01 | R57: 75694.3 | S57: 6308 | T57: 0.0576 | U57: =VLOOKUP(B57,UWS!$A$3:$P$84,11,1)+($U$9-$AB$9)*0.15% -> 0.0396 | V57: =VLOOKUP(B57,UWS!$A$3:$P$84,11,1)+($V$9-$AB$9)*0.15% -> 0.0411 | W57: =VLOOKUP(B57,UWS!$A$3:$P$84,11,1)+($W$9-$AB$9)*0.15% -> 0.0426 | X57: =VLOOKUP(B57,UWS!$A$3:$P$84,11,1)+($X$9-$AB$9)*0.15% -> 0.0441 | Y57: =VLOOKUP(B57,UWS!$A$3:$P$84,11,1)+($Y$9-$AB$9)*0.15% -> 0.0456 | Z57: =VLOOKUP(B57,UWS!$A$3:$P$84,11,1)+($Z$9-$AB$9)*0.15% -> 0.0471 | AA57: =VLOOKUP(B57,UWS!$A$3:$P$84,11,1)+($AA$9-$AB$9)*0.15% -> 0.0486 | AB57: =VLOOKUP(B57,UWS!$A$3:$P$84,11,1) -> 0.0501 | AC57: =VLOOKUP(B57,UWS!$A$3:$P$84,11,1)+($AC$9-$AB$9)*0.15% -> 0.0516 | AD57: =VLOOKUP(B57,UWS!$A$3:$P$84,11,1)+($AD$9-$AB$9)*0.15% -> 0.0531 | AE57: =VLOOKUP(B57,UWS!$A$3:$P$84,11,1)+($AE$9-$AB$9)*0.15% -> 0.0546 | AF57: =VLOOKUP(B57,UWS!$A$3:$P$84,11,1)+($AF$9-$AB$9)*0.15% -> 0.0561 | AG57: =VLOOKUP(B57,UWS!$A$3:$P$84,11,1)+($AG$9-$AB$9)*0.15% -> 0.0576 | AK57: 61 | AL57: =VLOOKUP(AK57,'AGS Finanzierung'!$M$8:$P$64,$AL$8+1,0) -> 0.2815 | AN57: 0 | AO57: =Ausweis!$H$18 -> 0 | AP57: 0 | AR57: 1323032.328 | AT57: 61 | AU57: =VLOOKUP(AT57,'AGS FinanzierungVL2'!$M$8:$P$64,$AU$8+1,0) -> 0.11 | AW57: 0.2815 | AX57: =Ausweis!H18 -> 0 | AY57: 0 | AZ57: 0 | BB57: 94 | BC57: 1314137.25 | BE57: 95000 | BF57: =VLOOKUP(Ausweis!$H$5,Zinsen!$F$10:$G$56,2,)*1/2*Ausweis!$H$14 -> 14340 | BG57: =MIN(BE57-BF57,11/2*VLOOKUP(Ausweis!$H$5,Zinsen!$F$10:$G$56,2,1)) -> 80660 | BH57: =MAX(MIN(BE57,12*VLOOKUP(Ausweis!$H$5,Zinsen!$F$10:$G$56,2,1))-4*VLOOKUP(Ausweis!$H$5,Zinsen!$F$10:$G$56,2,1),0)*0 -> 0
B58: 1972 | C58: 2067 | D58: 95 | E58: 12 | F58: =MONTH(Ausweis!$H$10) -> 9 | G58: 9 | H58: 0.2815 | I58: 80660 | J58: 1358968.442 | K58: 1349984.4 | L58: 1349984.4 | M58: 0 | N58: 0 | O58: 0 | P58: 1349984.4 | Q58: =VLOOKUP(C58,Zinsen!$C$9:$E$73,2,1) -> 0.01 | R58: 77759.1 | S58: 6480 | T58: 0.0576 | U58: =VLOOKUP(B58,UWS!$A$3:$P$84,11,1)+($U$9-$AB$9)*0.15% -> 0.0396 | V58: =VLOOKUP(B58,UWS!$A$3:$P$84,11,1)+($V$9-$AB$9)*0.15% -> 0.0411 | W58: =VLOOKUP(B58,UWS!$A$3:$P$84,11,1)+($W$9-$AB$9)*0.15% -> 0.0426 | X58: =VLOOKUP(B58,UWS!$A$3:$P$84,11,1)+($X$9-$AB$9)*0.15% -> 0.0441 | Y58: =VLOOKUP(B58,UWS!$A$3:$P$84,11,1)+($Y$9-$AB$9)*0.15% -> 0.0456 | Z58: =VLOOKUP(B58,UWS!$A$3:$P$84,11,1)+($Z$9-$AB$9)*0.15% -> 0.0471 | AA58: =VLOOKUP(B58,UWS!$A$3:$P$84,11,1)+($AA$9-$AB$9)*0.15% -> 0.0486 | AB58: =VLOOKUP(B58,UWS!$A$3:$P$84,11,1) -> 0.0501 | AC58: =VLOOKUP(B58,UWS!$A$3:$P$84,11,1)+($AC$9-$AB$9)*0.15% -> 0.0516 | AD58: =VLOOKUP(B58,UWS!$A$3:$P$84,11,1)+($AD$9-$AB$9)*0.15% -> 0.0531 | AE58: =VLOOKUP(B58,UWS!$A$3:$P$84,11,1)+($AE$9-$AB$9)*0.15% -> 0.0546 | AF58: =VLOOKUP(B58,UWS!$A$3:$P$84,11,1)+($AF$9-$AB$9)*0.15% -> 0.0561 | AG58: =VLOOKUP(B58,UWS!$A$3:$P$84,11,1)+($AG$9-$AB$9)*0.15% -> 0.0576 | AK58: 62 | AL58: =VLOOKUP(AK58,'AGS Finanzierung'!$M$8:$P$64,$AL$8+1,0) -> 0.2815 | AN58: 0 | AO58: =Ausweis!$H$18 -> 0 | AP58: 0 | AR58: 1358968.442 | AT58: 62 | AU58: =VLOOKUP(AT58,'AGS FinanzierungVL2'!$M$8:$P$64,$AU$8+1,0) -> 0.11 | AW58: 0.2815 | AX58: =Ausweis!H18 -> 0 | AY58: 0 | AZ58: 0 | BB58: 95 | BC58: 1349984.4 | BE58: 95000 | BF58: =VLOOKUP(Ausweis!$H$5,Zinsen!$F$10:$G$56,2,)*1/2*Ausweis!$H$14 -> 14340 | BG58: =MIN(BE58-BF58,11/2*VLOOKUP(Ausweis!$H$5,Zinsen!$F$10:$G$56,2,1)) -> 80660 | BH58: =MAX(MIN(BE58,12*VLOOKUP(Ausweis!$H$5,Zinsen!$F$10:$G$56,2,1))-4*VLOOKUP(Ausweis!$H$5,Zinsen!$F$10:$G$56,2,1),0)*0 -> 0
B59: 1972 | C59: 2068 | D59: 96 | E59: 12 | F59: =MONTH(Ausweis!$H$10) -> 9 | G59: 9 | H59: 0.2815 | I59: 80660 | J59: 1395263.916 | K59: 1386190.05 | L59: 1386190.05 | M59: 0 | N59: 0 | O59: 0 | P59: 1386190.05 | Q59: =VLOOKUP(C59,Zinsen!$C$9:$E$73,2,1) -> 0.01 | R59: 79844.55 | S59: 6654 | T59: 0.0576 | U59: =VLOOKUP(B59,UWS!$A$3:$P$84,11,1)+($U$9-$AB$9)*0.15% -> 0.0396 | V59: =VLOOKUP(B59,UWS!$A$3:$P$84,11,1)+($V$9-$AB$9)*0.15% -> 0.0411 | W59: =VLOOKUP(B59,UWS!$A$3:$P$84,11,1)+($W$9-$AB$9)*0.15% -> 0.0426 | X59: =VLOOKUP(B59,UWS!$A$3:$P$84,11,1)+($X$9-$AB$9)*0.15% -> 0.0441 | Y59: =VLOOKUP(B59,UWS!$A$3:$P$84,11,1)+($Y$9-$AB$9)*0.15% -> 0.0456 | Z59: =VLOOKUP(B59,UWS!$A$3:$P$84,11,1)+($Z$9-$AB$9)*0.15% -> 0.0471 | AA59: =VLOOKUP(B59,UWS!$A$3:$P$84,11,1)+($AA$9-$AB$9)*0.15% -> 0.0486 | AB59: =VLOOKUP(B59,UWS!$A$3:$P$84,11,1) -> 0.0501 | AC59: =VLOOKUP(B59,UWS!$A$3:$P$84,11,1)+($AC$9-$AB$9)*0.15% -> 0.0516 | AD59: =VLOOKUP(B59,UWS!$A$3:$P$84,11,1)+($AD$9-$AB$9)*0.15% -> 0.0531 | AE59: =VLOOKUP(B59,UWS!$A$3:$P$84,11,1)+($AE$9-$AB$9)*0.15% -> 0.0546 | AF59: =VLOOKUP(B59,UWS!$A$3:$P$84,11,1)+($AF$9-$AB$9)*0.15% -> 0.0561 | AG59: =VLOOKUP(B59,UWS!$A$3:$P$84,11,1)+($AG$9-$AB$9)*0.15% -> 0.0576 | AK59: 63 | AL59: =VLOOKUP(AK59,'AGS Finanzierung'!$M$8:$P$64,$AL$8+1,0) -> 0.2815 | AN59: 0 | AO59: =Ausweis!$H$18 -> 0 | AP59: 0 | AR59: 1395263.916 | AT59: 63 | AU59: =VLOOKUP(AT59,'AGS FinanzierungVL2'!$M$8:$P$64,$AU$8+1,0) -> 0.11 | AW59: 0.2815 | AX59: =Ausweis!H18 -> 0 | AY59: 0 | AZ59: 0 | BB59: 96 | BC59: 1386190.05 | BE59: 95000 | BF59: =VLOOKUP(Ausweis!$H$5,Zinsen!$F$10:$G$56,2,)*1/2*Ausweis!$H$14 -> 14340 | BG59: =MIN(BE59-BF59,11/2*VLOOKUP(Ausweis!$H$5,Zinsen!$F$10:$G$56,2,1)) -> 80660 | BH59: =MAX(MIN(BE59,12*VLOOKUP(Ausweis!$H$5,Zinsen!$F$10:$G$56,2,1))-4*VLOOKUP(Ausweis!$H$5,Zinsen!$F$10:$G$56,2,1),0)*0 -> 0
B60: 1972 | C60: 2069 | D60: 97 | E60: 12 | F60: =MONTH(Ausweis!$H$10) -> 9 | G60: 9 | H60: 0.2815 | I60: 80660 | J60: 1431922.345 | K60: 1422757.75 | L60: 1422757.75 | M60: 0 | N60: 0 | O60: 0 | P60: 1422757.75 | Q60: =VLOOKUP(C60,Zinsen!$C$9:$E$73,2,1) -> 0.01 | R60: 81950.85 | S60: 6829 | T60: 0.0576 | U60: =VLOOKUP(B60,UWS!$A$3:$P$84,11,1)+($U$9-$AB$9)*0.15% -> 0.0396 | V60: =VLOOKUP(B60,UWS!$A$3:$P$84,11,1)+($V$9-$AB$9)*0.15% -> 0.0411 | W60: =VLOOKUP(B60,UWS!$A$3:$P$84,11,1)+($W$9-$AB$9)*0.15% -> 0.0426 | X60: =VLOOKUP(B60,UWS!$A$3:$P$84,11,1)+($X$9-$AB$9)*0.15% -> 0.0441 | Y60: =VLOOKUP(B60,UWS!$A$3:$P$84,11,1)+($Y$9-$AB$9)*0.15% -> 0.0456 | Z60: =VLOOKUP(B60,UWS!$A$3:$P$84,11,1)+($Z$9-$AB$9)*0.15% -> 0.0471 | AA60: =VLOOKUP(B60,UWS!$A$3:$P$84,11,1)+($AA$9-$AB$9)*0.15% -> 0.0486 | AB60: =VLOOKUP(B60,UWS!$A$3:$P$84,11,1) -> 0.0501 | AC60: =VLOOKUP(B60,UWS!$A$3:$P$84,11,1)+($AC$9-$AB$9)*0.15% -> 0.0516 | AD60: =VLOOKUP(B60,UWS!$A$3:$P$84,11,1)+($AD$9-$AB$9)*0.15% -> 0.0531 | AE60: =VLOOKUP(B60,UWS!$A$3:$P$84,11,1)+($AE$9-$AB$9)*0.15% -> 0.0546 | AF60: =VLOOKUP(B60,UWS!$A$3:$P$84,11,1)+($AF$9-$AB$9)*0.15% -> 0.0561 | AG60: =VLOOKUP(B60,UWS!$A$3:$P$84,11,1)+($AG$9-$AB$9)*0.15% -> 0.0576 | AK60: 64 | AL60: =VLOOKUP(AK60,'AGS Finanzierung'!$M$8:$P$64,$AL$8+1,0) -> 0.2815 | AN60: 0 | AO60: =Ausweis!$H$18 -> 0 | AP60: 0 | AR60: 1431922.345 | AT60: 64 | AU60: =VLOOKUP(AT60,'AGS FinanzierungVL2'!$M$8:$P$64,$AU$8+1,0) -> 0.11 | AW60: 0.2815 | AX60: =Ausweis!H18 -> 0 | AY60: 0 | AZ60: 0 | BB60: 97 | BC60: 1422757.75 | BE60: 95000 | BF60: =VLOOKUP(Ausweis!$H$5,Zinsen!$F$10:$G$56,2,)*1/2*Ausweis!$H$14 -> 14340 | BG60: =MIN(BE60-BF60,11/2*VLOOKUP(Ausweis!$H$5,Zinsen!$F$10:$G$56,2,1)) -> 80660 | BH60: =MAX(MIN(BE60,12*VLOOKUP(Ausweis!$H$5,Zinsen!$F$10:$G$56,2,1))-4*VLOOKUP(Ausweis!$H$5,Zinsen!$F$10:$G$56,2,1),0)*0 -> 0
B61: 1972 | C61: 2070 | D61: 98 | E61: 12 | F61: =MONTH(Ausweis!$H$10) -> 9 | G61: 9 | H61: 0.2815 | I61: 80660 | J61: 1468947.359 | K61: 1459691.1 | L61: 1459691.1 | M61: 0 | N61: 0 | O61: 0 | P61: 1459691.1 | Q61: =VLOOKUP(C61,Zinsen!$C$9:$E$73,2,1) -> 0.01 | R61: 84078.2 | S61: 7007 | T61: 0.0576 | U61: =VLOOKUP(B61,UWS!$A$3:$P$84,11,1)+($U$9-$AB$9)*0.15% -> 0.0396 | V61: =VLOOKUP(B61,UWS!$A$3:$P$84,11,1)+($V$9-$AB$9)*0.15% -> 0.0411 | W61: =VLOOKUP(B61,UWS!$A$3:$P$84,11,1)+($W$9-$AB$9)*0.15% -> 0.0426 | X61: =VLOOKUP(B61,UWS!$A$3:$P$84,11,1)+($X$9-$AB$9)*0.15% -> 0.0441 | Y61: =VLOOKUP(B61,UWS!$A$3:$P$84,11,1)+($Y$9-$AB$9)*0.15% -> 0.0456 | Z61: =VLOOKUP(B61,UWS!$A$3:$P$84,11,1)+($Z$9-$AB$9)*0.15% -> 0.0471 | AA61: =VLOOKUP(B61,UWS!$A$3:$P$84,11,1)+($AA$9-$AB$9)*0.15% -> 0.0486 | AB61: =VLOOKUP(B61,UWS!$A$3:$P$84,11,1) -> 0.0501 | AC61: =VLOOKUP(B61,UWS!$A$3:$P$84,11,1)+($AC$9-$AB$9)*0.15% -> 0.0516 | AD61: =VLOOKUP(B61,UWS!$A$3:$P$84,11,1)+($AD$9-$AB$9)*0.15% -> 0.0531 | AE61: =VLOOKUP(B61,UWS!$A$3:$P$84,11,1)+($AE$9-$AB$9)*0.15% -> 0.0546 | AF61: =VLOOKUP(B61,UWS!$A$3:$P$84,11,1)+($AF$9-$AB$9)*0.15% -> 0.0561 | AG61: =VLOOKUP(B61,UWS!$A$3:$P$84,11,1)+($AG$9-$AB$9)*0.15% -> 0.0576 | AK61: 65 | AL61: =VLOOKUP(AK61,'AGS Finanzierung'!$M$8:$P$64,$AL$8+1,0) -> 0.2815 | AN61: 0 | AO61: =Ausweis!$H$18 -> 0 | AP61: 0 | AR61: 1468947.359 | AT61: 65 | AU61: =VLOOKUP(AT61,'AGS FinanzierungVL2'!$M$8:$P$64,$AU$8+1,0) -> 0.11 | AW61: 0.2815 | AX61: =Ausweis!H18 -> 0 | AY61: 0 | AZ61: 0 | BB61: 98 | BC61: 1459691.1 | BE61: 95000 | BF61: =VLOOKUP(Ausweis!$H$5,Zinsen!$F$10:$G$56,2,)*1/2*Ausweis!$H$14 -> 14340 | BG61: =MIN(BE61-BF61,11/2*VLOOKUP(Ausweis!$H$5,Zinsen!$F$10:$G$56,2,1)) -> 80660 | BH61: =MAX(MIN(BE61,12*VLOOKUP(Ausweis!$H$5,Zinsen!$F$10:$G$56,2,1))-4*VLOOKUP(Ausweis!$H$5,Zinsen!$F$10:$G$56,2,1),0)*0 -> 0
B62: 1972 | C62: 2071 | D62: =C62-B62 -> 99 | E62: 12 | F62: =MONTH(Ausweis!$H$10) -> 9 | G62: 9 | H62: 0.2815 | I62: 80660 | J62: 1506342.622 | K62: 1496993.8 | L62: 1496993.8 | M62: 0 | N62: 0 | O62: 0 | P62: 1496993.8 | Q62: =VLOOKUP(C62,Zinsen!$C$9:$E$73,2,1) -> 0.01 | R62: 86226.85 | S62: 7186 | T62: 0.0576 | U62: =VLOOKUP(B62,UWS!$A$3:$P$84,11,1)+($U$9-$AB$9)*0.15% -> 0.0396 | V62: =VLOOKUP(B62,UWS!$A$3:$P$84,11,1)+($V$9-$AB$9)*0.15% -> 0.0411 | W62: =VLOOKUP(B62,UWS!$A$3:$P$84,11,1)+($W$9-$AB$9)*0.15% -> 0.0426 | X62: =VLOOKUP(B62,UWS!$A$3:$P$84,11,1)+($X$9-$AB$9)*0.15% -> 0.0441 | Y62: =VLOOKUP(B62,UWS!$A$3:$P$84,11,1)+($Y$9-$AB$9)*0.15% -> 0.0456 | Z62: =VLOOKUP(B62,UWS!$A$3:$P$84,11,1)+($Z$9-$AB$9)*0.15% -> 0.0471 | AA62: =VLOOKUP(B62,UWS!$A$3:$P$84,11,1)+($AA$9-$AB$9)*0.15% -> 0.0486 | AB62: =VLOOKUP(B62,UWS!$A$3:$P$84,11,1) -> 0.0501 | AC62: =VLOOKUP(B62,UWS!$A$3:$P$84,11,1)+($AC$9-$AB$9)*0.15% -> 0.0516 | AD62: =VLOOKUP(B62,UWS!$A$3:$P$84,11,1)+($AD$9-$AB$9)*0.15% -> 0.0531 | AE62: =VLOOKUP(B62,UWS!$A$3:$P$84,11,1)+($AE$9-$AB$9)*0.15% -> 0.0546 | AF62: =VLOOKUP(B62,UWS!$A$3:$P$84,11,1)+($AF$9-$AB$9)*0.15% -> 0.0561 | AG62: =VLOOKUP(B62,UWS!$A$3:$P$84,11,1)+($AG$9-$AB$9)*0.15% -> 0.0576 | AK62: 66 | AL62: =VLOOKUP(AK62,'AGS Finanzierung'!$M$8:$P$64,$AL$8+1,0) -> 0.2815 | AN62: 0 | AO62: =Ausweis!$H$18 -> 0 | AP62: 0 | AR62: =J62+AP62 -> 1506342.622 | AT62: 66 | AU62: =VLOOKUP(AT62,'AGS FinanzierungVL2'!$M$8:$P$64,$AU$8+1,0) -> 0 | AW62: 0.2815 | AX62: =Ausweis!H18 -> 0 | AY62: 0 | AZ62: 0 | BB62: 99 | BC62: 1496993.8 | BE62: 95000 | BF62: =VLOOKUP(Ausweis!$H$5,Zinsen!$F$10:$G$56,2,)*1/2*Ausweis!$H$14 -> 14340 | BG62: =MIN(BE62-BF62,11/2*VLOOKUP(Ausweis!$H$5,Zinsen!$F$10:$G$56,2,1)) -> 80660 | BH62: =MAX(MIN(BE62,12*VLOOKUP(Ausweis!$H$5,Zinsen!$F$10:$G$56,2,1))-4*VLOOKUP(Ausweis!$H$5,Zinsen!$F$10:$G$56,2,1),0)*0 -> 0
B63: 1972 | C63: 2072 | D63: =C63-B63 -> 100 | E63: 12 | F63: =MONTH(Ausweis!$H$10) -> 9 | G63: 9 | H63: 0.2815 | I63: 80660 | J63: 1544111.839 | K63: 1534669.55 | L63: 1534669.55 | M63: 0 | N63: 0 | O63: 0 | P63: 1534669.55 | Q63: =VLOOKUP(C63,Zinsen!$C$9:$E$73,2,1) -> 0.01 | R63: 88396.95 | S63: 7366 | T63: 0.0576 | U63: =VLOOKUP(B63,UWS!$A$3:$P$84,11,1)+($U$9-$AB$9)*0.15% -> 0.0396 | V63: =VLOOKUP(B63,UWS!$A$3:$P$84,11,1)+($V$9-$AB$9)*0.15% -> 0.0411 | W63: =VLOOKUP(B63,UWS!$A$3:$P$84,11,1)+($W$9-$AB$9)*0.15% -> 0.0426 | X63: =VLOOKUP(B63,UWS!$A$3:$P$84,11,1)+($X$9-$AB$9)*0.15% -> 0.0441 | Y63: =VLOOKUP(B63,UWS!$A$3:$P$84,11,1)+($Y$9-$AB$9)*0.15% -> 0.0456 | Z63: =VLOOKUP(B63,UWS!$A$3:$P$84,11,1)+($Z$9-$AB$9)*0.15% -> 0.0471 | AA63: =VLOOKUP(B63,UWS!$A$3:$P$84,11,1)+($AA$9-$AB$9)*0.15% -> 0.0486 | AB63: =VLOOKUP(B63,UWS!$A$3:$P$84,11,1) -> 0.0501 | AC63: =VLOOKUP(B63,UWS!$A$3:$P$84,11,1)+($AC$9-$AB$9)*0.15% -> 0.0516 | AD63: =VLOOKUP(B63,UWS!$A$3:$P$84,11,1)+($AD$9-$AB$9)*0.15% -> 0.0531 | AE63: =VLOOKUP(B63,UWS!$A$3:$P$84,11,1)+($AE$9-$AB$9)*0.15% -> 0.0546 | AF63: =VLOOKUP(B63,UWS!$A$3:$P$84,11,1)+($AF$9-$AB$9)*0.15% -> 0.0561 | AG63: =VLOOKUP(B63,UWS!$A$3:$P$84,11,1)+($AG$9-$AB$9)*0.15% -> 0.0576 | AK63: 67 | AL63: =VLOOKUP(AK63,'AGS Finanzierung'!$M$8:$P$64,$AL$8+1,0) -> 0.2815 | AN63: 0 | AO63: =Ausweis!$H$18 -> 0 | AP63: 0 | AR63: =J63+AP63 -> 1544111.839 | AT63: 67 | AU63: =VLOOKUP(AT63,'AGS FinanzierungVL2'!$M$8:$P$64,$AU$8+1,0) -> 0 | AW63: 0.2815 | AX63: =Ausweis!H18 -> 0 | AY63: 0 | AZ63: 0 | BB63: 100 | BC63: 1534669.55 | BE63: 95000 | BF63: =VLOOKUP(Ausweis!$H$5,Zinsen!$F$10:$G$56,2,)*1/2*Ausweis!$H$14 -> 14340 | BG63: =MIN(BE63-BF63,11/2*VLOOKUP(Ausweis!$H$5,Zinsen!$F$10:$G$56,2,1)) -> 80660 | BH63: =MAX(MIN(BE63,12*VLOOKUP(Ausweis!$H$5,Zinsen!$F$10:$G$56,2,1))-4*VLOOKUP(Ausweis!$H$5,Zinsen!$F$10:$G$56,2,1),0)*0 -> 0
B64: 1972 | C64: 2073 | D64: =C64-B64 -> 101 | E64: 12 | F64: =MONTH(Ausweis!$H$10) -> 9 | G64: 9 | H64: 0.2815 | I64: 80660 | J64: 1582258.747 | K64: 1572722 | L64: 1572722 | M64: 0 | N64: 0 | O64: 0 | P64: 1572722 | Q64: =VLOOKUP(C64,Zinsen!$C$9:$E$73,2,1) -> 0.01 | R64: 90588.8 | S64: 7549 | T64: 0.0576 | U64: =VLOOKUP(B64,UWS!$A$3:$P$84,11,1)+($U$9-$AB$9)*0.15% -> 0.0396 | V64: =VLOOKUP(B64,UWS!$A$3:$P$84,11,1)+($V$9-$AB$9)*0.15% -> 0.0411 | W64: =VLOOKUP(B64,UWS!$A$3:$P$84,11,1)+($W$9-$AB$9)*0.15% -> 0.0426 | X64: =VLOOKUP(B64,UWS!$A$3:$P$84,11,1)+($X$9-$AB$9)*0.15% -> 0.0441 | Y64: =VLOOKUP(B64,UWS!$A$3:$P$84,11,1)+($Y$9-$AB$9)*0.15% -> 0.0456 | Z64: =VLOOKUP(B64,UWS!$A$3:$P$84,11,1)+($Z$9-$AB$9)*0.15% -> 0.0471 | AA64: =VLOOKUP(B64,UWS!$A$3:$P$84,11,1)+($AA$9-$AB$9)*0.15% -> 0.0486 | AB64: =VLOOKUP(B64,UWS!$A$3:$P$84,11,1) -> 0.0501 | AC64: =VLOOKUP(B64,UWS!$A$3:$P$84,11,1)+($AC$9-$AB$9)*0.15% -> 0.0516 | AD64: =VLOOKUP(B64,UWS!$A$3:$P$84,11,1)+($AD$9-$AB$9)*0.15% -> 0.0531 | AE64: =VLOOKUP(B64,UWS!$A$3:$P$84,11,1)+($AE$9-$AB$9)*0.15% -> 0.0546 | AF64: =VLOOKUP(B64,UWS!$A$3:$P$84,11,1)+($AF$9-$AB$9)*0.15% -> 0.0561 | AG64: =VLOOKUP(B64,UWS!$A$3:$P$84,11,1)+($AG$9-$AB$9)*0.15% -> 0.0576 | AK64: 68 | AL64: =VLOOKUP(AK64,'AGS Finanzierung'!$M$8:$P$64,$AL$8+1,0) -> 0.2815 | AN64: 0 | AO64: =Ausweis!$H$18 -> 0 | AP64: 0 | AR64: =J64+AP64 -> 1582258.747 | AT64: 68 | AU64: =VLOOKUP(AT64,'AGS FinanzierungVL2'!$M$8:$P$64,$AU$8+1,0) -> 0 | AW64: 0.2815 | AX64: =Ausweis!H18 -> 0 | AY64: 0 | AZ64: 0 | BB64: 101 | BC64: 1572722 | BE64: 95000 | BF64: =VLOOKUP(Ausweis!$H$5,Zinsen!$F$10:$G$56,2,)*1/2*Ausweis!$H$14 -> 14340 | BG64: =MIN(BE64-BF64,11/2*VLOOKUP(Ausweis!$H$5,Zinsen!$F$10:$G$56,2,1)) -> 80660 | BH64: =MAX(MIN(BE64,12*VLOOKUP(Ausweis!$H$5,Zinsen!$F$10:$G$56,2,1))-4*VLOOKUP(Ausweis!$H$5,Zinsen!$F$10:$G$56,2,1),0)*0 -> 0
B65: 1972 | C65: 2074 | D65: =C65-B65 -> 102 | E65: 12 | F65: =MONTH(Ausweis!$H$10) -> 9 | G65: 9 | H65: 0.2815 | I65: 80660 | J65: 1620787.124 | K65: 1611155.05 | L65: 1611155.05 | M65: 0 | N65: 0 | O65: 0 | P65: 1611155.05 | Q65: =VLOOKUP(C65,Zinsen!$C$9:$E$73,2,1) -> 0.01 | R65: 92802.55 | S65: 7734 | T65: 0.0576 | U65: =VLOOKUP(B65,UWS!$A$3:$P$84,11,1)+($U$9-$AB$9)*0.15% -> 0.0396 | V65: =VLOOKUP(B65,UWS!$A$3:$P$84,11,1)+($V$9-$AB$9)*0.15% -> 0.0411 | W65: =VLOOKUP(B65,UWS!$A$3:$P$84,11,1)+($W$9-$AB$9)*0.15% -> 0.0426 | X65: =VLOOKUP(B65,UWS!$A$3:$P$84,11,1)+($X$9-$AB$9)*0.15% -> 0.0441 | Y65: =VLOOKUP(B65,UWS!$A$3:$P$84,11,1)+($Y$9-$AB$9)*0.15% -> 0.0456 | Z65: =VLOOKUP(B65,UWS!$A$3:$P$84,11,1)+($Z$9-$AB$9)*0.15% -> 0.0471 | AA65: =VLOOKUP(B65,UWS!$A$3:$P$84,11,1)+($AA$9-$AB$9)*0.15% -> 0.0486 | AB65: =VLOOKUP(B65,UWS!$A$3:$P$84,11,1) -> 0.0501 | AC65: =VLOOKUP(B65,UWS!$A$3:$P$84,11,1)+($AC$9-$AB$9)*0.15% -> 0.0516 | AD65: =VLOOKUP(B65,UWS!$A$3:$P$84,11,1)+($AD$9-$AB$9)*0.15% -> 0.0531 | AE65: =VLOOKUP(B65,UWS!$A$3:$P$84,11,1)+($AE$9-$AB$9)*0.15% -> 0.0546 | AF65: =VLOOKUP(B65,UWS!$A$3:$P$84,11,1)+($AF$9-$AB$9)*0.15% -> 0.0561 | AG65: =VLOOKUP(B65,UWS!$A$3:$P$84,11,1)+($AG$9-$AB$9)*0.15% -> 0.0576 | AK65: 69 | AL65: =VLOOKUP(AK65,'AGS Finanzierung'!$M$8:$P$64,$AL$8+1,0) -> 0.2815 | AN65: 0 | AO65: =Ausweis!$H$18 -> 0 | AP65: 0 | AR65: =J65+AP65 -> 1620787.124 | AT65: 69 | AU65: =VLOOKUP(AT65,'AGS FinanzierungVL2'!$M$8:$P$64,$AU$8+1,0) -> 0 | AW65: 0.2815 | AX65: =Ausweis!H18 -> 0 | AY65: 0 | AZ65: 0 | BB65: 102 | BC65: 1611155.05 | BE65: 95000 | BF65: =VLOOKUP(Ausweis!$H$5,Zinsen!$F$10:$G$56,2,)*1/2*Ausweis!$H$14 -> 14340 | BG65: =MIN(BE65-BF65,11/2*VLOOKUP(Ausweis!$H$5,Zinsen!$F$10:$G$56,2,1)) -> 80660 | BH65: =MAX(MIN(BE65,12*VLOOKUP(Ausweis!$H$5,Zinsen!$F$10:$G$56,2,1))-4*VLOOKUP(Ausweis!$H$5,Zinsen!$F$10:$G$56,2,1),0)*0 -> 0
B66: 1972 | C66: 2075 | D66: =C66-B66 -> 103 | E66: 12 | F66: =MONTH(Ausweis!$H$10) -> 9 | G66: 9 | H66: 0.2815 | I66: 80660 | J66: 1659700.786 | K66: 1649972.35 | L66: 1649972.35 | M66: 0 | N66: 0 | O66: 0 | P66: 1649972.35 | Q66: =VLOOKUP(C66,Zinsen!$C$9:$E$73,2,1) -> 0.01 | R66: 95038.4 | S66: 7920 | T66: 0.0576 | U66: =VLOOKUP(B66,UWS!$A$3:$P$84,11,1)+($U$9-$AB$9)*0.15% -> 0.0396 | V66: =VLOOKUP(B66,UWS!$A$3:$P$84,11,1)+($V$9-$AB$9)*0.15% -> 0.0411 | W66: =VLOOKUP(B66,UWS!$A$3:$P$84,11,1)+($W$9-$AB$9)*0.15% -> 0.0426 | X66: =VLOOKUP(B66,UWS!$A$3:$P$84,11,1)+($X$9-$AB$9)*0.15% -> 0.0441 | Y66: =VLOOKUP(B66,UWS!$A$3:$P$84,11,1)+($Y$9-$AB$9)*0.15% -> 0.0456 | Z66: =VLOOKUP(B66,UWS!$A$3:$P$84,11,1)+($Z$9-$AB$9)*0.15% -> 0.0471 | AA66: =VLOOKUP(B66,UWS!$A$3:$P$84,11,1)+($AA$9-$AB$9)*0.15% -> 0.0486 | AB66: =VLOOKUP(B66,UWS!$A$3:$P$84,11,1) -> 0.0501 | AC66: =VLOOKUP(B66,UWS!$A$3:$P$84,11,1)+($AC$9-$AB$9)*0.15% -> 0.0516 | AD66: =VLOOKUP(B66,UWS!$A$3:$P$84,11,1)+($AD$9-$AB$9)*0.15% -> 0.0531 | AE66: =VLOOKUP(B66,UWS!$A$3:$P$84,11,1)+($AE$9-$AB$9)*0.15% -> 0.0546 | AF66: =VLOOKUP(B66,UWS!$A$3:$P$84,11,1)+($AF$9-$AB$9)*0.15% -> 0.0561 | AG66: =VLOOKUP(B66,UWS!$A$3:$P$84,11,1)+($AG$9-$AB$9)*0.15% -> 0.0576 | AK66: 70 | AL66: =VLOOKUP(AK66,'AGS Finanzierung'!$M$8:$P$64,$AL$8+1,0) -> 0.2815 | AN66: 0 | AO66: =Ausweis!$H$18 -> 0 | AP66: 0 | AR66: =J66+AP66 -> 1659700.786 | AT66: 70 | AU66: =VLOOKUP(AT66,'AGS Finanzierung'!$M$8:$P$64,$AL$8+1,0) -> 0.2815 | AW66: 0.2815 | AX66: =Ausweis!H18 -> 0 | AY66: 0 | AZ66: 0 | BB66: 103 | BC66: 1649972.35 | BE66: 95000 | BF66: =VLOOKUP(Ausweis!$H$5,Zinsen!$F$10:$G$56,2,)*1/2*Ausweis!$H$14 -> 14340 | BG66: =MIN(BE66-BF66,11/2*VLOOKUP(Ausweis!$H$5,Zinsen!$F$10:$G$56,2,1)) -> 80660 | BH66: =MAX(MIN(BE66,12*VLOOKUP(Ausweis!$H$5,Zinsen!$F$10:$G$56,2,1))-4*VLOOKUP(Ausweis!$H$5,Zinsen!$F$10:$G$56,2,1),0)*0 -> 0
B69: Einkauf | M69: Vorbezug | X69: Scheidung
B70: Betrag | C70: =Ausweis!B76 -> 0 | M70: Betrag | N70: =Ausweis!F76 -> 0 | X70: Betrag | Y70: =Ausweis!I76 -> 0
B71: Datum | C71: =Ausweis!B77 -> 2020-11-06 | M71: Datum | N71: =Ausweis!F77 -> 2020-11-06 | X71: Datum | Y71: =Ausweis!I77 -> 2020-11-06
B72: Geburtsjahr | D72: Alter | E72: Zins | F72: Monate | G72: Tage | H72: Monate bis s | I72: AGH Einkauf 31.12. | J72: AGH Einkauf eofM Birthday | K72: AGH Einkauf Wunschpens | M72: Geburtsjahr | O72: Alter | P72: Zins | Q72: Monate | R72: Tage | S72: Monate bis s | T72: AGH Einkauf 31.12. | U72: AGH Einkauf eofM Birthday | V72: AGH Einkauf Wunschpens | X72: Geburtsjahr | Z72: Alter | AA72: Zins | AB72: Monate | AC72: Tage | AD72: Monate bis s | AE72: AGH Einkauf 31.12. | AF72: AGH Einkauf eofM Birthday | AG72: AGH Einkauf Wunschpens
B73: =YEAR(Ausweis!H10) -> 1972 | C73: =YEAR(C71) -> 2020 | D73: =C73-B73 -> 48 | E73: =VLOOKUP(C73,Zinsen!$C$9:$D$73,2,1) -> 0.01 | F73: =12-(MONTH(C71)) -> 1 | G73: =30-MIN(DAY(C71),30) -> 24 | H73: =MONTH(Ausweis!$H$10) -> 9 | I73: =C70*(1+E73/360*(F73*30+G73)) -> 0 | J73: =MROUND(C70*(1+E73/360*((F73-(12-H73))*30+G73)),0.05) -> 0 | K73: =MROUND(C70*(1+E73/360*((F73-(12-$G$12))*30+G73)),0.05) -> 0 | M73: =B73 -> 1972 | N73: =YEAR(N71) -> 2020 | O73: =N73-M73 -> 48 | P73: =VLOOKUP(N73,Zinsen!$C$9:$D$73,2,1) -> 0.01 | Q73: =12-(MONTH(N71)) -> 1 | R73: =30-MIN(DAY(N71),30) -> 24 | S73: =MONTH(Ausweis!$H$10) -> 9 | T73: =N70*(1+P73/360*(Q73*30+R73)) -> 0 | U73: =MROUND(N70*(1+P73/360*((Q73-(12-S73))*30+R73)),0.05) -> 0 | V73: =MROUND(N70*(1+P73/360*((Q73-(12-$G$12))*30+R73)),0.05) -> 0 | X73: =M73 -> 1972 | Y73: =YEAR(Y71) -> 2020 | Z73: =Y73-X73 -> 48 | AA73: =VLOOKUP(Y73,Zinsen!$C$9:$D$73,2,1) -> 0.01 | AB73: =12-(MONTH(Y71)) -> 1 | AC73: =30-MIN(DAY(Y71),30) -> 24 | AD73: =MONTH(Ausweis!$H$10) -> 9 | AE73: =Y70*(1+AA73/360*(AB73*30+AC73)) -> 0 | AF73: =MROUND(Y70*(1+AA73/360*((AB73-(12-AD73))*30+AC73)),0.05) -> 0 | AG73: =MROUND(Y70*(1+AA73/360*((AB73-(12-$G$12))*30+AC73)),0.05) -> 0
B74: =B73 -> 1972 | C74: =C73+1 -> 2021 | D74: =C74-B74 -> 49 | E74: =VLOOKUP(C74,Zinsen!$C$9:$D$73,2,1) -> 0.01 | F74: 12 | H74: =MONTH(Ausweis!$H$10) -> 9 | I74: =I73*(1+E74/360*(F74*30+G74)) -> 0 | J74: =MROUND(I73*(1+E74/12*H74),0.05) -> 0 | K74: =MROUND(I73*(1+E74/12*$G$12),0.05) -> 0 | M74: =M73 -> 1972 | N74: =N73+1 -> 2021 | O74: =N74-M74 -> 49 | P74: =VLOOKUP(N74,Zinsen!$C$9:$D$73,2,1) -> 0.01 | Q74: 12 | S74: =MONTH(Ausweis!$H$10) -> 9 | T74: =T73*(1+P74/360*(Q74*30+R74)) -> 0 | U74: =MROUND(T73*(1+P74/12*S74),0.05) -> 0 | V74: =MROUND(T73*(1+P74/12*$G$12),0.05) -> 0 | X74: =X73 -> 1972 | Y74: =Y73+1 -> 2021 | Z74: =Y74-X74 -> 49 | AA74: =VLOOKUP(Y74,Zinsen!$C$9:$D$73,2,1) -> 0.01 | AB74: 12 | AD74: =MONTH(Ausweis!$H$10) -> 9 | AE74: =AE73*(1+AA74/360*(AB74*30+AC74)) -> 0 | AF74: =MROUND(AE73*(1+AA74/12*AD74),0.05) -> 0 | AG74: =MROUND(AE73*(1+AA74/12*$G$12),0.05) -> 0
B75: =B74 -> 1972 | C75: =C74+1 -> 2022 | D75: =C75-B75 -> 50 | E75: =VLOOKUP(C75,Zinsen!$C$9:$D$73,2,1) -> 0.01 | F75: 12 | H75: =MONTH(Ausweis!$H$10) -> 9 | I75: =I74*(1+E75/360*(F75*30+G75)) -> 0 | J75: =MROUND(I74*(1+E75/12*H75),0.05) -> 0 | K75: =MROUND(I74*(1+E75/12*$G$12),0.05) -> 0 | M75: =M74 -> 1972 | N75: =N74+1 -> 2022 | O75: =N75-M75 -> 50 | P75: =VLOOKUP(N75,Zinsen!$C$9:$D$73,2,1) -> 0.01 | Q75: 12 | S75: =MONTH(Ausweis!$H$10) -> 9 | T75: =T74*(1+P75/360*(Q75*30+R75)) -> 0 | U75: =MROUND(T74*(1+P75/12*S75),0.05) -> 0 | V75: =MROUND(T74*(1+P75/12*$G$12),0.05) -> 0 | X75: =X74 -> 1972 | Y75: =Y74+1 -> 2022 | Z75: =Y75-X75 -> 50 | AA75: =VLOOKUP(Y75,Zinsen!$C$9:$D$73,2,1) -> 0.01 | AB75: 12 | AD75: =MONTH(Ausweis!$H$10) -> 9 | AE75: =AE74*(1+AA75/360*(AB75*30+AC75)) -> 0 | AF75: =MROUND(AE74*(1+AA75/12*AD75),0.05) -> 0 | AG75: =MROUND(AE74*(1+AA75/12*$G$12),0.05) -> 0
B76: 1972 | C76: 2023 | D76: 51 | E76: =VLOOKUP(C76,Zinsen!$C$9:$D$73,2,1) -> 0.01 | F76: 12 | H76: =MONTH(Ausweis!$H$10) -> 9 | I76: 0 | J76: =MROUND(I75*(1+E76/12*H76),0.05) -> 0 | K76: 0 | M76: 1972 | N76: 2023 | O76: 51 | P76: =VLOOKUP(N76,Zinsen!$C$9:$D$73,2,1) -> 0.01 | Q76: 12 | S76: =MONTH(Ausweis!$H$10) -> 9 | T76: 0 | U76: 0 | V76: 0 | X76: 1972 | Y76: 2023 | Z76: 51 | AA76: =VLOOKUP(Y76,Zinsen!$C$9:$D$73,2,1) -> 0.01 | AB76: 12 | AD76: =MONTH(Ausweis!$H$10) -> 9 | AE76: 0 | AF76: 0 | AG76: 0
B77: 1972 | C77: 2024 | D77: 52 | E77: =VLOOKUP(C77,Zinsen!$C$9:$D$73,2,1) -> 0.01 | F77: 12 | H77: =MONTH(Ausweis!$H$10) -> 9 | I77: 0 | J77: =MROUND(I76*(1+E77/12*H77),0.05) -> 0 | K77: 0 | M77: 1972 | N77: 2024 | O77: 52 | P77: =VLOOKUP(N77,Zinsen!$C$9:$D$73,2,1) -> 0.01 | Q77: 12 | S77: =MONTH(Ausweis!$H$10) -> 9 | T77: 0 | U77: 0 | V77: 0 | X77: 1972 | Y77: 2024 | Z77: 52 | AA77: =VLOOKUP(Y77,Zinsen!$C$9:$D$73,2,1) -> 0.01 | AB77: 12 | AD77: =MONTH(Ausweis!$H$10) -> 9 | AE77: 0 | AF77: 0 | AG77: 0
B78: 1972 | C78: 2025 | D78: 53 | E78: =VLOOKUP(C78,Zinsen!$C$9:$D$73,2,1) -> 0.01 | F78: 12 | H78: =MONTH(Ausweis!$H$10) -> 9 | I78: 0 | J78: 0 | K78: 0 | M78: 1972 | N78: 2025 | O78: 53 | P78: =VLOOKUP(N78,Zinsen!$C$9:$D$73,2,1) -> 0.01 | Q78: 12 | S78: =MONTH(Ausweis!$H$10) -> 9 | T78: 0 | U78: 0 | V78: 0 | X78: 1972 | Y78: 2025 | Z78: 53 | AA78: =VLOOKUP(Y78,Zinsen!$C$9:$D$73,2,1) -> 0.01 | AB78: 12 | AD78: =MONTH(Ausweis!$H$10) -> 9 | AE78: 0 | AF78: 0 | AG78: 0
B79: 1972 | C79: 2026 | D79: 54 | E79: =VLOOKUP(C79,Zinsen!$C$9:$D$73,2,1) -> 0.01 | F79: 12 | H79: =MONTH(Ausweis!$H$10) -> 9 | I79: 0 | J79: 0 | K79: 0 | M79: 1972 | N79: 2026 | O79: 54 | P79: =VLOOKUP(N79,Zinsen!$C$9:$D$73,2,1) -> 0.01 | Q79: 12 | S79: =MONTH(Ausweis!$H$10) -> 9 | T79: 0 | U79: 0 | V79: 0 | X79: 1972 | Y79: 2026 | Z79: 54 | AA79: =VLOOKUP(Y79,Zinsen!$C$9:$D$73,2,1) -> 0.01 | AB79: 12 | AD79: =MONTH(Ausweis!$H$10) -> 9 | AE79: 0 | AF79: 0 | AG79: 0
B80: 1972 | C80: 2027 | D80: 55 | E80: =VLOOKUP(C80,Zinsen!$C$9:$D$73,2,1) -> 0.01 | F80: 12 | H80: =MONTH(Ausweis!$H$10) -> 9 | I80: 0 | J80: 0 | K80: 0 | M80: 1972 | N80: 2027 | O80: 55 | P80: =VLOOKUP(N80,Zinsen!$C$9:$D$73,2,1) -> 0.01 | Q80: 12 | S80: =MONTH(Ausweis!$H$10) -> 9 | T80: 0 | U80: 0 | V80: 0 | X80: 1972 | Y80: 2027 | Z80: 55 | AA80: =VLOOKUP(Y80,Zinsen!$C$9:$D$73,2,1) -> 0.01 | AB80: 12 | AD80: =MONTH(Ausweis!$H$10) -> 9 | AE80: 0 | AF80: 0 | AG80: 0
B81: 1972 | C81: 2028 | D81: 56 | E81: =VLOOKUP(C81,Zinsen!$C$9:$D$73,2,1) -> 0.01 | F81: 12 | H81: =MONTH(Ausweis!$H$10) -> 9 | I81: 0 | J81: 0 | K81: 0 | M81: 1972 | N81: 2028 | O81: 56 | P81: =VLOOKUP(N81,Zinsen!$C$9:$D$73,2,1) -> 0.01 | Q81: 12 | S81: =MONTH(Ausweis!$H$10) -> 9 | T81: 0 | U81: 0 | V81: 0 | X81: 1972 | Y81: 2028 | Z81: 56 | AA81: =VLOOKUP(Y81,Zinsen!$C$9:$D$73,2,1) -> 0.01 | AB81: 12 | AD81: =MONTH(Ausweis!$H$10) -> 9 | AE81: 0 | AF81: 0 | AG81: 0
B82: 1972 | C82: 2029 | D82: 57 | E82: =VLOOKUP(C82,Zinsen!$C$9:$D$73,2,1) -> 0.01 | F82: 12 | H82: =MONTH(Ausweis!$H$10) -> 9 | I82: 0 | J82: 0 | K82: 0 | M82: 1972 | N82: 2029 | O82: 57 | P82: =VLOOKUP(N82,Zinsen!$C$9:$D$73,2,1) -> 0.01 | Q82: 12 | S82: =MONTH(Ausweis!$H$10) -> 9 | T82: 0 | U82: 0 | V82: 0 | X82: 1972 | Y82: 2029 | Z82: 57 | AA82: =VLOOKUP(Y82,Zinsen!$C$9:$D$73,2,1) -> 0.01 | AB82: 12 | AD82: =MONTH(Ausweis!$H$10) -> 9 | AE82: 0 | AF82: 0 | AG82: 0
B83: 1972 | C83: 2030 | D83: 58 | E83: =VLOOKUP(C83,Zinsen!$C$9:$D$73,2,1) -> 0.01 | F83: 12 | H83: =MONTH(Ausweis!$H$10) -> 9 | I83: 0 | J83: 0 | K83: 0 | M83: 1972 | N83: 2030 | O83: 58 | P83: =VLOOKUP(N83,Zinsen!$C$9:$D$73,2,1) -> 0.01 | Q83: 12 | S83: =MONTH(Ausweis!$H$10) -> 9 | T83: 0 | U83: 0 | V83: 0 | X83: 1972 | Y83: 2030 | Z83: 58 | AA83: =VLOOKUP(Y83,Zinsen!$C$9:$D$73,2,1) -> 0.01 | AB83: 12 | AD83: =MONTH(Ausweis!$H$10) -> 9 | AE83: 0 | AF83: 0 | AG83: 0
B84: 1972 | C84: 2031 | D84: 59 | E84: =VLOOKUP(C84,Zinsen!$C$9:$D$73,2,1) -> 0.01 | F84: 12 | H84: =MONTH(Ausweis!$H$10) -> 9 | I84: 0 | J84: 0 | K84: 0 | M84: 1972 | N84: 2031 | O84: 59 | P84: =VLOOKUP(N84,Zinsen!$C$9:$D$73,2,1) -> 0.01 | Q84: 12 | S84: =MONTH(Ausweis!$H$10) -> 9 | T84: 0 | U84: 0 | V84: 0 | X84: 1972 | Y84: 2031 | Z84: 59 | AA84: =VLOOKUP(Y84,Zinsen!$C$9:$D$73,2,1) -> 0.01 | AB84: 12 | AD84: =MONTH(Ausweis!$H$10) -> 9 | AE84: 0 | AF84: 0 | AG84: 0
B85: 1972 | C85: 2032 | D85: 60 | E85: =VLOOKUP(C85,Zinsen!$C$9:$D$73,2,1) -> 0.01 | F85: 12 | H85: =MONTH(Ausweis!$H$10) -> 9 | I85: 0 | J85: 0 | K85: 0 | M85: 1972 | N85: 2032 | O85: 60 | P85: =VLOOKUP(N85,Zinsen!$C$9:$D$73,2,1) -> 0.01 | Q85: 12 | S85: =MONTH(Ausweis!$H$10) -> 9 | T85: 0 | U85: 0 | V85: 0 | X85: 1972 | Y85: 2032 | Z85: 60 | AA85: =VLOOKUP(Y85,Zinsen!$C$9:$D$73,2,1) -> 0.01 | AB85: 12 | AD85: =MONTH(Ausweis!$H$10) -> 9 | AE85: 0 | AF85: 0 | AG85: 0
B86: 1972 | C86: 2033 | D86: 61 | E86: =VLOOKUP(C86,Zinsen!$C$9:$D$73,2,1) -> 0.01 | F86: 12 | H86: =MONTH(Ausweis!$H$10) -> 9 | I86: 0 | J86: 0 | K86: 0 | M86: 1972 | N86: 2033 | O86: 61 | P86: =VLOOKUP(N86,Zinsen!$C$9:$D$73,2,1) -> 0.01 | Q86: 12 | S86: =MONTH(Ausweis!$H$10) -> 9 | T86: 0 | U86: 0 | V86: 0 | X86: 1972 | Y86: 2033 | Z86: 61 | AA86: =VLOOKUP(Y86,Zinsen!$C$9:$D$73,2,1) -> 0.01 | AB86: 12 | AD86: =MONTH(Ausweis!$H$10) -> 9 | AE86: 0 | AF86: 0 | AG86: 0
B87: 1972 | C87: 2034 | D87: 62 | E87: =VLOOKUP(C87,Zinsen!$C$9:$D$73,2,1) -> 0.01 | F87: 12 | H87: =MONTH(Ausweis!$H$10) -> 9 | I87: 0 | J87: 0 | K87: 0 | M87: 1972 | N87: 2034 | O87: 62 | P87: =VLOOKUP(N87,Zinsen!$C$9:$D$73,2,1) -> 0.01 | Q87: 12 | S87: =MONTH(Ausweis!$H$10) -> 9 | T87: 0 | U87: 0 | V87: 0 | X87: 1972 | Y87: 2034 | Z87: 62 | AA87: =VLOOKUP(Y87,Zinsen!$C$9:$D$73,2,1) -> 0.01 | AB87: 12 | AD87: =MONTH(Ausweis!$H$10) -> 9 | AE87: 0 | AF87: 0 | AG87: 0
B88: 1972 | C88: 2035 | D88: 63 | E88: =VLOOKUP(C88,Zinsen!$C$9:$D$73,2,1) -> 0.01 | F88: 12 | H88: =MONTH(Ausweis!$H$10) -> 9 | I88: 0 | J88: 0 | K88: 0 | M88: 1972 | N88: 2035 | O88: 63 | P88: =VLOOKUP(N88,Zinsen!$C$9:$D$73,2,1) -> 0.01 | Q88: 12 | S88: =MONTH(Ausweis!$H$10) -> 9 | T88: 0 | U88: 0 | V88: 0 | X88: 1972 | Y88: 2035 | Z88: 63 | AA88: =VLOOKUP(Y88,Zinsen!$C$9:$D$73,2,1) -> 0.01 | AB88: 12 | AD88: =MONTH(Ausweis!$H$10) -> 9 | AE88: 0 | AF88: 0 | AG88: 0
B89: 1972 | C89: 2036 | D89: 64 | E89: =VLOOKUP(C89,Zinsen!$C$9:$D$73,2,1) -> 0.01 | F89: 12 | H89: =MONTH(Ausweis!$H$10) -> 9 | I89: 0 | J89: 0 | K89: 0 | M89: 1972 | N89: 2036 | O89: 64 | P89: =VLOOKUP(N89,Zinsen!$C$9:$D$73,2,1) -> 0.01 | Q89: 12 | S89: =MONTH(Ausweis!$H$10) -> 9 | T89: 0 | U89: 0 | V89: 0 | X89: 1972 | Y89: 2036 | Z89: 64 | AA89: =VLOOKUP(Y89,Zinsen!$C$9:$D$73,2,1) -> 0.01 | AB89: 12 | AD89: =MONTH(Ausweis!$H$10) -> 9 | AE89: 0 | AF89: 0 | AG89: 0
B90: 1972 | C90: 2037 | D90: 65 | E90: =VLOOKUP(C90,Zinsen!$C$9:$D$73,2,1) -> 0.01 | F90: 12 | H90: =MONTH(Ausweis!$H$10) -> 9 | I90: 0 | J90: 0 | K90: 0 | M90: 1972 | N90: 2037 | O90: 65 | P90: =VLOOKUP(N90,Zinsen!$C$9:$D$73,2,1) -> 0.01 | Q90: 12 | S90: =MONTH(Ausweis!$H$10) -> 9 | T90: 0 | U90: 0 | V90: 0 | X90: 1972 | Y90: 2037 | Z90: 65 | AA90: =VLOOKUP(Y90,Zinsen!$C$9:$D$73,2,1) -> 0.01 | AB90: 12 | AD90: =MONTH(Ausweis!$H$10) -> 9 | AE90: 0 | AF90: 0 | AG90: 0
B91: 1972 | C91: 2038 | D91: 66 | E91: =VLOOKUP(C91,Zinsen!$C$9:$D$73,2,1) -> 0.01 | F91: 12 | H91: =MONTH(Ausweis!$H$10) -> 9 | I91: 0 | J91: 0 | K91: 0 | M91: 1972 | N91: 2038 | O91: 66 | P91: =VLOOKUP(N91,Zinsen!$C$9:$D$73,2,1) -> 0.01 | Q91: 12 | S91: =MONTH(Ausweis!$H$10) -> 9 | T91: 0 | U91: 0 | V91: 0 | X91: 1972 | Y91: 2038 | Z91: 66 | AA91: =VLOOKUP(Y91,Zinsen!$C$9:$D$73,2,1) -> 0.01 | AB91: 12 | AD91: =MONTH(Ausweis!$H$10) -> 9 | AE91: 0 | AF91: 0 | AG91: 0
B92: 1972 | C92: 2039 | D92: 67 | E92: =VLOOKUP(C92,Zinsen!$C$9:$D$73,2,1) -> 0.01 | F92: 12 | H92: =MONTH(Ausweis!$H$10) -> 9 | I92: 0 | J92: 0 | K92: 0 | M92: 1972 | N92: 2039 | O92: 67 | P92: =VLOOKUP(N92,Zinsen!$C$9:$D$73,2,1) -> 0.01 | Q92: 12 | S92: =MONTH(Ausweis!$H$10) -> 9 | T92: 0 | U92: 0 | V92: 0 | X92: 1972 | Y92: 2039 | Z92: 67 | AA92: =VLOOKUP(Y92,Zinsen!$C$9:$D$73,2,1) -> 0.01 | AB92: 12 | AD92: =MONTH(Ausweis!$H$10) -> 9 | AE92: 0 | AF92: 0 | AG92: 0
B93: 1972 | C93: 2040 | D93: 68 | E93: =VLOOKUP(C93,Zinsen!$C$9:$D$73,2,1) -> 0.01 | F93: 12 | H93: =MONTH(Ausweis!$H$10) -> 9 | I93: 0 | J93: 0 | K93: 0 | M93: 1972 | N93: 2040 | O93: 68 | P93: =VLOOKUP(N93,Zinsen!$C$9:$D$73,2,1) -> 0.01 | Q93: 12 | S93: =MONTH(Ausweis!$H$10) -> 9 | T93: 0 | U93: 0 | V93: 0 | X93: 1972 | Y93: 2040 | Z93: 68 | AA93: =VLOOKUP(Y93,Zinsen!$C$9:$D$73,2,1) -> 0.01 | AB93: 12 | AD93: =MONTH(Ausweis!$H$10) -> 9 | AE93: 0 | AF93: 0 | AG93: 0
B94: 1972 | C94: 2041 | D94: 69 | E94: =VLOOKUP(C94,Zinsen!$C$9:$D$73,2,1) -> 0.01 | F94: 12 | H94: =MONTH(Ausweis!$H$10) -> 9 | I94: 0 | J94: 0 | K94: 0 | M94: 1972 | N94: 2041 | O94: 69 | P94: =VLOOKUP(N94,Zinsen!$C$9:$D$73,2,1) -> 0.01 | Q94: 12 | S94: =MONTH(Ausweis!$H$10) -> 9 | T94: 0 | U94: 0 | V94: 0 | X94: 1972 | Y94: 2041 | Z94: 69 | AA94: =VLOOKUP(Y94,Zinsen!$C$9:$D$73,2,1) -> 0.01 | AB94: 12 | AD94: =MONTH(Ausweis!$H$10) -> 9 | AE94: 0 | AF94: 0 | AG94: 0
B95: 1972 | C95: 2042 | D95: 70 | E95: =VLOOKUP(C95,Zinsen!$C$9:$D$73,2,1) -> 0.01 | F95: 12 | H95: =MONTH(Ausweis!$H$10) -> 9 | I95: 0 | J95: 0 | K95: 0 | M95: 1972 | N95: 2042 | O95: 70 | P95: =VLOOKUP(N95,Zinsen!$C$9:$D$73,2,1) -> 0.01 | Q95: 12 | S95: =MONTH(Ausweis!$H$10) -> 9 | T95: 0 | U95: 0 | V95: 0 | X95: 1972 | Y95: 2042 | Z95: 70 | AA95: =VLOOKUP(Y95,Zinsen!$C$9:$D$73,2,1) -> 0.01 | AB95: 12 | AD95: =MONTH(Ausweis!$H$10) -> 9 | AE95: 0 | AF95: 0 | AG95: 0
B96: 1972 | C96: 2043 | D96: 71 | E96: =VLOOKUP(C96,Zinsen!$C$9:$D$73,2,1) -> 0.01 | F96: 12 | H96: =MONTH(Ausweis!$H$10) -> 9 | I96: 0 | J96: 0 | K96: 0 | M96: 1972 | N96: 2043 | O96: 71 | P96: =VLOOKUP(N96,Zinsen!$C$9:$D$73,2,1) -> 0.01 | Q96: 12 | S96: =MONTH(Ausweis!$H$10) -> 9 | T96: 0 | U96: 0 | V96: 0 | X96: 1972 | Y96: 2043 | Z96: 71 | AA96: =VLOOKUP(Y96,Zinsen!$C$9:$D$73,2,1) -> 0.01 | AB96: 12 | AD96: =MONTH(Ausweis!$H$10) -> 9 | AE96: 0 | AF96: 0 | AG96: 0
B97: 1972 | C97: 2044 | D97: 72 | E97: =VLOOKUP(C97,Zinsen!$C$9:$D$73,2,1) -> 0.01 | F97: 12 | H97: =MONTH(Ausweis!$H$10) -> 9 | I97: 0 | J97: 0 | K97: 0 | M97: 1972 | N97: 2044 | O97: 72 | P97: =VLOOKUP(N97,Zinsen!$C$9:$D$73,2,1) -> 0.01 | Q97: 12 | S97: =MONTH(Ausweis!$H$10) -> 9 | T97: 0 | U97: 0 | V97: 0 | X97: 1972 | Y97: 2044 | Z97: 72 | AA97: =VLOOKUP(Y97,Zinsen!$C$9:$D$73,2,1) -> 0.01 | AB97: 12 | AD97: =MONTH(Ausweis!$H$10) -> 9 | AE97: 0 | AF97: 0 | AG97: 0
B98: 1972 | C98: 2045 | D98: 73 | E98: =VLOOKUP(C98,Zinsen!$C$9:$D$73,2,1) -> 0.01 | F98: 12 | H98: =MONTH(Ausweis!$H$10) -> 9 | I98: 0 | J98: 0 | K98: 0 | M98: 1972 | N98: 2045 | O98: 73 | P98: =VLOOKUP(N98,Zinsen!$C$9:$D$73,2,1) -> 0.01 | Q98: 12 | S98: =MONTH(Ausweis!$H$10) -> 9 | T98: 0 | U98: 0 | V98: 0 | X98: 1972 | Y98: 2045 | Z98: 73 | AA98: =VLOOKUP(Y98,Zinsen!$C$9:$D$73,2,1) -> 0.01 | AB98: 12 | AD98: =MONTH(Ausweis!$H$10) -> 9 | AE98: 0 | AF98: 0 | AG98: 0
B99: 1972 | C99: 2046 | D99: 74 | E99: =VLOOKUP(C99,Zinsen!$C$9:$D$73,2,1) -> 0.01 | F99: 12 | H99: =MONTH(Ausweis!$H$10) -> 9 | I99: 0 | J99: 0 | K99: 0 | M99: 1972 | N99: 2046 | O99: 74 | P99: =VLOOKUP(N99,Zinsen!$C$9:$D$73,2,1) -> 0.01 | Q99: 12 | S99: =MONTH(Ausweis!$H$10) -> 9 | T99: 0 | U99: 0 | V99: 0 | X99: 1972 | Y99: 2046 | Z99: 74 | AA99: =VLOOKUP(Y99,Zinsen!$C$9:$D$73,2,1) -> 0.01 | AB99: 12 | AD99: =MONTH(Ausweis!$H$10) -> 9 | AE99: 0 | AF99: 0 | AG99: 0
B100: 1972 | C100: 2047 | D100: 75 | E100: =VLOOKUP(C100,Zinsen!$C$9:$D$73,2,1) -> 0.01 | F100: 12 | H100: =MONTH(Ausweis!$H$10) -> 9 | I100: 0 | J100: 0 | K100: 0 | M100: 1972 | N100: 2047 | O100: 75 | P100: =VLOOKUP(N100,Zinsen!$C$9:$D$73,2,1) -> 0.01 | Q100: 12 | S100: =MONTH(Ausweis!$H$10) -> 9 | T100: 0 | U100: 0 | V100: 0 | X100: 1972 | Y100: 2047 | Z100: 75 | AA100: =VLOOKUP(Y100,Zinsen!$C$9:$D$73,2,1) -> 0.01 | AB100: 12 | AD100: =MONTH(Ausweis!$H$10) -> 9 | AE100: 0 | AF100: 0 | AG100: 0
B101: 1972 | C101: 2048 | D101: 76 | E101: =VLOOKUP(C101,Zinsen!$C$9:$D$73,2,1) -> 0.01 | F101: 12 | H101: =MONTH(Ausweis!$H$10) -> 9 | I101: 0 | J101: 0 | K101: 0 | M101: 1972 | N101: 2048 | O101: 76 | P101: =VLOOKUP(N101,Zinsen!$C$9:$D$73,2,1) -> 0.01 | Q101: 12 | S101: =MONTH(Ausweis!$H$10) -> 9 | T101: 0 | U101: 0 | V101: 0 | X101: 1972 | Y101: 2048 | Z101: 76 | AA101: =VLOOKUP(Y101,Zinsen!$C$9:$D$73,2,1) -> 0.01 | AB101: 12 | AD101: =MONTH(Ausweis!$H$10) -> 9 | AE101: 0 | AF101: 0 | AG101: 0
B102: 1972 | C102: 2049 | D102: 77 | E102: =VLOOKUP(C102,Zinsen!$C$9:$D$73,2,1) -> 0.01 | F102: 12 | H102: =MONTH(Ausweis!$H$10) -> 9 | I102: 0 | J102: 0 | K102: 0 | M102: 1972 | N102: 2049 | O102: 77 | P102: =VLOOKUP(N102,Zinsen!$C$9:$D$73,2,1) -> 0.01 | Q102: 12 | S102: =MONTH(Ausweis!$H$10) -> 9 | T102: 0 | U102: 0 | V102: 0 | X102: 1972 | Y102: 2049 | Z102: 77 | AA102: =VLOOKUP(Y102,Zinsen!$C$9:$D$73,2,1) -> 0.01 | AB102: 12 | AD102: =MONTH(Ausweis!$H$10) -> 9 | AE102: 0 | AF102: 0 | AG102: 0
B103: 1972 | C103: 2050 | D103: 78 | E103: =VLOOKUP(C103,Zinsen!$C$9:$D$73,2,1) -> 0.01 | F103: 12 | H103: =MONTH(Ausweis!$H$10) -> 9 | I103: 0 | J103: 0 | K103: 0 | M103: 1972 | N103: 2050 | O103: 78 | P103: =VLOOKUP(N103,Zinsen!$C$9:$D$73,2,1) -> 0.01 | Q103: 12 | S103: =MONTH(Ausweis!$H$10) -> 9 | T103: 0 | U103: 0 | V103: 0 | X103: 1972 | Y103: 2050 | Z103: 78 | AA103: =VLOOKUP(Y103,Zinsen!$C$9:$D$73,2,1) -> 0.01 | AB103: 12 | AD103: =MONTH(Ausweis!$H$10) -> 9 | AE103: 0 | AF103: 0 | AG103: 0
B104: 1972 | C104: 2051 | D104: 79 | E104: =VLOOKUP(C104,Zinsen!$C$9:$D$73,2,1) -> 0.01 | F104: 12 | H104: =MONTH(Ausweis!$H$10) -> 9 | I104: 0 | J104: 0 | K104: 0 | M104: 1972 | N104: 2051 | O104: 79 | P104: =VLOOKUP(N104,Zinsen!$C$9:$D$73,2,1) -> 0.01 | Q104: 12 | S104: =MONTH(Ausweis!$H$10) -> 9 | T104: 0 | U104: 0 | V104: 0 | X104: 1972 | Y104: 2051 | Z104: 79 | AA104: =VLOOKUP(Y104,Zinsen!$C$9:$D$73,2,1) -> 0.01 | AB104: 12 | AD104: =MONTH(Ausweis!$H$10) -> 9 | AE104: 0 | AF104: 0 | AG104: 0
B105: 1972 | C105: 2052 | D105: 80 | E105: =VLOOKUP(C105,Zinsen!$C$9:$D$73,2,1) -> 0.01 | F105: 12 | H105: =MONTH(Ausweis!$H$10) -> 9 | I105: 0 | J105: 0 | K105: 0 | M105: 1972 | N105: 2052 | O105: 80 | P105: =VLOOKUP(N105,Zinsen!$C$9:$D$73,2,1) -> 0.01 | Q105: 12 | S105: =MONTH(Ausweis!$H$10) -> 9 | T105: 0 | U105: 0 | V105: 0 | X105: 1972 | Y105: 2052 | Z105: 80 | AA105: =VLOOKUP(Y105,Zinsen!$C$9:$D$73,2,1) -> 0.01 | AB105: 12 | AD105: =MONTH(Ausweis!$H$10) -> 9 | AE105: 0 | AF105: 0 | AG105: 0
B106: 1972 | C106: 2053 | D106: 81 | E106: =VLOOKUP(C106,Zinsen!$C$9:$D$73,2,1) -> 0.01 | F106: 12 | H106: =MONTH(Ausweis!$H$10) -> 9 | I106: 0 | J106: 0 | K106: 0 | M106: 1972 | N106: 2053 | O106: 81 | P106: =VLOOKUP(N106,Zinsen!$C$9:$D$73,2,1) -> 0.01 | Q106: 12 | S106: =MONTH(Ausweis!$H$10) -> 9 | T106: 0 | U106: 0 | V106: 0 | X106: 1972 | Y106: 2053 | Z106: 81 | AA106: =VLOOKUP(Y106,Zinsen!$C$9:$D$73,2,1) -> 0.01 | AB106: 12 | AD106: =MONTH(Ausweis!$H$10) -> 9 | AE106: 0 | AF106: 0 | AG106: 0
B107: 1972 | C107: 2054 | D107: 82 | E107: =VLOOKUP(C107,Zinsen!$C$9:$D$73,2,1) -> 0.01 | F107: 12 | H107: =MONTH(Ausweis!$H$10) -> 9 | I107: 0 | J107: 0 | K107: 0 | M107: 1972 | N107: 2054 | O107: 82 | P107: =VLOOKUP(N107,Zinsen!$C$9:$D$73,2,1) -> 0.01 | Q107: 12 | S107: =MONTH(Ausweis!$H$10) -> 9 | T107: 0 | U107: 0 | V107: 0 | X107: 1972 | Y107: 2054 | Z107: 82 | AA107: =VLOOKUP(Y107,Zinsen!$C$9:$D$73,2,1) -> 0.01 | AB107: 12 | AD107: =MONTH(Ausweis!$H$10) -> 9 | AE107: 0 | AF107: 0 | AG107: 0
B108: 1972 | C108: 2055 | D108: 83 | E108: =VLOOKUP(C108,Zinsen!$C$9:$D$73,2,1) -> 0.01 | F108: 12 | H108: =MONTH(Ausweis!$H$10) -> 9 | I108: 0 | J108: 0 | K108: 0 | M108: 1972 | N108: 2055 | O108: 83 | P108: =VLOOKUP(N108,Zinsen!$C$9:$D$73,2,1) -> 0.01 | Q108: 12 | S108: =MONTH(Ausweis!$H$10) -> 9 | T108: 0 | U108: 0 | V108: 0 | X108: 1972 | Y108: 2055 | Z108: 83 | AA108: =VLOOKUP(Y108,Zinsen!$C$9:$D$73,2,1) -> 0.01 | AB108: 12 | AD108: =MONTH(Ausweis!$H$10) -> 9 | AE108: 0 | AF108: 0 | AG108: 0
B109: 1972 | C109: 2056 | D109: 84 | E109: =VLOOKUP(C109,Zinsen!$C$9:$D$73,2,1) -> 0.01 | F109: 12 | H109: =MONTH(Ausweis!$H$10) -> 9 | I109: 0 | J109: 0 | K109: 0 | M109: 1972 | N109: 2056 | O109: 84 | P109: =VLOOKUP(N109,Zinsen!$C$9:$D$73,2,1) -> 0.01 | Q109: 12 | S109: =MONTH(Ausweis!$H$10) -> 9 | T109: 0 | U109: 0 | V109: 0 | X109: 1972 | Y109: 2056 | Z109: 84 | AA109: =VLOOKUP(Y109,Zinsen!$C$9:$D$73,2,1) -> 0.01 | AB109: 12 | AD109: =MONTH(Ausweis!$H$10) -> 9 | AE109: 0 | AF109: 0 | AG109: 0
B110: 1972 | C110: 2057 | D110: 85 | E110: =VLOOKUP(C110,Zinsen!$C$9:$D$73,2,1) -> 0.01 | F110: 12 | H110: =MONTH(Ausweis!$H$10) -> 9 | I110: 0 | J110: 0 | K110: 0 | M110: 1972 | N110: 2057 | O110: 85 | P110: =VLOOKUP(N110,Zinsen!$C$9:$D$73,2,1) -> 0.01 | Q110: 12 | S110: =MONTH(Ausweis!$H$10) -> 9 | T110: 0 | U110: 0 | V110: 0 | X110: 1972 | Y110: 2057 | Z110: 85 | AA110: =VLOOKUP(Y110,Zinsen!$C$9:$D$73,2,1) -> 0.01 | AB110: 12 | AD110: =MONTH(Ausweis!$H$10) -> 9 | AE110: 0 | AF110: 0 | AG110: 0
B111: 1972 | C111: 2058 | D111: 86 | E111: =VLOOKUP(C111,Zinsen!$C$9:$D$73,2,1) -> 0.01 | F111: 12 | H111: =MONTH(Ausweis!$H$10) -> 9 | I111: 0 | J111: 0 | K111: 0 | M111: 1972 | N111: 2058 | O111: 86 | P111: =VLOOKUP(N111,Zinsen!$C$9:$D$73,2,1) -> 0.01 | Q111: 12 | S111: =MONTH(Ausweis!$H$10) -> 9 | T111: 0 | U111: 0 | V111: 0 | X111: 1972 | Y111: 2058 | Z111: 86 | AA111: =VLOOKUP(Y111,Zinsen!$C$9:$D$73,2,1) -> 0.01 | AB111: 12 | AD111: =MONTH(Ausweis!$H$10) -> 9 | AE111: 0 | AF111: 0 | AG111: 0
B112: 1972 | C112: 2059 | D112: 87 | E112: =VLOOKUP(C112,Zinsen!$C$9:$D$73,2,1) -> 0.01 | F112: 12 | H112: =MONTH(Ausweis!$H$10) -> 9 | I112: 0 | J112: 0 | K112: 0 | M112: 1972 | N112: 2059 | O112: 87 | P112: =VLOOKUP(N112,Zinsen!$C$9:$D$73,2,1) -> 0.01 | Q112: 12 | S112: =MONTH(Ausweis!$H$10) -> 9 | T112: 0 | U112: 0 | V112: 0 | X112: 1972 | Y112: 2059 | Z112: 87 | AA112: =VLOOKUP(Y112,Zinsen!$C$9:$D$73,2,1) -> 0.01 | AB112: 12 | AD112: =MONTH(Ausweis!$H$10) -> 9 | AE112: 0 | AF112: 0 | AG112: 0
B113: 1972 | C113: 2060 | D113: 88 | E113: =VLOOKUP(C113,Zinsen!$C$9:$D$73,2,1) -> 0.01 | F113: 12 | H113: =MONTH(Ausweis!$H$10) -> 9 | I113: 0 | J113: 0 | K113: 0 | M113: 1972 | N113: 2060 | O113: 88 | P113: =VLOOKUP(N113,Zinsen!$C$9:$D$73,2,1) -> 0.01 | Q113: 12 | S113: =MONTH(Ausweis!$H$10) -> 9 | T113: 0 | U113: 0 | V113: 0 | X113: 1972 | Y113: 2060 | Z113: 88 | AA113: =VLOOKUP(Y113,Zinsen!$C$9:$D$73,2,1) -> 0.01 | AB113: 12 | AD113: =MONTH(Ausweis!$H$10) -> 9 | AE113: 0 | AF113: 0 | AG113: 0
B114: 1972 | C114: 2061 | D114: 89 | E114: =VLOOKUP(C114,Zinsen!$C$9:$D$73,2,1) -> 0.01 | F114: 12 | H114: =MONTH(Ausweis!$H$10) -> 9 | I114: 0 | J114: 0 | K114: 0 | M114: 1972 | N114: 2061 | O114: 89 | P114: =VLOOKUP(N114,Zinsen!$C$9:$D$73,2,1) -> 0.01 | Q114: 12 | S114: =MONTH(Ausweis!$H$10) -> 9 | T114: 0 | U114: 0 | V114: 0 | X114: 1972 | Y114: 2061 | Z114: 89 | AA114: =VLOOKUP(Y114,Zinsen!$C$9:$D$73,2,1) -> 0.01 | AB114: 12 | AD114: =MONTH(Ausweis!$H$10) -> 9 | AE114: 0 | AF114: 0 | AG114: 0
B115: 1972 | C115: 2062 | D115: 90 | E115: =VLOOKUP(C115,Zinsen!$C$9:$D$73,2,1) -> 0.01 | F115: 12 | H115: =MONTH(Ausweis!$H$10) -> 9 | I115: 0 | J115: 0 | K115: 0 | M115: 1972 | N115: 2062 | O115: 90 | P115: =VLOOKUP(N115,Zinsen!$C$9:$D$73,2,1) -> 0.01 | Q115: 12 | S115: =MONTH(Ausweis!$H$10) -> 9 | T115: 0 | U115: 0 | V115: 0 | X115: 1972 | Y115: 2062 | Z115: 90 | AA115: =VLOOKUP(Y115,Zinsen!$C$9:$D$73,2,1) -> 0.01 | AB115: 12 | AD115: =MONTH(Ausweis!$H$10) -> 9 | AE115: 0 | AF115: 0 | AG115: 0
B116: 1972 | C116: 2063 | D116: 91 | E116: =VLOOKUP(C116,Zinsen!$C$9:$D$73,2,1) -> 0.01 | F116: 12 | H116: =MONTH(Ausweis!$H$10) -> 9 | I116: 0 | J116: 0 | K116: 0 | M116: 1972 | N116: 2063 | O116: 91 | P116: =VLOOKUP(N116,Zinsen!$C$9:$D$73,2,1) -> 0.01 | Q116: 12 | S116: =MONTH(Ausweis!$H$10) -> 9 | T116: 0 | U116: 0 | V116: 0 | X116: 1972 | Y116: 2063 | Z116: 91 | AA116: =VLOOKUP(Y116,Zinsen!$C$9:$D$73,2,1) -> 0.01 | AB116: 12 | AD116: =MONTH(Ausweis!$H$10) -> 9 | AE116: 0 | AF116: 0 | AG116: 0
B117: 1972 | C117: 2064 | D117: 92 | E117: =VLOOKUP(C117,Zinsen!$C$9:$D$73,2,1) -> 0.01 | F117: 12 | H117: =MONTH(Ausweis!$H$10) -> 9 | I117: 0 | J117: 0 | K117: 0 | M117: 1972 | N117: 2064 | O117: 92 | P117: =VLOOKUP(N117,Zinsen!$C$9:$D$73,2,1) -> 0.01 | Q117: 12 | S117: =MONTH(Ausweis!$H$10) -> 9 | T117: 0 | U117: 0 | V117: 0 | X117: 1972 | Y117: 2064 | Z117: 92 | AA117: =VLOOKUP(Y117,Zinsen!$C$9:$D$73,2,1) -> 0.01 | AB117: 12 | AD117: =MONTH(Ausweis!$H$10) -> 9 | AE117: 0 | AF117: 0 | AG117: 0
B118: 1972 | C118: 2065 | D118: 93 | E118: =VLOOKUP(C118,Zinsen!$C$9:$D$73,2,1) -> 0.01 | F118: 12 | H118: =MONTH(Ausweis!$H$10) -> 9 | I118: 0 | J118: 0 | K118: 0 | M118: 1972 | N118: 2065 | O118: 93 | P118: =VLOOKUP(N118,Zinsen!$C$9:$D$73,2,1) -> 0.01 | Q118: 12 | S118: =MONTH(Ausweis!$H$10) -> 9 | T118: 0 | U118: 0 | V118: 0 | X118: 1972 | Y118: 2065 | Z118: 93 | AA118: =VLOOKUP(Y118,Zinsen!$C$9:$D$73,2,1) -> 0.01 | AB118: 12 | AD118: =MONTH(Ausweis!$H$10) -> 9 | AE118: 0 | AF118: 0 | AG118: 0
B119: 1972 | C119: 2066 | D119: 94 | E119: =VLOOKUP(C119,Zinsen!$C$9:$D$73,2,1) -> 0.01 | F119: 12 | H119: =MONTH(Ausweis!$H$10) -> 9 | I119: 0 | J119: 0 | K119: 0 | M119: 1972 | N119: 2066 | O119: 94 | P119: =VLOOKUP(N119,Zinsen!$C$9:$D$73,2,1) -> 0.01 | Q119: 12 | S119: =MONTH(Ausweis!$H$10) -> 9 | T119: 0 | U119: 0 | V119: 0 | X119: 1972 | Y119: 2066 | Z119: 94 | AA119: =VLOOKUP(Y119,Zinsen!$C$9:$D$73,2,1) -> 0.01 | AB119: 12 | AD119: =MONTH(Ausweis!$H$10) -> 9 | AE119: 0 | AF119: 0 | AG119: 0
B120: 1972 | C120: 2067 | D120: 95 | E120: =VLOOKUP(C120,Zinsen!$C$9:$D$73,2,1) -> 0.01 | F120: 12 | H120: =MONTH(Ausweis!$H$10) -> 9 | I120: 0 | J120: 0 | K120: 0 | M120: 1972 | N120: 2067 | O120: 95 | P120: =VLOOKUP(N120,Zinsen!$C$9:$D$73,2,1) -> 0.01 | Q120: 12 | S120: =MONTH(Ausweis!$H$10) -> 9 | T120: 0 | U120: 0 | V120: 0 | X120: 1972 | Y120: 2067 | Z120: 95 | AA120: =VLOOKUP(Y120,Zinsen!$C$9:$D$73,2,1) -> 0.01 | AB120: 12 | AD120: =MONTH(Ausweis!$H$10) -> 9 | AE120: 0 | AF120: 0 | AG120: 0
B121: 1972 | C121: 2068 | D121: 96 | E121: =VLOOKUP(C121,Zinsen!$C$9:$D$73,2,1) -> 0.01 | F121: 12 | H121: =MONTH(Ausweis!$H$10) -> 9 | I121: 0 | J121: 0 | K121: 0 | M121: 1972 | N121: 2068 | O121: 96 | P121: =VLOOKUP(N121,Zinsen!$C$9:$D$73,2,1) -> 0.01 | Q121: 12 | S121: =MONTH(Ausweis!$H$10) -> 9 | T121: 0 | U121: 0 | V121: 0 | X121: 1972 | Y121: 2068 | Z121: 96 | AA121: =VLOOKUP(Y121,Zinsen!$C$9:$D$73,2,1) -> 0.01 | AB121: 12 | AD121: =MONTH(Ausweis!$H$10) -> 9 | AE121: 0 | AF121: 0 | AG121: 0
B122: 1972 | C122: 2069 | D122: 97 | E122: =VLOOKUP(C122,Zinsen!$C$9:$D$73,2,1) -> 0.01 | F122: 12 | H122: =MONTH(Ausweis!$H$10) -> 9 | I122: 0 | J122: 0 | K122: 0 | M122: 1972 | N122: 2069 | O122: 97 | P122: =VLOOKUP(N122,Zinsen!$C$9:$D$73,2,1) -> 0.01 | Q122: 12 | S122: =MONTH(Ausweis!$H$10) -> 9 | T122: 0 | U122: 0 | V122: 0 | X122: 1972 | Y122: 2069 | Z122: 97 | AA122: =VLOOKUP(Y122,Zinsen!$C$9:$D$73,2,1) -> 0.01 | AB122: 12 | AD122: =MONTH(Ausweis!$H$10) -> 9 | AE122: 0 | AF122: 0 | AG122: 0
B123: 1972 | C123: 2070 | D123: 98 | E123: =VLOOKUP(C123,Zinsen!$C$9:$D$73,2,1) -> 0.01 | F123: 12 | H123: =MONTH(Ausweis!$H$10) -> 9 | I123: 0 | J123: 0 | K123: 0 | M123: 1972 | N123: 2070 | O123: 98 | P123: =VLOOKUP(N123,Zinsen!$C$9:$D$73,2,1) -> 0.01 | Q123: 12 | S123: =MONTH(Ausweis!$H$10) -> 9 | T123: 0 | U123: 0 | V123: 0 | X123: 1972 | Y123: 2070 | Z123: 98 | AA123: =VLOOKUP(Y123,Zinsen!$C$9:$D$73,2,1) -> 0.01 | AB123: 12 | AD123: =MONTH(Ausweis!$H$10) -> 9 | AE123: 0 | AF123: 0 | AG123: 0
B124: 1972 | C124: 2071 | D124: 99 | E124: =VLOOKUP(C124,Zinsen!$C$9:$D$73,2,1) -> 0.01 | F124: 12 | H124: =MONTH(Ausweis!$H$10) -> 9 | I124: 0 | J124: 0 | K124: 0 | M124: 1972 | N124: 2071 | O124: 99 | P124: =VLOOKUP(N124,Zinsen!$C$9:$D$73,2,1) -> 0.01 | Q124: 12 | S124: =MONTH(Ausweis!$H$10) -> 9 | T124: 0 | U124: 0 | V124: 0 | X124: 1972 | Y124: 2071 | Z124: 99 | AA124: =VLOOKUP(Y124,Zinsen!$C$9:$D$73,2,1) -> 0.01 | AB124: 12 | AD124: =MONTH(Ausweis!$H$10) -> 9 | AE124: 0 | AF124: 0 | AG124: 0
B125: 1972 | C125: 2072 | D125: 100 | E125: =VLOOKUP(C125,Zinsen!$C$9:$D$73,2,1) -> 0.01 | F125: 12 | H125: =MONTH(Ausweis!$H$10) -> 9 | I125: 0 | J125: 0 | K125: 0 | M125: 1972 | N125: 2072 | O125: 100 | P125: =VLOOKUP(N125,Zinsen!$C$9:$D$73,2,1) -> 0.01 | Q125: 12 | S125: =MONTH(Ausweis!$H$10) -> 9 | T125: 0 | U125: 0 | V125: 0 | X125: 1972 | Y125: 2072 | Z125: 100 | AA125: =VLOOKUP(Y125,Zinsen!$C$9:$D$73,2,1) -> 0.01 | AB125: 12 | AD125: =MONTH(Ausweis!$H$10) -> 9 | AE125: 0 | AF125: 0 | AG125: 0
B126: 1972 | C126: 2073 | D126: 101 | E126: =VLOOKUP(C126,Zinsen!$C$9:$D$73,2,1) -> 0.01 | F126: 12 | H126: =MONTH(Ausweis!$H$10) -> 9 | I126: 0 | J126: 0 | K126: 0 | M126: 1972 | N126: 2073 | O126: 101 | P126: =VLOOKUP(N126,Zinsen!$C$9:$D$73,2,1) -> 0.01 | Q126: 12 | S126: =MONTH(Ausweis!$H$10) -> 9 | T126: 0 | U126: 0 | V126: 0 | X126: 1972 | Y126: 2073 | Z126: 101 | AA126: =VLOOKUP(Y126,Zinsen!$C$9:$D$73,2,1) -> 0.01 | AB126: 12 | AD126: =MONTH(Ausweis!$H$10) -> 9 | AE126: 0 | AF126: 0 | AG126: 0
B127: 1972 | C127: 2074 | D127: 102 | E127: =VLOOKUP(C127,Zinsen!$C$9:$D$73,2,1) -> 0.01 | F127: 12 | H127: =MONTH(Ausweis!$H$10) -> 9 | I127: 0 | J127: 0 | K127: 0 | M127: 1972 | N127: 2074 | O127: 102 | P127: =VLOOKUP(N127,Zinsen!$C$9:$D$73,2,1) -> 0.01 | Q127: 12 | S127: =MONTH(Ausweis!$H$10) -> 9 | T127: 0 | U127: 0 | V127: 0 | X127: 1972 | Y127: 2074 | Z127: 102 | AA127: =VLOOKUP(Y127,Zinsen!$C$9:$D$73,2,1) -> 0.01 | AB127: 12 | AD127: =MONTH(Ausweis!$H$10) -> 9 | AE127: 0 | AF127: 0 | AG127: 0
B128: 1972 | C128: 2075 | D128: 103 | E128: =VLOOKUP(C128,Zinsen!$C$9:$D$73,2,1) -> 0.01 | F128: 12 | H128: =MONTH(Ausweis!$H$10) -> 9 | I128: 0 | J128: 0 | K128: 0 | M128: 1972 | N128: 2075 | O128: 103 | P128: =VLOOKUP(N128,Zinsen!$C$9:$D$73,2,1) -> 0.01 | Q128: 12 | S128: =MONTH(Ausweis!$H$10) -> 9 | T128: 0 | U128: 0 | V128: 0 | X128: 1972 | Y128: 2075 | Z128: 103 | AA128: =VLOOKUP(Y128,Zinsen!$C$9:$D$73,2,1) -> 0.01 | AB128: 12 | AD128: =MONTH(Ausweis!$H$10) -> 9 | AE128: 0 | AF128: 0 | AG128: 0
B129: 1972 | C129: 2076 | D129: 104 | E129: =VLOOKUP(C129,Zinsen!$C$9:$D$73,2,1) -> 0.01 | F129: 12 | H129: =MONTH(Ausweis!$H$10) -> 9 | I129: 0 | J129: 0 | K129: 0 | M129: 1972 | N129: 2076 | O129: 104 | P129: =VLOOKUP(N129,Zinsen!$C$9:$D$73,2,1) -> 0.01 | Q129: 12 | S129: =MONTH(Ausweis!$H$10) -> 9 | T129: 0 | U129: 0 | V129: 0 | X129: 1972 | Y129: 2076 | Z129: 104 | AA129: =VLOOKUP(Y129,Zinsen!$C$9:$D$73,2,1) -> 0.01 | AB129: 12 | AD129: =MONTH(Ausweis!$H$10) -> 9 | AE129: 0 | AF129: 0 | AG129: 0
B130: 1972 | C130: 2077 | D130: 105 | E130: =VLOOKUP(C130,Zinsen!$C$9:$D$73,2,1) -> 0.01 | F130: 12 | H130: =MONTH(Ausweis!$H$10) -> 9 | I130: 0 | J130: 0 | K130: 0 | M130: 1972 | N130: 2077 | O130: 105 | P130: =VLOOKUP(N130,Zinsen!$C$9:$D$73,2,1) -> 0.01 | Q130: 12 | S130: =MONTH(Ausweis!$H$10) -> 9 | T130: 0 | U130: 0 | V130: 0 | X130: 1972 | Y130: 2077 | Z130: 105 | AA130: =VLOOKUP(Y130,Zinsen!$C$9:$D$73,2,1) -> 0.01 | AB130: 12 | AD130: =MONTH(Ausweis!$H$10) -> 9 | AE130: 0 | AF130: 0 | AG130: 0
B131: 1972 | C131: 2078 | D131: 106 | E131: =VLOOKUP(C131,Zinsen!$C$9:$D$73,2,1) -> 0.01 | F131: 12 | H131: =MONTH(Ausweis!$H$10) -> 9 | I131: 0 | J131: 0 | K131: 0 | M131: 1972 | N131: 2078 | O131: 106 | P131: =VLOOKUP(N131,Zinsen!$C$9:$D$73,2,1) -> 0.01 | Q131: 12 | S131: =MONTH(Ausweis!$H$10) -> 9 | T131: 0 | U131: 0 | V131: 0 | X131: 1972 | Y131: 2078 | Z131: 106 | AA131: =VLOOKUP(Y131,Zinsen!$C$9:$D$73,2,1) -> 0.01 | AB131: 12 | AD131: =MONTH(Ausweis!$H$10) -> 9 | AE131: 0 | AF131: 0 | AG131: 0
B132: 1972 | C132: 2079 | D132: 107 | E132: =VLOOKUP(C132,Zinsen!$C$9:$D$73,2,1) -> 0.01 | F132: 12 | H132: =MONTH(Ausweis!$H$10) -> 9 | I132: 0 | J132: 0 | K132: 0 | M132: 1972 | N132: 2079 | O132: 107 | P132: =VLOOKUP(N132,Zinsen!$C$9:$D$73,2,1) -> 0.01 | Q132: 12 | S132: =MONTH(Ausweis!$H$10) -> 9 | T132: 0 | U132: 0 | V132: 0 | X132: 1972 | Y132: 2079 | Z132: 107 | AA132: =VLOOKUP(Y132,Zinsen!$C$9:$D$73,2,1) -> 0.01 | AB132: 12 | AD132: =MONTH(Ausweis!$H$10) -> 9 | AE132: 0 | AF132: 0 | AG132: 0
B133: 1972 | C133: 2080 | D133: 108 | E133: =VLOOKUP(C133,Zinsen!$C$9:$D$73,2,1) -> 0.01 | F133: 12 | H133: =MONTH(Ausweis!$H$10) -> 9 | I133: 0 | J133: 0 | K133: 0 | M133: 1972 | N133: 2080 | O133: 108 | P133: =VLOOKUP(N133,Zinsen!$C$9:$D$73,2,1) -> 0.01 | Q133: 12 | S133: =MONTH(Ausweis!$H$10) -> 9 | T133: 0 | U133: 0 | V133: 0 | X133: 1972 | Y133: 2080 | Z133: 108 | AA133: =VLOOKUP(Y133,Zinsen!$C$9:$D$73,2,1) -> 0.01 | AB133: 12 | AD133: =MONTH(Ausweis!$H$10) -> 9 | AE133: 0 | AF133: 0 | AG133: 0
B134: 1972 | C134: 2081 | D134: 109 | E134: =VLOOKUP(C134,Zinsen!$C$9:$D$73,2,1) -> 0.01 | F134: 12 | H134: =MONTH(Ausweis!$H$10) -> 9 | I134: 0 | J134: 0 | K134: 0 | M134: 1972 | N134: 2081 | O134: 109 | P134: =VLOOKUP(N134,Zinsen!$C$9:$D$73,2,1) -> 0.01 | Q134: 12 | S134: =MONTH(Ausweis!$H$10) -> 9 | T134: 0 | U134: 0 | V134: 0 | X134: 1972 | Y134: 2081 | Z134: 109 | AA134: =VLOOKUP(Y134,Zinsen!$C$9:$D$73,2,1) -> 0.01 | AB134: 12 | AD134: =MONTH(Ausweis!$H$10) -> 9 | AE134: 0 | AF134: 0 | AG134: 0
B135: 1972 | C135: 2082 | D135: 110 | E135: =VLOOKUP(C135,Zinsen!$C$9:$D$73,2,1) -> 0.01 | F135: 12 | H135: =MONTH(Ausweis!$H$10) -> 9 | I135: 0 | J135: 0 | K135: 0 | M135: 1972 | N135: 2082 | O135: 110 | P135: =VLOOKUP(N135,Zinsen!$C$9:$D$73,2,1) -> 0.01 | Q135: 12 | S135: =MONTH(Ausweis!$H$10) -> 9 | T135: 0 | U135: 0 | V135: 0 | X135: 1972 | Y135: 2082 | Z135: 110 | AA135: =VLOOKUP(Y135,Zinsen!$C$9:$D$73,2,1) -> 0.01 | AB135: 12 | AD135: =MONTH(Ausweis!$H$10) -> 9 | AE135: 0 | AF135: 0 | AG135: 0
B136: 1972 | C136: 2083 | D136: 111 | E136: =VLOOKUP(C136,Zinsen!$C$9:$D$73,2,1) -> 0.01 | F136: 12 | H136: =MONTH(Ausweis!$H$10) -> 9 | I136: 0 | J136: 0 | K136: 0 | M136: 1972 | N136: 2083 | O136: 111 | P136: =VLOOKUP(N136,Zinsen!$C$9:$D$73,2,1) -> 0.01 | Q136: 12 | S136: =MONTH(Ausweis!$H$10) -> 9 | T136: 0 | U136: 0 | V136: 0 | X136: 1972 | Y136: 2083 | Z136: 111 | AA136: =VLOOKUP(Y136,Zinsen!$C$9:$D$73,2,1) -> 0.01 | AB136: 12 | AD136: =MONTH(Ausweis!$H$10) -> 9 | AE136: 0 | AF136: 0 | AG136: 0
B137: 1972 | C137: 2084 | D137: 112 | E137: =VLOOKUP(C137,Zinsen!$C$9:$D$73,2,1) -> 0.01 | F137: 12 | H137: =MONTH(Ausweis!$H$10) -> 9 | I137: 0 | J137: 0 | K137: 0 | M137: 1972 | N137: 2084 | O137: 112 | P137: =VLOOKUP(N137,Zinsen!$C$9:$D$73,2,1) -> 0.01 | Q137: 12 | S137: =MONTH(Ausweis!$H$10) -> 9 | T137: 0 | U137: 0 | V137: 0 | X137: 1972 | Y137: 2084 | Z137: 112 | AA137: =VLOOKUP(Y137,Zinsen!$C$9:$D$73,2,1) -> 0.01 | AB137: 12 | AD137: =MONTH(Ausweis!$H$10) -> 9 | AE137: 0 | AF137: 0 | AG137: 0
B138: 1972 | C138: 2085 | D138: =C138-B138 -> 113 | E138: =VLOOKUP(C138,Zinsen!$C$9:$D$73,2,1) -> 0.01 | F138: 12 | H138: =MONTH(Ausweis!$H$10) -> 9 | I138: 0 | J138: 0 | K138: 0 | M138: 1972 | N138: 2085 | O138: 113 | P138: =VLOOKUP(N138,Zinsen!$C$9:$D$73,2,1) -> 0.01 | Q138: 12 | S138: =MONTH(Ausweis!$H$10) -> 9 | T138: 0 | U138: 0 | V138: 0 | X138: 1972 | Y138: 2085 | Z138: 113 | AA138: =VLOOKUP(Y138,Zinsen!$C$9:$D$73,2,1) -> 0.01 | AB138: 12 | AD138: =MONTH(Ausweis!$H$10) -> 9 | AE138: 0 | AF138: 0 | AG138: 0
B139: =B138 -> 1972 | C139: =C138+1 -> 2086 | D139: 114 | E139: =VLOOKUP(C139,Zinsen!$C$9:$D$73,2,1) -> 0.01 | F139: 12 | H139: =MONTH(Ausweis!$H$10) -> 9 | I139: =I138*(1+E139/360*(F139*30+G139)) -> 0 | J139: =MROUND(I138*(1+E139/12*H139),0.05) -> 0 | K139: =MROUND(I138*(1+E139/12*$G$12),0.05) -> 0 | M139: =M138 -> 1972 | N139: =N138+1 -> 2086 | O139: =N139-M139 -> 114 | P139: =VLOOKUP(N139,Zinsen!$C$9:$D$73,2,1) -> 0.01 | Q139: 12 | S139: =MONTH(Ausweis!$H$10) -> 9 | T139: =T138*(1+P139/360*(Q139*30+R139)) -> 0 | U139: =MROUND(T138*(1+P139/12*S139),0.05) -> 0 | V139: =MROUND(T138*(1+P139/12*$G$12),0.05) -> 0 | X139: =X138 -> 1972 | Y139: =Y138+1 -> 2086 | Z139: =Y139-X139 -> 114 | AA139: =VLOOKUP(Y139,Zinsen!$C$9:$D$73,2,1) -> 0.01 | AB139: 12 | AD139: =MONTH(Ausweis!$H$10) -> 9 | AE139: =AE138*(1+AA139/360*(AB139*30+AC139)) -> 0 | AF139: =MROUND(AE138*(1+AA139/12*AD139),0.05) -> 0 | AG139: =MROUND(AE138*(1+AA139/12*$G$12),0.05) -> 0
B140: 1972 | C140: 2087 | D140: 115 | E140: =VLOOKUP(C140,Zinsen!$C$9:$D$73,2,1) -> 0.01 | F140: 12 | H140: =MONTH(Ausweis!$H$10) -> 9 | I140: 0 | J140: 0 | K140: 0 | M140: 1972 | N140: 2087 | O140: 115 | P140: =VLOOKUP(N140,Zinsen!$C$9:$D$73,2,1) -> 0.01 | Q140: 12 | S140: =MONTH(Ausweis!$H$10) -> 9 | T140: 0 | U140: 0 | V140: 0 | X140: 1972 | Y140: 2087 | Z140: 115 | AA140: =VLOOKUP(Y140,Zinsen!$C$9:$D$73,2,1) -> 0.01 | AB140: 12 | AD140: =MONTH(Ausweis!$H$10) -> 9 | AE140: 0 | AF140: 0 | AG140: 0
B141: 1972 | C141: 2088 | D141: 116 | E141: =VLOOKUP(C141,Zinsen!$C$9:$D$73,2,1) -> 0.01 | F141: 12 | H141: =MONTH(Ausweis!$H$10) -> 9 | I141: 0 | J141: 0 | K141: 0 | M141: 1972 | N141: 2088 | O141: 116 | P141: =VLOOKUP(N141,Zinsen!$C$9:$D$73,2,1) -> 0.01 | Q141: 12 | S141: =MONTH(Ausweis!$H$10) -> 9 | T141: 0 | U141: 0 | V141: 0 | X141: 1972 | Y141: 2088 | Z141: 116 | AA141: =VLOOKUP(Y141,Zinsen!$C$9:$D$73,2,1) -> 0.01 | AB141: 12 | AD141: =MONTH(Ausweis!$H$10) -> 9 | AE141: 0 | AF141: 0 | AG141: 0
B142: 1972 | C142: 2089 | D142: 117 | E142: =VLOOKUP(C142,Zinsen!$C$9:$D$73,2,1) -> 0.01 | F142: 12 | H142: =MONTH(Ausweis!$H$10) -> 9 | I142: 0 | J142: 0 | K142: 0 | M142: 1972 | N142: 2089 | O142: 117 | P142: =VLOOKUP(N142,Zinsen!$C$9:$D$73,2,1) -> 0.01 | Q142: 12 | S142: =MONTH(Ausweis!$H$10) -> 9 | T142: 0 | U142: 0 | V142: 0 | X142: 1972 | Y142: 2089 | Z142: 117 | AA142: =VLOOKUP(Y142,Zinsen!$C$9:$D$73,2,1) -> 0.01 | AB142: 12 | AD142: =MONTH(Ausweis!$H$10) -> 9 | AE142: 0 | AF142: 0 | AG142: 0
B143: 1972 | C143: 2090 | D143: 118 | E143: =VLOOKUP(C143,Zinsen!$C$9:$D$73,2,1) -> 0.01 | F143: 12 | H143: =MONTH(Ausweis!$H$10) -> 9 | I143: 0 | J143: 0 | K143: 0 | M143: 1972 | N143: 2090 | O143: 118 | P143: =VLOOKUP(N143,Zinsen!$C$9:$D$73,2,1) -> 0.01 | Q143: 12 | S143: =MONTH(Ausweis!$H$10) -> 9 | T143: 0 | U143: 0 | V143: 0 | X143: 1972 | Y143: 2090 | Z143: 118 | AA143: =VLOOKUP(Y143,Zinsen!$C$9:$D$73,2,1) -> 0.01 | AB143: 12 | AD143: =MONTH(Ausweis!$H$10) -> 9 | AE143: 0 | AF143: 0 | AG143: 0
B144: 1972 | C144: 2091 | D144: 119 | E144: =VLOOKUP(C144,Zinsen!$C$9:$D$73,2,1) -> 0.01 | F144: 12 | H144: =MONTH(Ausweis!$H$10) -> 9 | I144: 0 | J144: 0 | K144: 0 | M144: 1972 | N144: 2091 | O144: 119 | P144: =VLOOKUP(N144,Zinsen!$C$9:$D$73,2,1) -> 0.01 | Q144: 12 | S144: =MONTH(Ausweis!$H$10) -> 9 | T144: 0 | U144: 0 | V144: 0 | X144: 1972 | Y144: 2091 | Z144: 119 | AA144: =VLOOKUP(Y144,Zinsen!$C$9:$D$73,2,1) -> 0.01 | AB144: 12 | AD144: =MONTH(Ausweis!$H$10) -> 9 | AE144: 0 | AF144: 0 | AG144: 0
B145: 1972 | C145: 2092 | D145: 120 | E145: =VLOOKUP(C145,Zinsen!$C$9:$D$73,2,1) -> 0.01 | F145: 12 | H145: =MONTH(Ausweis!$H$10) -> 9 | I145: 0 | J145: 0 | K145: 0 | M145: 1972 | N145: 2092 | O145: 120 | P145: =VLOOKUP(N145,Zinsen!$C$9:$D$73,2,1) -> 0.01 | Q145: 12 | S145: =MONTH(Ausweis!$H$10) -> 9 | T145: 0 | U145: 0 | V145: 0 | X145: 1972 | Y145: 2092 | Z145: 120 | AA145: =VLOOKUP(Y145,Zinsen!$C$9:$D$73,2,1) -> 0.01 | AB145: 12 | AD145: =MONTH(Ausweis!$H$10) -> 9 | AE145: 0 | AF145: 0 | AG145: 0
B146: 1972 | C146: 2093 | D146: 121 | E146: =VLOOKUP(C146,Zinsen!$C$9:$D$73,2,1) -> 0.01 | F146: 12 | H146: =MONTH(Ausweis!$H$10) -> 9 | I146: 0 | J146: 0 | K146: 0 | M146: 1972 | N146: 2093 | O146: 121 | P146: =VLOOKUP(N146,Zinsen!$C$9:$D$73,2,1) -> 0.01 | Q146: 12 | S146: =MONTH(Ausweis!$H$10) -> 9 | T146: 0 | U146: 0 | V146: 0 | X146: 1972 | Y146: 2093 | Z146: 121 | AA146: =VLOOKUP(Y146,Zinsen!$C$9:$D$73,2,1) -> 0.01 | AB146: 12 | AD146: =MONTH(Ausweis!$H$10) -> 9 | AE146: 0 | AF146: 0 | AG146: 0
B147: 1972 | C147: 2094 | D147: 122 | E147: =VLOOKUP(C147,Zinsen!$C$9:$D$73,2,1) -> 0.01 | F147: 12 | H147: =MONTH(Ausweis!$H$10) -> 9 | I147: 0 | J147: 0 | K147: 0 | M147: 1972 | N147: 2094 | O147: 122 | P147: =VLOOKUP(N147,Zinsen!$C$9:$D$73,2,1) -> 0.01 | Q147: 12 | S147: =MONTH(Ausweis!$H$10) -> 9 | T147: 0 | U147: 0 | V147: 0 | X147: 1972 | Y147: 2094 | Z147: 122 | AA147: =VLOOKUP(Y147,Zinsen!$C$9:$D$73,2,1) -> 0.01 | AB147: 12 | AD147: =MONTH(Ausweis!$H$10) -> 9 | AE147: 0 | AF147: 0 | AG147: 0
B148: 1972 | C148: 2095 | D148: 123 | E148: =VLOOKUP(C148,Zinsen!$C$9:$D$73,2,1) -> 0.01 | F148: 12 | H148: =MONTH(Ausweis!$H$10) -> 9 | I148: 0 | J148: 0 | K148: 0 | M148: 1972 | N148: 2095 | O148: 123 | P148: =VLOOKUP(N148,Zinsen!$C$9:$D$73,2,1) -> 0.01 | Q148: 12 | S148: =MONTH(Ausweis!$H$10) -> 9 | T148: 0 | U148: 0 | V148: 0 | X148: 1972 | Y148: 2095 | Z148: 123 | AA148: =VLOOKUP(Y148,Zinsen!$C$9:$D$73,2,1) -> 0.01 | AB148: 12 | AD148: =MONTH(Ausweis!$H$10) -> 9 | AE148: 0 | AF148: 0 | AG148: 0
B149: 1972 | C149: 2096 | D149: 124 | E149: =VLOOKUP(C149,Zinsen!$C$9:$D$73,2,1) -> 0.01 | F149: 12 | H149: =MONTH(Ausweis!$H$10) -> 9 | I149: 0 | J149: 0 | K149: 0 | M149: 1972 | N149: 2096 | O149: 124 | P149: =VLOOKUP(N149,Zinsen!$C$9:$D$73,2,1) -> 0.01 | Q149: 12 | S149: =MONTH(Ausweis!$H$10) -> 9 | T149: 0 | U149: 0 | V149: 0 | X149: 1972 | Y149: 2096 | Z149: 124 | AA149: =VLOOKUP(Y149,Zinsen!$C$9:$D$73,2,1) -> 0.01 | AB149: 12 | AD149: =MONTH(Ausweis!$H$10) -> 9 | AE149: 0 | AF149: 0 | AG149: 0
B150: 1972 | C150: 2097 | D150: 125 | E150: =VLOOKUP(C150,Zinsen!$C$9:$D$73,2,1) -> 0.01 | F150: 12 | H150: =MONTH(Ausweis!$H$10) -> 9 | I150: 0 | J150: 0 | K150: 0 | M150: 1972 | N150: 2097 | O150: 125 | P150: =VLOOKUP(N150,Zinsen!$C$9:$D$73,2,1) -> 0.01 | Q150: 12 | S150: =MONTH(Ausweis!$H$10) -> 9 | T150: 0 | U150: 0 | V150: 0 | X150: 1972 | Y150: 2097 | Z150: 125 | AA150: =VLOOKUP(Y150,Zinsen!$C$9:$D$73,2,1) -> 0.01 | AB150: 12 | AD150: =MONTH(Ausweis!$H$10) -> 9 | AE150: 0 | AF150: 0 | AG150: 0
B151: 1972 | C151: 2098 | D151: 126 | E151: =VLOOKUP(C151,Zinsen!$C$9:$D$73,2,1) -> 0.01 | F151: 12 | H151: =MONTH(Ausweis!$H$10) -> 9 | I151: 0 | J151: 0 | K151: 0 | M151: 1972 | N151: 2098 | O151: 126 | P151: =VLOOKUP(N151,Zinsen!$C$9:$D$73,2,1) -> 0.01 | Q151: 12 | S151: =MONTH(Ausweis!$H$10) -> 9 | T151: 0 | U151: 0 | V151: 0 | X151: 1972 | Y151: 2098 | Z151: 126 | AA151: =VLOOKUP(Y151,Zinsen!$C$9:$D$73,2,1) -> 0.01 | AB151: 12 | AD151: =MONTH(Ausweis!$H$10) -> 9 | AE151: 0 | AF151: 0 | AG151: 0
B152: 1972 | C152: 2099 | D152: 127 | E152: =VLOOKUP(C152,Zinsen!$C$9:$D$73,2,1) -> 0.01 | F152: 12 | H152: =MONTH(Ausweis!$H$10) -> 9 | I152: 0 | J152: 0 | K152: 0 | M152: 1972 | N152: 2099 | O152: 127 | P152: =VLOOKUP(N152,Zinsen!$C$9:$D$73,2,1) -> 0.01 | Q152: 12 | S152: =MONTH(Ausweis!$H$10) -> 9 | T152: 0 | U152: 0 | V152: 0 | X152: 1972 | Y152: 2099 | Z152: 127 | AA152: =VLOOKUP(Y152,Zinsen!$C$9:$D$73,2,1) -> 0.01 | AB152: 12 | AD152: =MONTH(Ausweis!$H$10) -> 9 | AE152: 0 | AF152: 0 | AG152: 0
B153: 1972 | C153: 2100 | D153: 128 | E153: =VLOOKUP(C153,Zinsen!$C$9:$D$73,2,1) -> 0.01 | F153: 12 | H153: =MONTH(Ausweis!$H$10) -> 9 | I153: 0 | J153: 0 | K153: 0 | M153: 1972 | N153: 2100 | O153: 128 | P153: =VLOOKUP(N153,Zinsen!$C$9:$D$73,2,1) -> 0.01 | Q153: 12 | S153: =MONTH(Ausweis!$H$10) -> 9 | T153: 0 | U153: 0 | V153: 0 | X153: 1972 | Y153: 2100 | Z153: 128 | AA153: =VLOOKUP(Y153,Zinsen!$C$9:$D$73,2,1) -> 0.01 | AB153: 12 | AD153: =MONTH(Ausweis!$H$10) -> 9 | AE153: 0 | AF153: 0 | AG153: 0

Sheet Entwicklung AGH_Simulation (hidden)
A1: Datum Ausweis | B1: =Ausweis!F22 -> 2021-01-01 | I1: Zins 1 | J1: 0.0125 | AP1: =J1 -> 0.0125
A2: Geburtsdatum | B2: =Ausweis!H10 -> 1972-09-21 | E2: WENN(D7<65;12;MONAT(Ausweis!$H$10)) | I2: Zins 2 | J2: 0.015 | AK2: Basisplan | AP2: =J2 -> 0.015 | AT2: Zusatzplan
E3: =(((MONTH(B1)-1)*30)+DAY(B1)) -> 1 | I3: AGH | J3: =Ausweis!H23 -> 49373.65 | AP3: 0
BH4: =MAX(MIN(BE12,12*VLOOKUP(Ausweis!$H$5,Zinsen!$F$10:$G$56,2,1))-4*VLOOKUP(Ausweis!$H$5,Zinsen!$F$10:$G$56,2,1),0) -> 0
K6: =(J10-(VLOOKUP(D10,AK13:AL66,2)*(I10)/360)*(((MONTH(B1)-1)*30)+DAY(B1)))/(1+Q10/360*(((MONTH(B1)-1)*30)+DAY(B1)))-AY8 -> 31195.50515 | BD6: Lohnerhöhung p.a. | BE6: =Ausweis!I19 -> 0
AL7: =VLOOKUP(Ausweis!I7,Zins_u_Sparpläne!J14:K25,2,0) -> Standard | AU7: =VLOOKUP(Ausweis!H7,Zins_u_Sparpläne!J14:K25,2,0) -> Standard
U8: UWS | AB8: UWS | AL8: =VLOOKUP(AL7,Zins_u_Sparpläne!$G$2:$H$4,2,0) -> 2 | AO8: Lohn | AU8: =VLOOKUP(AL7,Zins_u_Sparpläne!$G$2:$H$4,2,0) -> 2 | AY8: =VLOOKUP(D10,AT13:AU66,2)*(AX10)/360*(((MONTH(B1)-1)*30)+DAY(B1)) -> 0
B9: Geburtsjahr | C9: Jahr | D9: Alter | E9: Monate | F9: Monate bis s | G9: Monate bis Wunschpens. | H9: AGS | I9: Lohn | J9: AGH 31.12. | K9: AGH eofM of Birth | L9: KsZ VL1+VL2 | M9: Einkauf KsZ | N9: WEF KsZ | O9: Scheidung KsZ | P9: Total AGH KsZ | Q9: Zins | R9: Altersrente p.a. VL1 + VL2 | S9: Altersrente p.M. | T9: UWS | U9: 58 | V9: 59 | W9: 60 | X9: 61 | Y9: 62 | Z9: 63 | AA9: 64 | AB9: 65 | AC9: 66 | AD9: 67 | AE9: 68 | AF9: 69 | AG9: 70 | AK9: BVG-Alter | AL9: Altersgutschriften | AN9: AGS | AO9: Lohn | AP9: AGH 31.12. | AR9: Total AGH | AT9: BVG-Alter | AU9: Altersgutschriften | AW9: AGS VL2 | AX9: Lohn VL2 | AY9: AGH 31.12. VL2 | AZ9: Total AGH KsZ VL2 | BC9: Alterkapital Wunschpens. | BE9: AHV-Lohn | BF9: KA | BG9: LV1 | BH9: LV2
A10: AGH Ausweis | B10: =B12 -> 1972 | C10: =C12 -> 2021 | D10: =D12 -> 49 | E10: =MONTH(Ausweis!F22) -> 1 | H10: =VLOOKUP(D10,$AK$13:$AL$66,2,1) -> 0.2215 | I10: =Ausweis!H17 -> 80660 | J10: =Ausweis!H22 -> 31246 | Q10: =VLOOKUP(C10,Zinsen!$C$9:$E$73,3,1) -> 0.01 | R10: =MROUND(P10*T10,0.05) -> 0 | S10: =MROUND(R10/12,1) -> 0 | T10: =IF(D10>=58,HLOOKUP(D10,$U$9:$AG$10,2,1),0) -> 0 | U10: =VLOOKUP(B10,UWS!$A$3:$P$84,11,1)+($U$9-$AB$9)*0.15% -> 0.0396 | V10: =VLOOKUP(B10,UWS!$A$3:$P$84,11,1)+($V$9-$AB$9)*0.15% -> 0.0411 | W10: =VLOOKUP(B10,UWS!$A$3:$P$84,11,1)+($W$9-$AB$9)*0.15% -> 0.0426 | X10: =VLOOKUP(B10,UWS!$A$3:$P$84,11,1)+($X$9-$AB$9)*0.15% -> 0.0441 | Y10: =VLOOKUP(B10,UWS!$A$3:$P$84,11,1)+($Y$9-$AB$9)*0.15% -> 0.0456 | Z10: =VLOOKUP(B10,UWS!$A$3:$P$84,11,1)+($Z$9-$AB$9)*0.15% -> 0.0471 | AA10: =VLOOKUP(B10,UWS!$A$3:$P$84,11,1)+($AA$9-$AB$9)*0.15% -> 0.0486 | AB10: =VLOOKUP(B10,UWS!$A$3:$P$84,11,1) -> 0.0501 | AC10: =VLOOKUP(B10,UWS!$A$3:$P$84,11,1)+($AC$9-$AB$9)*0.15% -> 0.0516 | AD10: =VLOOKUP(B10,UWS!$A$3:$P$84,11,1)+($AD$9-$AB$9)*0.15% -> 0.0531 | AE10: =VLOOKUP(B10,UWS!$A$3:$P$84,11,1)+($AE$9-$AB$9)*0.15% -> 0.0546 | AF10: =VLOOKUP(B10,UWS!$A$3:$P$84,11,1)+($AF$9-$AB$9)*0.15% -> 0.0561 | AG10: =VLOOKUP(B10,UWS!$A$3:$P$84,11,1)+($AG$9-$AB$9)*0.15% -> 0.0576 | AW10: =VLOOKUP(D10,$AT$13:$AU$66,2,1) -> 0.11 | AX10: =Ausweis!H18 -> 0 | BB10: =D10 -> 49
A11: AGH 31.12.Vorjahr | B11: =B12 -> 1972 | C11: =C12-1 -> 2020 | D11: =C11-B11 -> 48 | E11: 12 | F11: =MONTH(Ausweis!$H$10) -> 9 | G11: =MONTH(Ausweis!$C$40)-1 -> 9 | H11: 0.2215 | I11: =Ausweis!H17 -> 80660 | J11: =(J10-(VLOOKUP(D10,AK13:AL66,2)*(I10)/360)*(((MONTH(B1)-1)*30)))/(1+Q10/360*(((MONTH(B1)-1)*30)))-AY8 -> 31246 | Q11: =VLOOKUP(C11,Zinsen!$C$9:$E$73,3,1) -> 0.01 | R11: =MROUND(P11*T11,0.05) -> 0 | S11: =MROUND(R11/12,1) -> 0 | T11: =IF(D11>=58,HLOOKUP(D11,$U$9:$AG$10,2,1),0) -> 0 | U11: =VLOOKUP(B11,UWS!$A$3:$P$84,11,1)+($U$9-$AB$9)*0.15% -> 0.0396 | V11: =VLOOKUP(B11,UWS!$A$3:$P$84,11,1)+($V$9-$AB$9)*0.15% -> 0.0411 | W11: =VLOOKUP(B11,UWS!$A$3:$P$84,11,1)+($W$9-$AB$9)*0.15% -> 0.0426 | X11: =VLOOKUP(B11,UWS!$A$3:$P$84,11,1)+($X$9-$AB$9)*0.15% -> 0.0441 | Y11: =VLOOKUP(B11,UWS!$A$3:$P$84,11,1)+($Y$9-$AB$9)*0.15% -> 0.0456 | Z11: =VLOOKUP(B11,UWS!$A$3:$P$84,11,1)+($Z$9-$AB$9)*0.15% -> 0.0471 | AA11: =VLOOKUP(B11,UWS!$A$3:$P$84,11,1)+($AA$9-$AB$9)*0.15% -> 0.0486 | AB11: =VLOOKUP(B11,UWS!$A$3:$P$84,11,1) -> 0.0501 | AC11: =VLOOKUP(B11,UWS!$A$3:$P$84,11,1)+($AC$9-$AB$9)*0.15% -> 0.0516 | AD11: =VLOOKUP(B11,UWS!$A$3:$P$84,11,1)+($AD$9-$AB$9)*0.15% -> 0.0531 | AE11: =VLOOKUP(B11,UWS!$A$3:$P$84,11,1)+($AE$9-$AB$9)*0.15% -> 0.0546 | AF11: =VLOOKUP(B11,UWS!$A$3:$P$84,11,1)+($AF$9-$AB$9)*0.15% -> 0.0561 | AG11: =VLOOKUP(B11,UWS!$A$3:$P$84,11,1)+($AG$9-$AB$9)*0.15% -> 0.0576 | AW11: 0.11 | AX11: =Ausweis!H18 -> 0 | BB11: =D11 -> 48
B12: =YEAR(Ausweis!H10) -> 1972 | C12: =YEAR(Ausweis!H21) -> 2021 | D12: =C12-B12 -> 49 | E12: =E11 -> 12 | F12: =MONTH(Ausweis!$H$10) -> 9 | G12: =G11 -> 9 | H12: 0.2215 | I12: =Ausweis!H17 -> 80660 | J12: =J11*(1+Q12/12*E12)+I12*H12/12*IF(D12=65,E12,E12) -> 49424.65 | K12: =MROUND(J11*(1+Q12/12*F12)+I12*H12/12*F12,0.05) -> 44880 | L12: =K12+AZ12 -> 44880 | M12: =VLOOKUP(D12,$D$73:$J$153,7,1) -> 0 | N12: =VLOOKUP(D12,$O$73:$U$153,7,1) -> 0 | O12: =VLOOKUP(D12,$Z$73:$AF$153,7,1) -> 0 | P12: =L12+M12-N12-O12 -> 44880 | Q12: =VLOOKUP(C12,Zinsen!$C$9:$E$73,3,1) -> 0.01 | R12: 0 | S12: =MROUND(R12/12,1) -> 0 | T12: 0 | U12: =VLOOKUP(B12,UWS!$A$3:$P$84,11,1)+($U$9-$AB$9)*0.15% -> 0.0396 | V12: =VLOOKUP(B12,UWS!$A$3:$P$84,11,1)+($V$9-$AB$9)*0.15% -> 0.0411 | W12: =VLOOKUP(B12,UWS!$A$3:$P$84,11,1)+($W$9-$AB$9)*0.15% -> 0.0426 | X12: =VLOOKUP(B12,UWS!$A$3:$P$84,11,1)+($X$9-$AB$9)*0.15% -> 0.0441 | Y12: =VLOOKUP(B12,UWS!$A$3:$P$84,11,1)+($Y$9-$AB$9)*0.15% -> 0.0456 | Z12: =VLOOKUP(B12,UWS!$A$3:$P$84,11,1)+($Z$9-$AB$9)*0.15% -> 0.0471 | AA12: =VLOOKUP(B12,UWS!$A$3:$P$84,11,1)+($AA$9-$AB$9)*0.15% -> 0.0486 | AB12: =VLOOKUP(B12,UWS!$A$3:$P$84,11,1) -> 0.0501 | AC12: =VLOOKUP(B12,UWS!$A$3:$P$84,11,1)+($AC$9-$AB$9)*0.15% -> 0.0516 | AD12: =VLOOKUP(B12,UWS!$A$3:$P$84,11,1)+($AD$9-$AB$9)*0.15% -> 0.0531 | AE12: =VLOOKUP(B12,UWS!$A$3:$P$84,11,1)+($AE$9-$AB$9)*0.15% -> 0.0546 | AF12: =VLOOKUP(B12,UWS!$A$3:$P$84,11,1)+($AF$9-$AB$9)*0.15% -> 0.0561 | AG12: =VLOOKUP(B12,UWS!$A$3:$P$84,11,1)+($AG$9-$AB$9)*0.15% -> 0.0576 | AP12: ='Entwicklung AGH pro Jahr'!N7 -> 0 | AR12: =J12+AP12 -> 49424.65 | AW12: =VLOOKUP(D12,$AT$13:$AU$66,2,1) -> 0.11 | AX12: =Ausweis!H18 -> 0 | AY12: =AY11*(1+Q12/12*E12)+AX12*AW12/12*IF(D12=65,F12,E12) -> 0 | AZ12: =MROUND(AY11*(1+Q12/12*F12)+AX12*AW12/12*F12,0.05) -> 0 | BB12: 49 | BC12: =MROUND(J11*(1+Q12/12*G12)+I12*H12/12*G12,0.05)+K73-V73-AG73+MROUND(AY11*(1+Q12/12*G12)+AX12*AW12/12*G12,0.05) -> 44880 | BE12: =Ausweis!H15 -> 95000 | BF12: =VLOOKUP(Ausweis!$I$5,Zinsen!$F$10:$G$56,2,)*1/2*Ausweis!$H$14 -> 14340 | BG12: =MIN(BE12-BF12,11/2*VLOOKUP(Ausweis!$H$5,Zinsen!$F$10:$G$56,2,1)) -> 80660 | BH12: =MAX(MIN(BE12,12*VLOOKUP(Ausweis!$H$5,Zinsen!$F$10:$G$56,2,1))-4*VLOOKUP(Ausweis!$H$5,Zinsen!$F$10:$G$56,2,1),0)*0 -> 0
B13: =B12 -> 1972 | C13: =C12+1 -> 2022 | D13: =C13-B13 -> 50 | E13: =E12 -> 12 | F13: =MONTH(Ausweis!$H$10) -> 9 | G13: =G12 -> 9 | H13: 0.2215 | I13: =BG13 -> 80660 | J13: =J12*(1+Q13/12*E13)+I13*H13/12*IF(D13=65,E13,E13) -> 67785.0865 | K13: 63195 | L13: =K13+AZ13 -> 63195 | M13: =VLOOKUP(D13,$D$73:$J$153,7,1) -> 0 | N13: 0 | O13: 0 | P13: =L13+M13-N13-O13 -> 63195 | Q13: =VLOOKUP(C13,Zinsen!$C$9:$E$73,3,1) -> 0.01 | R13: 0 | S13: 0 | T13: 0 | U13: =VLOOKUP(B13,UWS!$A$3:$P$84,11,1)+($U$9-$AB$9)*0.15% -> 0.0396 | V13: =VLOOKUP(B13,UWS!$A$3:$P$84,11,1)+($V$9-$AB$9)*0.15% -> 0.0411 | W13: =VLOOKUP(B13,UWS!$A$3:$P$84,11,1)+($W$9-$AB$9)*0.15% -> 0.0426 | X13: =VLOOKUP(B13,UWS!$A$3:$P$84,11,1)+($X$9-$AB$9)*0.15% -> 0.0441 | Y13: =VLOOKUP(B13,UWS!$A$3:$P$84,11,1)+($Y$9-$AB$9)*0.15% -> 0.0456 | Z13: =VLOOKUP(B13,UWS!$A$3:$P$84,11,1)+($Z$9-$AB$9)*0.15% -> 0.0471 | AA13: =VLOOKUP(B13,UWS!$A$3:$P$84,11,1)+($AA$9-$AB$9)*0.15% -> 0.0486 | AB13: =VLOOKUP(B13,UWS!$A$3:$P$84,11,1) -> 0.0501 | AC13: =VLOOKUP(B13,UWS!$A$3:$P$84,11,1)+($AC$9-$AB$9)*0.15% -> 0.0516 | AD13: =VLOOKUP(B13,UWS!$A$3:$P$84,11,1)+($AD$9-$AB$9)*0.15% -> 0.0531 | AE13: =VLOOKUP(B13,UWS!$A$3:$P$84,11,1)+($AE$9-$AB$9)*0.15% -> 0.0546 | AF13: =VLOOKUP(B13,UWS!$A$3:$P$84,11,1)+($AF$9-$AB$9)*0.15% -> 0.0561 | AG13: =VLOOKUP(B13,UWS!$A$3:$P$84,11,1)+($AG$9-$AB$9)*0.15% -> 0.0576 | AK13: 17 | AL13: =VLOOKUP(AK13,'AGS Finanzierung'!$M$8:$P$64,$AL$8+1,0) -> 0 | AN13: =VLOOKUP(D13,$AT$13:$AU$65,2,1) -> 0.11 | AO13: =Ausweis!$H$18 -> 0 | AP13: =MROUND(AP12*(1+$AP$2/12*E13)+AN13/12*E13*AO13,0.05) -> 0 | AR13: =J13+AP13 -> 67785.0865 | AT13: 17 | AU13: =VLOOKUP(AT13,'AGS FinanzierungVL2'!$M$8:$P$64,$AU$8+1,0) -> 0 | AW13: 0.11 | AX13: =BH13 -> 0 | AY13: =AY12*(1+Q13/12*E13)+AX13*AW13/12*IF(D13=65,F13,E13) -> 0 | AZ13: =MROUND(AY12*(1+Q13/12*F13)+AX13*AW13/12*F13,0.05) -> 0 | BB13: 50 | BC13: =MROUND(J12*(1+Q13/12*G13)+I13*H13/12*G13,0.05)+K74-V74-AG74+MROUND(AY12*(1+Q13/12*G13)+AX13*AW13/12*G13,0.05) -> 63195 | BE13: =Ausweis!I15 -> 95000 | BF13: =VLOOKUP(Ausweis!$I$5,Zinsen!$F$10:$G$56,2,)*1/2*Ausweis!$H$14 -> 14340 | BG13: =MIN(BE13-BF13,11/2*VLOOKUP(Ausweis!$H$5,Zinsen!$F$10:$G$56,2,1)) -> 80660 | BH13: =MAX(MIN(BE13,12*VLOOKUP(Ausweis!$H$5,Zinsen!$F$10:$G$56,2,1))-4*VLOOKUP(Ausweis!$H$5,Zinsen!$F$10:$G$56,2,1),0)*0 -> 0
B14: =B13 -> 1972 | C14: =C13+1 -> 2023 | D14: =C14-B14 -> 51 | E14: 12 | F14: =MONTH(Ausweis!$H$10) -> 9 | G14: =G13 -> 9 | H14: 0.2215 | I14: =BG14 -> 80660 | J14: 86329.12736 | K14: 81693.1 | L14: =K14+AZ14 -> 81693.1 | M14: 0 | N14: 0 | O14: 0 | P14: =L14+M14-N14-O14 -> 81693.1 | Q14: =VLOOKUP(C14,Zinsen!$C$9:$E$73,3,1) -> 0.01 | R14: 0 | S14: 0 | T14: 0 | U14: =VLOOKUP(B14,UWS!$A$3:$P$84,11,1)+($U$9-$AB$9)*0.15% -> 0.0396 | V14: =VLOOKUP(B14,UWS!$A$3:$P$84,11,1)+($V$9-$AB$9)*0.15% -> 0.0411 | W14: =VLOOKUP(B14,UWS!$A$3:$P$84,11,1)+($W$9-$AB$9)*0.15% -> 0.0426 | X14: =VLOOKUP(B14,UWS!$A$3:$P$84,11,1)+($X$9-$AB$9)*0.15% -> 0.0441 | Y14: =VLOOKUP(B14,UWS!$A$3:$P$84,11,1)+($Y$9-$AB$9)*0.15% -> 0.0456 | Z14: =VLOOKUP(B14,UWS!$A$3:$P$84,11,1)+($Z$9-$AB$9)*0.15% -> 0.0471 | AA14: =VLOOKUP(B14,UWS!$A$3:$P$84,11,1)+($AA$9-$AB$9)*0.15% -> 0.0486 | AB14: =VLOOKUP(B14,UWS!$A$3:$P$84,11,1) -> 0.0501 | AC14: =VLOOKUP(B14,UWS!$A$3:$P$84,11,1)+($AC$9-$AB$9)*0.15% -> 0.0516 | AD14: =VLOOKUP(B14,UWS!$A$3:$P$84,11,1)+($AD$9-$AB$9)*0.15% -> 0.0531 | AE14: =VLOOKUP(B14,UWS!$A$3:$P$84,11,1)+($AE$9-$AB$9)*0.15% -> 0.0546 | AF14: =VLOOKUP(B14,UWS!$A$3:$P$84,11,1)+($AF$9-$AB$9)*0.15% -> 0.0561 | AG14: =VLOOKUP(B14,UWS!$A$3:$P$84,11,1)+($AG$9-$AB$9)*0.15% -> 0.0576 | AK14: 18 | AL14: =VLOOKUP(AK14,'AGS Finanzierung'!$M$8:$P$64,$AL$8+1,0) -> 0 | AN14: =VLOOKUP(D14,$AT$13:$AU$65,2,1) -> 0.11 | AO14: =Ausweis!$H$18 -> 0 | AP14: 0 | AR14: =J14+AP14 -> 86329.12736 | AT14: 18 | AU14: =VLOOKUP(AT14,'AGS FinanzierungVL2'!$M$8:$P$64,$AU$8+1,0) -> 0 | AW14: 0.11 | AX14: =BH14 -> 0 | AY14: =AY13*(1+Q14/12*E14)+AX14*AW14/12*IF(D14=65,F14,E14) -> 0 | AZ14: =MROUND(AY13*(1+Q14/12*F14)+AX14*AW14/12*F14,0.05) -> 0 | BB14: 51 | BC14: =MROUND(J13*(1+Q14/12*G14)+I14*H14/12*G14,0.05)+K75-V75-AG75+MROUND(AY13*(1+Q14/12*G14)+AX14*AW14/12*G14,0.05) -> 81693.1 | BE14: =BE13*(1+$BE$6) -> 95000 | BF14: =VLOOKUP(Ausweis!$I$5,Zinsen!$F$10:$G$56,2,)*1/2*Ausweis!$H$14 -> 14340 | BG14: =MIN(BE14-BF14,11/2*VLOOKUP(Ausweis!$H$5,Zinsen!$F$10:$G$56,2,1)) -> 80660 | BH14: =MAX(MIN(BE14,12*VLOOKUP(Ausweis!$H$5,Zinsen!$F$10:$G$56,2,1))-4*VLOOKUP(Ausweis!$H$5,Zinsen!$F$10:$G$56,2,1),0)*0 -> 0
B15: =B14 -> 1972 | C15: =C14+1 -> 2024 | D15: =C15-B15 -> 52 | E15: 12 | F15: =MONTH(Ausweis!$H$10) -> 9 | G15: 9 | H15: 0.2215 | I15: 80660 | J15: 105058.6086 | K15: 100376.25 | L15: 100376.25 | M15: 0 | N15: 0 | O15: 0 | P15: 100376.25 | Q15: =VLOOKUP(C15,Zinsen!$C$9:$E$73,3,1) -> 0.01 | R15: 0 | S15: 0 | T15: 0 | U15: =VLOOKUP(B15,UWS!$A$3:$P$84,11,1)+($U$9-$AB$9)*0.15% -> 0.0396 | V15: =VLOOKUP(B15,UWS!$A$3:$P$84,11,1)+($V$9-$AB$9)*0.15% -> 0.0411 | W15: =VLOOKUP(B15,UWS!$A$3:$P$84,11,1)+($W$9-$AB$9)*0.15% -> 0.0426 | X15: =VLOOKUP(B15,UWS!$A$3:$P$84,11,1)+($X$9-$AB$9)*0.15% -> 0.0441 | Y15: =VLOOKUP(B15,UWS!$A$3:$P$84,11,1)+($Y$9-$AB$9)*0.15% -> 0.0456 | Z15: =VLOOKUP(B15,UWS!$A$3:$P$84,11,1)+($Z$9-$AB$9)*0.15% -> 0.0471 | AA15: =VLOOKUP(B15,UWS!$A$3:$P$84,11,1)+($AA$9-$AB$9)*0.15% -> 0.0486 | AB15: =VLOOKUP(B15,UWS!$A$3:$P$84,11,1) -> 0.0501 | AC15: =VLOOKUP(B15,UWS!$A$3:$P$84,11,1)+($AC$9-$AB$9)*0.15% -> 0.0516 | AD15: =VLOOKUP(B15,UWS!$A$3:$P$84,11,1)+($AD$9-$AB$9)*0.15% -> 0.0531 | AE15: =VLOOKUP(B15,UWS!$A$3:$P$84,11,1)+($AE$9-$AB$9)*0.15% -> 0.0546 | AF15: =VLOOKUP(B15,UWS!$A$3:$P$84,11,1)+($AF$9-$AB$9)*0.15% -> 0.0561 | AG15: =VLOOKUP(B15,UWS!$A$3:$P$84,11,1)+($AG$9-$AB$9)*0.15% -> 0.0576 | AK15: 19 | AL15: =VLOOKUP(AK15,'AGS Finanzierung'!$M$8:$P$64,$AL$8+1,0) -> 0 | AN15: 0.11 | AO15: =Ausweis!$H$18 -> 0 | AP15: 0 | AR15: =J15+AP15 -> 105058.6086 | AT15: 19 | AU15: =VLOOKUP(AT15,'AGS FinanzierungVL2'!$M$8:$P$64,$AU$8+1,0) -> 0 | AW15: 0.11 | AX15: 0 | AY15: 0 | AZ15: 0 | BB15: 52 | BC15: 100376.25 | BE15: 95000 | BF15: =VLOOKUP(Ausweis!$I$5,Zinsen!$F$10:$G$56,2,)*1/2*Ausweis!$H$14 -> 14340 | BG15: =MIN(BE15-BF15,11/2*VLOOKUP(Ausweis!$H$5,Zinsen!$F$10:$G$56,2,1)) -> 80660 | BH15: =MAX(MIN(BE15,12*VLOOKUP(Ausweis!$H$5,Zinsen!$F$10:$G$56,2,1))-4*VLOOKUP(Ausweis!$H$5,Zinsen!$F$10:$G$56,2,1),0)*0 -> 0
B16: 1972 | C16: 2025 | D16: 53 | E16: 12 | F16: =MONTH(Ausweis!$H$10) -> 9 | G16: 9 | H16: 0.2215 | I16: 80660 | J16: 123975.3847 | K16: 119246.2 | L16: 119246.2 | M16: 0 | N16: 0 | O16: 0 | P16: 119246.2 | Q16: =VLOOKUP(C16,Zinsen!$C$9:$E$73,3,1) -> 0.01 | R16: 0 | S16: 0 | T16: 0 | U16: =VLOOKUP(B16,UWS!$A$3:$P$84,11,1)+($U$9-$AB$9)*0.15% -> 0.0396 | V16: =VLOOKUP(B16,UWS!$A$3:$P$84,11,1)+($V$9-$AB$9)*0.15% -> 0.0411 | W16: =VLOOKUP(B16,UWS!$A$3:$P$84,11,1)+($W$9-$AB$9)*0.15% -> 0.0426 | X16: =VLOOKUP(B16,UWS!$A$3:$P$84,11,1)+($X$9-$AB$9)*0.15% -> 0.0441 | Y16: =VLOOKUP(B16,UWS!$A$3:$P$84,11,1)+($Y$9-$AB$9)*0.15% -> 0.0456 | Z16: =VLOOKUP(B16,UWS!$A$3:$P$84,11,1)+($Z$9-$AB$9)*0.15% -> 0.0471 | AA16: =VLOOKUP(B16,UWS!$A$3:$P$84,11,1)+($AA$9-$AB$9)*0.15% -> 0.0486 | AB16: =VLOOKUP(B16,UWS!$A$3:$P$84,11,1) -> 0.0501 | AC16: =VLOOKUP(B16,UWS!$A$3:$P$84,11,1)+($AC$9-$AB$9)*0.15% -> 0.0516 | AD16: =VLOOKUP(B16,UWS!$A$3:$P$84,11,1)+($AD$9-$AB$9)*0.15% -> 0.0531 | AE16: =VLOOKUP(B16,UWS!$A$3:$P$84,11,1)+($AE$9-$AB$9)*0.15% -> 0.0546 | AF16: =VLOOKUP(B16,UWS!$A$3:$P$84,11,1)+($AF$9-$AB$9)*0.15% -> 0.0561 | AG16: =VLOOKUP(B16,UWS!$A$3:$P$84,11,1)+($AG$9-$AB$9)*0.15% -> 0.0576 | AK16: 20 | AL16: =VLOOKUP(AK16,'AGS Finanzierung'!$M$8:$P$64,$AL$8+1,0) -> 0 | AN16: 0.11 | AO16: =Ausweis!$H$18 -> 0 | AP16: 0 | AR16: 123975.3847 | AT16: 20 | AU16: =VLOOKUP(AT16,'AGS FinanzierungVL2'!$M$8:$P$64,$AU$8+1,0) -> 0 | AW16: 0.11 | AX16: 0 | AY16: 0 | AZ16: 0 | BB16: 53 | BC16: 119246.2 | BE16: 95000 | BF16: =VLOOKUP(Ausweis!$I$5,Zinsen!$F$10:$G$56,2,)*1/2*Ausweis!$H$14 -> 14340 | BG16: =MIN(BE16-BF16,11/2*VLOOKUP(Ausweis!$H$5,Zinsen!$F$10:$G$56,2,1)) -> 80660 | BH16: =MAX(MIN(BE16,12*VLOOKUP(Ausweis!$H$5,Zinsen!$F$10:$G$56,2,1))-4*VLOOKUP(Ausweis!$H$5,Zinsen!$F$10:$G$56,2,1),0)*0 -> 0
B17: 1972 | C17: 2026 | D17: 54 | E17: 12 | F17: =MONTH(Ausweis!$H$10) -> 9 | G17: 9 | H17: 0.2215 | I17: 80660 | J17: 143081.3286 | K17: 138304.85 | L17: 138304.85 | M17: 0 | N17: 0 | O17: 0 | P17: 138304.85 | Q17: =VLOOKUP(C17,Zinsen!$C$9:$E$73,3,1) -> 0.01 | R17: 0 | S17: 0 | T17: 0 | U17: =VLOOKUP(B17,UWS!$A$3:$P$84,11,1)+($U$9-$AB$9)*0.15% -> 0.0396 | V17: =VLOOKUP(B17,UWS!$A$3:$P$84,11,1)+($V$9-$AB$9)*0.15% -> 0.0411 | W17: =VLOOKUP(B17,UWS!$A$3:$P$84,11,1)+($W$9-$AB$9)*0.15% -> 0.0426 | X17: =VLOOKUP(B17,UWS!$A$3:$P$84,11,1)+($X$9-$AB$9)*0.15% -> 0.0441 | Y17: =VLOOKUP(B17,UWS!$A$3:$P$84,11,1)+($Y$9-$AB$9)*0.15% -> 0.0456 | Z17: =VLOOKUP(B17,UWS!$A$3:$P$84,11,1)+($Z$9-$AB$9)*0.15% -> 0.0471 | AA17: =VLOOKUP(B17,UWS!$A$3:$P$84,11,1)+($AA$9-$AB$9)*0.15% -> 0.0486 | AB17: =VLOOKUP(B17,UWS!$A$3:$P$84,11,1) -> 0.0501 | AC17: =VLOOKUP(B17,UWS!$A$3:$P$84,11,1)+($AC$9-$AB$9)*0.15% -> 0.0516 | AD17: =VLOOKUP(B17,UWS!$A$3:$P$84,11,1)+($AD$9-$AB$9)*0.15% -> 0.0531 | AE17: =VLOOKUP(B17,UWS!$A$3:$P$84,11,1)+($AE$9-$AB$9)*0.15% -> 0.0546 | AF17: =VLOOKUP(B17,UWS!$A$3:$P$84,11,1)+($AF$9-$AB$9)*0.15% -> 0.0561 | AG17: =VLOOKUP(B17,UWS!$A$3:$P$84,11,1)+($AG$9-$AB$9)*0.15% -> 0.0576 | AK17: 21 | AL17: =VLOOKUP(AK17,'AGS Finanzierung'!$M$8:$P$64,$AL$8+1,0) -> 0 | AN17: 0.11 | AO17: =Ausweis!$H$18 -> 0 | AP17: 0 | AR17: 143081.3286 | AT17: 21 | AU17: =VLOOKUP(AT17,'AGS FinanzierungVL2'!$M$8:$P$64,$AU$8+1,0) -> 0 | AW17: 0.11 | AX17: 0 | AY17: 0 | AZ17: 0 | BB17: 54 | BC17: 138304.85 | BE17: 95000 | BF17: =VLOOKUP(Ausweis!$I$5,Zinsen!$F$10:$G$56,2,)*1/2*Ausweis!$H$14 -> 14340 | BG17: =MIN(BE17-BF17,11/2*VLOOKUP(Ausweis!$H$5,Zinsen!$F$10:$G$56,2,1)) -> 80660 | BH17: =MAX(MIN(BE17,12*VLOOKUP(Ausweis!$H$5,Zinsen!$F$10:$G$56,2,1))-4*VLOOKUP(Ausweis!$H$5,Zinsen!$F$10:$G$56,2,1),0)*0 -> 0
B18: 1972 | C18: 2027 | D18: 55 | E18: 12 | F18: =MONTH(Ausweis!$H$10) -> 9 | G18: 9 | H18: 0.2815 | I18: 80660 | J18: 167217.9319 | K18: 161183.8 | L18: 161183.8 | M18: 0 | N18: 0 | O18: 0 | P18: 161183.8 | Q18: =VLOOKUP(C18,Zinsen!$C$9:$E$73,3,1) -> 0.01 | R18: 0 | S18: 0 | T18: 0 | U18: =VLOOKUP(B18,UWS!$A$3:$P$84,11,1)+($U$9-$AB$9)*0.15% -> 0.0396 | V18: =VLOOKUP(B18,UWS!$A$3:$P$84,11,1)+($V$9-$AB$9)*0.15% -> 0.0411 | W18: =VLOOKUP(B18,UWS!$A$3:$P$84,11,1)+($W$9-$AB$9)*0.15% -> 0.0426 | X18: =VLOOKUP(B18,UWS!$A$3:$P$84,11,1)+($X$9-$AB$9)*0.15% -> 0.0441 | Y18: =VLOOKUP(B18,UWS!$A$3:$P$84,11,1)+($Y$9-$AB$9)*0.15% -> 0.0456 | Z18: =VLOOKUP(B18,UWS!$A$3:$P$84,11,1)+($Z$9-$AB$9)*0.15% -> 0.0471 | AA18: =VLOOKUP(B18,UWS!$A$3:$P$84,11,1)+($AA$9-$AB$9)*0.15% -> 0.0486 | AB18: =VLOOKUP(B18,UWS!$A$3:$P$84,11,1) -> 0.0501 | AC18: =VLOOKUP(B18,UWS!$A$3:$P$84,11,1)+($AC$9-$AB$9)*0.15% -> 0.0516 | AD18: =VLOOKUP(B18,UWS!$A$3:$P$84,11,1)+($AD$9-$AB$9)*0.15% -> 0.0531 | AE18: =VLOOKUP(B18,UWS!$A$3:$P$84,11,1)+($AE$9-$AB$9)*0.15% -> 0.0546 | AF18: =VLOOKUP(B18,UWS!$A$3:$P$84,11,1)+($AF$9-$AB$9)*0.15% -> 0.0561 | AG18: =VLOOKUP(B18,UWS!$A$3:$P$84,11,1)+($AG$9-$AB$9)*0.15% -> 0.0576 | AK18: 22 | AL18: =VLOOKUP(AK18,'AGS Finanzierung'!$M$8:$P$64,$AL$8+1,0) -> 0 | AN18: 0.11 | AO18: =Ausweis!$H$18 -> 0 | AP18: 0 | AR18: 167217.9319 | AT18: 22 | AU18: =VLOOKUP(AT18,'AGS FinanzierungVL2'!$M$8:$P$64,$AU$8+1,0) -> 0 | AW18: 0.11 | AX18: 0 | AY18: 0 | AZ18: 0 | BB18: 55 | BC18: 161183.8 | BE18: 95000 | BF18: =VLOOKUP(Ausweis!$I$5,Zinsen!$F$10:$G$56,2,)*1/2*Ausweis!$H$14 -> 14340 | BG18: =MIN(BE18-BF18,11/2*VLOOKUP(Ausweis!$H$5,Zinsen!$F$10:$G$56,2,1)) -> 80660 | BH18: =MAX(MIN(BE18,12*VLOOKUP(Ausweis!$H$5,Zinsen!$F$10:$G$56,2,1))-4*VLOOKUP(Ausweis!$H$5,Zinsen!$F$10:$G$56,2,1),0)*0 -> 0
B19: 1972 | C19: 2028 | D19: 56 | E19: 12 | F19: =MONTH(Ausweis!$H$10) -> 9 | G19: 9 | H19: 0.2815 | I19: 80660 | J19: 191595.9012 | K19: 185501.4 | L19: 185501.4 | M19: 0 | N19: 0 | O19: 0 | P19: 185501.4 | Q19: =VLOOKUP(C19,Zinsen!$C$9:$E$73,3,1) -> 0.01 | R19: 0 | S19: 0 | T19: 0 | U19: =VLOOKUP(B19,UWS!$A$3:$P$84,11,1)+($U$9-$AB$9)*0.15% -> 0.0396 | V19: =VLOOKUP(B19,UWS!$A$3:$P$84,11,1)+($V$9-$AB$9)*0.15% -> 0.0411 | W19: =VLOOKUP(B19,UWS!$A$3:$P$84,11,1)+($W$9-$AB$9)*0.15% -> 0.0426 | X19: =VLOOKUP(B19,UWS!$A$3:$P$84,11,1)+($X$9-$AB$9)*0.15% -> 0.0441 | Y19: =VLOOKUP(B19,UWS!$A$3:$P$84,11,1)+($Y$9-$AB$9)*0.15% -> 0.0456 | Z19: =VLOOKUP(B19,UWS!$A$3:$P$84,11,1)+($Z$9-$AB$9)*0.15% -> 0.0471 | AA19: =VLOOKUP(B19,UWS!$A$3:$P$84,11,1)+($AA$9-$AB$9)*0.15% -> 0.0486 | AB19: =VLOOKUP(B19,UWS!$A$3:$P$84,11,1) -> 0.0501 | AC19: =VLOOKUP(B19,UWS!$A$3:$P$84,11,1)+($AC$9-$AB$9)*0.15% -> 0.0516 | AD19: =VLOOKUP(B19,UWS!$A$3:$P$84,11,1)+($AD$9-$AB$9)*0.15% -> 0.0531 | AE19: =VLOOKUP(B19,UWS!$A$3:$P$84,11,1)+($AE$9-$AB$9)*0.15% -> 0.0546 | AF19: =VLOOKUP(B19,UWS!$A$3:$P$84,11,1)+($AF$9-$AB$9)*0.15% -> 0.0561 | AG19: =VLOOKUP(B19,UWS!$A$3:$P$84,11,1)+($AG$9-$AB$9)*0.15% -> 0.0576 | AK19: 23 | AL19: =VLOOKUP(AK19,'AGS Finanzierung'!$M$8:$P$64,$AL$8+1,0) -> 0 | AN19: 0.11 | AO19: =Ausweis!$H$18 -> 0 | AP19: 0 | AR19: 191595.9012 | AT19: 23 | AU19: =VLOOKUP(AT19,'AGS FinanzierungVL2'!$M$8:$P$64,$AU$8+1,0) -> 0 | AW19: 0.11 | AX19: 0 | AY19: 0 | AZ19: 0 | BB19: 56 | BC19: 185501.4 | BE19: 95000 | BF19: =VLOOKUP(Ausweis!$I$5,Zinsen!$F$10:$G$56,2,)*1/2*Ausweis!$H$14 -> 14340 | BG19: =MIN(BE19-BF19,11/2*VLOOKUP(Ausweis!$H$5,Zinsen!$F$10:$G$56,2,1)) -> 80660 | BH19: =MAX(MIN(BE19,12*VLOOKUP(Ausweis!$H$5,Zinsen!$F$10:$G$56,2,1))-4*VLOOKUP(Ausweis!$H$5,Zinsen!$F$10:$G$56,2,1),0)*0 -> 0
B20: 1972 | C20: 2029 | D20: 57 | E20: 12 | F20: =MONTH(Ausweis!$H$10) -> 9 | G20: 9 | H20: 0.2815 | I20: 80660 | J20: 216217.6502 | K20: 210062.2 | L20: 210062.2 | M20: 0 | N20: 0 | O20: 0 | P20: 210062.2 | Q20: =VLOOKUP(C20,Zinsen!$C$9:$E$73,3,1) -> 0.01 | R20: 0 | S20: 0 | T20: 0 | U20: =VLOOKUP(B20,UWS!$A$3:$P$84,11,1)+($U$9-$AB$9)*0.15% -> 0.0396 | V20: =VLOOKUP(B20,UWS!$A$3:$P$84,11,1)+($V$9-$AB$9)*0.15% -> 0.0411 | W20: =VLOOKUP(B20,UWS!$A$3:$P$84,11,1)+($W$9-$AB$9)*0.15% -> 0.0426 | X20: =VLOOKUP(B20,UWS!$A$3:$P$84,11,1)+($X$9-$AB$9)*0.15% -> 0.0441 | Y20: =VLOOKUP(B20,UWS!$A$3:$P$84,11,1)+($Y$9-$AB$9)*0.15% -> 0.0456 | Z20: =VLOOKUP(B20,UWS!$A$3:$P$84,11,1)+($Z$9-$AB$9)*0.15% -> 0.0471 | AA20: =VLOOKUP(B20,UWS!$A$3:$P$84,11,1)+($AA$9-$AB$9)*0.15% -> 0.0486 | AB20: =VLOOKUP(B20,UWS!$A$3:$P$84,11,1) -> 0.0501 | AC20: =VLOOKUP(B20,UWS!$A$3:$P$84,11,1)+($AC$9-$AB$9)*0.15% -> 0.0516 | AD20: =VLOOKUP(B20,UWS!$A$3:$P$84,11,1)+($AD$9-$AB$9)*0.15% -> 0.0531 | AE20: =VLOOKUP(B20,UWS!$A$3:$P$84,11,1)+($AE$9-$AB$9)*0.15% -> 0.0546 | AF20: =VLOOKUP(B20,UWS!$A$3:$P$84,11,1)+($AF$9-$AB$9)*0.15% -> 0.0561 | AG20: =VLOOKUP(B20,UWS!$A$3:$P$84,11,1)+($AG$9-$AB$9)*0.15% -> 0.0576 | AK20: 24 | AL20: =VLOOKUP(AK20,'AGS Finanzierung'!$M$8:$P$64,$AL$8+1,0) -> 0 | AN20: 0.11 | AO20: =Ausweis!$H$18 -> 0 | AP20: 0 | AR20: 216217.6502 | AT20: 24 | AU20: =VLOOKUP(AT20,'AGS FinanzierungVL2'!$M$8:$P$64,$AU$8+1,0) -> 0 | AW20: 0.11 | AX20: 0 | AY20: 0 | AZ20: 0 | BB20: 57 | BC20: 210062.2 | BE20: 95000 | BF20: =VLOOKUP(Ausweis!$I$5,Zinsen!$F$10:$G$56,2,)*1/2*Ausweis!$H$14 -> 14340 | BG20: =MIN(BE20-BF20,11/2*VLOOKUP(Ausweis!$H$5,Zinsen!$F$10:$G$56,2,1)) -> 80660 | BH20: =MAX(MIN(BE20,12*VLOOKUP(Ausweis!$H$5,Zinsen!$F$10:$G$56,2,1))-4*VLOOKUP(Ausweis!$H$5,Zinsen!$F$10:$G$56,2,1),0)*0 -> 0
B21: 1972 | C21: 2030 | D21: 58 | E21: 12 | F21: =MONTH(Ausweis!$H$10) -> 9 | G21: 9 | H21: 0.2815 | I21: 80660 | J21: 241085.6167 | K21: 234868.65 | L21: 234868.65 | M21: 0 | N21: 0 | O21: 0 | P21: 234868.65 | Q21: =VLOOKUP(C21,Zinsen!$C$9:$E$73,3,1) -> 0.01 | R21: 9300.8 | S21: 775 | T21: 0.0396 | U21: =VLOOKUP(B21,UWS!$A$3:$P$84,11,1)+($U$9-$AB$9)*0.15% -> 0.0396 | V21: =VLOOKUP(B21,UWS!$A$3:$P$84,11,1)+($V$9-$AB$9)*0.15% -> 0.0411 | W21: =VLOOKUP(B21,UWS!$A$3:$P$84,11,1)+($W$9-$AB$9)*0.15% -> 0.0426 | X21: =VLOOKUP(B21,UWS!$A$3:$P$84,11,1)+($X$9-$AB$9)*0.15% -> 0.0441 | Y21: =VLOOKUP(B21,UWS!$A$3:$P$84,11,1)+($Y$9-$AB$9)*0.15% -> 0.0456 | Z21: =VLOOKUP(B21,UWS!$A$3:$P$84,11,1)+($Z$9-$AB$9)*0.15% -> 0.0471 | AA21: =VLOOKUP(B21,UWS!$A$3:$P$84,11,1)+($AA$9-$AB$9)*0.15% -> 0.0486 | AB21: =VLOOKUP(B21,UWS!$A$3:$P$84,11,1) -> 0.0501 | AC21: =VLOOKUP(B21,UWS!$A$3:$P$84,11,1)+($AC$9-$AB$9)*0.15% -> 0.0516 | AD21: =VLOOKUP(B21,UWS!$A$3:$P$84,11,1)+($AD$9-$AB$9)*0.15% -> 0.0531 | AE21: =VLOOKUP(B21,UWS!$A$3:$P$84,11,1)+($AE$9-$AB$9)*0.15% -> 0.0546 | AF21: =VLOOKUP(B21,UWS!$A$3:$P$84,11,1)+($AF$9-$AB$9)*0.15% -> 0.0561 | AG21: =VLOOKUP(B21,UWS!$A$3:$P$84,11,1)+($AG$9-$AB$9)*0.15% -> 0.0576 | AK21: 25 | AL21: =VLOOKUP(AK21,'AGS Finanzierung'!$M$8:$P$64,$AL$8+1,0) -> 0.1025 | AN21: 0.11 | AO21: =Ausweis!$H$18 -> 0 | AP21: 0 | AR21: 241085.6167 | AT21: 25 | AU21: =VLOOKUP(AT21,'AGS FinanzierungVL2'!$M$8:$P$64,$AU$8+1,0) -> 0.11 | AW21: 0.11 | AX21: 0 | AY21: 0 | AZ21: 0 | BB21: 58 | BC21: 234868.65 | BE21: 95000 | BF21: =VLOOKUP(Ausweis!$I$5,Zinsen!$F$10:$G$56,2,)*1/2*Ausweis!$H$14 -> 14340 | BG21: =MIN(BE21-BF21,11/2*VLOOKUP(Ausweis!$H$5,Zinsen!$F$10:$G$56,2,1)) -> 80660 | BH21: =MAX(MIN(BE21,12*VLOOKUP(Ausweis!$H$5,Zinsen!$F$10:$G$56,2,1))-4*VLOOKUP(Ausweis!$H$5,Zinsen!$F$10:$G$56,2,1),0)*0 -> 0
B22: 1972 | C22: 2031 | D22: 59 | E22: 12 | F22: =MONTH(Ausweis!$H$10) -> 9 | G22: 9 | H22: 0.2815 | I22: 80660 | J22: 266202.2629 | K22: 259923.1 | L22: 259923.1 | M22: 0 | N22: 0 | O22: 0 | P22: 259923.1 | Q22: =VLOOKUP(C22,Zinsen!$C$9:$E$73,3,1) -> 0.01 | R22: 10682.85 | S22: =MROUND(R22/12,1) -> 890 | T22: 0.0411 | U22: =VLOOKUP(B22,UWS!$A$3:$P$84,11,1)+($U$9-$AB$9)*0.15% -> 0.0396 | V22: =VLOOKUP(B22,UWS!$A$3:$P$84,11,1)+($V$9-$AB$9)*0.15% -> 0.0411 | W22: =VLOOKUP(B22,UWS!$A$3:$P$84,11,1)+($W$9-$AB$9)*0.15% -> 0.0426 | X22: =VLOOKUP(B22,UWS!$A$3:$P$84,11,1)+($X$9-$AB$9)*0.15% -> 0.0441 | Y22: =VLOOKUP(B22,UWS!$A$3:$P$84,11,1)+($Y$9-$AB$9)*0.15% -> 0.0456 | Z22: =VLOOKUP(B22,UWS!$A$3:$P$84,11,1)+($Z$9-$AB$9)*0.15% -> 0.0471 | AA22: =VLOOKUP(B22,UWS!$A$3:$P$84,11,1)+($AA$9-$AB$9)*0.15% -> 0.0486 | AB22: =VLOOKUP(B22,UWS!$A$3:$P$84,11,1) -> 0.0501 | AC22: =VLOOKUP(B22,UWS!$A$3:$P$84,11,1)+($AC$9-$AB$9)*0.15% -> 0.0516 | AD22: =VLOOKUP(B22,UWS!$A$3:$P$84,11,1)+($AD$9-$AB$9)*0.15% -> 0.0531 | AE22: =VLOOKUP(B22,UWS!$A$3:$P$84,11,1)+($AE$9-$AB$9)*0.15% -> 0.0546 | AF22: =VLOOKUP(B22,UWS!$A$3:$P$84,11,1)+($AF$9-$AB$9)*0.15% -> 0.0561 | AG22: =VLOOKUP(B22,UWS!$A$3:$P$84,11,1)+($AG$9-$AB$9)*0.15% -> 0.0576 | AK22: 26 | AL22: =VLOOKUP(AK22,'AGS Finanzierung'!$M$8:$P$64,$AL$8+1,0) -> 0.1025 | AN22: 0.11 | AO22: =Ausweis!$H$18 -> 0 | AP22: 0 | AR22: 266202.2629 | AT22: 26 | AU22: =VLOOKUP(AT22,'AGS FinanzierungVL2'!$M$8:$P$64,$AU$8+1,0) -> 0.11 | AW22: 0.11 | AX22: 0 | AY22: 0 | AZ22: 0 | BB22: 59 | BC22: 259923.1 | BE22: 95000 | BF22: =VLOOKUP(Ausweis!$I$5,Zinsen!$F$10:$G$56,2,)*1/2*Ausweis!$H$14 -> 14340 | BG22: =MIN(BE22-BF22,11/2*VLOOKUP(Ausweis!$H$5,Zinsen!$F$10:$G$56,2,1)) -> 80660 | BH22: =MAX(MIN(BE22,12*VLOOKUP(Ausweis!$H$5,Zinsen!$F$10:$G$56,2,1))-4*VLOOKUP(Ausweis!$H$5,Zinsen!$F$10:$G$56,2,1),0)*0 -> 0
B23: 1972 | C23: 2032 | D23: 60 | E23: 12 | F23: =MONTH(Ausweis!$H$10) -> 9 | G23: 9 | H23: 0.2815 | I23: 80660 | J23: 291570.0755 | K23: 285228.1 | L23: 285228.1 | M23: 0 | N23: 0 | O23: 0 | P23: 285228.1 | Q23: =VLOOKUP(C23,Zinsen!$C$9:$E$73,3,1) -> 0.01 | R23: 12150.7 | S23: 1013 | T23: 0.0426 | U23: =VLOOKUP(B23,UWS!$A$3:$P$84,11,1)+($U$9-$AB$9)*0.15% -> 0.0396 | V23: =VLOOKUP(B23,UWS!$A$3:$P$84,11,1)+($V$9-$AB$9)*0.15% -> 0.0411 | W23: =VLOOKUP(B23,UWS!$A$3:$P$84,11,1)+($W$9-$AB$9)*0.15% -> 0.0426 | X23: =VLOOKUP(B23,UWS!$A$3:$P$84,11,1)+($X$9-$AB$9)*0.15% -> 0.0441 | Y23: =VLOOKUP(B23,UWS!$A$3:$P$84,11,1)+($Y$9-$AB$9)*0.15% -> 0.0456 | Z23: =VLOOKUP(B23,UWS!$A$3:$P$84,11,1)+($Z$9-$AB$9)*0.15% -> 0.0471 | AA23: =VLOOKUP(B23,UWS!$A$3:$P$84,11,1)+($AA$9-$AB$9)*0.15% -> 0.0486 | AB23: =VLOOKUP(B23,UWS!$A$3:$P$84,11,1) -> 0.0501 | AC23: =VLOOKUP(B23,UWS!$A$3:$P$84,11,1)+($AC$9-$AB$9)*0.15% -> 0.0516 | AD23: =VLOOKUP(B23,UWS!$A$3:$P$84,11,1)+($AD$9-$AB$9)*0.15% -> 0.0531 | AE23: =VLOOKUP(B23,UWS!$A$3:$P$84,11,1)+($AE$9-$AB$9)*0.15% -> 0.0546 | AF23: =VLOOKUP(B23,UWS!$A$3:$P$84,11,1)+($AF$9-$AB$9)*0.15% -> 0.0561 | AG23: =VLOOKUP(B23,UWS!$A$3:$P$84,11,1)+($AG$9-$AB$9)*0.15% -> 0.0576 | AK23: 27 | AL23: =VLOOKUP(AK23,'AGS Finanzierung'!$M$8:$P$64,$AL$8+1,0) -> 0.1025 | AN23: 0.11 | AO23: =Ausweis!$H$18 -> 0 | AP23: 0 | AR23: 291570.0755 | AT23: 27 | AU23: =VLOOKUP(AT23,'AGS FinanzierungVL2'!$M$8:$P$64,$AU$8+1,0) -> 0.11 | AW23: 0.11 | AX23: 0 | AY23: 0 | AZ23: 0 | BB23: 60 | BC23: 285228.1 | BE23: 95000 | BF23: =VLOOKUP(Ausweis!$I$5,Zinsen!$F$10:$G$56,2,)*1/2*Ausweis!$H$14 -> 14340 | BG23: =MIN(BE23-BF23,11/2*VLOOKUP(Ausweis!$H$5,Zinsen!$F$10:$G$56,2,1)) -> 80660 | BH23: =MAX(MIN(BE23,12*VLOOKUP(Ausweis!$H$5,Zinsen!$F$10:$G$56,2,1))-4*VLOOKUP(Ausweis!$H$5,Zinsen!$F$10:$G$56,2,1),0)*0 -> 0
B24: 1972 | C24: 2033 | D24: 61 | E24: 12 | F24: =MONTH(Ausweis!$H$10) -> 9 | G24: 9 | H24: 0.2815 | I24: 80660 | J24: 317191.5662 | K24: 310786.2 | L24: 310786.2 | M24: 0 | N24: 0 | O24: 0 | P24: 310786.2 | Q24: =VLOOKUP(C24,Zinsen!$C$9:$E$73,3,1) -> 0.01 | R24: 13705.65 | S24: 1142 | T24: 0.0441 | U24: =VLOOKUP(B24,UWS!$A$3:$P$84,11,1)+($U$9-$AB$9)*0.15% -> 0.0396 | V24: =VLOOKUP(B24,UWS!$A$3:$P$84,11,1)+($V$9-$AB$9)*0.15% -> 0.0411 | W24: =VLOOKUP(B24,UWS!$A$3:$P$84,11,1)+($W$9-$AB$9)*0.15% -> 0.0426 | X24: =VLOOKUP(B24,UWS!$A$3:$P$84,11,1)+($X$9-$AB$9)*0.15% -> 0.0441 | Y24: =VLOOKUP(B24,UWS!$A$3:$P$84,11,1)+($Y$9-$AB$9)*0.15% -> 0.0456 | Z24: =VLOOKUP(B24,UWS!$A$3:$P$84,11,1)+($Z$9-$AB$9)*0.15% -> 0.0471 | AA24: =VLOOKUP(B24,UWS!$A$3:$P$84,11,1)+($AA$9-$AB$9)*0.15% -> 0.0486 | AB24: =VLOOKUP(B24,UWS!$A$3:$P$84,11,1) -> 0.0501 | AC24: =VLOOKUP(B24,UWS!$A$3:$P$84,11,1)+($AC$9-$AB$9)*0.15% -> 0.0516 | AD24: =VLOOKUP(B24,UWS!$A$3:$P$84,11,1)+($AD$9-$AB$9)*0.15% -> 0.0531 | AE24: =VLOOKUP(B24,UWS!$A$3:$P$84,11,1)+($AE$9-$AB$9)*0.15% -> 0.0546 | AF24: =VLOOKUP(B24,UWS!$A$3:$P$84,11,1)+($AF$9-$AB$9)*0.15% -> 0.0561 | AG24: =VLOOKUP(B24,UWS!$A$3:$P$84,11,1)+($AG$9-$AB$9)*0.15% -> 0.0576 | AK24: 28 | AL24: =VLOOKUP(AK24,'AGS Finanzierung'!$M$8:$P$64,$AL$8+1,0) -> 0.1025 | AN24: 0.11 | AO24: =Ausweis!$H$18 -> 0 | AP24: 0 | AR24: 317191.5662 | AT24: 28 | AU24: =VLOOKUP(AT24,'AGS FinanzierungVL2'!$M$8:$P$64,$AU$8+1,0) -> 0.11 | AW24: 0.11 | AX24: 0 | AY24: 0 | AZ24: 0 | BB24: 61 | BC24: 310786.2 | BE24: 95000 | BF24: =VLOOKUP(Ausweis!$I$5,Zinsen!$F$10:$G$56,2,)*1/2*Ausweis!$H$14 -> 14340 | BG24: =MIN(BE24-BF24,11/2*VLOOKUP(Ausweis!$H$5,Zinsen!$F$10:$G$56,2,1)) -> 80660 | BH24: =MAX(MIN(BE24,12*VLOOKUP(Ausweis!$H$5,Zinsen!$F$10:$G$56,2,1))-4*VLOOKUP(Ausweis!$H$5,Zinsen!$F$10:$G$56,2,1),0)*0 -> 0
B25: 1972 | C25: 2034 | D25: 62 | E25: 12 | F25: =MONTH(Ausweis!$H$10) -> 9 | G25: 9 | H25: 0.2815 | I25: 80660 | J25: 343069.2719 | K25: 336599.85 | L25: 336599.85 | M25: 0 | N25: 0 | O25: 0 | P25: 336599.85 | Q25: =VLOOKUP(C25,Zinsen!$C$9:$E$73,3,1) -> 0.01 | R25: 15348.95 | S25: 1279 | T25: 0.0456 | U25: =VLOOKUP(B25,UWS!$A$3:$P$84,11,1)+($U$9-$AB$9)*0.15% -> 0.0396 | V25: =VLOOKUP(B25,UWS!$A$3:$P$84,11,1)+($V$9-$AB$9)*0.15% -> 0.0411 | W25: =VLOOKUP(B25,UWS!$A$3:$P$84,11,1)+($W$9-$AB$9)*0.15% -> 0.0426 | X25: =VLOOKUP(B25,UWS!$A$3:$P$84,11,1)+($X$9-$AB$9)*0.15% -> 0.0441 | Y25: =VLOOKUP(B25,UWS!$A$3:$P$84,11,1)+($Y$9-$AB$9)*0.15% -> 0.0456 | Z25: =VLOOKUP(B25,UWS!$A$3:$P$84,11,1)+($Z$9-$AB$9)*0.15% -> 0.0471 | AA25: =VLOOKUP(B25,UWS!$A$3:$P$84,11,1)+($AA$9-$AB$9)*0.15% -> 0.0486 | AB25: =VLOOKUP(B25,UWS!$A$3:$P$84,11,1) -> 0.0501 | AC25: =VLOOKUP(B25,UWS!$A$3:$P$84,11,1)+($AC$9-$AB$9)*0.15% -> 0.0516 | AD25: =VLOOKUP(B25,UWS!$A$3:$P$84,11,1)+($AD$9-$AB$9)*0.15% -> 0.0531 | AE25: =VLOOKUP(B25,UWS!$A$3:$P$84,11,1)+($AE$9-$AB$9)*0.15% -> 0.0546 | AF25: =VLOOKUP(B25,UWS!$A$3:$P$84,11,1)+($AF$9-$AB$9)*0.15% -> 0.0561 | AG25: =VLOOKUP(B25,UWS!$A$3:$P$84,11,1)+($AG$9-$AB$9)*0.15% -> 0.0576 | AK25: 29 | AL25: =VLOOKUP(AK25,'AGS Finanzierung'!$M$8:$P$64,$AL$8+1,0) -> 0.1025 | AN25: 0.11 | AO25: =Ausweis!$H$18 -> 0 | AP25: 0 | AR25: 343069.2719 | AT25: 29 | AU25: =VLOOKUP(AT25,'AGS FinanzierungVL2'!$M$8:$P$64,$AU$8+1,0) -> 0.11 | AW25: 0.11 | AX25: 0 | AY25: 0 | AZ25: 0 | BB25: 62 | BC25: 336599.85 | BE25: 95000 | BF25: =VLOOKUP(Ausweis!$I$5,Zinsen!$F$10:$G$56,2,)*1/2*Ausweis!$H$14 -> 14340 | BG25: =MIN(BE25-BF25,11/2*VLOOKUP(Ausweis!$H$5,Zinsen!$F$10:$G$56,2,1)) -> 80660 | BH25: =MAX(MIN(BE25,12*VLOOKUP(Ausweis!$H$5,Zinsen!$F$10:$G$56,2,1))-4*VLOOKUP(Ausweis!$H$5,Zinsen!$F$10:$G$56,2,1),0)*0 -> 0
B26: 1972 | C26: 2035 | D26: 63 | E26: 12 | F26: =MONTH(Ausweis!$H$10) -> 9 | G26: 9 | H26: 0.2815 | I26: 80660 | J26: 369205.7546 | K26: 362671.65 | L26: 362671.65 | M26: 0 | N26: 0 | O26: 0 | P26: 362671.65 | Q26: =VLOOKUP(C26,Zinsen!$C$9:$E$73,3,1) -> 0.01 | R26: 17081.85 | S26: 1423 | T26: 0.0471 | U26: =VLOOKUP(B26,UWS!$A$3:$P$84,11,1)+($U$9-$AB$9)*0.15% -> 0.0396 | V26: =VLOOKUP(B26,UWS!$A$3:$P$84,11,1)+($V$9-$AB$9)*0.15% -> 0.0411 | W26: =VLOOKUP(B26,UWS!$A$3:$P$84,11,1)+($W$9-$AB$9)*0.15% -> 0.0426 | X26: =VLOOKUP(B26,UWS!$A$3:$P$84,11,1)+($X$9-$AB$9)*0.15% -> 0.0441 | Y26: =VLOOKUP(B26,UWS!$A$3:$P$84,11,1)+($Y$9-$AB$9)*0.15% -> 0.0456 | Z26: =VLOOKUP(B26,UWS!$A$3:$P$84,11,1)+($Z$9-$AB$9)*0.15% -> 0.0471 | AA26: =VLOOKUP(B26,UWS!$A$3:$P$84,11,1)+($AA$9-$AB$9)*0.15% -> 0.0486 | AB26: =VLOOKUP(B26,UWS!$A$3:$P$84,11,1) -> 0.0501 | AC26: =VLOOKUP(B26,UWS!$A$3:$P$84,11,1)+($AC$9-$AB$9)*0.15% -> 0.0516 | AD26: =VLOOKUP(B26,UWS!$A$3:$P$84,11,1)+($AD$9-$AB$9)*0.15% -> 0.0531 | AE26: =VLOOKUP(B26,UWS!$A$3:$P$84,11,1)+($AE$9-$AB$9)*0.15% -> 0.0546 | AF26: =VLOOKUP(B26,UWS!$A$3:$P$84,11,1)+($AF$9-$AB$9)*0.15% -> 0.0561 | AG26: =VLOOKUP(B26,UWS!$A$3:$P$84,11,1)+($AG$9-$AB$9)*0.15% -> 0.0576 | AK26: 30 | AL26: =VLOOKUP(AK26,'AGS Finanzierung'!$M$8:$P$64,$AL$8+1,0) -> 0.1025 | AN26: 0.11 | AO26: =Ausweis!$H$18 -> 0 | AP26: 0 | AR26: 369205.7546 | AT26: 30 | AU26: =VLOOKUP(AT26,'AGS FinanzierungVL2'!$M$8:$P$64,$AU$8+1,0) -> 0.11 | AW26: 0.11 | AX26: 0 | AY26: 0 | AZ26: 0 | BB26: 63 | BC26: 362671.65 | BE26: 95000 | BF26: =VLOOKUP(Ausweis!$I$5,Zinsen!$F$10:$G$56,2,)*1/2*Ausweis!$H$14 -> 14340 | BG26: =MIN(BE26-BF26,11/2*VLOOKUP(Ausweis!$H$5,Zinsen!$F$10:$G$56,2,1)) -> 80660 | BH26: =MAX(MIN(BE26,12*VLOOKUP(Ausweis!$H$5,Zinsen!$F$10:$G$56,2,1))-4*VLOOKUP(Ausweis!$H$5,Zinsen!$F$10:$G$56,2,1),0)*0 -> 0
B27: 1972 | C27: 2036 | D27: 64 | E27: 12 | F27: =MONTH(Ausweis!$H$10) -> 9 | G27: 9 | H27: 0.2815 | I27: 80660 | J27: 395603.6022 | K27: 389004.15 | L27: 389004.15 | M27: 0 | N27: 0 | O27: 0 | P27: 389004.15 | Q27: =VLOOKUP(C27,Zinsen!$C$9:$E$73,3,1) -> 0.01 | R27: 18905.6 | S27: 1575 | T27: 0.0486 | U27: =VLOOKUP(B27,UWS!$A$3:$P$84,11,1)+($U$9-$AB$9)*0.15% -> 0.0396 | V27: =VLOOKUP(B27,UWS!$A$3:$P$84,11,1)+($V$9-$AB$9)*0.15% -> 0.0411 | W27: =VLOOKUP(B27,UWS!$A$3:$P$84,11,1)+($W$9-$AB$9)*0.15% -> 0.0426 | X27: =VLOOKUP(B27,UWS!$A$3:$P$84,11,1)+($X$9-$AB$9)*0.15% -> 0.0441 | Y27: =VLOOKUP(B27,UWS!$A$3:$P$84,11,1)+($Y$9-$AB$9)*0.15% -> 0.0456 | Z27: =VLOOKUP(B27,UWS!$A$3:$P$84,11,1)+($Z$9-$AB$9)*0.15% -> 0.0471 | AA27: =VLOOKUP(B27,UWS!$A$3:$P$84,11,1)+($AA$9-$AB$9)*0.15% -> 0.0486 | AB27: =VLOOKUP(B27,UWS!$A$3:$P$84,11,1) -> 0.0501 | AC27: =VLOOKUP(B27,UWS!$A$3:$P$84,11,1)+($AC$9-$AB$9)*0.15% -> 0.0516 | AD27: =VLOOKUP(B27,UWS!$A$3:$P$84,11,1)+($AD$9-$AB$9)*0.15% -> 0.0531 | AE27: =VLOOKUP(B27,UWS!$A$3:$P$84,11,1)+($AE$9-$AB$9)*0.15% -> 0.0546 | AF27: =VLOOKUP(B27,UWS!$A$3:$P$84,11,1)+($AF$9-$AB$9)*0.15% -> 0.0561 | AG27: =VLOOKUP(B27,UWS!$A$3:$P$84,11,1)+($AG$9-$AB$9)*0.15% -> 0.0576 | AK27: 31 | AL27: =VLOOKUP(AK27,'AGS Finanzierung'!$M$8:$P$64,$AL$8+1,0) -> 0.1025 | AN27: 0.11 | AO27: =Ausweis!$H$18 -> 0 | AP27: 0 | AR27: 395603.6022 | AT27: 31 | AU27: =VLOOKUP(AT27,'AGS FinanzierungVL2'!$M$8:$P$64,$AU$8+1,0) -> 0.11 | AW27: 0.11 | AX27: 0 | AY27: 0 | AZ27: 0 | BB27: 64 | BC27: 389004.15 | BE27: 95000 | BF27: =VLOOKUP(Ausweis!$I$5,Zinsen!$F$10:$G$56,2,)*1/2*Ausweis!$H$14 -> 14340 | BG27: =MIN(BE27-BF27,11/2*VLOOKUP(Ausweis!$H$5,Zinsen!$F$10:$G$56,2,1)) -> 80660 | BH27: =MAX(MIN(BE27,12*VLOOKUP(Ausweis!$H$5,Zinsen!$F$10:$G$56,2,1))-4*VLOOKUP(Ausweis!$H$5,Zinsen!$F$10:$G$56,2,1),0)*0 -> 0
B28: 1972 | C28: 2037 | D28: 65 | E28: 12 | F28: =MONTH(Ausweis!$H$10) -> 9 | G28: 9 | H28: 0.2815 | I28: 80660 | J28: 422265.4282 | K28: 415599.95 | L28: 415599.95 | M28: 0 | N28: 0 | O28: 0 | P28: 415599.95 | Q28: =VLOOKUP(C28,Zinsen!$C$9:$E$73,3,1) -> 0.01 | R28: 20821.55 | S28: 1735 | T28: 0.0501 | U28: =VLOOKUP(B28,UWS!$A$3:$P$84,11,1)+($U$9-$AB$9)*0.15% -> 0.0396 | V28: =VLOOKUP(B28,UWS!$A$3:$P$84,11,1)+($V$9-$AB$9)*0.15% -> 0.0411 | W28: =VLOOKUP(B28,UWS!$A$3:$P$84,11,1)+($W$9-$AB$9)*0.15% -> 0.0426 | X28: =VLOOKUP(B28,UWS!$A$3:$P$84,11,1)+($X$9-$AB$9)*0.15% -> 0.0441 | Y28: =VLOOKUP(B28,UWS!$A$3:$P$84,11,1)+($Y$9-$AB$9)*0.15% -> 0.0456 | Z28: =VLOOKUP(B28,UWS!$A$3:$P$84,11,1)+($Z$9-$AB$9)*0.15% -> 0.0471 | AA28: =VLOOKUP(B28,UWS!$A$3:$P$84,11,1)+($AA$9-$AB$9)*0.15% -> 0.0486 | AB28: =VLOOKUP(B28,UWS!$A$3:$P$84,11,1) -> 0.0501 | AC28: =VLOOKUP(B28,UWS!$A$3:$P$84,11,1)+($AC$9-$AB$9)*0.15% -> 0.0516 | AD28: =VLOOKUP(B28,UWS!$A$3:$P$84,11,1)+($AD$9-$AB$9)*0.15% -> 0.0531 | AE28: =VLOOKUP(B28,UWS!$A$3:$P$84,11,1)+($AE$9-$AB$9)*0.15% -> 0.0546 | AF28: =VLOOKUP(B28,UWS!$A$3:$P$84,11,1)+($AF$9-$AB$9)*0.15% -> 0.0561 | AG28: =VLOOKUP(B28,UWS!$A$3:$P$84,11,1)+($AG$9-$AB$9)*0.15% -> 0.0576 | AK28: 32 | AL28: =VLOOKUP(AK28,'AGS Finanzierung'!$M$8:$P$64,$AL$8+1,0) -> 0.1025 | AN28: 0.11 | AO28: =Ausweis!$H$18 -> 0 | AP28: 0 | AR28: 422265.4282 | AT28: 32 | AU28: =VLOOKUP(AT28,'AGS FinanzierungVL2'!$M$8:$P$64,$AU$8+1,0) -> 0.11 | AW28: 0.11 | AX28: 0 | AY28: 0 | AZ28: 0 | BB28: 65 | BC28: 415599.95 | BE28: 95000 | BF28: =VLOOKUP(Ausweis!$I$5,Zinsen!$F$10:$G$56,2,)*1/2*Ausweis!$H$14 -> 14340 | BG28: =MIN(BE28-BF28,11/2*VLOOKUP(Ausweis!$H$5,Zinsen!$F$10:$G$56,2,1)) -> 80660 | BH28: =MAX(MIN(BE28,12*VLOOKUP(Ausweis!$H$5,Zinsen!$F$10:$G$56,2,1))-4*VLOOKUP(Ausweis!$H$5,Zinsen!$F$10:$G$56,2,1),0)*0 -> 0
B29: 1972 | C29: 2038 | D29: 66 | E29: 12 | F29: =MONTH(Ausweis!$H$10) -> 9 | G29: 9 | H29: 0.2815 | I29: 80660 | J29: 449193.8725 | K29: 442461.75 | L29: 442461.75 | M29: 0 | N29: 0 | O29: 0 | P29: 442461.75 | Q29: =VLOOKUP(C29,Zinsen!$C$9:$E$73,3,1) -> 0.01 | R29: 22831.05 | S29: 1903 | T29: 0.0516 | U29: =VLOOKUP(B29,UWS!$A$3:$P$84,11,1)+($U$9-$AB$9)*0.15% -> 0.0396 | V29: =VLOOKUP(B29,UWS!$A$3:$P$84,11,1)+($V$9-$AB$9)*0.15% -> 0.0411 | W29: =VLOOKUP(B29,UWS!$A$3:$P$84,11,1)+($W$9-$AB$9)*0.15% -> 0.0426 | X29: =VLOOKUP(B29,UWS!$A$3:$P$84,11,1)+($X$9-$AB$9)*0.15% -> 0.0441 | Y29: =VLOOKUP(B29,UWS!$A$3:$P$84,11,1)+($Y$9-$AB$9)*0.15% -> 0.0456 | Z29: =VLOOKUP(B29,UWS!$A$3:$P$84,11,1)+($Z$9-$AB$9)*0.15% -> 0.0471 | AA29: =VLOOKUP(B29,UWS!$A$3:$P$84,11,1)+($AA$9-$AB$9)*0.15% -> 0.0486 | AB29: =VLOOKUP(B29,UWS!$A$3:$P$84,11,1) -> 0.0501 | AC29: =VLOOKUP(B29,UWS!$A$3:$P$84,11,1)+($AC$9-$AB$9)*0.15% -> 0.0516 | AD29: =VLOOKUP(B29,UWS!$A$3:$P$84,11,1)+($AD$9-$AB$9)*0.15% -> 0.0531 | AE29: =VLOOKUP(B29,UWS!$A$3:$P$84,11,1)+($AE$9-$AB$9)*0.15% -> 0.0546 | AF29: =VLOOKUP(B29,UWS!$A$3:$P$84,11,1)+($AF$9-$AB$9)*0.15% -> 0.0561 | AG29: =VLOOKUP(B29,UWS!$A$3:$P$84,11,1)+($AG$9-$AB$9)*0.15% -> 0.0576 | AK29: 33 | AL29: =VLOOKUP(AK29,'AGS Finanzierung'!$M$8:$P$64,$AL$8+1,0) -> 0.1025 | AN29: 0 | AO29: =Ausweis!$H$18 -> 0 | AP29: 0 | AR29: 449193.8725 | AT29: 33 | AU29: =VLOOKUP(AT29,'AGS FinanzierungVL2'!$M$8:$P$64,$AU$8+1,0) -> 0.11 | AW29: 0 | AX29: 0 | AY29: 0 | AZ29: 0 | BB29: 66 | BC29: 442461.75 | BE29: 95000 | BF29: =VLOOKUP(Ausweis!$I$5,Zinsen!$F$10:$G$56,2,)*1/2*Ausweis!$H$14 -> 14340 | BG29: =MIN(BE29-BF29,11/2*VLOOKUP(Ausweis!$H$5,Zinsen!$F$10:$G$56,2,1)) -> 80660 | BH29: =MAX(MIN(BE29,12*VLOOKUP(Ausweis!$H$5,Zinsen!$F$10:$G$56,2,1))-4*VLOOKUP(Ausweis!$H$5,Zinsen!$F$10:$G$56,2,1),0)*0 -> 0
B30: 1972 | C30: 2039 | D30: 67 | E30: 12 | F30: =MONTH(Ausweis!$H$10) -> 9 | G30: 9 | H30: 0.2815 | I30: 80660 | J30: 476391.6012 | K30: 469592.15 | L30: 469592.15 | M30: 0 | N30: 0 | O30: 0 | P30: 469592.15 | Q30: =VLOOKUP(C30,Zinsen!$C$9:$E$73,3,1) -> 0.01 | R30: 24935.35 | S30: 2078 | T30: 0.0531 | U30: =VLOOKUP(B30,UWS!$A$3:$P$84,11,1)+($U$9-$AB$9)*0.15% -> 0.0396 | V30: =VLOOKUP(B30,UWS!$A$3:$P$84,11,1)+($V$9-$AB$9)*0.15% -> 0.0411 | W30: =VLOOKUP(B30,UWS!$A$3:$P$84,11,1)+($W$9-$AB$9)*0.15% -> 0.0426 | X30: =VLOOKUP(B30,UWS!$A$3:$P$84,11,1)+($X$9-$AB$9)*0.15% -> 0.0441 | Y30: =VLOOKUP(B30,UWS!$A$3:$P$84,11,1)+($Y$9-$AB$9)*0.15% -> 0.0456 | Z30: =VLOOKUP(B30,UWS!$A$3:$P$84,11,1)+($Z$9-$AB$9)*0.15% -> 0.0471 | AA30: =VLOOKUP(B30,UWS!$A$3:$P$84,11,1)+($AA$9-$AB$9)*0.15% -> 0.0486 | AB30: =VLOOKUP(B30,UWS!$A$3:$P$84,11,1) -> 0.0501 | AC30: =VLOOKUP(B30,UWS!$A$3:$P$84,11,1)+($AC$9-$AB$9)*0.15% -> 0.0516 | AD30: =VLOOKUP(B30,UWS!$A$3:$P$84,11,1)+($AD$9-$AB$9)*0.15% -> 0.0531 | AE30: =VLOOKUP(B30,UWS!$A$3:$P$84,11,1)+($AE$9-$AB$9)*0.15% -> 0.0546 | AF30: =VLOOKUP(B30,UWS!$A$3:$P$84,11,1)+($AF$9-$AB$9)*0.15% -> 0.0561 | AG30: =VLOOKUP(B30,UWS!$A$3:$P$84,11,1)+($AG$9-$AB$9)*0.15% -> 0.0576 | AK30: 34 | AL30: =VLOOKUP(AK30,'AGS Finanzierung'!$M$8:$P$64,$AL$8+1,0) -> 0.1025 | AN30: 0 | AO30: =Ausweis!$H$18 -> 0 | AP30: 0 | AR30: 476391.6012 | AT30: 34 | AU30: =VLOOKUP(AT30,'AGS FinanzierungVL2'!$M$8:$P$64,$AU$8+1,0) -> 0.11 | AW30: 0 | AX30: 0 | AY30: 0 | AZ30: 0 | BB30: 67 | BC30: 469592.15 | BE30: 95000 | BF30: =VLOOKUP(Ausweis!$I$5,Zinsen!$F$10:$G$56,2,)*1/2*Ausweis!$H$14 -> 14340 | BG30: =MIN(BE30-BF30,11/2*VLOOKUP(Ausweis!$H$5,Zinsen!$F$10:$G$56,2,1)) -> 80660 | BH30: =MAX(MIN(BE30,12*VLOOKUP(Ausweis!$H$5,Zinsen!$F$10:$G$56,2,1))-4*VLOOKUP(Ausweis!$H$5,Zinsen!$F$10:$G$56,2,1),0)*0 -> 0
B31: 1972 | C31: 2040 | D31: 68 | E31: 12 | F31: =MONTH(Ausweis!$H$10) -> 9 | G31: 9 | H31: 0.2815 | I31: 80660 | J31: 503861.3072 | K31: =MROUND(J30*(1+Q31/12*F31)+I31*H31/12*F31,0.05) -> 496993.9 | L31: 496993.9 | M31: 0 | N31: 0 | O31: 0 | P31: 496993.9 | Q31: =VLOOKUP(C31,Zinsen!$C$9:$E$73,3,1) -> 0.01 | R31: 27135.85 | S31: 2261 | T31: 0.0546 | U31: =VLOOKUP(B31,UWS!$A$3:$P$84,11,1)+($U$9-$AB$9)*0.15% -> 0.0396 | V31: =VLOOKUP(B31,UWS!$A$3:$P$84,11,1)+($V$9-$AB$9)*0.15% -> 0.0411 | W31: =VLOOKUP(B31,UWS!$A$3:$P$84,11,1)+($W$9-$AB$9)*0.15% -> 0.0426 | X31: =VLOOKUP(B31,UWS!$A$3:$P$84,11,1)+($X$9-$AB$9)*0.15% -> 0.0441 | Y31: =VLOOKUP(B31,UWS!$A$3:$P$84,11,1)+($Y$9-$AB$9)*0.15% -> 0.0456 | Z31: =VLOOKUP(B31,UWS!$A$3:$P$84,11,1)+($Z$9-$AB$9)*0.15% -> 0.0471 | AA31: =VLOOKUP(B31,UWS!$A$3:$P$84,11,1)+($AA$9-$AB$9)*0.15% -> 0.0486 | AB31: =VLOOKUP(B31,UWS!$A$3:$P$84,11,1) -> 0.0501 | AC31: =VLOOKUP(B31,UWS!$A$3:$P$84,11,1)+($AC$9-$AB$9)*0.15% -> 0.0516 | AD31: =VLOOKUP(B31,UWS!$A$3:$P$84,11,1)+($AD$9-$AB$9)*0.15% -> 0.0531 | AE31: =VLOOKUP(B31,UWS!$A$3:$P$84,11,1)+($AE$9-$AB$9)*0.15% -> 0.0546 | AF31: =VLOOKUP(B31,UWS!$A$3:$P$84,11,1)+($AF$9-$AB$9)*0.15% -> 0.0561 | AG31: =VLOOKUP(B31,UWS!$A$3:$P$84,11,1)+($AG$9-$AB$9)*0.15% -> 0.0576 | AK31: 35 | AL31: =VLOOKUP(AK31,'AGS Finanzierung'!$M$8:$P$64,$AL$8+1,0) -> 0.1325 | AN31: 0 | AO31: =Ausweis!$H$18 -> 0 | AP31: 0 | AR31: 503861.3072 | AT31: 35 | AU31: =VLOOKUP(AT31,'AGS FinanzierungVL2'!$M$8:$P$64,$AU$8+1,0) -> 0.11 | AW31: 0 | AX31: 0 | AY31: 0 | AZ31: 0 | BB31: 68 | BC31: 496993.9 | BE31: 95000 | BF31: =VLOOKUP(Ausweis!$I$5,Zinsen!$F$10:$G$56,2,)*1/2*Ausweis!$H$14 -> 14340 | BG31: =MIN(BE31-BF31,11/2*VLOOKUP(Ausweis!$H$5,Zinsen!$F$10:$G$56,2,1)) -> 80660 | BH31: =MAX(MIN(BE31,12*VLOOKUP(Ausweis!$H$5,Zinsen!$F$10:$G$56,2,1))-4*VLOOKUP(Ausweis!$H$5,Zinsen!$F$10:$G$56,2,1),0)*0 -> 0
B32: 1972 | C32: 2041 | D32: 69 | E32: 12 | F32: =MONTH(Ausweis!$H$10) -> 9 | G32: 9 | H32: 0.2815 | I32: 80660 | J32: 531605.7103 | K32: =MROUND(J31*(1+Q32/12*F32)+I32*H32/12*F32,0.05) -> 524669.6 | L32: =K32+AZ32 -> 524669.6 | M32: 0 | N32: 0 | O32: 0 | P32: 524669.6 | Q32: =VLOOKUP(C32,Zinsen!$C$9:$E$73,3,1) -> 0.01 | R32: 29433.95 | S32: 2453 | T32: 0.0561 | U32: =VLOOKUP(B32,UWS!$A$3:$P$84,11,1)+($U$9-$AB$9)*0.15% -> 0.0396 | V32: =VLOOKUP(B32,UWS!$A$3:$P$84,11,1)+($V$9-$AB$9)*0.15% -> 0.0411 | W32: =VLOOKUP(B32,UWS!$A$3:$P$84,11,1)+($W$9-$AB$9)*0.15% -> 0.0426 | X32: =VLOOKUP(B32,UWS!$A$3:$P$84,11,1)+($X$9-$AB$9)*0.15% -> 0.0441 | Y32: =VLOOKUP(B32,UWS!$A$3:$P$84,11,1)+($Y$9-$AB$9)*0.15% -> 0.0456 | Z32: =VLOOKUP(B32,UWS!$A$3:$P$84,11,1)+($Z$9-$AB$9)*0.15% -> 0.0471 | AA32: =VLOOKUP(B32,UWS!$A$3:$P$84,11,1)+($AA$9-$AB$9)*0.15% -> 0.0486 | AB32: =VLOOKUP(B32,UWS!$A$3:$P$84,11,1) -> 0.0501 | AC32: =VLOOKUP(B32,UWS!$A$3:$P$84,11,1)+($AC$9-$AB$9)*0.15% -> 0.0516 | AD32: =VLOOKUP(B32,UWS!$A$3:$P$84,11,1)+($AD$9-$AB$9)*0.15% -> 0.0531 | AE32: =VLOOKUP(B32,UWS!$A$3:$P$84,11,1)+($AE$9-$AB$9)*0.15% -> 0.0546 | AF32: =VLOOKUP(B32,UWS!$A$3:$P$84,11,1)+($AF$9-$AB$9)*0.15% -> 0.0561 | AG32: =VLOOKUP(B32,UWS!$A$3:$P$84,11,1)+($AG$9-$AB$9)*0.15% -> 0.0576 | AK32: 36 | AL32: =VLOOKUP(AK32,'AGS Finanzierung'!$M$8:$P$64,$AL$8+1,0) -> 0.1325 | AN32: 0 | AO32: =Ausweis!$H$18 -> 0 | AP32: 0 | AR32: 531605.7103 | AT32: 36 | AU32: =VLOOKUP(AT32,'AGS FinanzierungVL2'!$M$8:$P$64,$AU$8+1,0) -> 0.11 | AW32: 0 | AX32: 0 | AY32: 0 | AZ32: 0 | BB32: 69 | BC32: 524669.6 | BE32: 95000 | BF32: =VLOOKUP(Ausweis!$I$5,Zinsen!$F$10:$G$56,2,)*1/2*Ausweis!$H$14 -> 14340 | BG32: =MIN(BE32-BF32,11/2*VLOOKUP(Ausweis!$H$5,Zinsen!$F$10:$G$56,2,1)) -> 80660 | BH32: =MAX(MIN(BE32,12*VLOOKUP(Ausweis!$H$5,Zinsen!$F$10:$G$56,2,1))-4*VLOOKUP(Ausweis!$H$5,Zinsen!$F$10:$G$56,2,1),0)*0 -> 0
B33: 1972 | C33: 2042 | D33: 70 | E33: 12 | F33: =MONTH(Ausweis!$H$10) -> 9 | G33: 9 | H33: 0.2815 | I33: 80660 | J33: 559627.5574 | K33: 552622.1 | L33: 552622.1 | M33: 0 | N33: 0 | O33: 0 | P33: 552622.1 | Q33: =VLOOKUP(C33,Zinsen!$C$9:$E$73,3,1) -> 0.01 | R33: 31831.05 | S33: 2653 | T33: 0.0576 | U33: =VLOOKUP(B33,UWS!$A$3:$P$84,11,1)+($U$9-$AB$9)*0.15% -> 0.0396 | V33: =VLOOKUP(B33,UWS!$A$3:$P$84,11,1)+($V$9-$AB$9)*0.15% -> 0.0411 | W33: =VLOOKUP(B33,UWS!$A$3:$P$84,11,1)+($W$9-$AB$9)*0.15% -> 0.0426 | X33: =VLOOKUP(B33,UWS!$A$3:$P$84,11,1)+($X$9-$AB$9)*0.15% -> 0.0441 | Y33: =VLOOKUP(B33,UWS!$A$3:$P$84,11,1)+($Y$9-$AB$9)*0.15% -> 0.0456 | Z33: =VLOOKUP(B33,UWS!$A$3:$P$84,11,1)+($Z$9-$AB$9)*0.15% -> 0.0471 | AA33: =VLOOKUP(B33,UWS!$A$3:$P$84,11,1)+($AA$9-$AB$9)*0.15% -> 0.0486 | AB33: =VLOOKUP(B33,UWS!$A$3:$P$84,11,1) -> 0.0501 | AC33: =VLOOKUP(B33,UWS!$A$3:$P$84,11,1)+($AC$9-$AB$9)*0.15% -> 0.0516 | AD33: =VLOOKUP(B33,UWS!$A$3:$P$84,11,1)+($AD$9-$AB$9)*0.15% -> 0.0531 | AE33: =VLOOKUP(B33,UWS!$A$3:$P$84,11,1)+($AE$9-$AB$9)*0.15% -> 0.0546 | AF33: =VLOOKUP(B33,UWS!$A$3:$P$84,11,1)+($AF$9-$AB$9)*0.15% -> 0.0561 | AG33: =VLOOKUP(B33,UWS!$A$3:$P$84,11,1)+($AG$9-$AB$9)*0.15% -> 0.0576 | AK33: 37 | AL33: =VLOOKUP(AK33,'AGS Finanzierung'!$M$8:$P$64,$AL$8+1,0) -> 0.1325 | AN33: 0 | AO33: =Ausweis!$H$18 -> 0 | AP33: 0 | AR33: 559627.5574 | AT33: 37 | AU33: =VLOOKUP(AT33,'AGS FinanzierungVL2'!$M$8:$P$64,$AU$8+1,0) -> 0.11 | AW33: 0.2815 | AX33: 0 | AY33: 0 | AZ33: 0 | BB33: 70 | BC33: 552622.1 | BE33: 95000 | BF33: =VLOOKUP(Ausweis!$I$5,Zinsen!$F$10:$G$56,2,)*1/2*Ausweis!$H$14 -> 14340 | BG33: =MIN(BE33-BF33,11/2*VLOOKUP(Ausweis!$H$5,Zinsen!$F$10:$G$56,2,1)) -> 80660 | BH33: =MAX(MIN(BE33,12*VLOOKUP(Ausweis!$H$5,Zinsen!$F$10:$G$56,2,1))-4*VLOOKUP(Ausweis!$H$5,Zinsen!$F$10:$G$56,2,1),0)*0 -> 0
B34: 1972 | C34: 2043 | D34: 71 | E34: 12 | F34: =MONTH(Ausweis!$H$10) -> 9 | G34: 9 | H34: 0.2815 | I34: 80660 | J34: 587929.623 | K34: 580854.1 | L34: 580854.1 | M34: 0 | N34: 0 | O34: 0 | P34: 580854.1 | Q34: =VLOOKUP(C34,Zinsen!$C$9:$E$73,3,1) -> 0.01 | R34: 33457.2 | S34: 2788 | T34: 0.0576 | U34: =VLOOKUP(B34,UWS!$A$3:$P$84,11,1)+($U$9-$AB$9)*0.15% -> 0.0396 | V34: =VLOOKUP(B34,UWS!$A$3:$P$84,11,1)+($V$9-$AB$9)*0.15% -> 0.0411 | W34: =VLOOKUP(B34,UWS!$A$3:$P$84,11,1)+($W$9-$AB$9)*0.15% -> 0.0426 | X34: =VLOOKUP(B34,UWS!$A$3:$P$84,11,1)+($X$9-$AB$9)*0.15% -> 0.0441 | Y34: =VLOOKUP(B34,UWS!$A$3:$P$84,11,1)+($Y$9-$AB$9)*0.15% -> 0.0456 | Z34: =VLOOKUP(B34,UWS!$A$3:$P$84,11,1)+($Z$9-$AB$9)*0.15% -> 0.0471 | AA34: =VLOOKUP(B34,UWS!$A$3:$P$84,11,1)+($AA$9-$AB$9)*0.15% -> 0.0486 | AB34: =VLOOKUP(B34,UWS!$A$3:$P$84,11,1) -> 0.0501 | AC34: =VLOOKUP(B34,UWS!$A$3:$P$84,11,1)+($AC$9-$AB$9)*0.15% -> 0.0516 | AD34: =VLOOKUP(B34,UWS!$A$3:$P$84,11,1)+($AD$9-$AB$9)*0.15% -> 0.0531 | AE34: =VLOOKUP(B34,UWS!$A$3:$P$84,11,1)+($AE$9-$AB$9)*0.15% -> 0.0546 | AF34: =VLOOKUP(B34,UWS!$A$3:$P$84,11,1)+($AF$9-$AB$9)*0.15% -> 0.0561 | AG34: =VLOOKUP(B34,UWS!$A$3:$P$84,11,1)+($AG$9-$AB$9)*0.15% -> 0.0576 | AK34: 38 | AL34: =VLOOKUP(AK34,'AGS Finanzierung'!$M$8:$P$64,$AL$8+1,0) -> 0.1325 | AN34: 0 | AO34: =Ausweis!$H$18 -> 0 | AP34: 0 | AR34: 587929.623 | AT34: 38 | AU34: =VLOOKUP(AT34,'AGS FinanzierungVL2'!$M$8:$P$64,$AU$8+1,0) -> 0.11 | AW34: 0.2815 | AX34: 0 | AY34: 0 | AZ34: 0 | BB34: 71 | BC34: 580854.1 | BE34: 95000 | BF34: =VLOOKUP(Ausweis!$I$5,Zinsen!$F$10:$G$56,2,)*1/2*Ausweis!$H$14 -> 14340 | BG34: =MIN(BE34-BF34,11/2*VLOOKUP(Ausweis!$H$5,Zinsen!$F$10:$G$56,2,1)) -> 80660 | BH34: =MAX(MIN(BE34,12*VLOOKUP(Ausweis!$H$5,Zinsen!$F$10:$G$56,2,1))-4*VLOOKUP(Ausweis!$H$5,Zinsen!$F$10:$G$56,2,1),0)*0 -> 0
B35: 1972 | C35: 2044 | D35: 72 | E35: 12 | F35: =MONTH(Ausweis!$H$10) -> 9 | G35: 9 | H35: 0.2815 | I35: 80660 | J35: 616514.7092 | K35: 609368.45 | L35: 609368.45 | M35: 0 | N35: 0 | O35: 0 | P35: 609368.45 | Q35: =VLOOKUP(C35,Zinsen!$C$9:$E$73,3,1) -> 0.01 | R35: 35099.6 | S35: 2925 | T35: 0.0576 | U35: =VLOOKUP(B35,UWS!$A$3:$P$84,11,1)+($U$9-$AB$9)*0.15% -> 0.0396 | V35: =VLOOKUP(B35,UWS!$A$3:$P$84,11,1)+($V$9-$AB$9)*0.15% -> 0.0411 | W35: =VLOOKUP(B35,UWS!$A$3:$P$84,11,1)+($W$9-$AB$9)*0.15% -> 0.0426 | X35: =VLOOKUP(B35,UWS!$A$3:$P$84,11,1)+($X$9-$AB$9)*0.15% -> 0.0441 | Y35: =VLOOKUP(B35,UWS!$A$3:$P$84,11,1)+($Y$9-$AB$9)*0.15% -> 0.0456 | Z35: =VLOOKUP(B35,UWS!$A$3:$P$84,11,1)+($Z$9-$AB$9)*0.15% -> 0.0471 | AA35: =VLOOKUP(B35,UWS!$A$3:$P$84,11,1)+($AA$9-$AB$9)*0.15% -> 0.0486 | AB35: =VLOOKUP(B35,UWS!$A$3:$P$84,11,1) -> 0.0501 | AC35: =VLOOKUP(B35,UWS!$A$3:$P$84,11,1)+($AC$9-$AB$9)*0.15% -> 0.0516 | AD35: =VLOOKUP(B35,UWS!$A$3:$P$84,11,1)+($AD$9-$AB$9)*0.15% -> 0.0531 | AE35: =VLOOKUP(B35,UWS!$A$3:$P$84,11,1)+($AE$9-$AB$9)*0.15% -> 0.0546 | AF35: =VLOOKUP(B35,UWS!$A$3:$P$84,11,1)+($AF$9-$AB$9)*0.15% -> 0.0561 | AG35: =VLOOKUP(B35,UWS!$A$3:$P$84,11,1)+($AG$9-$AB$9)*0.15% -> 0.0576 | AK35: 39 | AL35: =VLOOKUP(AK35,'AGS Finanzierung'!$M$8:$P$64,$AL$8+1,0) -> 0.1325 | AN35: 0 | AO35: =Ausweis!$H$18 -> 0 | AP35: 0 | AR35: 616514.7092 | AT35: 39 | AU35: =VLOOKUP(AT35,'AGS FinanzierungVL2'!$M$8:$P$64,$AU$8+1,0) -> 0.11 | AW35: 0.2815 | AX35: 0 | AY35: 0 | AZ35: 0 | BB35: 72 | BC35: 609368.45 | BE35: 95000 | BF35: =VLOOKUP(Ausweis!$I$5,Zinsen!$F$10:$G$56,2,)*1/2*Ausweis!$H$14 -> 14340 | BG35: =MIN(BE35-BF35,11/2*VLOOKUP(Ausweis!$H$5,Zinsen!$F$10:$G$56,2,1)) -> 80660 | BH35: =MAX(MIN(BE35,12*VLOOKUP(Ausweis!$H$5,Zinsen!$F$10:$G$56,2,1))-4*VLOOKUP(Ausweis!$H$5,Zinsen!$F$10:$G$56,2,1),0)*0 -> 0
B36: 1972 | C36: 2045 | D36: 73 | E36: 12 | F36: =MONTH(Ausweis!$H$10) -> 9 | G36: 9 | H36: 0.2815 | I36: 80660 | J36: 645385.6463 | K36: 638167.9 | L36: 638167.9 | M36: 0 | N36: 0 | O36: 0 | P36: 638167.9 | Q36: =VLOOKUP(C36,Zinsen!$C$9:$E$73,3,1) -> 0.01 | R36: 36758.45 | S36: 3063 | T36: 0.0576 | U36: =VLOOKUP(B36,UWS!$A$3:$P$84,11,1)+($U$9-$AB$9)*0.15% -> 0.0396 | V36: =VLOOKUP(B36,UWS!$A$3:$P$84,11,1)+($V$9-$AB$9)*0.15% -> 0.0411 | W36: =VLOOKUP(B36,UWS!$A$3:$P$84,11,1)+($W$9-$AB$9)*0.15% -> 0.0426 | X36: =VLOOKUP(B36,UWS!$A$3:$P$84,11,1)+($X$9-$AB$9)*0.15% -> 0.0441 | Y36: =VLOOKUP(B36,UWS!$A$3:$P$84,11,1)+($Y$9-$AB$9)*0.15% -> 0.0456 | Z36: =VLOOKUP(B36,UWS!$A$3:$P$84,11,1)+($Z$9-$AB$9)*0.15% -> 0.0471 | AA36: =VLOOKUP(B36,UWS!$A$3:$P$84,11,1)+($AA$9-$AB$9)*0.15% -> 0.0486 | AB36: =VLOOKUP(B36,UWS!$A$3:$P$84,11,1) -> 0.0501 | AC36: =VLOOKUP(B36,UWS!$A$3:$P$84,11,1)+($AC$9-$AB$9)*0.15% -> 0.0516 | AD36: =VLOOKUP(B36,UWS!$A$3:$P$84,11,1)+($AD$9-$AB$9)*0.15% -> 0.0531 | AE36: =VLOOKUP(B36,UWS!$A$3:$P$84,11,1)+($AE$9-$AB$9)*0.15% -> 0.0546 | AF36: =VLOOKUP(B36,UWS!$A$3:$P$84,11,1)+($AF$9-$AB$9)*0.15% -> 0.0561 | AG36: =VLOOKUP(B36,UWS!$A$3:$P$84,11,1)+($AG$9-$AB$9)*0.15% -> 0.0576 | AK36: 40 | AL36: =VLOOKUP(AK36,'AGS Finanzierung'!$M$8:$P$64,$AL$8+1,0) -> 0.1325 | AN36: 0 | AO36: =Ausweis!$H$18 -> 0 | AP36: 0 | AR36: 645385.6463 | AT36: 40 | AU36: =VLOOKUP(AT36,'AGS FinanzierungVL2'!$M$8:$P$64,$AU$8+1,0) -> 0.11 | AW36: 0.2815 | AX36: 0 | AY36: 0 | AZ36: 0 | BB36: 73 | BC36: 638167.9 | BE36: 95000 | BF36: =VLOOKUP(Ausweis!$I$5,Zinsen!$F$10:$G$56,2,)*1/2*Ausweis!$H$14 -> 14340 | BG36: =MIN(BE36-BF36,11/2*VLOOKUP(Ausweis!$H$5,Zinsen!$F$10:$G$56,2,1)) -> 80660 | BH36: =MAX(MIN(BE36,12*VLOOKUP(Ausweis!$H$5,Zinsen!$F$10:$G$56,2,1))-4*VLOOKUP(Ausweis!$H$5,Zinsen!$F$10:$G$56,2,1),0)*0 -> 0
B37: 1972 | C37: 2046 | D37: 74 | E37: 12 | F37: =MONTH(Ausweis!$H$10) -> 9 | G37: 9 | H37: 0.2815 | I37: 80660 | J37: 674545.2927 | K37: 667255.4 | L37: 667255.4 | M37: 0 | N37: 0 | O37: 0 | P37: 667255.4 | Q37: =VLOOKUP(C37,Zinsen!$C$9:$E$73,3,1) -> 0.01 | R37: 38433.9 | S37: 3203 | T37: 0.0576 | U37: =VLOOKUP(B37,UWS!$A$3:$P$84,11,1)+($U$9-$AB$9)*0.15% -> 0.0396 | V37: =VLOOKUP(B37,UWS!$A$3:$P$84,11,1)+($V$9-$AB$9)*0.15% -> 0.0411 | W37: =VLOOKUP(B37,UWS!$A$3:$P$84,11,1)+($W$9-$AB$9)*0.15% -> 0.0426 | X37: =VLOOKUP(B37,UWS!$A$3:$P$84,11,1)+($X$9-$AB$9)*0.15% -> 0.0441 | Y37: =VLOOKUP(B37,UWS!$A$3:$P$84,11,1)+($Y$9-$AB$9)*0.15% -> 0.0456 | Z37: =VLOOKUP(B37,UWS!$A$3:$P$84,11,1)+($Z$9-$AB$9)*0.15% -> 0.0471 | AA37: =VLOOKUP(B37,UWS!$A$3:$P$84,11,1)+($AA$9-$AB$9)*0.15% -> 0.0486 | AB37: =VLOOKUP(B37,UWS!$A$3:$P$84,11,1) -> 0.0501 | AC37: =VLOOKUP(B37,UWS!$A$3:$P$84,11,1)+($AC$9-$AB$9)*0.15% -> 0.0516 | AD37: =VLOOKUP(B37,UWS!$A$3:$P$84,11,1)+($AD$9-$AB$9)*0.15% -> 0.0531 | AE37: =VLOOKUP(B37,UWS!$A$3:$P$84,11,1)+($AE$9-$AB$9)*0.15% -> 0.0546 | AF37: =VLOOKUP(B37,UWS!$A$3:$P$84,11,1)+($AF$9-$AB$9)*0.15% -> 0.0561 | AG37: =VLOOKUP(B37,UWS!$A$3:$P$84,11,1)+($AG$9-$AB$9)*0.15% -> 0.0576 | AK37: 41 | AL37: =VLOOKUP(AK37,'AGS Finanzierung'!$M$8:$P$64,$AL$8+1,0) -> 0.1325 | AN37: 0 | AO37: =Ausweis!$H$18 -> 0 | AP37: 0 | AR37: 674545.2927 | AT37: 41 | AU37: =VLOOKUP(AT37,'AGS FinanzierungVL2'!$M$8:$P$64,$AU$8+1,0) -> 0.11 | AW37: 0.2815 | AX37: 0 | AY37: 0 | AZ37: 0 | BB37: 74 | BC37: 667255.4 | BE37: 95000 | BF37: =VLOOKUP(Ausweis!$I$5,Zinsen!$F$10:$G$56,2,)*1/2*Ausweis!$H$14 -> 14340 | BG37: =MIN(BE37-BF37,11/2*VLOOKUP(Ausweis!$H$5,Zinsen!$F$10:$G$56,2,1)) -> 80660 | BH37: =MAX(MIN(BE37,12*VLOOKUP(Ausweis!$H$5,Zinsen!$F$10:$G$56,2,1))-4*VLOOKUP(Ausweis!$H$5,Zinsen!$F$10:$G$56,2,1),0)*0 -> 0
B38: 1972 | C38: 2047 | D38: 75 | E38: 12 | F38: =MONTH(Ausweis!$H$10) -> 9 | G38: 9 | H38: 0.2815 | I38: 80660 | J38: 703996.5357 | K38: 696633.7 | L38: 696633.7 | M38: 0 | N38: 0 | O38: 0 | P38: 696633.7 | Q38: =VLOOKUP(C38,Zinsen!$C$9:$E$73,3,1) -> 0.01 | R38: 40126.1 | S38: 3344 | T38: 0.0576 | U38: =VLOOKUP(B38,UWS!$A$3:$P$84,11,1)+($U$9-$AB$9)*0.15% -> 0.0396 | V38: =VLOOKUP(B38,UWS!$A$3:$P$84,11,1)+($V$9-$AB$9)*0.15% -> 0.0411 | W38: =VLOOKUP(B38,UWS!$A$3:$P$84,11,1)+($W$9-$AB$9)*0.15% -> 0.0426 | X38: =VLOOKUP(B38,UWS!$A$3:$P$84,11,1)+($X$9-$AB$9)*0.15% -> 0.0441 | Y38: =VLOOKUP(B38,UWS!$A$3:$P$84,11,1)+($Y$9-$AB$9)*0.15% -> 0.0456 | Z38: =VLOOKUP(B38,UWS!$A$3:$P$84,11,1)+($Z$9-$AB$9)*0.15% -> 0.0471 | AA38: =VLOOKUP(B38,UWS!$A$3:$P$84,11,1)+($AA$9-$AB$9)*0.15% -> 0.0486 | AB38: =VLOOKUP(B38,UWS!$A$3:$P$84,11,1) -> 0.0501 | AC38: =VLOOKUP(B38,UWS!$A$3:$P$84,11,1)+($AC$9-$AB$9)*0.15% -> 0.0516 | AD38: =VLOOKUP(B38,UWS!$A$3:$P$84,11,1)+($AD$9-$AB$9)*0.15% -> 0.0531 | AE38: =VLOOKUP(B38,UWS!$A$3:$P$84,11,1)+($AE$9-$AB$9)*0.15% -> 0.0546 | AF38: =VLOOKUP(B38,UWS!$A$3:$P$84,11,1)+($AF$9-$AB$9)*0.15% -> 0.0561 | AG38: =VLOOKUP(B38,UWS!$A$3:$P$84,11,1)+($AG$9-$AB$9)*0.15% -> 0.0576 | AK38: 42 | AL38: =VLOOKUP(AK38,'AGS Finanzierung'!$M$8:$P$64,$AL$8+1,0) -> 0.1325 | AN38: 0 | AO38: =Ausweis!$H$18 -> 0 | AP38: 0 | AR38: 703996.5357 | AT38: 42 | AU38: =VLOOKUP(AT38,'AGS FinanzierungVL2'!$M$8:$P$64,$AU$8+1,0) -> 0.11 | AW38: 0.2815 | AX38: 0 | AY38: 0 | AZ38: 0 | BB38: 75 | BC38: 696633.7 | BE38: 95000 | BF38: =VLOOKUP(Ausweis!$I$5,Zinsen!$F$10:$G$56,2,)*1/2*Ausweis!$H$14 -> 14340 | BG38: =MIN(BE38-BF38,11/2*VLOOKUP(Ausweis!$H$5,Zinsen!$F$10:$G$56,2,1)) -> 80660 | BH38: =MAX(MIN(BE38,12*VLOOKUP(Ausweis!$H$5,Zinsen!$F$10:$G$56,2,1))-4*VLOOKUP(Ausweis!$H$5,Zinsen!$F$10:$G$56,2,1),0)*0 -> 0
B39: 1972 | C39: 2048 | D39: 76 | E39: 12 | F39: =MONTH(Ausweis!$H$10) -> 9 | G39: 9 | H39: 0.2815 | I39: 80660 | J39: 733742.291 | K39: 726305.85 | L39: 726305.85 | M39: 0 | N39: 0 | O39: 0 | P39: 726305.85 | Q39: =VLOOKUP(C39,Zinsen!$C$9:$E$73,3,1) -> 0.01 | R39: 41835.2 | S39: 3486 | T39: 0.0576 | U39: =VLOOKUP(B39,UWS!$A$3:$P$84,11,1)+($U$9-$AB$9)*0.15% -> 0.0396 | V39: =VLOOKUP(B39,UWS!$A$3:$P$84,11,1)+($V$9-$AB$9)*0.15% -> 0.0411 | W39: =VLOOKUP(B39,UWS!$A$3:$P$84,11,1)+($W$9-$AB$9)*0.15% -> 0.0426 | X39: =VLOOKUP(B39,UWS!$A$3:$P$84,11,1)+($X$9-$AB$9)*0.15% -> 0.0441 | Y39: =VLOOKUP(B39,UWS!$A$3:$P$84,11,1)+($Y$9-$AB$9)*0.15% -> 0.0456 | Z39: =VLOOKUP(B39,UWS!$A$3:$P$84,11,1)+($Z$9-$AB$9)*0.15% -> 0.0471 | AA39: =VLOOKUP(B39,UWS!$A$3:$P$84,11,1)+($AA$9-$AB$9)*0.15% -> 0.0486 | AB39: =VLOOKUP(B39,UWS!$A$3:$P$84,11,1) -> 0.0501 | AC39: =VLOOKUP(B39,UWS!$A$3:$P$84,11,1)+($AC$9-$AB$9)*0.15% -> 0.0516 | AD39: =VLOOKUP(B39,UWS!$A$3:$P$84,11,1)+($AD$9-$AB$9)*0.15% -> 0.0531 | AE39: =VLOOKUP(B39,UWS!$A$3:$P$84,11,1)+($AE$9-$AB$9)*0.15% -> 0.0546 | AF39: =VLOOKUP(B39,UWS!$A$3:$P$84,11,1)+($AF$9-$AB$9)*0.15% -> 0.0561 | AG39: =VLOOKUP(B39,UWS!$A$3:$P$84,11,1)+($AG$9-$AB$9)*0.15% -> 0.0576 | AK39: 43 | AL39: =VLOOKUP(AK39,'AGS Finanzierung'!$M$8:$P$64,$AL$8+1,0) -> 0.1325 | AN39: 0 | AO39: =Ausweis!$H$18 -> 0 | AP39: 0 | AR39: 733742.291 | AT39: 43 | AU39: =VLOOKUP(AT39,'AGS FinanzierungVL2'!$M$8:$P$64,$AU$8+1,0) -> 0.11 | AW39: 0.2815 | AX39: 0 | AY39: 0 | AZ39: 0 | BB39: 76 | BC39: 726305.85 | BE39: 95000 | BF39: =VLOOKUP(Ausweis!$I$5,Zinsen!$F$10:$G$56,2,)*1/2*Ausweis!$H$14 -> 14340 | BG39: =MIN(BE39-BF39,11/2*VLOOKUP(Ausweis!$H$5,Zinsen!$F$10:$G$56,2,1)) -> 80660 | BH39: =MAX(MIN(BE39,12*VLOOKUP(Ausweis!$H$5,Zinsen!$F$10:$G$56,2,1))-4*VLOOKUP(Ausweis!$H$5,Zinsen!$F$10:$G$56,2,1),0)*0 -> 0
B40: 1972 | C40: 2049 | D40: 77 | E40: 12 | F40: =MONTH(Ausweis!$H$10) -> 9 | G40: 9 | H40: 0.2815 | I40: 80660 | J40: 763785.5039 | K40: 756274.7 | L40: 756274.7 | M40: 0 | N40: 0 | O40: 0 | P40: 756274.7 | Q40: =VLOOKUP(C40,Zinsen!$C$9:$E$73,3,1) -> 0.01 | R40: 43561.4 | S40: 3630 | T40: 0.0576 | U40: =VLOOKUP(B40,UWS!$A$3:$P$84,11,1)+($U$9-$AB$9)*0.15% -> 0.0396 | V40: =VLOOKUP(B40,UWS!$A$3:$P$84,11,1)+($V$9-$AB$9)*0.15% -> 0.0411 | W40: =VLOOKUP(B40,UWS!$A$3:$P$84,11,1)+($W$9-$AB$9)*0.15% -> 0.0426 | X40: =VLOOKUP(B40,UWS!$A$3:$P$84,11,1)+($X$9-$AB$9)*0.15% -> 0.0441 | Y40: =VLOOKUP(B40,UWS!$A$3:$P$84,11,1)+($Y$9-$AB$9)*0.15% -> 0.0456 | Z40: =VLOOKUP(B40,UWS!$A$3:$P$84,11,1)+($Z$9-$AB$9)*0.15% -> 0.0471 | AA40: =VLOOKUP(B40,UWS!$A$3:$P$84,11,1)+($AA$9-$AB$9)*0.15% -> 0.0486 | AB40: =VLOOKUP(B40,UWS!$A$3:$P$84,11,1) -> 0.0501 | AC40: =VLOOKUP(B40,UWS!$A$3:$P$84,11,1)+($AC$9-$AB$9)*0.15% -> 0.0516 | AD40: =VLOOKUP(B40,UWS!$A$3:$P$84,11,1)+($AD$9-$AB$9)*0.15% -> 0.0531 | AE40: =VLOOKUP(B40,UWS!$A$3:$P$84,11,1)+($AE$9-$AB$9)*0.15% -> 0.0546 | AF40: =VLOOKUP(B40,UWS!$A$3:$P$84,11,1)+($AF$9-$AB$9)*0.15% -> 0.0561 | AG40: =VLOOKUP(B40,UWS!$A$3:$P$84,11,1)+($AG$9-$AB$9)*0.15% -> 0.0576 | AK40: 44 | AL40: =VLOOKUP(AK40,'AGS Finanzierung'!$M$8:$P$64,$AL$8+1,0) -> 0.1325 | AN40: 0 | AO40: =Ausweis!$H$18 -> 0 | AP40: 0 | AR40: 763785.5039 | AT40: 44 | AU40: =VLOOKUP(AT40,'AGS FinanzierungVL2'!$M$8:$P$64,$AU$8+1,0) -> 0.11 | AW40: 0.2815 | AX40: 0 | AY40: 0 | AZ40: 0 | BB40: 77 | BC40: 756274.7 | BE40: 95000 | BF40: =VLOOKUP(Ausweis!$I$5,Zinsen!$F$10:$G$56,2,)*1/2*Ausweis!$H$14 -> 14340 | BG40: =MIN(BE40-BF40,11/2*VLOOKUP(Ausweis!$H$5,Zinsen!$F$10:$G$56,2,1)) -> 80660 | BH40: =MAX(MIN(BE40,12*VLOOKUP(Ausweis!$H$5,Zinsen!$F$10:$G$56,2,1))-4*VLOOKUP(Ausweis!$H$5,Zinsen!$F$10:$G$56,2,1),0)*0 -> 0
B41: 1972 | C41: 2050 | D41: 78 | E41: 12 | F41: =MONTH(Ausweis!$H$10) -> 9 | G41: 9 | H41: 0.2815 | I41: 80660 | J41: 794129.149 | K41: 786543.25 | L41: 786543.25 | M41: 0 | N41: 0 | O41: 0 | P41: 786543.25 | Q41: =VLOOKUP(C41,Zinsen!$C$9:$E$73,3,1) -> 0.01 | R41: 45304.9 | S41: 3775 | T41: 0.0576 | U41: =VLOOKUP(B41,UWS!$A$3:$P$84,11,1)+($U$9-$AB$9)*0.15% -> 0.0396 | V41: =VLOOKUP(B41,UWS!$A$3:$P$84,11,1)+($V$9-$AB$9)*0.15% -> 0.0411 | W41: =VLOOKUP(B41,UWS!$A$3:$P$84,11,1)+($W$9-$AB$9)*0.15% -> 0.0426 | X41: =VLOOKUP(B41,UWS!$A$3:$P$84,11,1)+($X$9-$AB$9)*0.15% -> 0.0441 | Y41: =VLOOKUP(B41,UWS!$A$3:$P$84,11,1)+($Y$9-$AB$9)*0.15% -> 0.0456 | Z41: =VLOOKUP(B41,UWS!$A$3:$P$84,11,1)+($Z$9-$AB$9)*0.15% -> 0.0471 | AA41: =VLOOKUP(B41,UWS!$A$3:$P$84,11,1)+($AA$9-$AB$9)*0.15% -> 0.0486 | AB41: =VLOOKUP(B41,UWS!$A$3:$P$84,11,1) -> 0.0501 | AC41: =VLOOKUP(B41,UWS!$A$3:$P$84,11,1)+($AC$9-$AB$9)*0.15% -> 0.0516 | AD41: =VLOOKUP(B41,UWS!$A$3:$P$84,11,1)+($AD$9-$AB$9)*0.15% -> 0.0531 | AE41: =VLOOKUP(B41,UWS!$A$3:$P$84,11,1)+($AE$9-$AB$9)*0.15% -> 0.0546 | AF41: =VLOOKUP(B41,UWS!$A$3:$P$84,11,1)+($AF$9-$AB$9)*0.15% -> 0.0561 | AG41: =VLOOKUP(B41,UWS!$A$3:$P$84,11,1)+($AG$9-$AB$9)*0.15% -> 0.0576 | AK41: 45 | AL41: =VLOOKUP(AK41,'AGS Finanzierung'!$M$8:$P$64,$AL$8+1,0) -> 0.2215 | AN41: 0 | AO41: =Ausweis!$H$18 -> 0 | AP41: 0 | AR41: 794129.149 | AT41: 45 | AU41: =VLOOKUP(AT41,'AGS FinanzierungVL2'!$M$8:$P$64,$AU$8+1,0) -> 0.11 | AW41: 0.2815 | AX41: 0 | AY41: 0 | AZ41: 0 | BB41: 78 | BC41: 786543.25 | BE41: 95000 | BF41: =VLOOKUP(Ausweis!$I$5,Zinsen!$F$10:$G$56,2,)*1/2*Ausweis!$H$14 -> 14340 | BG41: =MIN(BE41-BF41,11/2*VLOOKUP(Ausweis!$H$5,Zinsen!$F$10:$G$56,2,1)) -> 80660 | BH41: =MAX(MIN(BE41,12*VLOOKUP(Ausweis!$H$5,Zinsen!$F$10:$G$56,2,1))-4*VLOOKUP(Ausweis!$H$5,Zinsen!$F$10:$G$56,2,1),0)*0 -> 0
B42: 1972 | C42: 2051 | D42: 79 | E42: 12 | F42: =MONTH(Ausweis!$H$10) -> 9 | G42: 9 | H42: 0.2815 | I42: 80660 | J42: 824776.2305 | K42: 817114.45 | L42: 817114.45 | M42: 0 | N42: 0 | O42: 0 | P42: 817114.45 | Q42: =VLOOKUP(C42,Zinsen!$C$9:$E$73,3,1) -> 0.01 | R42: 47065.8 | S42: 3922 | T42: 0.0576 | U42: =VLOOKUP(B42,UWS!$A$3:$P$84,11,1)+($U$9-$AB$9)*0.15% -> 0.0396 | V42: =VLOOKUP(B42,UWS!$A$3:$P$84,11,1)+($V$9-$AB$9)*0.15% -> 0.0411 | W42: =VLOOKUP(B42,UWS!$A$3:$P$84,11,1)+($W$9-$AB$9)*0.15% -> 0.0426 | X42: =VLOOKUP(B42,UWS!$A$3:$P$84,11,1)+($X$9-$AB$9)*0.15% -> 0.0441 | Y42: =VLOOKUP(B42,UWS!$A$3:$P$84,11,1)+($Y$9-$AB$9)*0.15% -> 0.0456 | Z42: =VLOOKUP(B42,UWS!$A$3:$P$84,11,1)+($Z$9-$AB$9)*0.15% -> 0.0471 | AA42: =VLOOKUP(B42,UWS!$A$3:$P$84,11,1)+($AA$9-$AB$9)*0.15% -> 0.0486 | AB42: =VLOOKUP(B42,UWS!$A$3:$P$84,11,1) -> 0.0501 | AC42: =VLOOKUP(B42,UWS!$A$3:$P$84,11,1)+($AC$9-$AB$9)*0.15% -> 0.0516 | AD42: =VLOOKUP(B42,UWS!$A$3:$P$84,11,1)+($AD$9-$AB$9)*0.15% -> 0.0531 | AE42: =VLOOKUP(B42,UWS!$A$3:$P$84,11,1)+($AE$9-$AB$9)*0.15% -> 0.0546 | AF42: =VLOOKUP(B42,UWS!$A$3:$P$84,11,1)+($AF$9-$AB$9)*0.15% -> 0.0561 | AG42: =VLOOKUP(B42,UWS!$A$3:$P$84,11,1)+($AG$9-$AB$9)*0.15% -> 0.0576 | AK42: 46 | AL42: =VLOOKUP(AK42,'AGS Finanzierung'!$M$8:$P$64,$AL$8+1,0) -> 0.2215 | AN42: 0 | AO42: =Ausweis!$H$18 -> 0 | AP42: 0 | AR42: 824776.2305 | AT42: 46 | AU42: =VLOOKUP(AT42,'AGS FinanzierungVL2'!$M$8:$P$64,$AU$8+1,0) -> 0.11 | AW42: 0.2815 | AX42: 0 | AY42: 0 | AZ42: 0 | BB42: 79 | BC42: 817114.45 | BE42: 95000 | BF42: =VLOOKUP(Ausweis!$I$5,Zinsen!$F$10:$G$56,2,)*1/2*Ausweis!$H$14 -> 14340 | BG42: =MIN(BE42-BF42,11/2*VLOOKUP(Ausweis!$H$5,Zinsen!$F$10:$G$56,2,1)) -> 80660 | BH42: =MAX(MIN(BE42,12*VLOOKUP(Ausweis!$H$5,Zinsen!$F$10:$G$56,2,1))-4*VLOOKUP(Ausweis!$H$5,Zinsen!$F$10:$G$56,2,1),0)*0 -> 0
B43: 1972 | C43: 2052 | D43: 80 | E43: 12 | F43: =MONTH(Ausweis!$H$10) -> 9 | G43: 9 | H43: 0.2815 | I43: 80660 | J43: 855729.7828 | K43: 847991.4 | L43: 847991.4 | M43: 0 | N43: 0 | O43: 0 | P43: 847991.4 | Q43: =VLOOKUP(C43,Zinsen!$C$9:$E$73,3,1) -> 0.01 | R43: 48844.3 | S43: 4070 | T43: 0.0576 | U43: =VLOOKUP(B43,UWS!$A$3:$P$84,11,1)+($U$9-$AB$9)*0.15% -> 0.0396 | V43: =VLOOKUP(B43,UWS!$A$3:$P$84,11,1)+($V$9-$AB$9)*0.15% -> 0.0411 | W43: =VLOOKUP(B43,UWS!$A$3:$P$84,11,1)+($W$9-$AB$9)*0.15% -> 0.0426 | X43: =VLOOKUP(B43,UWS!$A$3:$P$84,11,1)+($X$9-$AB$9)*0.15% -> 0.0441 | Y43: =VLOOKUP(B43,UWS!$A$3:$P$84,11,1)+($Y$9-$AB$9)*0.15% -> 0.0456 | Z43: =VLOOKUP(B43,UWS!$A$3:$P$84,11,1)+($Z$9-$AB$9)*0.15% -> 0.0471 | AA43: =VLOOKUP(B43,UWS!$A$3:$P$84,11,1)+($AA$9-$AB$9)*0.15% -> 0.0486 | AB43: =VLOOKUP(B43,UWS!$A$3:$P$84,11,1) -> 0.0501 | AC43: =VLOOKUP(B43,UWS!$A$3:$P$84,11,1)+($AC$9-$AB$9)*0.15% -> 0.0516 | AD43: =VLOOKUP(B43,UWS!$A$3:$P$84,11,1)+($AD$9-$AB$9)*0.15% -> 0.0531 | AE43: =VLOOKUP(B43,UWS!$A$3:$P$84,11,1)+($AE$9-$AB$9)*0.15% -> 0.0546 | AF43: =VLOOKUP(B43,UWS!$A$3:$P$84,11,1)+($AF$9-$AB$9)*0.15% -> 0.0561 | AG43: =VLOOKUP(B43,UWS!$A$3:$P$84,11,1)+($AG$9-$AB$9)*0.15% -> 0.0576 | AK43: 47 | AL43: =VLOOKUP(AK43,'AGS Finanzierung'!$M$8:$P$64,$AL$8+1,0) -> 0.2215 | AN43: 0 | AO43: =Ausweis!$H$18 -> 0 | AP43: 0 | AR43: 855729.7828 | AT43: 47 | AU43: =VLOOKUP(AT43,'AGS FinanzierungVL2'!$M$8:$P$64,$AU$8+1,0) -> 0.11 | AW43: 0.2815 | AX43: 0 | AY43: 0 | AZ43: 0 | BB43: 80 | BC43: 847991.4 | BE43: 95000 | BF43: =VLOOKUP(Ausweis!$I$5,Zinsen!$F$10:$G$56,2,)*1/2*Ausweis!$H$14 -> 14340 | BG43: =MIN(BE43-BF43,11/2*VLOOKUP(Ausweis!$H$5,Zinsen!$F$10:$G$56,2,1)) -> 80660 | BH43: =MAX(MIN(BE43,12*VLOOKUP(Ausweis!$H$5,Zinsen!$F$10:$G$56,2,1))-4*VLOOKUP(Ausweis!$H$5,Zinsen!$F$10:$G$56,2,1),0)*0 -> 0
B44: 1972 | C44: 2053 | D44: 81 | E44: 12 | F44: =MONTH(Ausweis!$H$10) -> 9 | G44: 9 | H44: 0.2815 | I44: 80660 | J44: 886992.8706 | K44: 879177.1 | L44: 879177.1 | M44: 0 | N44: 0 | O44: 0 | P44: 879177.1 | Q44: =VLOOKUP(C44,Zinsen!$C$9:$E$73,3,1) -> 0.01 | R44: 50640.6 | S44: 4220 | T44: 0.0576 | U44: =VLOOKUP(B44,UWS!$A$3:$P$84,11,1)+($U$9-$AB$9)*0.15% -> 0.0396 | V44: =VLOOKUP(B44,UWS!$A$3:$P$84,11,1)+($V$9-$AB$9)*0.15% -> 0.0411 | W44: =VLOOKUP(B44,UWS!$A$3:$P$84,11,1)+($W$9-$AB$9)*0.15% -> 0.0426 | X44: =VLOOKUP(B44,UWS!$A$3:$P$84,11,1)+($X$9-$AB$9)*0.15% -> 0.0441 | Y44: =VLOOKUP(B44,UWS!$A$3:$P$84,11,1)+($Y$9-$AB$9)*0.15% -> 0.0456 | Z44: =VLOOKUP(B44,UWS!$A$3:$P$84,11,1)+($Z$9-$AB$9)*0.15% -> 0.0471 | AA44: =VLOOKUP(B44,UWS!$A$3:$P$84,11,1)+($AA$9-$AB$9)*0.15% -> 0.0486 | AB44: =VLOOKUP(B44,UWS!$A$3:$P$84,11,1) -> 0.0501 | AC44: =VLOOKUP(B44,UWS!$A$3:$P$84,11,1)+($AC$9-$AB$9)*0.15% -> 0.0516 | AD44: =VLOOKUP(B44,UWS!$A$3:$P$84,11,1)+($AD$9-$AB$9)*0.15% -> 0.0531 | AE44: =VLOOKUP(B44,UWS!$A$3:$P$84,11,1)+($AE$9-$AB$9)*0.15% -> 0.0546 | AF44: =VLOOKUP(B44,UWS!$A$3:$P$84,11,1)+($AF$9-$AB$9)*0.15% -> 0.0561 | AG44: =VLOOKUP(B44,UWS!$A$3:$P$84,11,1)+($AG$9-$AB$9)*0.15% -> 0.0576 | AK44: 48 | AL44: =VLOOKUP(AK44,'AGS Finanzierung'!$M$8:$P$64,$AL$8+1,0) -> 0.2215 | AN44: 0 | AO44: =Ausweis!$H$18 -> 0 | AP44: 0 | AR44: 886992.8706 | AT44: 48 | AU44: =VLOOKUP(AT44,'AGS FinanzierungVL2'!$M$8:$P$64,$AU$8+1,0) -> 0.11 | AW44: 0.2815 | AX44: 0 | AY44: 0 | AZ44: 0 | BB44: 81 | BC44: 879177.1 | BE44: 95000 | BF44: =VLOOKUP(Ausweis!$I$5,Zinsen!$F$10:$G$56,2,)*1/2*Ausweis!$H$14 -> 14340 | BG44: =MIN(BE44-BF44,11/2*VLOOKUP(Ausweis!$H$5,Zinsen!$F$10:$G$56,2,1)) -> 80660 | BH44: =MAX(MIN(BE44,12*VLOOKUP(Ausweis!$H$5,Zinsen!$F$10:$G$56,2,1))-4*VLOOKUP(Ausweis!$H$5,Zinsen!$F$10:$G$56,2,1),0)*0 -> 0
B45: 1972 | C45: 2054 | D45: 82 | E45: 12 | F45: =MONTH(Ausweis!$H$10) -> 9 | G45: 9 | H45: 0.2815 | I45: 80660 | J45: 918568.5893 | K45: 910674.65 | L45: 910674.65 | M45: 0 | N45: 0 | O45: 0 | P45: 910674.65 | Q45: =VLOOKUP(C45,Zinsen!$C$9:$E$73,3,1) -> 0.01 | R45: 52454.85 | S45: 4371 | T45: 0.0576 | U45: =VLOOKUP(B45,UWS!$A$3:$P$84,11,1)+($U$9-$AB$9)*0.15% -> 0.0396 | V45: =VLOOKUP(B45,UWS!$A$3:$P$84,11,1)+($V$9-$AB$9)*0.15% -> 0.0411 | W45: =VLOOKUP(B45,UWS!$A$3:$P$84,11,1)+($W$9-$AB$9)*0.15% -> 0.0426 | X45: =VLOOKUP(B45,UWS!$A$3:$P$84,11,1)+($X$9-$AB$9)*0.15% -> 0.0441 | Y45: =VLOOKUP(B45,UWS!$A$3:$P$84,11,1)+($Y$9-$AB$9)*0.15% -> 0.0456 | Z45: =VLOOKUP(B45,UWS!$A$3:$P$84,11,1)+($Z$9-$AB$9)*0.15% -> 0.0471 | AA45: =VLOOKUP(B45,UWS!$A$3:$P$84,11,1)+($AA$9-$AB$9)*0.15% -> 0.0486 | AB45: =VLOOKUP(B45,UWS!$A$3:$P$84,11,1) -> 0.0501 | AC45: =VLOOKUP(B45,UWS!$A$3:$P$84,11,1)+($AC$9-$AB$9)*0.15% -> 0.0516 | AD45: =VLOOKUP(B45,UWS!$A$3:$P$84,11,1)+($AD$9-$AB$9)*0.15% -> 0.0531 | AE45: =VLOOKUP(B45,UWS!$A$3:$P$84,11,1)+($AE$9-$AB$9)*0.15% -> 0.0546 | AF45: =VLOOKUP(B45,UWS!$A$3:$P$84,11,1)+($AF$9-$AB$9)*0.15% -> 0.0561 | AG45: =VLOOKUP(B45,UWS!$A$3:$P$84,11,1)+($AG$9-$AB$9)*0.15% -> 0.0576 | AK45: 49 | AL45: =VLOOKUP(AK45,'AGS Finanzierung'!$M$8:$P$64,$AL$8+1,0) -> 0.2215 | AN45: 0 | AO45: =Ausweis!$H$18 -> 0 | AP45: 0 | AR45: 918568.5893 | AT45: 49 | AU45: =VLOOKUP(AT45,'AGS FinanzierungVL2'!$M$8:$P$64,$AU$8+1,0) -> 0.11 | AW45: 0.2815 | AX45: 0 | AY45: 0 | AZ45: 0 | BB45: 82 | BC45: 910674.65 | BE45: 95000 | BF45: =VLOOKUP(Ausweis!$I$5,Zinsen!$F$10:$G$56,2,)*1/2*Ausweis!$H$14 -> 14340 | BG45: =MIN(BE45-BF45,11/2*VLOOKUP(Ausweis!$H$5,Zinsen!$F$10:$G$56,2,1)) -> 80660 | BH45: =MAX(MIN(BE45,12*VLOOKUP(Ausweis!$H$5,Zinsen!$F$10:$G$56,2,1))-4*VLOOKUP(Ausweis!$H$5,Zinsen!$F$10:$G$56,2,1),0)*0 -> 0
B46: 1972 | C46: 2055 | D46: 83 | E46: 12 | F46: =MONTH(Ausweis!$H$10) -> 9 | G46: 9 | H46: 0.2815 | I46: 80660 | J46: 950460.0652 | K46: 942487.2 | L46: 942487.2 | M46: 0 | N46: 0 | O46: 0 | P46: 942487.2 | Q46: =VLOOKUP(C46,Zinsen!$C$9:$E$73,3,1) -> 0.01 | R46: 54287.25 | S46: 4524 | T46: 0.0576 | U46: =VLOOKUP(B46,UWS!$A$3:$P$84,11,1)+($U$9-$AB$9)*0.15% -> 0.0396 | V46: =VLOOKUP(B46,UWS!$A$3:$P$84,11,1)+($V$9-$AB$9)*0.15% -> 0.0411 | W46: =VLOOKUP(B46,UWS!$A$3:$P$84,11,1)+($W$9-$AB$9)*0.15% -> 0.0426 | X46: =VLOOKUP(B46,UWS!$A$3:$P$84,11,1)+($X$9-$AB$9)*0.15% -> 0.0441 | Y46: =VLOOKUP(B46,UWS!$A$3:$P$84,11,1)+($Y$9-$AB$9)*0.15% -> 0.0456 | Z46: =VLOOKUP(B46,UWS!$A$3:$P$84,11,1)+($Z$9-$AB$9)*0.15% -> 0.0471 | AA46: =VLOOKUP(B46,UWS!$A$3:$P$84,11,1)+($AA$9-$AB$9)*0.15% -> 0.0486 | AB46: =VLOOKUP(B46,UWS!$A$3:$P$84,11,1) -> 0.0501 | AC46: =VLOOKUP(B46,UWS!$A$3:$P$84,11,1)+($AC$9-$AB$9)*0.15% -> 0.0516 | AD46: =VLOOKUP(B46,UWS!$A$3:$P$84,11,1)+($AD$9-$AB$9)*0.15% -> 0.0531 | AE46: =VLOOKUP(B46,UWS!$A$3:$P$84,11,1)+($AE$9-$AB$9)*0.15% -> 0.0546 | AF46: =VLOOKUP(B46,UWS!$A$3:$P$84,11,1)+($AF$9-$AB$9)*0.15% -> 0.0561 | AG46: =VLOOKUP(B46,UWS!$A$3:$P$84,11,1)+($AG$9-$AB$9)*0.15% -> 0.0576 | AK46: 50 | AL46: =VLOOKUP(AK46,'AGS Finanzierung'!$M$8:$P$64,$AL$8+1,0) -> 0.2215 | AN46: 0 | AO46: =Ausweis!$H$18 -> 0 | AP46: 0 | AR46: 950460.0652 | AT46: 50 | AU46: =VLOOKUP(AT46,'AGS FinanzierungVL2'!$M$8:$P$64,$AU$8+1,0) -> 0.11 | AW46: 0.2815 | AX46: 0 | AY46: 0 | AZ46: 0 | BB46: 83 | BC46: 942487.2 | BE46: =BE45*(1+$BE$6) -> 95000 | BF46: =VLOOKUP(Ausweis!$I$5,Zinsen!$F$10:$G$56,2,)*1/2*Ausweis!$H$14 -> 14340 | BG46: =MIN(BE46-BF46,11/2*VLOOKUP(Ausweis!$H$5,Zinsen!$F$10:$G$56,2,1)) -> 80660 | BH46: =MAX(MIN(BE46,12*VLOOKUP(Ausweis!$H$5,Zinsen!$F$10:$G$56,2,1))-4*VLOOKUP(Ausweis!$H$5,Zinsen!$F$10:$G$56,2,1),0)*0 -> 0
B47: 1972 | C47: 2056 | D47: 84 | E47: 12 | F47: =MONTH(Ausweis!$H$10) -> 9 | G47: 9 | H47: 0.2815 | I47: 80660 | J47: 982670.4558 | K47: 974617.85 | L47: 974617.85 | M47: 0 | N47: 0 | O47: 0 | P47: 974617.85 | Q47: =VLOOKUP(C47,Zinsen!$C$9:$E$73,3,1) -> 0.01 | R47: 56138 | S47: 4678 | T47: 0.0576 | U47: =VLOOKUP(B47,UWS!$A$3:$P$84,11,1)+($U$9-$AB$9)*0.15% -> 0.0396 | V47: =VLOOKUP(B47,UWS!$A$3:$P$84,11,1)+($V$9-$AB$9)*0.15% -> 0.0411 | W47: =VLOOKUP(B47,UWS!$A$3:$P$84,11,1)+($W$9-$AB$9)*0.15% -> 0.0426 | X47: =VLOOKUP(B47,UWS!$A$3:$P$84,11,1)+($X$9-$AB$9)*0.15% -> 0.0441 | Y47: =VLOOKUP(B47,UWS!$A$3:$P$84,11,1)+($Y$9-$AB$9)*0.15% -> 0.0456 | Z47: =VLOOKUP(B47,UWS!$A$3:$P$84,11,1)+($Z$9-$AB$9)*0.15% -> 0.0471 | AA47: =VLOOKUP(B47,UWS!$A$3:$P$84,11,1)+($AA$9-$AB$9)*0.15% -> 0.0486 | AB47: =VLOOKUP(B47,UWS!$A$3:$P$84,11,1) -> 0.0501 | AC47: =VLOOKUP(B47,UWS!$A$3:$P$84,11,1)+($AC$9-$AB$9)*0.15% -> 0.0516 | AD47: =VLOOKUP(B47,UWS!$A$3:$P$84,11,1)+($AD$9-$AB$9)*0.15% -> 0.0531 | AE47: =VLOOKUP(B47,UWS!$A$3:$P$84,11,1)+($AE$9-$AB$9)*0.15% -> 0.0546 | AF47: =VLOOKUP(B47,UWS!$A$3:$P$84,11,1)+($AF$9-$AB$9)*0.15% -> 0.0561 | AG47: =VLOOKUP(B47,UWS!$A$3:$P$84,11,1)+($AG$9-$AB$9)*0.15% -> 0.0576 | AK47: 51 | AL47: =VLOOKUP(AK47,'AGS Finanzierung'!$M$8:$P$64,$AL$8+1,0) -> 0.2215 | AN47: 0 | AO47: =Ausweis!$H$18 -> 0 | AP47: 0 | AR47: 982670.4558 | AT47: 51 | AU47: =VLOOKUP(AT47,'AGS FinanzierungVL2'!$M$8:$P$64,$AU$8+1,0) -> 0.11 | AW47: 0.2815 | AX47: 0 | AY47: 0 | AZ47: 0 | BB47: 84 | BC47: 974617.85 | BE47: 95000 | BF47: =VLOOKUP(Ausweis!$I$5,Zinsen!$F$10:$G$56,2,)*1/2*Ausweis!$H$14 -> 14340 | BG47: =MIN(BE47-BF47,11/2*VLOOKUP(Ausweis!$H$5,Zinsen!$F$10:$G$56,2,1)) -> 80660 | BH47: =MAX(MIN(BE47,12*VLOOKUP(Ausweis!$H$5,Zinsen!$F$10:$G$56,2,1))-4*VLOOKUP(Ausweis!$H$5,Zinsen!$F$10:$G$56,2,1),0)*0 -> 0
B48: 1972 | C48: 2057 | D48: 85 | E48: 12 | F48: =MONTH(Ausweis!$H$10) -> 9 | G48: 9 | H48: 0.2815 | I48: 80660 | J48: 1015202.95 | K48: 1007069.85 | L48: 1007069.85 | M48: 0 | N48: 0 | O48: 0 | P48: 1007069.85 | Q48: =VLOOKUP(C48,Zinsen!$C$9:$E$73,3,1) -> 0.01 | R48: 58007.2 | S48: 4834 | T48: 0.0576 | U48: =VLOOKUP(B48,UWS!$A$3:$P$84,11,1)+($U$9-$AB$9)*0.15% -> 0.0396 | V48: =VLOOKUP(B48,UWS!$A$3:$P$84,11,1)+($V$9-$AB$9)*0.15% -> 0.0411 | W48: =VLOOKUP(B48,UWS!$A$3:$P$84,11,1)+($W$9-$AB$9)*0.15% -> 0.0426 | X48: =VLOOKUP(B48,UWS!$A$3:$P$84,11,1)+($X$9-$AB$9)*0.15% -> 0.0441 | Y48: =VLOOKUP(B48,UWS!$A$3:$P$84,11,1)+($Y$9-$AB$9)*0.15% -> 0.0456 | Z48: =VLOOKUP(B48,UWS!$A$3:$P$84,11,1)+($Z$9-$AB$9)*0.15% -> 0.0471 | AA48: =VLOOKUP(B48,UWS!$A$3:$P$84,11,1)+($AA$9-$AB$9)*0.15% -> 0.0486 | AB48: =VLOOKUP(B48,UWS!$A$3:$P$84,11,1) -> 0.0501 | AC48: =VLOOKUP(B48,UWS!$A$3:$P$84,11,1)+($AC$9-$AB$9)*0.15% -> 0.0516 | AD48: =VLOOKUP(B48,UWS!$A$3:$P$84,11,1)+($AD$9-$AB$9)*0.15% -> 0.0531 | AE48: =VLOOKUP(B48,UWS!$A$3:$P$84,11,1)+($AE$9-$AB$9)*0.15% -> 0.0546 | AF48: =VLOOKUP(B48,UWS!$A$3:$P$84,11,1)+($AF$9-$AB$9)*0.15% -> 0.0561 | AG48: =VLOOKUP(B48,UWS!$A$3:$P$84,11,1)+($AG$9-$AB$9)*0.15% -> 0.0576 | AK48: 52 | AL48: =VLOOKUP(AK48,'AGS Finanzierung'!$M$8:$P$64,$AL$8+1,0) -> 0.2215 | AN48: 0 | AO48: =Ausweis!$H$18 -> 0 | AP48: 0 | AR48: 1015202.95 | AT48: 52 | AU48: =VLOOKUP(AT48,'AGS FinanzierungVL2'!$M$8:$P$64,$AU$8+1,0) -> 0.11 | AW48: 0.2815 | AX48: 0 | AY48: 0 | AZ48: 0 | BB48: 85 | BC48: 1007069.85 | BE48: 95000 | BF48: =VLOOKUP(Ausweis!$I$5,Zinsen!$F$10:$G$56,2,)*1/2*Ausweis!$H$14 -> 14340 | BG48: =MIN(BE48-BF48,11/2*VLOOKUP(Ausweis!$H$5,Zinsen!$F$10:$G$56,2,1)) -> 80660 | BH48: =MAX(MIN(BE48,12*VLOOKUP(Ausweis!$H$5,Zinsen!$F$10:$G$56,2,1))-4*VLOOKUP(Ausweis!$H$5,Zinsen!$F$10:$G$56,2,1),0)*0 -> 0
B49: 1972 | C49: 2058 | D49: 86 | E49: 12 | F49: =MONTH(Ausweis!$H$10) -> 9 | G49: 9 | H49: 0.2815 | I49: 80660 | J49: 1048060.77 | K49: 1039846.3 | L49: 1039846.3 | M49: 0 | N49: 0 | O49: 0 | P49: 1039846.3 | Q49: =VLOOKUP(C49,Zinsen!$C$9:$E$73,3,1) -> 0.01 | R49: 59895.15 | S49: 4991 | T49: 0.0576 | U49: =VLOOKUP(B49,UWS!$A$3:$P$84,11,1)+($U$9-$AB$9)*0.15% -> 0.0396 | V49: =VLOOKUP(B49,UWS!$A$3:$P$84,11,1)+($V$9-$AB$9)*0.15% -> 0.0411 | W49: =VLOOKUP(B49,UWS!$A$3:$P$84,11,1)+($W$9-$AB$9)*0.15% -> 0.0426 | X49: =VLOOKUP(B49,UWS!$A$3:$P$84,11,1)+($X$9-$AB$9)*0.15% -> 0.0441 | Y49: =VLOOKUP(B49,UWS!$A$3:$P$84,11,1)+($Y$9-$AB$9)*0.15% -> 0.0456 | Z49: =VLOOKUP(B49,UWS!$A$3:$P$84,11,1)+($Z$9-$AB$9)*0.15% -> 0.0471 | AA49: =VLOOKUP(B49,UWS!$A$3:$P$84,11,1)+($AA$9-$AB$9)*0.15% -> 0.0486 | AB49: =VLOOKUP(B49,UWS!$A$3:$P$84,11,1) -> 0.0501 | AC49: =VLOOKUP(B49,UWS!$A$3:$P$84,11,1)+($AC$9-$AB$9)*0.15% -> 0.0516 | AD49: =VLOOKUP(B49,UWS!$A$3:$P$84,11,1)+($AD$9-$AB$9)*0.15% -> 0.0531 | AE49: =VLOOKUP(B49,UWS!$A$3:$P$84,11,1)+($AE$9-$AB$9)*0.15% -> 0.0546 | AF49: =VLOOKUP(B49,UWS!$A$3:$P$84,11,1)+($AF$9-$AB$9)*0.15% -> 0.0561 | AG49: =VLOOKUP(B49,UWS!$A$3:$P$84,11,1)+($AG$9-$AB$9)*0.15% -> 0.0576 | AK49: 53 | AL49: =VLOOKUP(AK49,'AGS Finanzierung'!$M$8:$P$64,$AL$8+1,0) -> 0.2215 | AN49: 0 | AO49: =Ausweis!$H$18 -> 0 | AP49: 0 | AR49: 1048060.77 | AT49: 53 | AU49: =VLOOKUP(AT49,'AGS FinanzierungVL2'!$M$8:$P$64,$AU$8+1,0) -> 0.11 | AW49: 0.2815 | AX49: 0 | AY49: 0 | AZ49: 0 | BB49: 86 | BC49: 1039846.3 | BE49: 95000 | BF49: =VLOOKUP(Ausweis!$I$5,Zinsen!$F$10:$G$56,2,)*1/2*Ausweis!$H$14 -> 14340 | BG49: =MIN(BE49-BF49,11/2*VLOOKUP(Ausweis!$H$5,Zinsen!$F$10:$G$56,2,1)) -> 80660 | BH49: =MAX(MIN(BE49,12*VLOOKUP(Ausweis!$H$5,Zinsen!$F$10:$G$56,2,1))-4*VLOOKUP(Ausweis!$H$5,Zinsen!$F$10:$G$56,2,1),0)*0 -> 0
B50: 1972 | C50: 2059 | D50: 87 | E50: 12 | F50: =MONTH(Ausweis!$H$10) -> 9 | G50: 9 | H50: 0.2815 | I50: 80660 | J50: 1081247.168 | K50: 1072950.55 | L50: 1072950.55 | M50: 0 | N50: 0 | O50: 0 | P50: 1072950.55 | Q50: =VLOOKUP(C50,Zinsen!$C$9:$E$73,3,1) -> 0.01 | R50: 61801.95 | S50: 5150 | T50: 0.0576 | U50: =VLOOKUP(B50,UWS!$A$3:$P$84,11,1)+($U$9-$AB$9)*0.15% -> 0.0396 | V50: =VLOOKUP(B50,UWS!$A$3:$P$84,11,1)+($V$9-$AB$9)*0.15% -> 0.0411 | W50: =VLOOKUP(B50,UWS!$A$3:$P$84,11,1)+($W$9-$AB$9)*0.15% -> 0.0426 | X50: =VLOOKUP(B50,UWS!$A$3:$P$84,11,1)+($X$9-$AB$9)*0.15% -> 0.0441 | Y50: =VLOOKUP(B50,UWS!$A$3:$P$84,11,1)+($Y$9-$AB$9)*0.15% -> 0.0456 | Z50: =VLOOKUP(B50,UWS!$A$3:$P$84,11,1)+($Z$9-$AB$9)*0.15% -> 0.0471 | AA50: =VLOOKUP(B50,UWS!$A$3:$P$84,11,1)+($AA$9-$AB$9)*0.15% -> 0.0486 | AB50: =VLOOKUP(B50,UWS!$A$3:$P$84,11,1) -> 0.0501 | AC50: =VLOOKUP(B50,UWS!$A$3:$P$84,11,1)+($AC$9-$AB$9)*0.15% -> 0.0516 | AD50: =VLOOKUP(B50,UWS!$A$3:$P$84,11,1)+($AD$9-$AB$9)*0.15% -> 0.0531 | AE50: =VLOOKUP(B50,UWS!$A$3:$P$84,11,1)+($AE$9-$AB$9)*0.15% -> 0.0546 | AF50: =VLOOKUP(B50,UWS!$A$3:$P$84,11,1)+($AF$9-$AB$9)*0.15% -> 0.0561 | AG50: =VLOOKUP(B50,UWS!$A$3:$P$84,11,1)+($AG$9-$AB$9)*0.15% -> 0.0576 | AK50: 54 | AL50: =VLOOKUP(AK50,'AGS Finanzierung'!$M$8:$P$64,$AL$8+1,0) -> 0.2215 | AN50: 0 | AO50: =Ausweis!$H$18 -> 0 | AP50: 0 | AR50: 1081247.168 | AT50: 54 | AU50: =VLOOKUP(AT50,'AGS FinanzierungVL2'!$M$8:$P$64,$AU$8+1,0) -> 0.11 | AW50: 0.2815 | AX50: 0 | AY50: 0 | AZ50: 0 | BB50: 87 | BC50: 1072950.55 | BE50: 95000 | BF50: =VLOOKUP(Ausweis!$I$5,Zinsen!$F$10:$G$56,2,)*1/2*Ausweis!$H$14 -> 14340 | BG50: =MIN(BE50-BF50,11/2*VLOOKUP(Ausweis!$H$5,Zinsen!$F$10:$G$56,2,1)) -> 80660 | BH50: =MAX(MIN(BE50,12*VLOOKUP(Ausweis!$H$5,Zinsen!$F$10:$G$56,2,1))-4*VLOOKUP(Ausweis!$H$5,Zinsen!$F$10:$G$56,2,1),0)*0 -> 0
B51: 1972 | C51: 2060 | D51: 88 | E51: 12 | F51: =MONTH(Ausweis!$H$10) -> 9 | G51: 9 | H51: 0.2815 | I51: 80660 | J51: 1114765.429 | K51: 1106385.85 | L51: 1106385.85 | M51: 0 | N51: 0 | O51: 0 | P51: 1106385.85 | Q51: =VLOOKUP(C51,Zinsen!$C$9:$E$73,3,1) -> 0.01 | R51: 63727.8 | S51: 5311 | T51: 0.0576 | U51: =VLOOKUP(B51,UWS!$A$3:$P$84,11,1)+($U$9-$AB$9)*0.15% -> 0.0396 | V51: =VLOOKUP(B51,UWS!$A$3:$P$84,11,1)+($V$9-$AB$9)*0.15% -> 0.0411 | W51: =VLOOKUP(B51,UWS!$A$3:$P$84,11,1)+($W$9-$AB$9)*0.15% -> 0.0426 | X51: =VLOOKUP(B51,UWS!$A$3:$P$84,11,1)+($X$9-$AB$9)*0.15% -> 0.0441 | Y51: =VLOOKUP(B51,UWS!$A$3:$P$84,11,1)+($Y$9-$AB$9)*0.15% -> 0.0456 | Z51: =VLOOKUP(B51,UWS!$A$3:$P$84,11,1)+($Z$9-$AB$9)*0.15% -> 0.0471 | AA51: =VLOOKUP(B51,UWS!$A$3:$P$84,11,1)+($AA$9-$AB$9)*0.15% -> 0.0486 | AB51: =VLOOKUP(B51,UWS!$A$3:$P$84,11,1) -> 0.0501 | AC51: =VLOOKUP(B51,UWS!$A$3:$P$84,11,1)+($AC$9-$AB$9)*0.15% -> 0.0516 | AD51: =VLOOKUP(B51,UWS!$A$3:$P$84,11,1)+($AD$9-$AB$9)*0.15% -> 0.0531 | AE51: =VLOOKUP(B51,UWS!$A$3:$P$84,11,1)+($AE$9-$AB$9)*0.15% -> 0.0546 | AF51: =VLOOKUP(B51,UWS!$A$3:$P$84,11,1)+($AF$9-$AB$9)*0.15% -> 0.0561 | AG51: =VLOOKUP(B51,UWS!$A$3:$P$84,11,1)+($AG$9-$AB$9)*0.15% -> 0.0576 | AK51: 55 | AL51: =VLOOKUP(AK51,'AGS Finanzierung'!$M$8:$P$64,$AL$8+1,0) -> 0.2815 | AN51: 0 | AO51: =Ausweis!$H$18 -> 0 | AP51: 0 | AR51: 1114765.429 | AT51: 55 | AU51: =VLOOKUP(AT51,'AGS FinanzierungVL2'!$M$8:$P$64,$AU$8+1,0) -> 0.11 | AW51: 0.2815 | AX51: 0 | AY51: 0 | AZ51: 0 | BB51: 88 | BC51: 1106385.85 | BE51: 95000 | BF51: =VLOOKUP(Ausweis!$I$5,Zinsen!$F$10:$G$56,2,)*1/2*Ausweis!$H$14 -> 14340 | BG51: =MIN(BE51-BF51,11/2*VLOOKUP(Ausweis!$H$5,Zinsen!$F$10:$G$56,2,1)) -> 80660 | BH51: =MAX(MIN(BE51,12*VLOOKUP(Ausweis!$H$5,Zinsen!$F$10:$G$56,2,1))-4*VLOOKUP(Ausweis!$H$5,Zinsen!$F$10:$G$56,2,1),0)*0 -> 0
B52: 1972 | C52: 2061 | D52: 89 | E52: 12 | F52: =MONTH(Ausweis!$H$10) -> 9 | G52: 9 | H52: 0.2815 | I52: 80660 | J52: 1148618.874 | K52: 1140155.5 | L52: 1140155.5 | M52: 0 | N52: 0 | O52: 0 | P52: 1140155.5 | Q52: =VLOOKUP(C52,Zinsen!$C$9:$E$73,3,1) -> 0.01 | R52: 65672.95 | S52: 5473 | T52: 0.0576 | U52: =VLOOKUP(B52,UWS!$A$3:$P$84,11,1)+($U$9-$AB$9)*0.15% -> 0.0396 | V52: =VLOOKUP(B52,UWS!$A$3:$P$84,11,1)+($V$9-$AB$9)*0.15% -> 0.0411 | W52: =VLOOKUP(B52,UWS!$A$3:$P$84,11,1)+($W$9-$AB$9)*0.15% -> 0.0426 | X52: =VLOOKUP(B52,UWS!$A$3:$P$84,11,1)+($X$9-$AB$9)*0.15% -> 0.0441 | Y52: =VLOOKUP(B52,UWS!$A$3:$P$84,11,1)+($Y$9-$AB$9)*0.15% -> 0.0456 | Z52: =VLOOKUP(B52,UWS!$A$3:$P$84,11,1)+($Z$9-$AB$9)*0.15% -> 0.0471 | AA52: =VLOOKUP(B52,UWS!$A$3:$P$84,11,1)+($AA$9-$AB$9)*0.15% -> 0.0486 | AB52: =VLOOKUP(B52,UWS!$A$3:$P$84,11,1) -> 0.0501 | AC52: =VLOOKUP(B52,UWS!$A$3:$P$84,11,1)+($AC$9-$AB$9)*0.15% -> 0.0516 | AD52: =VLOOKUP(B52,UWS!$A$3:$P$84,11,1)+($AD$9-$AB$9)*0.15% -> 0.0531 | AE52: =VLOOKUP(B52,UWS!$A$3:$P$84,11,1)+($AE$9-$AB$9)*0.15% -> 0.0546 | AF52: =VLOOKUP(B52,UWS!$A$3:$P$84,11,1)+($AF$9-$AB$9)*0.15% -> 0.0561 | AG52: =VLOOKUP(B52,UWS!$A$3:$P$84,11,1)+($AG$9-$AB$9)*0.15% -> 0.0576 | AK52: 56 | AL52: =VLOOKUP(AK52,'AGS Finanzierung'!$M$8:$P$64,$AL$8+1,0) -> 0.2815 | AN52: 0 | AO52: =Ausweis!$H$18 -> 0 | AP52: 0 | AR52: 1148618.874 | AT52: 56 | AU52: =VLOOKUP(AT52,'AGS FinanzierungVL2'!$M$8:$P$64,$AU$8+1,0) -> 0.11 | AW52: 0.2815 | AX52: 0 | AY52: 0 | AZ52: 0 | BB52: 89 | BC52: 1140155.5 | BE52: 95000 | BF52: =VLOOKUP(Ausweis!$I$5,Zinsen!$F$10:$G$56,2,)*1/2*Ausweis!$H$14 -> 14340 | BG52: =MIN(BE52-BF52,11/2*VLOOKUP(Ausweis!$H$5,Zinsen!$F$10:$G$56,2,1)) -> 80660 | BH52: =MAX(MIN(BE52,12*VLOOKUP(Ausweis!$H$5,Zinsen!$F$10:$G$56,2,1))-4*VLOOKUP(Ausweis!$H$5,Zinsen!$F$10:$G$56,2,1),0)*0 -> 0
B53: 1972 | C53: 2062 | D53: 90 | E53: 12 | F53: =MONTH(Ausweis!$H$10) -> 9 | G53: 9 | H53: 0.2815 | I53: 80660 | J53: 1182810.852 | K53: 1174262.85 | L53: 1174262.85 | M53: 0 | N53: 0 | O53: 0 | P53: 1174262.85 | Q53: =VLOOKUP(C53,Zinsen!$C$9:$E$73,3,1) -> 0.01 | R53: 67637.55 | S53: 5636 | T53: 0.0576 | U53: =VLOOKUP(B53,UWS!$A$3:$P$84,11,1)+($U$9-$AB$9)*0.15% -> 0.0396 | V53: =VLOOKUP(B53,UWS!$A$3:$P$84,11,1)+($V$9-$AB$9)*0.15% -> 0.0411 | W53: =VLOOKUP(B53,UWS!$A$3:$P$84,11,1)+($W$9-$AB$9)*0.15% -> 0.0426 | X53: =VLOOKUP(B53,UWS!$A$3:$P$84,11,1)+($X$9-$AB$9)*0.15% -> 0.0441 | Y53: =VLOOKUP(B53,UWS!$A$3:$P$84,11,1)+($Y$9-$AB$9)*0.15% -> 0.0456 | Z53: =VLOOKUP(B53,UWS!$A$3:$P$84,11,1)+($Z$9-$AB$9)*0.15% -> 0.0471 | AA53: =VLOOKUP(B53,UWS!$A$3:$P$84,11,1)+($AA$9-$AB$9)*0.15% -> 0.0486 | AB53: =VLOOKUP(B53,UWS!$A$3:$P$84,11,1) -> 0.0501 | AC53: =VLOOKUP(B53,UWS!$A$3:$P$84,11,1)+($AC$9-$AB$9)*0.15% -> 0.0516 | AD53: =VLOOKUP(B53,UWS!$A$3:$P$84,11,1)+($AD$9-$AB$9)*0.15% -> 0.0531 | AE53: =VLOOKUP(B53,UWS!$A$3:$P$84,11,1)+($AE$9-$AB$9)*0.15% -> 0.0546 | AF53: =VLOOKUP(B53,UWS!$A$3:$P$84,11,1)+($AF$9-$AB$9)*0.15% -> 0.0561 | AG53: =VLOOKUP(B53,UWS!$A$3:$P$84,11,1)+($AG$9-$AB$9)*0.15% -> 0.0576 | AK53: 57 | AL53: =VLOOKUP(AK53,'AGS Finanzierung'!$M$8:$P$64,$AL$8+1,0) -> 0.2815 | AN53: 0 | AO53: =Ausweis!$H$18 -> 0 | AP53: 0 | AR53: 1182810.852 | AT53: 57 | AU53: =VLOOKUP(AT53,'AGS FinanzierungVL2'!$M$8:$P$64,$AU$8+1,0) -> 0.11 | AW53: 0.2815 | AX53: 0 | AY53: 0 | AZ53: 0 | BB53: 90 | BC53: 1174262.85 | BE53: 95000 | BF53: =VLOOKUP(Ausweis!$I$5,Zinsen!$F$10:$G$56,2,)*1/2*Ausweis!$H$14 -> 14340 | BG53: =MIN(BE53-BF53,11/2*VLOOKUP(Ausweis!$H$5,Zinsen!$F$10:$G$56,2,1)) -> 80660 | BH53: =MAX(MIN(BE53,12*VLOOKUP(Ausweis!$H$5,Zinsen!$F$10:$G$56,2,1))-4*VLOOKUP(Ausweis!$H$5,Zinsen!$F$10:$G$56,2,1),0)*0 -> 0
B54: 1972 | C54: 2063 | D54: 91 | E54: 12 | F54: =MONTH(Ausweis!$H$10) -> 9 | G54: 9 | H54: 0.2815 | I54: 80660 | J54: 1217344.751 | K54: 1208711.3 | L54: 1208711.3 | M54: 0 | N54: 0 | O54: 0 | P54: 1208711.3 | Q54: =VLOOKUP(C54,Zinsen!$C$9:$E$73,3,1) -> 0.01 | R54: 69621.75 | S54: 5802 | T54: 0.0576 | U54: =VLOOKUP(B54,UWS!$A$3:$P$84,11,1)+($U$9-$AB$9)*0.15% -> 0.0396 | V54: =VLOOKUP(B54,UWS!$A$3:$P$84,11,1)+($V$9-$AB$9)*0.15% -> 0.0411 | W54: =VLOOKUP(B54,UWS!$A$3:$P$84,11,1)+($W$9-$AB$9)*0.15% -> 0.0426 | X54: =VLOOKUP(B54,UWS!$A$3:$P$84,11,1)+($X$9-$AB$9)*0.15% -> 0.0441 | Y54: =VLOOKUP(B54,UWS!$A$3:$P$84,11,1)+($Y$9-$AB$9)*0.15% -> 0.0456 | Z54: =VLOOKUP(B54,UWS!$A$3:$P$84,11,1)+($Z$9-$AB$9)*0.15% -> 0.0471 | AA54: =VLOOKUP(B54,UWS!$A$3:$P$84,11,1)+($AA$9-$AB$9)*0.15% -> 0.0486 | AB54: =VLOOKUP(B54,UWS!$A$3:$P$84,11,1) -> 0.0501 | AC54: =VLOOKUP(B54,UWS!$A$3:$P$84,11,1)+($AC$9-$AB$9)*0.15% -> 0.0516 | AD54: =VLOOKUP(B54,UWS!$A$3:$P$84,11,1)+($AD$9-$AB$9)*0.15% -> 0.0531 | AE54: =VLOOKUP(B54,UWS!$A$3:$P$84,11,1)+($AE$9-$AB$9)*0.15% -> 0.0546 | AF54: =VLOOKUP(B54,UWS!$A$3:$P$84,11,1)+($AF$9-$AB$9)*0.15% -> 0.0561 | AG54: =VLOOKUP(B54,UWS!$A$3:$P$84,11,1)+($AG$9-$AB$9)*0.15% -> 0.0576 | AK54: 58 | AL54: =VLOOKUP(AK54,'AGS Finanzierung'!$M$8:$P$64,$AL$8+1,0) -> 0.2815 | AN54: 0 | AO54: =Ausweis!$H$18 -> 0 | AP54: 0 | AR54: 1217344.751 | AT54: 58 | AU54: =VLOOKUP(AT54,'AGS FinanzierungVL2'!$M$8:$P$64,$AU$8+1,0) -> 0.11 | AW54: 0.2815 | AX54: 0 | AY54: 0 | AZ54: 0 | BB54: 91 | BC54: 1208711.3 | BE54: 95000 | BF54: =VLOOKUP(Ausweis!$I$5,Zinsen!$F$10:$G$56,2,)*1/2*Ausweis!$H$14 -> 14340 | BG54: =MIN(BE54-BF54,11/2*VLOOKUP(Ausweis!$H$5,Zinsen!$F$10:$G$56,2,1)) -> 80660 | BH54: =MAX(MIN(BE54,12*VLOOKUP(Ausweis!$H$5,Zinsen!$F$10:$G$56,2,1))-4*VLOOKUP(Ausweis!$H$5,Zinsen!$F$10:$G$56,2,1),0)*0 -> 0
B55: 1972 | C55: 2064 | D55: 92 | E55: 12 | F55: =MONTH(Ausweis!$H$10) -> 9 | G55: 9 | H55: 0.2815 | I55: 80660 | J55: 1252223.988 | K55: 1243504.2 | L55: 1243504.2 | M55: 0 | N55: 0 | O55: 0 | P55: 1243504.2 | Q55: =VLOOKUP(C55,Zinsen!$C$9:$E$73,3,1) -> 0.01 | R55: 71625.85 | S55: 5969 | T55: 0.0576 | U55: =VLOOKUP(B55,UWS!$A$3:$P$84,11,1)+($U$9-$AB$9)*0.15% -> 0.0396 | V55: =VLOOKUP(B55,UWS!$A$3:$P$84,11,1)+($V$9-$AB$9)*0.15% -> 0.0411 | W55: =VLOOKUP(B55,UWS!$A$3:$P$84,11,1)+($W$9-$AB$9)*0.15% -> 0.0426 | X55: =VLOOKUP(B55,UWS!$A$3:$P$84,11,1)+($X$9-$AB$9)*0.15% -> 0.0441 | Y55: =VLOOKUP(B55,UWS!$A$3:$P$84,11,1)+($Y$9-$AB$9)*0.15% -> 0.0456 | Z55: =VLOOKUP(B55,UWS!$A$3:$P$84,11,1)+($Z$9-$AB$9)*0.15% -> 0.0471 | AA55: =VLOOKUP(B55,UWS!$A$3:$P$84,11,1)+($AA$9-$AB$9)*0.15% -> 0.0486 | AB55: =VLOOKUP(B55,UWS!$A$3:$P$84,11,1) -> 0.0501 | AC55: =VLOOKUP(B55,UWS!$A$3:$P$84,11,1)+($AC$9-$AB$9)*0.15% -> 0.0516 | AD55: =VLOOKUP(B55,UWS!$A$3:$P$84,11,1)+($AD$9-$AB$9)*0.15% -> 0.0531 | AE55: =VLOOKUP(B55,UWS!$A$3:$P$84,11,1)+($AE$9-$AB$9)*0.15% -> 0.0546 | AF55: =VLOOKUP(B55,UWS!$A$3:$P$84,11,1)+($AF$9-$AB$9)*0.15% -> 0.0561 | AG55: =VLOOKUP(B55,UWS!$A$3:$P$84,11,1)+($AG$9-$AB$9)*0.15% -> 0.0576 | AK55: 59 | AL55: =VLOOKUP(AK55,'AGS Finanzierung'!$M$8:$P$64,$AL$8+1,0) -> 0.2815 | AN55: 0 | AO55: =Ausweis!$H$18 -> 0 | AP55: 0 | AR55: 1252223.988 | AT55: 59 | AU55: =VLOOKUP(AT55,'AGS FinanzierungVL2'!$M$8:$P$64,$AU$8+1,0) -> 0.11 | AW55: 0.2815 | AX55: 0 | AY55: 0 | AZ55: 0 | BB55: 92 | BC55: 1243504.2 | BE55: 95000 | BF55: =VLOOKUP(Ausweis!$I$5,Zinsen!$F$10:$G$56,2,)*1/2*Ausweis!$H$14 -> 14340 | BG55: =MIN(BE55-BF55,11/2*VLOOKUP(Ausweis!$H$5,Zinsen!$F$10:$G$56,2,1)) -> 80660 | BH55: =MAX(MIN(BE55,12*VLOOKUP(Ausweis!$H$5,Zinsen!$F$10:$G$56,2,1))-4*VLOOKUP(Ausweis!$H$5,Zinsen!$F$10:$G$56,2,1),0)*0 -> 0
B56: 1972 | C56: 2065 | D56: 93 | E56: 12 | F56: =MONTH(Ausweis!$H$10) -> 9 | G56: 9 | H56: 0.2815 | I56: 80660 | J56: 1287452.018 | K56: 1278645 | L56: 1278645 | M56: 0 | N56: 0 | O56: 0 | P56: 1278645 | Q56: =VLOOKUP(C56,Zinsen!$C$9:$E$73,3,1) -> 0.01 | R56: 73649.95 | S56: 6137 | T56: 0.0576 | U56: =VLOOKUP(B56,UWS!$A$3:$P$84,11,1)+($U$9-$AB$9)*0.15% -> 0.0396 | V56: =VLOOKUP(B56,UWS!$A$3:$P$84,11,1)+($V$9-$AB$9)*0.15% -> 0.0411 | W56: =VLOOKUP(B56,UWS!$A$3:$P$84,11,1)+($W$9-$AB$9)*0.15% -> 0.0426 | X56: =VLOOKUP(B56,UWS!$A$3:$P$84,11,1)+($X$9-$AB$9)*0.15% -> 0.0441 | Y56: =VLOOKUP(B56,UWS!$A$3:$P$84,11,1)+($Y$9-$AB$9)*0.15% -> 0.0456 | Z56: =VLOOKUP(B56,UWS!$A$3:$P$84,11,1)+($Z$9-$AB$9)*0.15% -> 0.0471 | AA56: =VLOOKUP(B56,UWS!$A$3:$P$84,11,1)+($AA$9-$AB$9)*0.15% -> 0.0486 | AB56: =VLOOKUP(B56,UWS!$A$3:$P$84,11,1) -> 0.0501 | AC56: =VLOOKUP(B56,UWS!$A$3:$P$84,11,1)+($AC$9-$AB$9)*0.15% -> 0.0516 | AD56: =VLOOKUP(B56,UWS!$A$3:$P$84,11,1)+($AD$9-$AB$9)*0.15% -> 0.0531 | AE56: =VLOOKUP(B56,UWS!$A$3:$P$84,11,1)+($AE$9-$AB$9)*0.15% -> 0.0546 | AF56: =VLOOKUP(B56,UWS!$A$3:$P$84,11,1)+($AF$9-$AB$9)*0.15% -> 0.0561 | AG56: =VLOOKUP(B56,UWS!$A$3:$P$84,11,1)+($AG$9-$AB$9)*0.15% -> 0.0576 | AK56: 60 | AL56: =VLOOKUP(AK56,'AGS Finanzierung'!$M$8:$P$64,$AL$8+1,0) -> 0.2815 | AN56: 0 | AO56: =Ausweis!$H$18 -> 0 | AP56: 0 | AR56: 1287452.018 | AT56: 60 | AU56: =VLOOKUP(AT56,'AGS FinanzierungVL2'!$M$8:$P$64,$AU$8+1,0) -> 0.11 | AW56: 0.2815 | AX56: 0 | AY56: 0 | AZ56: 0 | BB56: 93 | BC56: 1278645 | BE56: 95000 | BF56: =VLOOKUP(Ausweis!$I$5,Zinsen!$F$10:$G$56,2,)*1/2*Ausweis!$H$14 -> 14340 | BG56: =MIN(BE56-BF56,11/2*VLOOKUP(Ausweis!$H$5,Zinsen!$F$10:$G$56,2,1)) -> 80660 | BH56: =MAX(MIN(BE56,12*VLOOKUP(Ausweis!$H$5,Zinsen!$F$10:$G$56,2,1))-4*VLOOKUP(Ausweis!$H$5,Zinsen!$F$10:$G$56,2,1),0)*0 -> 0
B57: 1972 | C57: 2066 | D57: 94 | E57: 12 | F57: =MONTH(Ausweis!$H$10) -> 9 | G57: 9 | H57: 0.2815 | I57: 80660 | J57: 1323032.328 | K57: 1314137.25 | L57: 1314137.25 | M57: 0 | N57: 0 | O57: 0 | P57: 1314137.25 | Q57: =VLOOKUP(C57,Zinsen!$C$9:$E$73,3,1) -> 0.01 | R57: 75694.3 | S57: 6308 | T57: 0.0576 | U57: =VLOOKUP(B57,UWS!$A$3:$P$84,11,1)+($U$9-$AB$9)*0.15% -> 0.0396 | V57: =VLOOKUP(B57,UWS!$A$3:$P$84,11,1)+($V$9-$AB$9)*0.15% -> 0.0411 | W57: =VLOOKUP(B57,UWS!$A$3:$P$84,11,1)+($W$9-$AB$9)*0.15% -> 0.0426 | X57: =VLOOKUP(B57,UWS!$A$3:$P$84,11,1)+($X$9-$AB$9)*0.15% -> 0.0441 | Y57: =VLOOKUP(B57,UWS!$A$3:$P$84,11,1)+($Y$9-$AB$9)*0.15% -> 0.0456 | Z57: =VLOOKUP(B57,UWS!$A$3:$P$84,11,1)+($Z$9-$AB$9)*0.15% -> 0.0471 | AA57: =VLOOKUP(B57,UWS!$A$3:$P$84,11,1)+($AA$9-$AB$9)*0.15% -> 0.0486 | AB57: =VLOOKUP(B57,UWS!$A$3:$P$84,11,1) -> 0.0501 | AC57: =VLOOKUP(B57,UWS!$A$3:$P$84,11,1)+($AC$9-$AB$9)*0.15% -> 0.0516 | AD57: =VLOOKUP(B57,UWS!$A$3:$P$84,11,1)+($AD$9-$AB$9)*0.15% -> 0.0531 | AE57: =VLOOKUP(B57,UWS!$A$3:$P$84,11,1)+($AE$9-$AB$9)*0.15% -> 0.0546 | AF57: =VLOOKUP(B57,UWS!$A$3:$P$84,11,1)+($AF$9-$AB$9)*0.15% -> 0.0561 | AG57: =VLOOKUP(B57,UWS!$A$3:$P$84,11,1)+($AG$9-$AB$9)*0.15% -> 0.0576 | AK57: 61 | AL57: =VLOOKUP(AK57,'AGS Finanzierung'!$M$8:$P$64,$AL$8+1,0) -> 0.2815 | AN57: 0 | AO57: =Ausweis!$H$18 -> 0 | AP57: 0 | AR57: 1323032.328 | AT57: 61 | AU57: =VLOOKUP(AT57,'AGS FinanzierungVL2'!$M$8:$P$64,$AU$8+1,0) -> 0.11 | AW57: 0.2815 | AX57: 0 | AY57: 0 | AZ57: 0 | BB57: 94 | BC57: 1314137.25 | BE57: 95000 | BF57: =VLOOKUP(Ausweis!$I$5,Zinsen!$F$10:$G$56,2,)*1/2*Ausweis!$H$14 -> 14340 | BG57: =MIN(BE57-BF57,11/2*VLOOKUP(Ausweis!$H$5,Zinsen!$F$10:$G$56,2,1)) -> 80660 | BH57: =MAX(MIN(BE57,12*VLOOKUP(Ausweis!$H$5,Zinsen!$F$10:$G$56,2,1))-4*VLOOKUP(Ausweis!$H$5,Zinsen!$F$10:$G$56,2,1),0)*0 -> 0
B58: 1972 | C58: 2067 | D58: 95 | E58: 12 | F58: =MONTH(Ausweis!$H$10) -> 9 | G58: 9 | H58: 0.2815 | I58: 80660 | J58: 1358968.442 | K58: 1349984.4 | L58: 1349984.4 | M58: 0 | N58: 0 | O58: 0 | P58: 1349984.4 | Q58: =VLOOKUP(C58,Zinsen!$C$9:$E$73,3,1) -> 0.01 | R58: 77759.1 | S58: 6480 | T58: 0.0576 | U58: =VLOOKUP(B58,UWS!$A$3:$P$84,11,1)+($U$9-$AB$9)*0.15% -> 0.0396 | V58: =VLOOKUP(B58,UWS!$A$3:$P$84,11,1)+($V$9-$AB$9)*0.15% -> 0.0411 | W58: =VLOOKUP(B58,UWS!$A$3:$P$84,11,1)+($W$9-$AB$9)*0.15% -> 0.0426 | X58: =VLOOKUP(B58,UWS!$A$3:$P$84,11,1)+($X$9-$AB$9)*0.15% -> 0.0441 | Y58: =VLOOKUP(B58,UWS!$A$3:$P$84,11,1)+($Y$9-$AB$9)*0.15% -> 0.0456 | Z58: =VLOOKUP(B58,UWS!$A$3:$P$84,11,1)+($Z$9-$AB$9)*0.15% -> 0.0471 | AA58: =VLOOKUP(B58,UWS!$A$3:$P$84,11,1)+($AA$9-$AB$9)*0.15% -> 0.0486 | AB58: =VLOOKUP(B58,UWS!$A$3:$P$84,11,1) -> 0.0501 | AC58: =VLOOKUP(B58,UWS!$A$3:$P$84,11,1)+($AC$9-$AB$9)*0.15% -> 0.0516 | AD58: =VLOOKUP(B58,UWS!$A$3:$P$84,11,1)+($AD$9-$AB$9)*0.15% -> 0.0531 | AE58: =VLOOKUP(B58,UWS!$A$3:$P$84,11,1)+($AE$9-$AB$9)*0.15% -> 0.0546 | AF58: =VLOOKUP(B58,UWS!$A$3:$P$84,11,1)+($AF$9-$AB$9)*0.15% -> 0.0561 | AG58: =VLOOKUP(B58,UWS!$A$3:$P$84,11,1)+($AG$9-$AB$9)*0.15% -> 0.0576 | AK58: 62 | AL58: =VLOOKUP(AK58,'AGS Finanzierung'!$M$8:$P$64,$AL$8+1,0) -> 0.2815 | AN58: 0 | AO58: =Ausweis!$H$18 -> 0 | AP58: 0 | AR58: 1358968.442 | AT58: 62 | AU58: =VLOOKUP(AT58,'AGS FinanzierungVL2'!$M$8:$P$64,$AU$8+1,0) -> 0.11 | AW58: 0.2815 | AX58: 0 | AY58: 0 | AZ58: 0 | BB58: 95 | BC58: 1349984.4 | BE58: 95000 | BF58: =VLOOKUP(Ausweis!$I$5,Zinsen!$F$10:$G$56,2,)*1/2*Ausweis!$H$14 -> 14340 | BG58: =MIN(BE58-BF58,11/2*VLOOKUP(Ausweis!$H$5,Zinsen!$F$10:$G$56,2,1)) -> 80660 | BH58: =MAX(MIN(BE58,12*VLOOKUP(Ausweis!$H$5,Zinsen!$F$10:$G$56,2,1))-4*VLOOKUP(Ausweis!$H$5,Zinsen!$F$10:$G$56,2,1),0)*0 -> 0
B59: 1972 | C59: 2068 | D59: 96 | E59: 12 | F59: =MONTH(Ausweis!$H$10) -> 9 | G59: 9 | H59: 0.2815 | I59: 80660 | J59: 1395263.916 | K59: 1386190.05 | L59: 1386190.05 | M59: 0 | N59: 0 | O59: 0 | P59: 1386190.05 | Q59: =VLOOKUP(C59,Zinsen!$C$9:$E$73,3,1) -> 0.01 | R59: 79844.55 | S59: 6654 | T59: 0.0576 | U59: =VLOOKUP(B59,UWS!$A$3:$P$84,11,1)+($U$9-$AB$9)*0.15% -> 0.0396 | V59: =VLOOKUP(B59,UWS!$A$3:$P$84,11,1)+($V$9-$AB$9)*0.15% -> 0.0411 | W59: =VLOOKUP(B59,UWS!$A$3:$P$84,11,1)+($W$9-$AB$9)*0.15% -> 0.0426 | X59: =VLOOKUP(B59,UWS!$A$3:$P$84,11,1)+($X$9-$AB$9)*0.15% -> 0.0441 | Y59: =VLOOKUP(B59,UWS!$A$3:$P$84,11,1)+($Y$9-$AB$9)*0.15% -> 0.0456 | Z59: =VLOOKUP(B59,UWS!$A$3:$P$84,11,1)+($Z$9-$AB$9)*0.15% -> 0.0471 | AA59: =VLOOKUP(B59,UWS!$A$3:$P$84,11,1)+($AA$9-$AB$9)*0.15% -> 0.0486 | AB59: =VLOOKUP(B59,UWS!$A$3:$P$84,11,1) -> 0.0501 | AC59: =VLOOKUP(B59,UWS!$A$3:$P$84,11,1)+($AC$9-$AB$9)*0.15% -> 0.0516 | AD59: =VLOOKUP(B59,UWS!$A$3:$P$84,11,1)+($AD$9-$AB$9)*0.15% -> 0.0531 | AE59: =VLOOKUP(B59,UWS!$A$3:$P$84,11,1)+($AE$9-$AB$9)*0.15% -> 0.0546 | AF59: =VLOOKUP(B59,UWS!$A$3:$P$84,11,1)+($AF$9-$AB$9)*0.15% -> 0.0561 | AG59: =VLOOKUP(B59,UWS!$A$3:$P$84,11,1)+($AG$9-$AB$9)*0.15% -> 0.0576 | AK59: 63 | AL59: =VLOOKUP(AK59,'AGS Finanzierung'!$M$8:$P$64,$AL$8+1,0) -> 0.2815 | AN59: 0 | AO59: =Ausweis!$H$18 -> 0 | AP59: 0 | AR59: 1395263.916 | AT59: 63 | AU59: =VLOOKUP(AT59,'AGS FinanzierungVL2'!$M$8:$P$64,$AU$8+1,0) -> 0.11 | AW59: 0.2815 | AX59: 0 | AY59: 0 | AZ59: 0 | BB59: 96 | BC59: 1386190.05 | BE59: 95000 | BF59: =VLOOKUP(Ausweis!$I$5,Zinsen!$F$10:$G$56,2,)*1/2*Ausweis!$H$14 -> 14340 | BG59: =MIN(BE59-BF59,11/2*VLOOKUP(Ausweis!$H$5,Zinsen!$F$10:$G$56,2,1)) -> 80660 | BH59: =MAX(MIN(BE59,12*VLOOKUP(Ausweis!$H$5,Zinsen!$F$10:$G$56,2,1))-4*VLOOKUP(Ausweis!$H$5,Zinsen!$F$10:$G$56,2,1),0)*0 -> 0
B60: 1972 | C60: 2069 | D60: 97 | E60: 12 | F60: =MONTH(Ausweis!$H$10) -> 9 | G60: 9 | H60: 0.2815 | I60: 80660 | J60: 1431922.345 | K60: 1422757.75 | L60: 1422757.75 | M60: 0 | N60: 0 | O60: 0 | P60: 1422757.75 | Q60: =VLOOKUP(C60,Zinsen!$C$9:$E$73,3,1) -> 0.01 | R60: 81950.85 | S60: 6829 | T60: 0.0576 | U60: =VLOOKUP(B60,UWS!$A$3:$P$84,11,1)+($U$9-$AB$9)*0.15% -> 0.0396 | V60: =VLOOKUP(B60,UWS!$A$3:$P$84,11,1)+($V$9-$AB$9)*0.15% -> 0.0411 | W60: =VLOOKUP(B60,UWS!$A$3:$P$84,11,1)+($W$9-$AB$9)*0.15% -> 0.0426 | X60: =VLOOKUP(B60,UWS!$A$3:$P$84,11,1)+($X$9-$AB$9)*0.15% -> 0.0441 | Y60: =VLOOKUP(B60,UWS!$A$3:$P$84,11,1)+($Y$9-$AB$9)*0.15% -> 0.0456 | Z60: =VLOOKUP(B60,UWS!$A$3:$P$84,11,1)+($Z$9-$AB$9)*0.15% -> 0.0471 | AA60: =VLOOKUP(B60,UWS!$A$3:$P$84,11,1)+($AA$9-$AB$9)*0.15% -> 0.0486 | AB60: =VLOOKUP(B60,UWS!$A$3:$P$84,11,1) -> 0.0501 | AC60: =VLOOKUP(B60,UWS!$A$3:$P$84,11,1)+($AC$9-$AB$9)*0.15% -> 0.0516 | AD60: =VLOOKUP(B60,UWS!$A$3:$P$84,11,1)+($AD$9-$AB$9)*0.15% -> 0.0531 | AE60: =VLOOKUP(B60,UWS!$A$3:$P$84,11,1)+($AE$9-$AB$9)*0.15% -> 0.0546 | AF60: =VLOOKUP(B60,UWS!$A$3:$P$84,11,1)+($AF$9-$AB$9)*0.15% -> 0.0561 | AG60: =VLOOKUP(B60,UWS!$A$3:$P$84,11,1)+($AG$9-$AB$9)*0.15% -> 0.0576 | AK60: 64 | AL60: =VLOOKUP(AK60,'AGS Finanzierung'!$M$8:$P$64,$AL$8+1,0) -> 0.2815 | AN60: 0 | AO60: =Ausweis!$H$18 -> 0 | AP60: 0 | AR60: 1431922.345 | AT60: 64 | AU60: =VLOOKUP(AT60,'AGS FinanzierungVL2'!$M$8:$P$64,$AU$8+1,0) -> 0.11 | AW60: 0.2815 | AX60: 0 | AY60: 0 | AZ60: 0 | BB60: 97 | BC60: 1422757.75 | BE60: 95000 | BF60: =VLOOKUP(Ausweis!$I$5,Zinsen!$F$10:$G$56,2,)*1/2*Ausweis!$H$14 -> 14340 | BG60: =MIN(BE60-BF60,11/2*VLOOKUP(Ausweis!$H$5,Zinsen!$F$10:$G$56,2,1)) -> 80660 | BH60: =MAX(MIN(BE60,12*VLOOKUP(Ausweis!$H$5,Zinsen!$F$10:$G$56,2,1))-4*VLOOKUP(Ausweis!$H$5,Zinsen!$F$10:$G$56,2,1),0)*0 -> 0
B61: 1972 | C61: 2070 | D61: 98 | E61: 12 | F61: =MONTH(Ausweis!$H$10) -> 9 | G61: 9 | H61: 0.2815 | I61: 80660 | J61: 1468947.359 | K61: 1459691.1 | L61: 1459691.1 | M61: 0 | N61: 0 | O61: 0 | P61: 1459691.1 | Q61: =VLOOKUP(C61,Zinsen!$C$9:$E$73,3,1) -> 0.01 | R61: 84078.2 | S61: 7007 | T61: 0.0576 | U61: =VLOOKUP(B61,UWS!$A$3:$P$84,11,1)+($U$9-$AB$9)*0.15% -> 0.0396 | V61: =VLOOKUP(B61,UWS!$A$3:$P$84,11,1)+($V$9-$AB$9)*0.15% -> 0.0411 | W61: =VLOOKUP(B61,UWS!$A$3:$P$84,11,1)+($W$9-$AB$9)*0.15% -> 0.0426 | X61: =VLOOKUP(B61,UWS!$A$3:$P$84,11,1)+($X$9-$AB$9)*0.15% -> 0.0441 | Y61: =VLOOKUP(B61,UWS!$A$3:$P$84,11,1)+($Y$9-$AB$9)*0.15% -> 0.0456 | Z61: =VLOOKUP(B61,UWS!$A$3:$P$84,11,1)+($Z$9-$AB$9)*0.15% -> 0.0471 | AA61: =VLOOKUP(B61,UWS!$A$3:$P$84,11,1)+($AA$9-$AB$9)*0.15% -> 0.0486 | AB61: =VLOOKUP(B61,UWS!$A$3:$P$84,11,1) -> 0.0501 | AC61: =VLOOKUP(B61,UWS!$A$3:$P$84,11,1)+($AC$9-$AB$9)*0.15% -> 0.0516 | AD61: =VLOOKUP(B61,UWS!$A$3:$P$84,11,1)+($AD$9-$AB$9)*0.15% -> 0.0531 | AE61: =VLOOKUP(B61,UWS!$A$3:$P$84,11,1)+($AE$9-$AB$9)*0.15% -> 0.0546 | AF61: =VLOOKUP(B61,UWS!$A$3:$P$84,11,1)+($AF$9-$AB$9)*0.15% -> 0.0561 | AG61: =VLOOKUP(B61,UWS!$A$3:$P$84,11,1)+($AG$9-$AB$9)*0.15% -> 0.0576 | AK61: 65 | AL61: =VLOOKUP(AK61,'AGS Finanzierung'!$M$8:$P$64,$AL$8+1,0) -> 0.2815 | AN61: 0 | AO61: =Ausweis!$H$18 -> 0 | AP61: 0 | AR61: 1468947.359 | AT61: 65 | AU61: =VLOOKUP(AT61,'AGS FinanzierungVL2'!$M$8:$P$64,$AU$8+1,0) -> 0.11 | AW61: 0.2815 | AX61: 0 | AY61: 0 | AZ61: 0 | BB61: 98 | BC61: 1459691.1 | BE61: 95000 | BF61: =VLOOKUP(Ausweis!$I$5,Zinsen!$F$10:$G$56,2,)*1/2*Ausweis!$H$14 -> 14340 | BG61: =MIN(BE61-BF61,11/2*VLOOKUP(Ausweis!$H$5,Zinsen!$F$10:$G$56,2,1)) -> 80660 | BH61: =MAX(MIN(BE61,12*VLOOKUP(Ausweis!$H$5,Zinsen!$F$10:$G$56,2,1))-4*VLOOKUP(Ausweis!$H$5,Zinsen!$F$10:$G$56,2,1),0)*0 -> 0
B62: 1972 | C62: 2071 | D62: =C62-B62 -> 99 | E62: 12 | F62: =MONTH(Ausweis!$H$10) -> 9 | G62: 9 | H62: 0.2815 | I62: 80660 | J62: 1506342.622 | K62: 1496993.8 | L62: 1496993.8 | M62: 0 | N62: 0 | O62: 0 | P62: 1496993.8 | Q62: =VLOOKUP(C62,Zinsen!$C$9:$E$73,3,1) -> 0.01 | R62: 86226.85 | S62: 7186 | T62: 0.0576 | U62: =VLOOKUP(B62,UWS!$A$3:$P$84,11,1)+($U$9-$AB$9)*0.15% -> 0.0396 | V62: =VLOOKUP(B62,UWS!$A$3:$P$84,11,1)+($V$9-$AB$9)*0.15% -> 0.0411 | W62: =VLOOKUP(B62,UWS!$A$3:$P$84,11,1)+($W$9-$AB$9)*0.15% -> 0.0426 | X62: =VLOOKUP(B62,UWS!$A$3:$P$84,11,1)+($X$9-$AB$9)*0.15% -> 0.0441 | Y62: =VLOOKUP(B62,UWS!$A$3:$P$84,11,1)+($Y$9-$AB$9)*0.15% -> 0.0456 | Z62: =VLOOKUP(B62,UWS!$A$3:$P$84,11,1)+($Z$9-$AB$9)*0.15% -> 0.0471 | AA62: =VLOOKUP(B62,UWS!$A$3:$P$84,11,1)+($AA$9-$AB$9)*0.15% -> 0.0486 | AB62: =VLOOKUP(B62,UWS!$A$3:$P$84,11,1) -> 0.0501 | AC62: =VLOOKUP(B62,UWS!$A$3:$P$84,11,1)+($AC$9-$AB$9)*0.15% -> 0.0516 | AD62: =VLOOKUP(B62,UWS!$A$3:$P$84,11,1)+($AD$9-$AB$9)*0.15% -> 0.0531 | AE62: =VLOOKUP(B62,UWS!$A$3:$P$84,11,1)+($AE$9-$AB$9)*0.15% -> 0.0546 | AF62: =VLOOKUP(B62,UWS!$A$3:$P$84,11,1)+($AF$9-$AB$9)*0.15% -> 0.0561 | AG62: =VLOOKUP(B62,UWS!$A$3:$P$84,11,1)+($AG$9-$AB$9)*0.15% -> 0.0576 | AK62: 66 | AL62: =VLOOKUP(AK62,'AGS Finanzierung'!$M$8:$P$64,$AL$8+1,0) -> 0.2815 | AN62: 0 | AO62: =Ausweis!$H$18 -> 0 | AP62: 0 | AR62: =J62+AP62 -> 1506342.622 | AT62: 66 | AU62: =VLOOKUP(AT62,'AGS FinanzierungVL2'!$M$8:$P$64,$AU$8+1,0) -> 0 | AW62: 0.2815 | AX62: 0 | AY62: 0 | AZ62: 0 | BB62: 99 | BC62: 1496993.8 | BE62: 95000 | BF62: =VLOOKUP(Ausweis!$I$5,Zinsen!$F$10:$G$56,2,)*1/2*Ausweis!$H$14 -> 14340 | BG62: =MIN(BE62-BF62,11/2*VLOOKUP(Ausweis!$H$5,Zinsen!$F$10:$G$56,2,1)) -> 80660 | BH62: =MAX(MIN(BE62,12*VLOOKUP(Ausweis!$H$5,Zinsen!$F$10:$G$56,2,1))-4*VLOOKUP(Ausweis!$H$5,Zinsen!$F$10:$G$56,2,1),0)*0 -> 0
B63: 1972 | C63: 2072 | D63: =C63-B63 -> 100 | E63: 12 | F63: =MONTH(Ausweis!$H$10) -> 9 | G63: 9 | H63: 0.2815 | I63: 80660 | J63: 1544111.839 | K63: 1534669.55 | L63: 1534669.55 | M63: 0 | N63: 0 | O63: 0 | P63: 1534669.55 | Q63: =VLOOKUP(C63,Zinsen!$C$9:$E$73,3,1) -> 0.01 | R63: 88396.95 | S63: 7366 | T63: 0.0576 | U63: =VLOOKUP(B63,UWS!$A$3:$P$84,11,1)+($U$9-$AB$9)*0.15% -> 0.0396 | V63: =VLOOKUP(B63,UWS!$A$3:$P$84,11,1)+($V$9-$AB$9)*0.15% -> 0.0411 | W63: =VLOOKUP(B63,UWS!$A$3:$P$84,11,1)+($W$9-$AB$9)*0.15% -> 0.0426 | X63: =VLOOKUP(B63,UWS!$A$3:$P$84,11,1)+($X$9-$AB$9)*0.15% -> 0.0441 | Y63: =VLOOKUP(B63,UWS!$A$3:$P$84,11,1)+($Y$9-$AB$9)*0.15% -> 0.0456 | Z63: =VLOOKUP(B63,UWS!$A$3:$P$84,11,1)+($Z$9-$AB$9)*0.15% -> 0.0471 | AA63: =VLOOKUP(B63,UWS!$A$3:$P$84,11,1)+($AA$9-$AB$9)*0.15% -> 0.0486 | AB63: =VLOOKUP(B63,UWS!$A$3:$P$84,11,1) -> 0.0501 | AC63: =VLOOKUP(B63,UWS!$A$3:$P$84,11,1)+($AC$9-$AB$9)*0.15% -> 0.0516 | AD63: =VLOOKUP(B63,UWS!$A$3:$P$84,11,1)+($AD$9-$AB$9)*0.15% -> 0.0531 | AE63: =VLOOKUP(B63,UWS!$A$3:$P$84,11,1)+($AE$9-$AB$9)*0.15% -> 0.0546 | AF63: =VLOOKUP(B63,UWS!$A$3:$P$84,11,1)+($AF$9-$AB$9)*0.15% -> 0.0561 | AG63: =VLOOKUP(B63,UWS!$A$3:$P$84,11,1)+($AG$9-$AB$9)*0.15% -> 0.0576 | AK63: 67 | AL63: =VLOOKUP(AK63,'AGS Finanzierung'!$M$8:$P$64,$AL$8+1,0) -> 0.2815 | AN63: 0 | AO63: =Ausweis!$H$18 -> 0 | AP63: 0 | AR63: =J63+AP63 -> 1544111.839 | AT63: 67 | AU63: =VLOOKUP(AT63,'AGS FinanzierungVL2'!$M$8:$P$64,$AU$8+1,0) -> 0 | AW63: 0.2815 | AX63: 0 | AY63: 0 | AZ63: 0 | BB63: 100 | BC63: 1534669.55 | BE63: 95000 | BF63: =VLOOKUP(Ausweis!$I$5,Zinsen!$F$10:$G$56,2,)*1/2*Ausweis!$H$14 -> 14340 | BG63: =MIN(BE63-BF63,11/2*VLOOKUP(Ausweis!$H$5,Zinsen!$F$10:$G$56,2,1)) -> 80660 | BH63: =MAX(MIN(BE63,12*VLOOKUP(Ausweis!$H$5,Zinsen!$F$10:$G$56,2,1))-4*VLOOKUP(Ausweis!$H$5,Zinsen!$F$10:$G$56,2,1),0)*0 -> 0
B64: 1972 | C64: 2073 | D64: =C64-B64 -> 101 | E64: 12 | F64: =MONTH(Ausweis!$H$10) -> 9 | G64: 9 | H64: 0.2815 | I64: 80660 | J64: 1582258.747 | K64: 1572722 | L64: 1572722 | M64: 0 | N64: 0 | O64: 0 | P64: 1572722 | Q64: =VLOOKUP(C64,Zinsen!$C$9:$E$73,3,1) -> 0.01 | R64: 90588.8 | S64: 7549 | T64: 0.0576 | U64: =VLOOKUP(B64,UWS!$A$3:$P$84,11,1)+($U$9-$AB$9)*0.15% -> 0.0396 | V64: =VLOOKUP(B64,UWS!$A$3:$P$84,11,1)+($V$9-$AB$9)*0.15% -> 0.0411 | W64: =VLOOKUP(B64,UWS!$A$3:$P$84,11,1)+($W$9-$AB$9)*0.15% -> 0.0426 | X64: =VLOOKUP(B64,UWS!$A$3:$P$84,11,1)+($X$9-$AB$9)*0.15% -> 0.0441 | Y64: =VLOOKUP(B64,UWS!$A$3:$P$84,11,1)+($Y$9-$AB$9)*0.15% -> 0.0456 | Z64: =VLOOKUP(B64,UWS!$A$3:$P$84,11,1)+($Z$9-$AB$9)*0.15% -> 0.0471 | AA64: =VLOOKUP(B64,UWS!$A$3:$P$84,11,1)+($AA$9-$AB$9)*0.15% -> 0.0486 | AB64: =VLOOKUP(B64,UWS!$A$3:$P$84,11,1) -> 0.0501 | AC64: =VLOOKUP(B64,UWS!$A$3:$P$84,11,1)+($AC$9-$AB$9)*0.15% -> 0.0516 | AD64: =VLOOKUP(B64,UWS!$A$3:$P$84,11,1)+($AD$9-$AB$9)*0.15% -> 0.0531 | AE64: =VLOOKUP(B64,UWS!$A$3:$P$84,11,1)+($AE$9-$AB$9)*0.15% -> 0.0546 | AF64: =VLOOKUP(B64,UWS!$A$3:$P$84,11,1)+($AF$9-$AB$9)*0.15% -> 0.0561 | AG64: =VLOOKUP(B64,UWS!$A$3:$P$84,11,1)+($AG$9-$AB$9)*0.15% -> 0.0576 | AK64: 68 | AL64: =VLOOKUP(AK64,'AGS Finanzierung'!$M$8:$P$64,$AL$8+1,0) -> 0.2815 | AN64: 0 | AO64: =Ausweis!$H$18 -> 0 | AP64: 0 | AR64: =J64+AP64 -> 1582258.747 | AT64: 68 | AU64: =VLOOKUP(AT64,'AGS FinanzierungVL2'!$M$8:$P$64,$AU$8+1,0) -> 0 | AW64: 0.2815 | AX64: 0 | AY64: 0 | AZ64: 0 | BB64: 101 | BC64: 1572722 | BE64: 95000 | BF64: =VLOOKUP(Ausweis!$I$5,Zinsen!$F$10:$G$56,2,)*1/2*Ausweis!$H$14 -> 14340 | BG64: =MIN(BE64-BF64,11/2*VLOOKUP(Ausweis!$H$5,Zinsen!$F$10:$G$56,2,1)) -> 80660 | BH64: =MAX(MIN(BE64,12*VLOOKUP(Ausweis!$H$5,Zinsen!$F$10:$G$56,2,1))-4*VLOOKUP(Ausweis!$H$5,Zinsen!$F$10:$G$56,2,1),0)*0 -> 0
B65: 1972 | C65: 2074 | D65: =C65-B65 -> 102 | E65: 12 | F65: =MONTH(Ausweis!$H$10) -> 9 | G65: 9 | H65: 0.2815 | I65: 80660 | J65: 1620787.124 | K65: 1611155.05 | L65: 1611155.05 | M65: 0 | N65: 0 | O65: 0 | P65: 1611155.05 | Q65: =VLOOKUP(C65,Zinsen!$C$9:$E$73,3,1) -> 0.01 | R65: 92802.55 | S65: 7734 | T65: 0.0576 | U65: =VLOOKUP(B65,UWS!$A$3:$P$84,11,1)+($U$9-$AB$9)*0.15% -> 0.0396 | V65: =VLOOKUP(B65,UWS!$A$3:$P$84,11,1)+($V$9-$AB$9)*0.15% -> 0.0411 | W65: =VLOOKUP(B65,UWS!$A$3:$P$84,11,1)+($W$9-$AB$9)*0.15% -> 0.0426 | X65: =VLOOKUP(B65,UWS!$A$3:$P$84,11,1)+($X$9-$AB$9)*0.15% -> 0.0441 | Y65: =VLOOKUP(B65,UWS!$A$3:$P$84,11,1)+($Y$9-$AB$9)*0.15% -> 0.0456 | Z65: =VLOOKUP(B65,UWS!$A$3:$P$84,11,1)+($Z$9-$AB$9)*0.15% -> 0.0471 | AA65: =VLOOKUP(B65,UWS!$A$3:$P$84,11,1)+($AA$9-$AB$9)*0.15% -> 0.0486 | AB65: =VLOOKUP(B65,UWS!$A$3:$P$84,11,1) -> 0.0501 | AC65: =VLOOKUP(B65,UWS!$A$3:$P$84,11,1)+($AC$9-$AB$9)*0.15% -> 0.0516 | AD65: =VLOOKUP(B65,UWS!$A$3:$P$84,11,1)+($AD$9-$AB$9)*0.15% -> 0.0531 | AE65: =VLOOKUP(B65,UWS!$A$3:$P$84,11,1)+($AE$9-$AB$9)*0.15% -> 0.0546 | AF65: =VLOOKUP(B65,UWS!$A$3:$P$84,11,1)+($AF$9-$AB$9)*0.15% -> 0.0561 | AG65: =VLOOKUP(B65,UWS!$A$3:$P$84,11,1)+($AG$9-$AB$9)*0.15% -> 0.0576 | AK65: 69 | AL65: =VLOOKUP(AK65,'AGS Finanzierung'!$M$8:$P$64,$AL$8+1,0) -> 0.2815 | AN65: 0 | AO65: =Ausweis!$H$18 -> 0 | AP65: 0 | AR65: =J65+AP65 -> 1620787.124 | AT65: 69 | AU65: =VLOOKUP(AT65,'AGS FinanzierungVL2'!$M$8:$P$64,$AU$8+1,0) -> 0 | AW65: 0.2815 | AX65: 0 | AY65: 0 | AZ65: 0 | BB65: 102 | BC65: 1611155.05 | BE65: 95000 | BF65: =VLOOKUP(Ausweis!$I$5,Zinsen!$F$10:$G$56,2,)*1/2*Ausweis!$H$14 -> 14340 | BG65: =MIN(BE65-BF65,11/2*VLOOKUP(Ausweis!$H$5,Zinsen!$F$10:$G$56,2,1)) -> 80660 | BH65: =MAX(MIN(BE65,12*VLOOKUP(Ausweis!$H$5,Zinsen!$F$10:$G$56,2,1))-4*VLOOKUP(Ausweis!$H$5,Zinsen!$F$10:$G$56,2,1),0)*0 -> 0
B66: 1972 | C66: 2075 | D66: =C66-B66 -> 103 | E66: 12 | F66: =MONTH(Ausweis!$H$10) -> 9 | G66: 9 | H66: 0.2815 | I66: 80660 | J66: 1659700.786 | K66: 1649972.35 | L66: 1649972.35 | M66: 0 | N66: 0 | O66: 0 | P66: 1649972.35 | Q66: =VLOOKUP(C66,Zinsen!$C$9:$E$73,3,1) -> 0.01 | R66: 95038.4 | S66: 7920 | T66: 0.0576 | U66: =VLOOKUP(B66,UWS!$A$3:$P$84,11,1)+($U$9-$AB$9)*0.15% -> 0.0396 | V66: =VLOOKUP(B66,UWS!$A$3:$P$84,11,1)+($V$9-$AB$9)*0.15% -> 0.0411 | W66: =VLOOKUP(B66,UWS!$A$3:$P$84,11,1)+($W$9-$AB$9)*0.15% -> 0.0426 | X66: =VLOOKUP(B66,UWS!$A$3:$P$84,11,1)+($X$9-$AB$9)*0.15% -> 0.0441 | Y66: =VLOOKUP(B66,UWS!$A$3:$P$84,11,1)+($Y$9-$AB$9)*0.15% -> 0.0456 | Z66: =VLOOKUP(B66,UWS!$A$3:$P$84,11,1)+($Z$9-$AB$9)*0.15% -> 0.0471 | AA66: =VLOOKUP(B66,UWS!$A$3:$P$84,11,1)+($AA$9-$AB$9)*0.15% -> 0.0486 | AB66: =VLOOKUP(B66,UWS!$A$3:$P$84,11,1) -> 0.0501 | AC66: =VLOOKUP(B66,UWS!$A$3:$P$84,11,1)+($AC$9-$AB$9)*0.15% -> 0.0516 | AD66: =VLOOKUP(B66,UWS!$A$3:$P$84,11,1)+($AD$9-$AB$9)*0.15% -> 0.0531 | AE66: =VLOOKUP(B66,UWS!$A$3:$P$84,11,1)+($AE$9-$AB$9)*0.15% -> 0.0546 | AF66: =VLOOKUP(B66,UWS!$A$3:$P$84,11,1)+($AF$9-$AB$9)*0.15% -> 0.0561 | AG66: =VLOOKUP(B66,UWS!$A$3:$P$84,11,1)+($AG$9-$AB$9)*0.15% -> 0.0576 | AK66: 70 | AL66: =VLOOKUP(AK66,'AGS Finanzierung'!$M$8:$P$64,$AL$8+1,0) -> 0.2815 | AN66: 0 | AO66: =Ausweis!$H$18 -> 0 | AP66: 0 | AR66: =J66+AP66 -> 1659700.786 | AT66: 70 | AU66: =VLOOKUP(AT66,'AGS Finanzierung'!$M$8:$P$64,$AL$8+1,0) -> 0.2815 | AW66: 0.2815 | AX66: 0 | AY66: 0 | AZ66: 0 | BB66: 103 | BC66: 1649972.35 | BE66: 95000 | BF66: =VLOOKUP(Ausweis!$I$5,Zinsen!$F$10:$G$56,2,)*1/2*Ausweis!$H$14 -> 14340 | BG66: =MIN(BE66-BF66,11/2*VLOOKUP(Ausweis!$H$5,Zinsen!$F$10:$G$56,2,1)) -> 80660 | BH66: =MAX(MIN(BE66,12*VLOOKUP(Ausweis!$H$5,Zinsen!$F$10:$G$56,2,1))-4*VLOOKUP(Ausweis!$H$5,Zinsen!$F$10:$G$56,2,1),0)*0 -> 0
B69: Einkauf | M69: Vorbezug | X69: Scheidung
B70: Betrag | C70: =Ausweis!B76 -> 0 | M70: Betrag | N70: =Ausweis!F76 -> 0 | X70: Betrag | Y70: =Ausweis!I76 -> 0
B71: Datum | C71: =Ausweis!B77 -> 2020-11-06 | M71: Datum | N71: =Ausweis!F77 -> 2020-11-06 | X71: Datum | Y71: =Ausweis!I77 -> 2020-11-06
B72: Geburtsjahr | D72: Alter | E72: Zins | F72: Monate | G72: Tage | H72: Monate bis s | I72: AGH Einkauf 31.12. | J72: AGH Einkauf eofM Birthday | K72: AGH Einkauf Wunschpens | M72: Geburtsjahr | O72: Alter | P72: Zins | Q72: Monate | R72: Tage | S72: Monate bis s | T72: AGH Einkauf 31.12. | U72: AGH Einkauf eofM Birthday | V72: AGH Einkauf Wunschpens | X72: Geburtsjahr | Z72: Alter | AA72: Zins | AB72: Monate | AC72: Tage | AD72: Monate bis s | AE72: AGH Einkauf 31.12. | AF72: AGH Einkauf eofM Birthday | AG72: AGH Einkauf Wunschpens
B73: =YEAR(Ausweis!H10) -> 1972 | C73: =YEAR(C71) -> 2020 | D73: =C73-B73 -> 48 | E73: =VLOOKUP(C73,Zinsen!$C$9:$E$73,3,1) -> 0.01 | F73: =12-(MONTH(C71)) -> 1 | G73: =30-MIN(DAY(C71),30) -> 24 | H73: =MONTH(Ausweis!$H$10) -> 9 | I73: =C70*(1+E73/360*(F73*30+G73)) -> 0 | J73: =MROUND(C70*(1+E73/360*((F73-(12-H73))*30+G73)),0.05) -> 0 | K73: =MROUND(C70*(1+E73/360*((F73-(12-$G$12))*30+G73)),0.05) -> 0 | M73: =B73 -> 1972 | N73: =YEAR(N71) -> 2020 | O73: =N73-M73 -> 48 | P73: =VLOOKUP(N73,Zinsen!$C$9:$E$73,3,1) -> 0.01 | Q73: =12-(MONTH(N71)) -> 1 | R73: =30-MIN(DAY(N71),30) -> 24 | S73: =MONTH(Ausweis!$H$10) -> 9 | T73: =N70*(1+P73/360*(Q73*30+R73)) -> 0 | U73: =MROUND(N70*(1+P73/360*((Q73-(12-S73))*30+R73)),0.05) -> 0 | V73: =MROUND(N70*(1+P73/360*((Q73-(12-$G$12))*30+R73)),0.05) -> 0 | X73: =M73 -> 1972 | Y73: =YEAR(Y71) -> 2020 | Z73: =Y73-X73 -> 48 | AA73: =VLOOKUP(Y73,Zinsen!$C$9:$E$73,3,1) -> 0.01 | AB73: =12-(MONTH(Y71)) -> 1 | AC73: =30-MIN(DAY(Y71),30) -> 24 | AD73: =MONTH(Ausweis!$H$10) -> 9 | AE73: =Y70*(1+AA73/360*(AB73*30+AC73)) -> 0 | AF73: =MROUND(Y70*(1+AA73/360*((AB73-(12-AD73))*30+AC73)),0.05) -> 0 | AG73: =MROUND(Y70*(1+AA73/360*((AB73-(12-$G$12))*30+AC73)),0.05) -> 0
B74: =B73 -> 1972 | C74: =C73+1 -> 2021 | D74: =C74-B74 -> 49 | E74: =VLOOKUP(C74,Zinsen!$C$9:$E$73,3,1) -> 0.01 | F74: 12 | H74: =MONTH(Ausweis!$H$10) -> 9 | I74: =I73*(1+E74/360*(F74*30+G74)) -> 0 | J74: =MROUND(I73*(1+E74/12*H74),0.05) -> 0 | K74: =MROUND(I73*(1+E74/12*$G$12),0.05) -> 0 | M74: =M73 -> 1972 | N74: =N73+1 -> 2021 | O74: =N74-M74 -> 49 | P74: =VLOOKUP(N74,Zinsen!$C$9:$E$73,3,1) -> 0.01 | Q74: 12 | S74: =MONTH(Ausweis!$H$10) -> 9 | T74: =T73*(1+P74/360*(Q74*30+R74)) -> 0 | U74: =MROUND(T73*(1+P74/12*S74),0.05) -> 0 | V74: =MROUND(T73*(1+P74/12*$G$12),0.05) -> 0 | X74: =X73 -> 1972 | Y74: =Y73+1 -> 2021 | Z74: =Y74-X74 -> 49 | AA74: =VLOOKUP(Y74,Zinsen!$C$9:$E$73,3,1) -> 0.01 | AB74: 12 | AD74: =MONTH(Ausweis!$H$10) -> 9 | AE74: =AE73*(1+AA74/360*(AB74*30+AC74)) -> 0 | AF74: =MROUND(AE73*(1+AA74/12*AD74),0.05) -> 0 | AG74: =MROUND(AE73*(1+AA74/12*$G$12),0.05) -> 0
